Workbook

Sheet Startside
B8: Indsatstrappens Nøgletal
B11: Version 2.1
B15: Velkommen til Indsatstrappens Nøgletal. Indsatstrappens Nøgletal er et redskab til at følge kommunernes foranstaltningsmønster på indsatstrappens trin. Redskabet indeholder data om anbringelser og forebyggende foranstaltninger på området for udsatte børn og unge fra 2017 og frem til nyeste offentliggjorte år i de nationale registre. Data stammer fra anbringelsesstatistikken hos Danmarks Statistik. Du har mulighed for at se en enkelt kommunes nøgletal samt at sammenligne med udvalgte sammenligningskommuner, og hele landet. Du kan desuden se udviklingen i nøgletallene over tid. Indsatstrappens trin er illustreret i figuren til højre. Du kan se, hvordan de enkelte nøgletal er defineret ved at bruge infoknapperne ved opgørelserne. På Socialstyrelsens hjemmeside kan du finde en vejledning til, hvordan du bruger redskabet. Du kan tilgå sidenvia linket nedenfor. I selve redskabet er der også vejledninger til hvert trin, ligesom du kan få yderligere informationer ved at trykke på info-boksene.
B16: Gå til mere information på Social.dk

Sheet Dine valg
B3: Dine valg
B5: Før du går i gang med at bruge redskabet, skal du tage stilling til hvilken kommune, du ønsker at se nøgletal for. Når du har foretaget dit valg, har du tre muligheder: 1. Du kan se nøgletallene over tid og sammenligne med andre aktører ved at bruge knappen "Nøgletalsanalyse". 2. Du kan se datagrundlaget for de nøgletal, der kan understøttes af registerdata ved at bruge knappen "Registerdata". 3. Du kan se datagrundlaget for de nøgletal, som ikke er registerunderstøttede ved at bruge knappen "Egne indtastninger".
Y7: Aarhus
B23: Vælg kommune | D23: Vælg sammenligningsgruppe | F23: Valgte kommuner
B24: =VLOOKUP(Kom_valg,Data!B1674:C1771,2,FALSE) -> København | F24: 1. | G24: =IF($Y$7="","",$Y$7) -> Aarhus
F25: 2. | G25: =IF($Y$8="","",$Y$8) -> 
F26: 3. | G26: =IF($Y$9="","",$Y$9) -> 
F27: 4. | G27: =IF($Y$10="","",$Y$10) -> 
F28: 5. | G28: =IF($Y$11="","",$Y$11) -> 
F29: 6. | G29: =IF($Y$12="","",$Y$12) -> 
F30: 7. | G30: =IF($Y$13="","",$Y$13) -> 
D71: Vælg sammenligningsgruppe | G71: Valgte kommuner
G72: =IF(K8="","",K8) -> 

Sheet Registerdata
B3: Registerdata
B6: En række af nøgletallene i redskabet er baseret på registerdata. På denne side kan du se de registerbaserede nøgletal, og hvordan de for din valgte kommune ændrer sig over tid. Du kan vælge ét nøgletal af gangen, ved at vælge nøgletallet i rullemenuen nedenfor. Du kan se definitionen af det enkelte nøgletal, ved at klikke på infoknappen til venstre for tabellen. Nøgletallet vil blive opgjort fra 2016 og frem til nyeste offentliggjorte data. Du kan se alle nøgletal over tid og sammenligne med andre aktører ved at vælge knappen "Nøgletalsanalyse". Bemærk, at nøgletallet angives med *, hvis antallet af observationer er mindre end 3 individer.
E7: =IF(L10="","",L10) -> 
E8: =IF(L11="","",L11) ->  | F8: =IF(M18="","",M18) -> 
F9: =IF(M86="","",M86) -> 
B10: Vælg nøgletal
B11: =VLOOKUP(regNT_valg,Data!F1692:G1700,2,FALSE) -> Vis alle
B15: =Skyggetabeller!B6 -> Nøgletal 1: Institutionsanbringelser
B17: =Skyggetabeller!B9 -> Nøgletal 1: Institutionsanbringelser | D17: 2017-01-01 | E17: 2017-07-01 | F17: 2018-01-01 | G17: 2018-07-01 | H17: 2019-01-01 | I17: 2019-07-01 | J17: 2020-01-01 | K17: 2020-07-01 | L17: 2021-01-01 | M17: 2021-07-01 | N17: 2022-01-01 | O17: 2022-07-01 | P17: 2023-01-01 | Q17: 2023-07-01 | R17: 2024-01-01
B18: =Skyggetabeller!B10 -> København
B19: =Skyggetabeller!B11 -> Antal anbragte | D19: =Skyggetabeller!D11 -> 225 | E19: =Skyggetabeller!E11 -> 227 | F19: =Skyggetabeller!F11 -> 215 | G19: =Skyggetabeller!G11 -> 219 | H19: =Skyggetabeller!H11 -> 206 | I19: =Skyggetabeller!I11 -> 195 | J19: =Skyggetabeller!J11 -> 162 | K19: =Skyggetabeller!K11 -> 183 | L19: =Skyggetabeller!L11 -> 203 | M19: =Skyggetabeller!M11 -> 221 | N19: =Skyggetabeller!N11 -> 220 | O19: =Skyggetabeller!O11 -> 246 | P19: =Skyggetabeller!P11 -> 252 | Q19: =Skyggetabeller!Q11 -> 274 | R19: =Skyggetabeller!R11 -> 254
B20: =Skyggetabeller!B12 -> Antal 0-17-årige | D20: =Skyggetabeller!D12 -> 105885 | E20: =Skyggetabeller!E12 -> 106913 | F20: =Skyggetabeller!F12 -> 107770 | G20: =Skyggetabeller!G12 -> 108734 | H20: =Skyggetabeller!H12 -> 109335 | I20: =Skyggetabeller!I12 -> 110138 | J20: =Skyggetabeller!J12 -> 110822 | K20: =Skyggetabeller!K12 -> 111068 | L20: =Skyggetabeller!L12 -> 110927 | M20: =Skyggetabeller!M12 -> 110614 | N20: =Skyggetabeller!N12 -> 110513 | O20: =Skyggetabeller!O12 -> 110692 | P20: =Skyggetabeller!P12 -> 110835 | Q20: =Skyggetabeller!Q12 -> 111075 | R20: =Skyggetabeller!R12 -> 110571
B21: =Skyggetabeller!B13 -> Andel | D21: =Skyggetabeller!D13 -> 2.124946876 | E21: =Skyggetabeller!E13 -> 2.123221685 | F21: =Skyggetabeller!F13 -> 1.994989329 | G21: =Skyggetabeller!G13 -> 2.014089429 | H21: =Skyggetabeller!H13 -> 1.88411762 | I21: =Skyggetabeller!I13 -> 1.770506092 | J21: =Skyggetabeller!J13 -> 1.461803613 | K21: =Skyggetabeller!K13 -> 1.647639284 | L21: =Skyggetabeller!L13 -> 1.830032364 | M21: =Skyggetabeller!M13 -> 1.997938778 | N21: =Skyggetabeller!N13 -> 1.990716024 | O21: =Skyggetabeller!O13 -> 2.222382828 | P21: =Skyggetabeller!P13 -> 2.27365002 | Q21: =Skyggetabeller!Q13 -> 2.466801711 | R21: =Skyggetabeller!R13 -> 2.297166526
B22: =Skyggetabeller!B14 -> Sammenligningsgruppe, gns.
B23: =Skyggetabeller!B15 -> Antal anbragte | D23: =Skyggetabeller!D15 -> 188 | E23: =Skyggetabeller!E15 -> 186 | F23: =Skyggetabeller!F15 -> 178 | G23: =Skyggetabeller!G15 -> 166 | H23: =Skyggetabeller!H15 -> 173 | I23: =Skyggetabeller!I15 -> 173 | J23: =Skyggetabeller!J15 -> 166 | K23: =Skyggetabeller!K15 -> 168 | L23: =Skyggetabeller!L15 -> 169 | M23: =Skyggetabeller!M15 -> 168 | N23: =Skyggetabeller!N15 -> 154 | O23: =Skyggetabeller!O15 -> 168 | P23: =Skyggetabeller!P15 -> 162 | Q23: =Skyggetabeller!Q15 -> 161 | R23: =Skyggetabeller!R15 -> 152
B24: =Skyggetabeller!B16 -> Antal 0-17-årige | D24: =Skyggetabeller!D16 -> 62903 | E24: =Skyggetabeller!E16 -> 63077 | F24: =Skyggetabeller!F16 -> 63245 | G24: =Skyggetabeller!G16 -> 63510 | H24: =Skyggetabeller!H16 -> 63607 | I24: =Skyggetabeller!I16 -> 63704 | J24: =Skyggetabeller!J16 -> 63890 | K24: =Skyggetabeller!K16 -> 64128 | L24: =Skyggetabeller!L16 -> 64334 | M24: =Skyggetabeller!M16 -> 64307 | N24: =Skyggetabeller!N16 -> 64049 | O24: =Skyggetabeller!O16 -> 64356 | P24: =Skyggetabeller!P16 -> 64420 | Q24: =Skyggetabeller!Q16 -> 64601 | R24: =Skyggetabeller!R16 -> 64665
B25: =Skyggetabeller!B17 -> Andel | D25: =Skyggetabeller!D17 -> 2.988728677 | E25: =Skyggetabeller!E17 -> 2.948776892 | F25: =Skyggetabeller!F17 -> 2.814451735 | G25: =Skyggetabeller!G17 -> 2.613761612 | H25: =Skyggetabeller!H17 -> 2.719826434 | I25: =Skyggetabeller!I17 -> 2.715685043 | J25: =Skyggetabeller!J17 -> 2.598215683 | K25: =Skyggetabeller!K17 -> 2.619760479 | L25: =Skyggetabeller!L17 -> 2.626915783 | M25: =Skyggetabeller!M17 -> 2.612468316 | N25: =Skyggetabeller!N17 -> 2.404409124 | O25: =Skyggetabeller!O17 -> 2.610479209 | P25: =Skyggetabeller!P17 -> 2.514746973 | Q25: =Skyggetabeller!Q17 -> 2.492221483 | R25: =Skyggetabeller!R17 -> 2.350576046
B26: =Skyggetabeller!B18 -> Hele landet
B27: =Skyggetabeller!B19 -> Antal anbragte | D27: =Skyggetabeller!D19 -> 3383 | E27: =Skyggetabeller!E19 -> 3460 | F27: =Skyggetabeller!F19 -> 3369 | G27: =Skyggetabeller!G19 -> 3409 | H27: =Skyggetabeller!H19 -> 3309 | I27: =Skyggetabeller!I19 -> 3282 | J27: =Skyggetabeller!J19 -> 3274 | K27: =Skyggetabeller!K19 -> 3343 | L27: =Skyggetabeller!L19 -> 3404 | M27: =Skyggetabeller!M19 -> 3494 | N27: =Skyggetabeller!N19 -> 3486 | O27: =Skyggetabeller!O19 -> 3675 | P27: =Skyggetabeller!P19 -> 3708 | Q27: =Skyggetabeller!Q19 -> 3769 | R27: =Skyggetabeller!R19 -> 3790
B28: =Skyggetabeller!B20 -> Antal 0-17-årige | D28: =Skyggetabeller!D20 -> 1168201 | E28: =Skyggetabeller!E20 -> 1165363 | F28: =Skyggetabeller!F20 -> 1165475 | G28: =Skyggetabeller!G20 -> 1162195 | H28: =Skyggetabeller!H20 -> 1160360 | I28: =Skyggetabeller!I20 -> 1156537 | J28: =Skyggetabeller!J20 -> 1156116 | K28: =Skyggetabeller!K20 -> 1153027 | L28: =Skyggetabeller!L20 -> 1152972 | M28: =Skyggetabeller!M20 -> 1151374 | N28: =Skyggetabeller!N20 -> 1151704 | O28: =Skyggetabeller!O20 -> 1157254 | P28: =Skyggetabeller!P20 -> 1155814 | Q28: =Skyggetabeller!Q20 -> 1151415 | R28: =Skyggetabeller!R20 -> 1148490
B29: =Skyggetabeller!B21 -> Andel | D29: =Skyggetabeller!D21 -> 2.895905756 | E29: =Skyggetabeller!E21 -> 2.969031967 | F29: =Skyggetabeller!F21 -> 2.890666895 | G29: =Skyggetabeller!G21 -> 2.9332427 | H29: =Skyggetabeller!H21 -> 2.851701196 | I29: =Skyggetabeller!I21 -> 2.837782103 | J29: =Skyggetabeller!J21 -> 2.831895761 | K29: =Skyggetabeller!K21 -> 2.899324994 | L29: =Skyggetabeller!L21 -> 2.952370049 | M29: =Skyggetabeller!M21 -> 3.03463514 | N29: =Skyggetabeller!N21 -> 3.026819391 | O29: =Skyggetabeller!O21 -> 3.175620909 | P29: =Skyggetabeller!P21 -> 3.208128644 | Q29: =Skyggetabeller!Q21 -> 3.273363644 | R29: =Skyggetabeller!R21 -> 3.299985198
B30: Anm.: Hvis nøgletallet er angivet med * er der foretaget en diskretionering af data, da der er for få observationer.
B31: =IF('Dine valg'!$G$24="","Ingen sammenligningsgruppe valgt.","Anm.: Valgte kommuner i sammenligningsgruppen: "&'Dine valg'!$G$24&" "&'Dine valg'!$G$25&" "&'Dine valg'!$G$26&" "&'Dine valg'!$G$27&" "&'Dine valg'!$G$28&" "&'Dine valg'!$G$29&" "&'Dine valg'!$G$30) -> Anm.: Valgte kommuner i sammenligningsgruppen: Aarhus
B32: Kilde: Socialstyrelsens egne beregninger baseret på registerdata fra Danmarks Statistik.
B34: Undernøgletal - Institutionsanbringelser
B36: =Skyggetabeller!B24 -> Nøgletal 1.1 Anbragte på døgninstitutioner | D36: 2017-01-01 | E36: 2017-07-01 | F36: 2018-01-01 | G36: 2018-07-01 | H36: 2019-01-01 | I36: 2019-07-01 | J36: 2020-01-01 | K36: 2020-07-01 | L36: 2021-01-01 | M36: 2021-07-01 | N36: 2022-01-01 | O36: 2022-07-01 | P36: 2023-01-01 | Q36: 2023-07-01 | R36: 2024-01-01
B37: =Skyggetabeller!B25 -> København
B38: =Skyggetabeller!B26 -> Antal anbragte | D38: =Skyggetabeller!D26 -> 172 | E38: =Skyggetabeller!E26 -> 183 | F38: =Skyggetabeller!F26 -> 176 | G38: =Skyggetabeller!G26 -> 176 | H38: =Skyggetabeller!H26 -> 164 | I38: =Skyggetabeller!I26 -> 155 | J38: =Skyggetabeller!J26 -> 139 | K38: =Skyggetabeller!K26 -> 148 | L38: =Skyggetabeller!L26 -> 159 | M38: =Skyggetabeller!M26 -> 164 | N38: =Skyggetabeller!N26 -> 171 | O38: =Skyggetabeller!O26 -> 194 | P38: =Skyggetabeller!P26 -> 200 | Q38: =Skyggetabeller!Q26 -> 220 | R38: =Skyggetabeller!R26 -> 189
B39: =Skyggetabeller!B27 -> Antal 0-17-årige | D39: =Skyggetabeller!D27 -> 225 | E39: =Skyggetabeller!E27 -> 227 | F39: =Skyggetabeller!F27 -> 215 | G39: =Skyggetabeller!G27 -> 219 | H39: =Skyggetabeller!H27 -> 206 | I39: =Skyggetabeller!I27 -> 195 | J39: =Skyggetabeller!J27 -> 162 | K39: =Skyggetabeller!K27 -> 183 | L39: =Skyggetabeller!L27 -> 203 | M39: =Skyggetabeller!M27 -> 221 | N39: =Skyggetabeller!N27 -> 220 | O39: =Skyggetabeller!O27 -> 246 | P39: =Skyggetabeller!P27 -> 252 | Q39: =Skyggetabeller!Q27 -> 274 | R39: =Skyggetabeller!R27 -> 254
B40: =Skyggetabeller!B28 -> Andel | D40: =Skyggetabeller!D28 -> 0.7644444444 | E40: =Skyggetabeller!E28 -> 0.8061674009 | F40: =Skyggetabeller!F28 -> 0.8186046512 | G40: =Skyggetabeller!G28 -> 0.803652968 | H40: =Skyggetabeller!H28 -> 0.7961165049 | I40: =Skyggetabeller!I28 -> 0.7948717949 | J40: =Skyggetabeller!J28 -> 0.8580246914 | K40: =Skyggetabeller!K28 -> 0.8087431694 | L40: =Skyggetabeller!L28 -> 0.7832512315 | M40: =Skyggetabeller!M28 -> 0.742081448 | N40: =Skyggetabeller!N28 -> 0.7772727273 | O40: =Skyggetabeller!O28 -> 0.7886178862 | P40: =Skyggetabeller!P28 -> 0.7936507937 | Q40: =Skyggetabeller!Q28 -> 0.802919708 | R40: =Skyggetabeller!R28 -> 0.7440944882
B41: =Skyggetabeller!B29 -> Sammenligningsgruppe, gns.
B42: =Skyggetabeller!B30 -> Antal anbragte | D42: =Skyggetabeller!D30 -> 129 | E42: =Skyggetabeller!E30 -> 130 | F42: =Skyggetabeller!F30 -> 116 | G42: =Skyggetabeller!G30 -> 113 | H42: =Skyggetabeller!H30 -> 116 | I42: =Skyggetabeller!I30 -> 122 | J42: =Skyggetabeller!J30 -> 116 | K42: =Skyggetabeller!K30 -> 121 | L42: =Skyggetabeller!L30 -> 115 | M42: =Skyggetabeller!M30 -> 112 | N42: =Skyggetabeller!N30 -> 102 | O42: =Skyggetabeller!O30 -> 105 | P42: =Skyggetabeller!P30 -> 103 | Q42: =Skyggetabeller!Q30 -> 110 | R42: =Skyggetabeller!R30 -> 101
B43: =Skyggetabeller!B31 -> Antal 0-17-årige | D43: =Skyggetabeller!D31 -> 188 | E43: =Skyggetabeller!E31 -> 186 | F43: =Skyggetabeller!F31 -> 178 | G43: =Skyggetabeller!G31 -> 166 | H43: =Skyggetabeller!H31 -> 173 | I43: =Skyggetabeller!I31 -> 173 | J43: =Skyggetabeller!J31 -> 166 | K43: =Skyggetabeller!K31 -> 168 | L43: =Skyggetabeller!L31 -> 169 | M43: =Skyggetabeller!M31 -> 168 | N43: =Skyggetabeller!N31 -> 154 | O43: =Skyggetabeller!O31 -> 168 | P43: =Skyggetabeller!P31 -> 162 | Q43: =Skyggetabeller!Q31 -> 161 | R43: =Skyggetabeller!R31 -> 152
B44: =Skyggetabeller!B32 -> Andel | D44: =Skyggetabeller!D32 -> 0.6861702128 | E44: =Skyggetabeller!E32 -> 0.6989247312 | F44: =Skyggetabeller!F32 -> 0.6516853933 | G44: =Skyggetabeller!G32 -> 0.6807228916 | H44: =Skyggetabeller!H32 -> 0.6705202312 | I44: =Skyggetabeller!I32 -> 0.7052023121 | J44: =Skyggetabeller!J32 -> 0.6987951807 | K44: =Skyggetabeller!K32 -> 0.7202380952 | L44: =Skyggetabeller!L32 -> 0.6804733728 | M44: =Skyggetabeller!M32 -> 0.6666666667 | N44: =Skyggetabeller!N32 -> 0.6623376623 | O44: =Skyggetabeller!O32 -> 0.625 | P44: =Skyggetabeller!P32 -> 0.6358024691 | Q44: =Skyggetabeller!Q32 -> 0.6832298137 | R44: =Skyggetabeller!R32 -> 0.6644736842
B45: =Skyggetabeller!B33 -> Hele landet
B46: =Skyggetabeller!B34 -> Antal anbragte | D46: =Skyggetabeller!D34 -> 1818 | E46: =Skyggetabeller!E34 -> 1809 | F46: =Skyggetabeller!F34 -> 1761 | G46: =Skyggetabeller!G34 -> 1780 | H46: =Skyggetabeller!H34 -> 1704 | I46: =Skyggetabeller!I34 -> 1695 | J46: =Skyggetabeller!J34 -> 1680 | K46: =Skyggetabeller!K34 -> 1669 | L46: =Skyggetabeller!L34 -> 1694 | M46: =Skyggetabeller!M34 -> 1680 | N46: =Skyggetabeller!N34 -> 1689 | O46: =Skyggetabeller!O34 -> 1762 | P46: =Skyggetabeller!P34 -> 1768 | Q46: =Skyggetabeller!Q34 -> 1815 | R46: =Skyggetabeller!R34 -> 1800
B47: =Skyggetabeller!B35 -> Antal 0-17-årige | D47: =Skyggetabeller!D35 -> 3383 | E47: =Skyggetabeller!E35 -> 3460 | F47: =Skyggetabeller!F35 -> 3369 | G47: =Skyggetabeller!G35 -> 3409 | H47: =Skyggetabeller!H35 -> 3309 | I47: =Skyggetabeller!I35 -> 3282 | J47: =Skyggetabeller!J35 -> 3274 | K47: =Skyggetabeller!K35 -> 3343 | L47: =Skyggetabeller!L35 -> 3404 | M47: =Skyggetabeller!M35 -> 3494 | N47: =Skyggetabeller!N35 -> 3486 | O47: =Skyggetabeller!O35 -> 3675 | P47: =Skyggetabeller!P35 -> 3708 | Q47: =Skyggetabeller!Q35 -> 3769 | R47: =Skyggetabeller!R35 -> 3790
B48: =Skyggetabeller!B36 -> Andel | D48: =Skyggetabeller!D36 -> 0.5373928466 | E48: =Skyggetabeller!E36 -> 0.5228323699 | F48: =Skyggetabeller!F36 -> 0.5227070347 | G48: =Skyggetabeller!G36 -> 0.5221472573 | H48: =Skyggetabeller!H36 -> 0.5149592022 | I48: =Skyggetabeller!I36 -> 0.5164533821 | J48: =Skyggetabeller!J36 -> 0.5131337813 | K48: =Skyggetabeller!K36 -> 0.4992521687 | L48: =Skyggetabeller!L36 -> 0.4976498237 | M48: =Skyggetabeller!M36 -> 0.4808242702 | N48: =Skyggetabeller!N36 -> 0.4845094664 | O48: =Skyggetabeller!O36 -> 0.4794557823 | P48: =Skyggetabeller!P36 -> 0.476806904 | Q48: =Skyggetabeller!Q36 -> 0.4815600955 | R48: =Skyggetabeller!R36 -> 0.4749340369
B49: Anm.: Hvis nøgletallet er angivet med * er der foretaget en diskretionering af data, da der er for få observationer.
B50: =IF('Dine valg'!$G$24="","Ingen sammenligningsgruppe valgt.","Anm.: Valgte kommuner i sammenligningsgruppen: "&'Dine valg'!$G$24&" "&'Dine valg'!$G$25&" "&'Dine valg'!$G$26&" "&'Dine valg'!$G$27&" "&'Dine valg'!$G$28&" "&'Dine valg'!$G$29&" "&'Dine valg'!$G$30) -> Anm.: Valgte kommuner i sammenligningsgruppen: Aarhus
B51: Kilde: Socialstyrelsens egne beregninger baseret på registerdata fra Danmarks Statistik.
B53: =Skyggetabeller!B39 -> Nøgletal 1.2 Anbragte på sikrede døgninstitutioner | D53: 2017-01-01 | E53: 2017-07-01 | F53: 2018-01-01 | G53: 2018-07-01 | H53: 2019-01-01 | I53: 2019-07-01 | J53: 2020-01-01 | K53: 2020-07-01 | L53: 2021-01-01 | M53: 2021-07-01 | N53: 2022-01-01 | O53: 2022-07-01 | P53: 2023-01-01 | Q53: 2023-07-01 | R53: 2024-01-01
B54: =Skyggetabeller!B40 -> København
B55: =Skyggetabeller!B41 -> Antal anbragte | D55: =Skyggetabeller!D41 -> 7 | E55: =Skyggetabeller!E41 -> 6 | F55: =Skyggetabeller!F41 -> 6 | G55: =Skyggetabeller!G41 -> 11 | H55: =Skyggetabeller!H41 -> 9 | I55: =Skyggetabeller!I41 -> 4 | J55: =Skyggetabeller!J41 -> * | K55: =Skyggetabeller!K41 -> 9 | L55: =Skyggetabeller!L41 -> 17 | M55: =Skyggetabeller!M41 -> 23 | N55: =Skyggetabeller!N41 -> 18 | O55: =Skyggetabeller!O41 -> 16 | P55: =Skyggetabeller!P41 -> 11 | Q55: =Skyggetabeller!Q41 -> 12 | R55: =Skyggetabeller!R41 -> 12
B56: =Skyggetabeller!B42 -> Antal 0-17-årige | D56: =Skyggetabeller!D42 -> 225 | E56: =Skyggetabeller!E42 -> 227 | F56: =Skyggetabeller!F42 -> 215 | G56: =Skyggetabeller!G42 -> 219 | H56: =Skyggetabeller!H42 -> 206 | I56: =Skyggetabeller!I42 -> 195 | J56: =Skyggetabeller!J42 -> 162 | K56: =Skyggetabeller!K42 -> 183 | L56: =Skyggetabeller!L42 -> 203 | M56: =Skyggetabeller!M42 -> 221 | N56: =Skyggetabeller!N42 -> 220 | O56: =Skyggetabeller!O42 -> 246 | P56: =Skyggetabeller!P42 -> 252 | Q56: =Skyggetabeller!Q42 -> 274 | R56: =Skyggetabeller!R42 -> 254
B57: =Skyggetabeller!B43 -> Andel | D57: =Skyggetabeller!D43 -> 0.03111111111 | E57: =Skyggetabeller!E43 -> 0.02643171806 | F57: =Skyggetabeller!F43 -> 0.02790697674 | G57: =Skyggetabeller!G43 -> 0.0502283105 | H57: =Skyggetabeller!H43 -> 0.04368932039 | I57: =Skyggetabeller!I43 -> 0.02051282051 | J57: =Skyggetabeller!J43 -> * | K57: =Skyggetabeller!K43 -> 0.04918032787 | L57: =Skyggetabeller!L43 -> 0.08374384236 | M57: =Skyggetabeller!M43 -> 0.1040723982 | N57: =Skyggetabeller!N43 -> 0.08181818182 | O57: =Skyggetabeller!O43 -> 0.06504065041 | P57: =Skyggetabeller!P43 -> 0.04365079365 | Q57: =Skyggetabeller!Q43 -> 0.04379562044 | R57: =Skyggetabeller!R43 -> 0.04724409449
B58: =Skyggetabeller!B44 -> Sammenligningsgruppe, gns.
B59: =Skyggetabeller!B45 -> Antal anbragte | D59: =Skyggetabeller!D45 -> 3 | E59: =Skyggetabeller!E45 -> 4 | F59: =Skyggetabeller!F45 -> 4 | G59: =Skyggetabeller!G45 -> 7 | H59: =Skyggetabeller!H45 -> 10 | I59: =Skyggetabeller!I45 -> 8 | J59: =Skyggetabeller!J45 -> 15 | K59: =Skyggetabeller!K45 -> 10 | L59: =Skyggetabeller!L45 -> 14 | M59: =Skyggetabeller!M45 -> 11 | N59: =Skyggetabeller!N45 -> 11 | O59: =Skyggetabeller!O45 -> 14 | P59: =Skyggetabeller!P45 -> 10 | Q59: =Skyggetabeller!Q45 -> 13 | R59: =Skyggetabeller!R45 -> 8
B60: =Skyggetabeller!B46 -> Antal 0-17-årige | D60: =Skyggetabeller!D46 -> 188 | E60: =Skyggetabeller!E46 -> 186 | F60: =Skyggetabeller!F46 -> 178 | G60: =Skyggetabeller!G46 -> 166 | H60: =Skyggetabeller!H46 -> 173 | I60: =Skyggetabeller!I46 -> 173 | J60: =Skyggetabeller!J46 -> 166 | K60: =Skyggetabeller!K46 -> 168 | L60: =Skyggetabeller!L46 -> 169 | M60: =Skyggetabeller!M46 -> 168 | N60: =Skyggetabeller!N46 -> 154 | O60: =Skyggetabeller!O46 -> 168 | P60: =Skyggetabeller!P46 -> 162 | Q60: =Skyggetabeller!Q46 -> 161 | R60: =Skyggetabeller!R46 -> 152
B61: =Skyggetabeller!B47 -> Andel | D61: =Skyggetabeller!D47 -> 0.01595744681 | E61: =Skyggetabeller!E47 -> 0.02150537634 | F61: =Skyggetabeller!F47 -> 0.02247191011 | G61: =Skyggetabeller!G47 -> 0.0421686747 | H61: =Skyggetabeller!H47 -> 0.05780346821 | I61: =Skyggetabeller!I47 -> 0.04624277457 | J61: =Skyggetabeller!J47 -> 0.09036144578 | K61: =Skyggetabeller!K47 -> 0.05952380952 | L61: =Skyggetabeller!L47 -> 0.08284023669 | M61: =Skyggetabeller!M47 -> 0.06547619048 | N61: =Skyggetabeller!N47 -> 0.07142857143 | O61: =Skyggetabeller!O47 -> 0.08333333333 | P61: =Skyggetabeller!P47 -> 0.06172839506 | Q61: =Skyggetabeller!Q47 -> 0.08074534161 | R61: =Skyggetabeller!R47 -> 0.05263157895
B62: =Skyggetabeller!B48 -> Hele landet
B63: =Skyggetabeller!B49 -> Antal anbragte | D63: =Skyggetabeller!D49 -> 81 | E63: =Skyggetabeller!E49 -> 80 | F63: =Skyggetabeller!F49 -> 64 | G63: =Skyggetabeller!G49 -> 85 | H63: =Skyggetabeller!H49 -> 76 | I63: =Skyggetabeller!I49 -> 71 | J63: =Skyggetabeller!J49 -> 77 | K63: =Skyggetabeller!K49 -> 82 | L63: =Skyggetabeller!L49 -> 95 | M63: =Skyggetabeller!M49 -> 97 | N63: =Skyggetabeller!N49 -> 84 | O63: =Skyggetabeller!O49 -> 87 | P63: =Skyggetabeller!P49 -> 86 | Q63: =Skyggetabeller!Q49 -> 91 | R63: =Skyggetabeller!R49 -> 95
B64: =Skyggetabeller!B50 -> Antal 0-17-årige | D64: =Skyggetabeller!D50 -> 3383 | E64: =Skyggetabeller!E50 -> 3460 | F64: =Skyggetabeller!F50 -> 3369 | G64: =Skyggetabeller!G50 -> 3409 | H64: =Skyggetabeller!H50 -> 3309 | I64: =Skyggetabeller!I50 -> 3282 | J64: =Skyggetabeller!J50 -> 3274 | K64: =Skyggetabeller!K50 -> 3343 | L64: =Skyggetabeller!L50 -> 3404 | M64: =Skyggetabeller!M50 -> 3494 | N64: =Skyggetabeller!N50 -> 3486 | O64: =Skyggetabeller!O50 -> 3675 | P64: =Skyggetabeller!P50 -> 3708 | Q64: =Skyggetabeller!Q50 -> 3769 | R64: =Skyggetabeller!R50 -> 3790
B65: =Skyggetabeller!B51 -> Andel | D65: =Skyggetabeller!D51 -> 0.02394324564 | E65: =Skyggetabeller!E51 -> 0.02312138728 | F65: =Skyggetabeller!F51 -> 0.01899673494 | G65: =Skyggetabeller!G51 -> 0.02493399824 | H65: =Skyggetabeller!H51 -> 0.02296766395 | I65: =Skyggetabeller!I51 -> 0.02163315052 | J65: =Skyggetabeller!J51 -> 0.02351863164 | K65: =Skyggetabeller!K51 -> 0.02452886629 | L65: =Skyggetabeller!L51 -> 0.02790834313 | M65: =Skyggetabeller!M51 -> 0.0277618775 | N65: =Skyggetabeller!N51 -> 0.02409638554 | O65: =Skyggetabeller!O51 -> 0.02367346939 | P65: =Skyggetabeller!P51 -> 0.02319309601 | Q65: =Skyggetabeller!Q51 -> 0.02414433537 | R65: =Skyggetabeller!R51 -> 0.02506596306
B66: Anm.: Hvis nøgletallet er angivet med * er der foretaget en diskretionering af data, da der er for få observationer.
B67: =IF('Dine valg'!$G$24="","Ingen sammenligningsgruppe valgt.","Anm.: Valgte kommuner i sammenligningsgruppen: "&'Dine valg'!$G$24&" "&'Dine valg'!$G$25&" "&'Dine valg'!$G$26&" "&'Dine valg'!$G$27&" "&'Dine valg'!$G$28&" "&'Dine valg'!$G$29&" "&'Dine valg'!$G$30) -> Anm.: Valgte kommuner i sammenligningsgruppen: Aarhus
B68: Kilde: Socialstyrelsens egne beregninger baseret på registerdata fra Danmarks Statistik.
B70: =Skyggetabeller!B55 -> Nøgletal 1.3 Anbragte på socialpædagogiske opholdssteder | D70: 2017-01-01 | E70: 2017-07-01 | F70: 2018-01-01 | G70: 2018-07-01 | H70: 2019-01-01 | I70: 2019-07-01 | J70: 2020-01-01 | K70: 2020-07-01 | L70: 2021-01-01 | M70: 2021-07-01 | N70: 2022-01-01 | O70: 2022-07-01 | P70: 2023-01-01 | Q70: 2023-07-01 | R70: 2024-01-01
B71: =Skyggetabeller!B56 -> København
B72: =Skyggetabeller!B57 -> Antal anbragte | D72: =Skyggetabeller!D57 -> 46 | E72: =Skyggetabeller!E57 -> 38 | F72: =Skyggetabeller!F57 -> 33 | G72: =Skyggetabeller!G57 -> 32 | H72: =Skyggetabeller!H57 -> 33 | I72: =Skyggetabeller!I57 -> 36 | J72: =Skyggetabeller!J57 -> * | K72: =Skyggetabeller!K57 -> 26 | L72: =Skyggetabeller!L57 -> 27 | M72: =Skyggetabeller!M57 -> 34 | N72: =Skyggetabeller!N57 -> 31 | O72: =Skyggetabeller!O57 -> 36 | P72: =Skyggetabeller!P57 -> 41 | Q72: =Skyggetabeller!Q57 -> 42 | R72: =Skyggetabeller!R57 -> 53
B73: =Skyggetabeller!B58 -> Antal 0-17-årige | D73: =Skyggetabeller!D58 -> 225 | E73: =Skyggetabeller!E58 -> 227 | F73: =Skyggetabeller!F58 -> 215 | G73: =Skyggetabeller!G58 -> 219 | H73: =Skyggetabeller!H58 -> 206 | I73: =Skyggetabeller!I58 -> 195 | J73: =Skyggetabeller!J58 -> 162 | K73: =Skyggetabeller!K58 -> 183 | L73: =Skyggetabeller!L58 -> 203 | M73: =Skyggetabeller!M58 -> 221 | N73: =Skyggetabeller!N58 -> 220 | O73: =Skyggetabeller!O58 -> 246 | P73: =Skyggetabeller!P58 -> 252 | Q73: =Skyggetabeller!Q58 -> 274 | R73: =Skyggetabeller!R58 -> 254
B74: =Skyggetabeller!B59 -> Andel | D74: =Skyggetabeller!D59 -> 0.2044444444 | E74: =Skyggetabeller!E59 -> 0.1674008811 | F74: =Skyggetabeller!F59 -> 0.1534883721 | G74: =Skyggetabeller!G59 -> 0.1461187215 | H74: =Skyggetabeller!H59 -> 0.1601941748 | I74: =Skyggetabeller!I59 -> 0.1846153846 | J74: =Skyggetabeller!J59 -> * | K74: =Skyggetabeller!K59 -> 0.1420765027 | L74: =Skyggetabeller!L59 -> 0.1330049261 | M74: =Skyggetabeller!M59 -> 0.1538461538 | N74: =Skyggetabeller!N59 -> 0.1409090909 | O74: =Skyggetabeller!O59 -> 0.1463414634 | P74: =Skyggetabeller!P59 -> 0.1626984127 | Q74: =Skyggetabeller!Q59 -> 0.1532846715 | R74: =Skyggetabeller!R59 -> 0.2086614173
B75: =Skyggetabeller!B60 -> Sammenligningsgruppe, gns.
B76: =Skyggetabeller!B61 -> Antal anbragte | D76: =Skyggetabeller!D61 -> 56 | E76: =Skyggetabeller!E61 -> 52 | F76: =Skyggetabeller!F61 -> 58 | G76: =Skyggetabeller!G61 -> 46 | H76: =Skyggetabeller!H61 -> 47 | I76: =Skyggetabeller!I61 -> 43 | J76: =Skyggetabeller!J61 -> 35 | K76: =Skyggetabeller!K61 -> 37 | L76: =Skyggetabeller!L61 -> 40 | M76: =Skyggetabeller!M61 -> 45 | N76: =Skyggetabeller!N61 -> 41 | O76: =Skyggetabeller!O61 -> 49 | P76: =Skyggetabeller!P61 -> 49 | Q76: =Skyggetabeller!Q61 -> 38 | R76: =Skyggetabeller!R61 -> 43
B77: =Skyggetabeller!B62 -> Antal 0-17-årige | D77: =Skyggetabeller!D62 -> 188 | E77: =Skyggetabeller!E62 -> 186 | F77: =Skyggetabeller!F62 -> 178 | G77: =Skyggetabeller!G62 -> 166 | H77: =Skyggetabeller!H62 -> 173 | I77: =Skyggetabeller!I62 -> 173 | J77: =Skyggetabeller!J62 -> 166 | K77: =Skyggetabeller!K62 -> 168 | L77: =Skyggetabeller!L62 -> 169 | M77: =Skyggetabeller!M62 -> 168 | N77: =Skyggetabeller!N62 -> 154 | O77: =Skyggetabeller!O62 -> 168 | P77: =Skyggetabeller!P62 -> 162 | Q77: =Skyggetabeller!Q62 -> 161 | R77: =Skyggetabeller!R62 -> 152
B78: =Skyggetabeller!B63 -> Andel | D78: =Skyggetabeller!D63 -> 0.2978723404 | E78: =Skyggetabeller!E63 -> 0.2795698925 | F78: =Skyggetabeller!F63 -> 0.3258426966 | G78: =Skyggetabeller!G63 -> 0.2771084337 | H78: =Skyggetabeller!H63 -> 0.2716763006 | I78: =Skyggetabeller!I63 -> 0.2485549133 | J78: =Skyggetabeller!J63 -> 0.2108433735 | K78: =Skyggetabeller!K63 -> 0.2202380952 | L78: =Skyggetabeller!L63 -> 0.2366863905 | M78: =Skyggetabeller!M63 -> 0.2678571429 | N78: =Skyggetabeller!N63 -> 0.2662337662 | O78: =Skyggetabeller!O63 -> 0.2916666667 | P78: =Skyggetabeller!P63 -> 0.3024691358 | Q78: =Skyggetabeller!Q63 -> 0.2360248447 | R78: =Skyggetabeller!R63 -> 0.2828947368
B79: =Skyggetabeller!B64 -> Hele landet
B80: =Skyggetabeller!B65 -> Antal anbragte | D80: =Skyggetabeller!D65 -> 1484 | E80: =Skyggetabeller!E65 -> 1571 | F80: =Skyggetabeller!F65 -> 1544 | G80: =Skyggetabeller!G65 -> 1544 | H80: =Skyggetabeller!H65 -> 1529 | I80: =Skyggetabeller!I65 -> 1516 | J80: =Skyggetabeller!J65 -> 1517 | K80: =Skyggetabeller!K65 -> 1592 | L80: =Skyggetabeller!L65 -> 1615 | M80: =Skyggetabeller!M65 -> 1717 | N80: =Skyggetabeller!N65 -> 1713 | O80: =Skyggetabeller!O65 -> 1826 | P80: =Skyggetabeller!P65 -> 1854 | Q80: =Skyggetabeller!Q65 -> 1863 | R80: =Skyggetabeller!R65 -> 1895
B81: =Skyggetabeller!B66 -> Antal 0-17-årige | D81: =Skyggetabeller!D66 -> 3383 | E81: =Skyggetabeller!E66 -> 3460 | F81: =Skyggetabeller!F66 -> 3369 | G81: =Skyggetabeller!G66 -> 3409 | H81: =Skyggetabeller!H66 -> 3309 | I81: =Skyggetabeller!I66 -> 3282 | J81: =Skyggetabeller!J66 -> 3274 | K81: =Skyggetabeller!K66 -> 3343 | L81: =Skyggetabeller!L66 -> 3404 | M81: =Skyggetabeller!M66 -> 3494 | N81: =Skyggetabeller!N66 -> 3486 | O81: =Skyggetabeller!O66 -> 3675 | P81: =Skyggetabeller!P66 -> 3708 | Q81: =Skyggetabeller!Q66 -> 3769 | R81: =Skyggetabeller!R66 -> 3790
B82: =Skyggetabeller!B67 -> Andel | D82: =Skyggetabeller!D67 -> 0.4386639078 | E82: =Skyggetabeller!E67 -> 0.4540462428 | F82: =Skyggetabeller!F67 -> 0.4582962303 | G82: =Skyggetabeller!G67 -> 0.4529187445 | H82: =Skyggetabeller!H67 -> 0.4620731339 | I82: =Skyggetabeller!I67 -> 0.4619134674 | J82: =Skyggetabeller!J67 -> 0.463347587 | K82: =Skyggetabeller!K67 -> 0.476218965 | L82: =Skyggetabeller!L67 -> 0.4744418331 | M82: =Skyggetabeller!M67 -> 0.4914138523 | N82: =Skyggetabeller!N67 -> 0.491394148 | O82: =Skyggetabeller!O67 -> 0.4968707483 | P82: =Skyggetabeller!P67 -> 0.5 | Q82: =Skyggetabeller!Q67 -> 0.4942955691 | R82: =Skyggetabeller!R67 -> 0.5
B83: Anm.: Hvis nøgletallet er angivet med * er der foretaget en diskretionering af data, da der er for få observationer.
B84: =IF('Dine valg'!$G$24="","Ingen sammenligningsgruppe valgt.","Anm.: Valgte kommuner i sammenligningsgruppen: "&'Dine valg'!$G$24&" "&'Dine valg'!$G$25&" "&'Dine valg'!$G$26&" "&'Dine valg'!$G$27&" "&'Dine valg'!$G$28&" "&'Dine valg'!$G$29&" "&'Dine valg'!$G$30) -> Anm.: Valgte kommuner i sammenligningsgruppen: Aarhus
B85: Kilde: Socialstyrelsens egne beregninger baseret på registerdata fra Danmarks Statistik.
B87: =Skyggetabeller!B90 -> Nøgletal 2: Varighed af institutionsanbringelser
B89: =Skyggetabeller!B93 -> Nøgletal 2: Gennemsnitlig varighed af igangværende institutionsanbringelser | D89: 2017-01-01 | E89: 2017-07-01 | F89: 2018-01-01 | G89: 2018-07-01 | H89: 2019-01-01 | I89: 2019-07-01 | J89: 2020-01-01 | K89: 2020-07-01 | L89: 2021-01-01 | M89: 2021-07-01 | N89: 2022-01-01 | O89: 2022-07-01 | P89: 2023-01-01 | Q89: 2023-07-01 | R89: 2024-01-01
B90: =Skyggetabeller!B94 -> København
B91: =Skyggetabeller!B95 -> Samlet antal dage | D91: =Skyggetabeller!D95 -> 183355 | E91: =Skyggetabeller!E95 -> 171090 | F91: =Skyggetabeller!F95 -> 161575 | G91: =Skyggetabeller!G95 -> 163682 | H91: =Skyggetabeller!H95 -> 156703 | I91: =Skyggetabeller!I95 -> 158572 | J91: =Skyggetabeller!J95 -> 133661 | K91: =Skyggetabeller!K95 -> 132974 | L91: =Skyggetabeller!L95 -> 133256 | M91: =Skyggetabeller!M95 -> 137290 | N91: =Skyggetabeller!N95 -> 135855 | O91: =Skyggetabeller!O95 -> 140964 | P91: =Skyggetabeller!P95 -> 151891 | Q91: =Skyggetabeller!Q95 -> 170292 | R91: =Skyggetabeller!R95 -> 181227
B92: =Skyggetabeller!B96 -> Antal anbragte | D92: =Skyggetabeller!D96 -> 225 | E92: =Skyggetabeller!E96 -> 227 | F92: =Skyggetabeller!F96 -> 215 | G92: =Skyggetabeller!G96 -> 219 | H92: =Skyggetabeller!H96 -> 206 | I92: =Skyggetabeller!I96 -> 195 | J92: =Skyggetabeller!J96 -> 162 | K92: =Skyggetabeller!K96 -> 183 | L92: =Skyggetabeller!L96 -> 203 | M92: =Skyggetabeller!M96 -> 221 | N92: =Skyggetabeller!N96 -> 220 | O92: =Skyggetabeller!O96 -> 246 | P92: =Skyggetabeller!P96 -> 252 | Q92: =Skyggetabeller!Q96 -> 274 | R92: =Skyggetabeller!R96 -> 254
B93: =Skyggetabeller!B97 -> Gennemsnitlig varighed | D93: =Skyggetabeller!D97 -> 814.9111111 | E93: =Skyggetabeller!E97 -> 753.7004405 | F93: =Skyggetabeller!F97 -> 751.5116279 | G93: =Skyggetabeller!G97 -> 747.4063927 | H93: =Skyggetabeller!H97 -> 760.6941748 | I93: =Skyggetabeller!I97 -> 813.1897436 | J93: =Skyggetabeller!J97 -> 825.0679012 | K93: =Skyggetabeller!K97 -> 726.6338798 | L93: =Skyggetabeller!L97 -> 656.4334975 | M93: =Skyggetabeller!M97 -> 621.2217195 | N93: =Skyggetabeller!N97 -> 617.5227273 | O93: =Skyggetabeller!O97 -> 573.0243902 | P93: =Skyggetabeller!P97 -> 602.7420635 | Q93: =Skyggetabeller!Q97 -> 621.5036496 | R93: =Skyggetabeller!R97 -> 713.492126
B94: =Skyggetabeller!B98 -> Sammenligningsgruppe, gns.
B95: =Skyggetabeller!B99 -> Samlet antal dage | D95: =Skyggetabeller!D99 -> 197062 | E95: =Skyggetabeller!E99 -> 192986 | F95: =Skyggetabeller!F99 -> 180503 | G95: =Skyggetabeller!G99 -> 156486 | H95: =Skyggetabeller!H99 -> 144862 | I95: =Skyggetabeller!I99 -> 158343 | J95: =Skyggetabeller!J99 -> 156232 | K95: =Skyggetabeller!K99 -> 140915 | L95: =Skyggetabeller!L99 -> 147293 | M95: =Skyggetabeller!M99 -> 149129 | N95: =Skyggetabeller!N99 -> 145303 | O95: =Skyggetabeller!O99 -> 150498 | P95: =Skyggetabeller!P99 -> 140834 | Q95: =Skyggetabeller!Q99 -> 134907 | R95: =Skyggetabeller!R99 -> 131601
B96: =Skyggetabeller!B100 -> Antal anbragte | D96: =Skyggetabeller!D100 -> 188 | E96: =Skyggetabeller!E100 -> 186 | F96: =Skyggetabeller!F100 -> 178 | G96: =Skyggetabeller!G100 -> 166 | H96: =Skyggetabeller!H100 -> 173 | I96: =Skyggetabeller!I100 -> 173 | J96: =Skyggetabeller!J100 -> 166 | K96: =Skyggetabeller!K100 -> 168 | L96: =Skyggetabeller!L100 -> 169 | M96: =Skyggetabeller!M100 -> 168 | N96: =Skyggetabeller!N100 -> 154 | O96: =Skyggetabeller!O100 -> 168 | P96: =Skyggetabeller!P100 -> 162 | Q96: =Skyggetabeller!Q100 -> 161 | R96: =Skyggetabeller!R100 -> 152
B97: =Skyggetabeller!B101 -> Gennemsnitlig varighed | D97: =Skyggetabeller!D101 -> 1048.202128 | E97: =Skyggetabeller!E101 -> 1037.55914 | F97: =Skyggetabeller!F101 -> 1014.061798 | G97: =Skyggetabeller!G101 -> 942.686747 | H97: =Skyggetabeller!H101 -> 837.3526012 | I97: =Skyggetabeller!I101 -> 915.2774566 | J97: =Skyggetabeller!J101 -> 941.1566265 | K97: =Skyggetabeller!K101 -> 838.7797619 | L97: =Skyggetabeller!L101 -> 871.556213 | M97: =Skyggetabeller!M101 -> 887.672619 | N97: =Skyggetabeller!N101 -> 943.525974 | O97: =Skyggetabeller!O101 -> 895.8214286 | P97: =Skyggetabeller!P101 -> 869.345679 | Q97: =Skyggetabeller!Q101 -> 837.931677 | R97: =Skyggetabeller!R101 -> 865.7960526
B98: =Skyggetabeller!B102 -> Hele landet
B99: =Skyggetabeller!B103 -> Samlet antal dage | D99: =Skyggetabeller!D103 -> 2919506 | E99: =Skyggetabeller!E103 -> 2864697 | F99: =Skyggetabeller!F103 -> 2780084 | G99: =Skyggetabeller!G103 -> 2671592 | H99: =Skyggetabeller!H103 -> 2549944 | I99: =Skyggetabeller!I103 -> 2520675 | J99: =Skyggetabeller!J103 -> 2479646 | K99: =Skyggetabeller!K103 -> 2518184 | L99: =Skyggetabeller!L103 -> 2519364 | M99: =Skyggetabeller!M103 -> 2533338 | N99: =Skyggetabeller!N103 -> 2554433 | O99: =Skyggetabeller!O103 -> 2587666 | P99: =Skyggetabeller!P103 -> 2626422 | Q99: =Skyggetabeller!Q103 -> 2688953 | R99: =Skyggetabeller!R103 -> 2761895
B100: =Skyggetabeller!B104 -> Antal anbragte | D100: =Skyggetabeller!D104 -> 3383 | E100: =Skyggetabeller!E104 -> 3460 | F100: =Skyggetabeller!F104 -> 3369 | G100: =Skyggetabeller!G104 -> 3409 | H100: =Skyggetabeller!H104 -> 3309 | I100: =Skyggetabeller!I104 -> 3282 | J100: =Skyggetabeller!J104 -> 3274 | K100: =Skyggetabeller!K104 -> 3343 | L100: =Skyggetabeller!L104 -> 3404 | M100: =Skyggetabeller!M104 -> 3494 | N100: =Skyggetabeller!N104 -> 3486 | O100: =Skyggetabeller!O104 -> 3675 | P100: =Skyggetabeller!P104 -> 3708 | Q100: =Skyggetabeller!Q104 -> 3769 | R100: =Skyggetabeller!R104 -> 3790
B101: =Skyggetabeller!B105 -> Gennemsnitlig varighed | D101: =Skyggetabeller!D105 -> 862.9932013 | E101: =Skyggetabeller!E105 -> 827.9471098 | F101: =Skyggetabeller!F105 -> 825.195607 | G101: =Skyggetabeller!G105 -> 783.687885 | H101: =Skyggetabeller!H105 -> 770.6086431 | I101: =Skyggetabeller!I105 -> 768.0301645 | J101: =Skyggetabeller!J105 -> 757.3750764 | K101: =Skyggetabeller!K105 -> 753.2707149 | L101: =Skyggetabeller!L105 -> 740.1186839 | M101: =Skyggetabeller!M105 -> 725.0538065 | N101: =Skyggetabeller!N105 -> 732.7690763 | O101: =Skyggetabeller!O105 -> 704.1268027 | P101: =Skyggetabeller!P105 -> 708.3122977 | Q101: =Skyggetabeller!Q105 -> 713.4393738 | R101: =Skyggetabeller!R105 -> 728.73219
B102: Anm.: Hvis nøgletallet er angivet med * er der foretaget en diskretionering af data, da der er for få observationer.
B103: =IF('Dine valg'!$G$24="","Ingen sammenligningsgruppe valgt.","Anm.: Valgte kommuner i sammenligningsgruppen: "&'Dine valg'!$G$24&" "&'Dine valg'!$G$25&" "&'Dine valg'!$G$26&" "&'Dine valg'!$G$27&" "&'Dine valg'!$G$28&" "&'Dine valg'!$G$29&" "&'Dine valg'!$G$30) -> Anm.: Valgte kommuner i sammenligningsgruppen: Aarhus
B104: Kilde: Socialstyrelsens egne beregninger baseret på registerdata fra Danmarks Statistik.
B106: Undernøgletal - Varighed af igangværende institutionsanbringelser
B108: =Skyggetabeller!B108 -> Nøgletal 2.1 Gennemsnitlig varighed af igangværende anbringelser på døgninstitution | D108: 2017-01-01 | E108: 2017-07-01 | F108: 2018-01-01 | G108: 2018-07-01 | H108: 2019-01-01 | I108: 2019-07-01 | J108: 2020-01-01 | K108: 2020-07-01 | L108: 2021-01-01 | M108: 2021-07-01 | N108: 2022-01-01 | O108: 2022-07-01 | P108: 2023-01-01 | Q108: 2023-07-01 | R108: 2024-01-01
B109: =Skyggetabeller!B109 -> København
B110: =Skyggetabeller!B110 -> Samlet antal dage | D110: =Skyggetabeller!D110 -> 134446 | E110: =Skyggetabeller!E110 -> 126745 | F110: =Skyggetabeller!F110 -> 117497 | G110: =Skyggetabeller!G110 -> 118319 | H110: =Skyggetabeller!H110 -> 112040 | I110: =Skyggetabeller!I110 -> 110718 | J110: =Skyggetabeller!J110 -> 102261 | K110: =Skyggetabeller!K110 -> 97534 | L110: =Skyggetabeller!L110 -> 99356 | M110: =Skyggetabeller!M110 -> 99035 | N110: =Skyggetabeller!N110 -> 99578 | O110: =Skyggetabeller!O110 -> 101578 | P110: =Skyggetabeller!P110 -> 118164 | Q110: =Skyggetabeller!Q110 -> 135596 | R110: =Skyggetabeller!R110 -> 142911
B111: =Skyggetabeller!B111 -> Antal anbragte | D111: =Skyggetabeller!D111 -> 172 | E111: =Skyggetabeller!E111 -> 183 | F111: =Skyggetabeller!F111 -> 176 | G111: =Skyggetabeller!G111 -> 176 | H111: =Skyggetabeller!H111 -> 164 | I111: =Skyggetabeller!I111 -> 155 | J111: =Skyggetabeller!J111 -> 139 | K111: =Skyggetabeller!K111 -> 148 | L111: =Skyggetabeller!L111 -> 159 | M111: =Skyggetabeller!M111 -> 164 | N111: =Skyggetabeller!N111 -> 171 | O111: =Skyggetabeller!O111 -> 194 | P111: =Skyggetabeller!P111 -> 200 | Q111: =Skyggetabeller!Q111 -> 220 | R111: =Skyggetabeller!R111 -> 189
B112: =Skyggetabeller!B112 -> Gennemsnitlig varighed | D112: =Skyggetabeller!D112 -> 781.6627907 | E112: =Skyggetabeller!E112 -> 692.5956284 | F112: =Skyggetabeller!F112 -> 667.5965909 | G112: =Skyggetabeller!G112 -> 672.2670455 | H112: =Skyggetabeller!H112 -> 683.1707317 | I112: =Skyggetabeller!I112 -> 714.3096774 | J112: =Skyggetabeller!J112 -> 735.6906475 | K112: =Skyggetabeller!K112 -> 659.0135135 | L112: =Skyggetabeller!L112 -> 624.8805031 | M112: =Skyggetabeller!M112 -> 603.8719512 | N112: =Skyggetabeller!N112 -> 582.3274854 | O112: =Skyggetabeller!O112 -> 523.5979381 | P112: =Skyggetabeller!P112 -> 590.82 | Q112: =Skyggetabeller!Q112 -> 616.3454545 | R112: =Skyggetabeller!R112 -> 756.1428571
B113: =Skyggetabeller!B113 -> Sammenligningsgruppe, gns.
B114: =Skyggetabeller!B114 -> Samlet antal dage | D114: =Skyggetabeller!D114 -> 150304 | E114: =Skyggetabeller!E114 -> 150184 | F114: =Skyggetabeller!F114 -> 134878 | G114: =Skyggetabeller!G114 -> 119397 | H114: =Skyggetabeller!H114 -> 110606 | I114: =Skyggetabeller!I114 -> 122426 | J114: =Skyggetabeller!J114 -> 124048 | K114: =Skyggetabeller!K114 -> 115596 | L114: =Skyggetabeller!L114 -> 119524 | M114: =Skyggetabeller!M114 -> 125178 | N114: =Skyggetabeller!N114 -> 122621 | O114: =Skyggetabeller!O114 -> 121875 | P114: =Skyggetabeller!P114 -> 114322 | Q114: =Skyggetabeller!Q114 -> 111343 | R114: =Skyggetabeller!R114 -> 109315
B115: =Skyggetabeller!B115 -> Antal anbragte | D115: =Skyggetabeller!D115 -> 129 | E115: =Skyggetabeller!E115 -> 130 | F115: =Skyggetabeller!F115 -> 116 | G115: =Skyggetabeller!G115 -> 113 | H115: =Skyggetabeller!H115 -> 116 | I115: =Skyggetabeller!I115 -> 122 | J115: =Skyggetabeller!J115 -> 116 | K115: =Skyggetabeller!K115 -> 121 | L115: =Skyggetabeller!L115 -> 115 | M115: =Skyggetabeller!M115 -> 112 | N115: =Skyggetabeller!N115 -> 102 | O115: =Skyggetabeller!O115 -> 105 | P115: =Skyggetabeller!P115 -> 103 | Q115: =Skyggetabeller!Q115 -> 110 | R115: =Skyggetabeller!R115 -> 101
B116: =Skyggetabeller!B116 -> Gennemsnitlig varighed | D116: =Skyggetabeller!D116 -> 1165.147287 | E116: =Skyggetabeller!E116 -> 1155.261538 | F116: =Skyggetabeller!F116 -> 1162.741379 | G116: =Skyggetabeller!G116 -> 1056.610619 | H116: =Skyggetabeller!H116 -> 953.5 | I116: =Skyggetabeller!I116 -> 1003.491803 | J116: =Skyggetabeller!J116 -> 1069.37931 | K116: =Skyggetabeller!K116 -> 955.338843 | L116: =Skyggetabeller!L116 -> 1039.33913 | M116: =Skyggetabeller!M116 -> 1117.660714 | N116: =Skyggetabeller!N116 -> 1202.166667 | O116: =Skyggetabeller!O116 -> 1160.714286 | P116: =Skyggetabeller!P116 -> 1109.92233 | Q116: =Skyggetabeller!Q116 -> 1012.209091 | R116: =Skyggetabeller!R116 -> 1082.326733
B117: =Skyggetabeller!B117 -> Hele landet
B118: =Skyggetabeller!B118 -> Samlet antal dage | D118: =Skyggetabeller!D118 -> 1742648 | E118: =Skyggetabeller!E118 -> 1681708 | F118: =Skyggetabeller!F118 -> 1627312 | G118: =Skyggetabeller!G118 -> 1556475 | H118: =Skyggetabeller!H118 -> 1474692 | I118: =Skyggetabeller!I118 -> 1472207 | J118: =Skyggetabeller!J118 -> 1450623 | K118: =Skyggetabeller!K118 -> 1435480 | L118: =Skyggetabeller!L118 -> 1423295 | M118: =Skyggetabeller!M118 -> 1404018 | N118: =Skyggetabeller!N118 -> 1404124 | O118: =Skyggetabeller!O118 -> 1421269 | P118: =Skyggetabeller!P118 -> 1443374 | Q118: =Skyggetabeller!Q118 -> 1489560 | R118: =Skyggetabeller!R118 -> 1543409
B119: =Skyggetabeller!B119 -> Antal anbragte | D119: =Skyggetabeller!D119 -> 1818 | E119: =Skyggetabeller!E119 -> 1809 | F119: =Skyggetabeller!F119 -> 1761 | G119: =Skyggetabeller!G119 -> 1780 | H119: =Skyggetabeller!H119 -> 1704 | I119: =Skyggetabeller!I119 -> 1695 | J119: =Skyggetabeller!J119 -> 1680 | K119: =Skyggetabeller!K119 -> 1669 | L119: =Skyggetabeller!L119 -> 1694 | M119: =Skyggetabeller!M119 -> 1680 | N119: =Skyggetabeller!N119 -> 1689 | O119: =Skyggetabeller!O119 -> 1762 | P119: =Skyggetabeller!P119 -> 1768 | Q119: =Skyggetabeller!Q119 -> 1815 | R119: =Skyggetabeller!R119 -> 1800
B120: =Skyggetabeller!B120 -> Gennemsnitlig varighed | D120: =Skyggetabeller!D120 -> 958.5522552 | E120: =Skyggetabeller!E120 -> 929.634052 | F120: =Skyggetabeller!F120 -> 924.0840432 | G120: =Skyggetabeller!G120 -> 874.4241573 | H120: =Skyggetabeller!H120 -> 865.4295775 | I120: =Skyggetabeller!I120 -> 868.5587021 | J120: =Skyggetabeller!J120 -> 863.4660714 | K120: =Skyggetabeller!K120 -> 860.0838826 | L120: =Skyggetabeller!L120 -> 840.1977568 | M120: =Skyggetabeller!M120 -> 835.725 | N120: =Skyggetabeller!N120 -> 831.3345175 | O120: =Skyggetabeller!O120 -> 806.622588 | P120: =Skyggetabeller!P120 -> 816.388009 | Q120: =Skyggetabeller!Q120 -> 820.6942149 | R120: =Skyggetabeller!R120 -> 857.4494444
B121: Anm.: Hvis nøgletallet er angivet med * er der foretaget en diskretionering af data, da der er for få observationer.
B122: =IF('Dine valg'!$G$24="","Ingen sammenligningsgruppe valgt.","Anm.: Valgte kommuner i sammenligningsgruppen: "&'Dine valg'!$G$24&" "&'Dine valg'!$G$25&" "&'Dine valg'!$G$26&" "&'Dine valg'!$G$27&" "&'Dine valg'!$G$28&" "&'Dine valg'!$G$29&" "&'Dine valg'!$G$30) -> Anm.: Valgte kommuner i sammenligningsgruppen: Aarhus
B123: Kilde: Socialstyrelsens egne beregninger baseret på registerdata fra Danmarks Statistik.
B125: =Skyggetabeller!B123 -> Nøgletal 2.2: Gennemsnitlig varighed af igangværende anbringelser på sikret døgninstitution | D125: 2017-01-01 | E125: 2017-07-01 | F125: 2018-01-01 | G125: 2018-07-01 | H125: 2019-01-01 | I125: 2019-07-01 | J125: 2020-01-01 | K125: 2020-07-01 | L125: 2021-01-01 | M125: 2021-07-01 | N125: 2022-01-01 | O125: 2022-07-01 | P125: 2023-01-01 | Q125: 2023-07-01 | R125: 2024-01-01
B126: =Skyggetabeller!B124 -> København
B127: =Skyggetabeller!B125 -> Samlet antal dage | D127: =Skyggetabeller!D125 -> 2067 | E127: =Skyggetabeller!E125 -> 2443 | F127: =Skyggetabeller!F125 -> 2098 | G127: =Skyggetabeller!G125 -> 3026 | H127: =Skyggetabeller!H125 -> 2960 | I127: =Skyggetabeller!I125 -> * | J127: =Skyggetabeller!J125 -> * | K127: =Skyggetabeller!K125 -> 801 | L127: =Skyggetabeller!L125 -> 1693 | M127: =Skyggetabeller!M125 -> 2581 | N127: =Skyggetabeller!N125 -> 2750 | O127: =Skyggetabeller!O125 -> 2047 | P127: =Skyggetabeller!P125 -> 2600 | Q127: =Skyggetabeller!Q125 -> 2483 | R127: =Skyggetabeller!R125 -> 3671
B128: =Skyggetabeller!B126 -> Antal anbragte | D128: =Skyggetabeller!D126 -> 7 | E128: =Skyggetabeller!E126 -> 6 | F128: =Skyggetabeller!F126 -> 6 | G128: =Skyggetabeller!G126 -> 11 | H128: =Skyggetabeller!H126 -> 9 | I128: =Skyggetabeller!I126 -> 4 | J128: =Skyggetabeller!J126 -> * | K128: =Skyggetabeller!K126 -> 9 | L128: =Skyggetabeller!L126 -> 17 | M128: =Skyggetabeller!M126 -> 23 | N128: =Skyggetabeller!N126 -> 18 | O128: =Skyggetabeller!O126 -> 16 | P128: =Skyggetabeller!P126 -> 11 | Q128: =Skyggetabeller!Q126 -> 12 | R128: =Skyggetabeller!R126 -> 12
B129: =Skyggetabeller!B127 -> Gennemsnitlig varighed | D129: =Skyggetabeller!D127 -> 295.2857143 | E129: =Skyggetabeller!E127 -> 407.1666667 | F129: =Skyggetabeller!F127 -> 349.6666667 | G129: =Skyggetabeller!G127 -> 275.0909091 | H129: =Skyggetabeller!H127 -> 328.8888889 | I129: =Skyggetabeller!I127 -> * | J129: =Skyggetabeller!J127 -> * | K129: =Skyggetabeller!K127 -> 89 | L129: =Skyggetabeller!L127 -> 99.58823529 | M129: =Skyggetabeller!M127 -> 112.2173913 | N129: =Skyggetabeller!N127 -> 152.7777778 | O129: =Skyggetabeller!O127 -> 127.9375 | P129: =Skyggetabeller!P127 -> 236.3636364 | Q129: =Skyggetabeller!Q127 -> 206.9166667 | R129: =Skyggetabeller!R127 -> 305.9166667
B130: =Skyggetabeller!B128 -> Sammenligningsgruppe, gns.
B131: =Skyggetabeller!B129 -> Samlet antal dage | D131: =Skyggetabeller!D129 -> 0 | E131: =Skyggetabeller!E129 -> 0 | F131: =Skyggetabeller!F129 -> 0 | G131: =Skyggetabeller!G129 -> 902 | H131: =Skyggetabeller!H129 -> 1195 | I131: =Skyggetabeller!I129 -> 2404 | J131: =Skyggetabeller!J129 -> 3592 | K131: =Skyggetabeller!K129 -> 1665 | L131: =Skyggetabeller!L129 -> 1624 | M131: =Skyggetabeller!M129 -> 2319 | N131: =Skyggetabeller!N129 -> 2424 | O131: =Skyggetabeller!O129 -> 3638 | P131: =Skyggetabeller!P129 -> 3109 | Q131: =Skyggetabeller!Q129 -> 2546 | R131: =Skyggetabeller!R129 -> 2065
B132: =Skyggetabeller!B130 -> Antal anbragte | D132: =Skyggetabeller!D130 -> 3 | E132: =Skyggetabeller!E130 -> 4 | F132: =Skyggetabeller!F130 -> 4 | G132: =Skyggetabeller!G130 -> 7 | H132: =Skyggetabeller!H130 -> 10 | I132: =Skyggetabeller!I130 -> 8 | J132: =Skyggetabeller!J130 -> 15 | K132: =Skyggetabeller!K130 -> 10 | L132: =Skyggetabeller!L130 -> 14 | M132: =Skyggetabeller!M130 -> 11 | N132: =Skyggetabeller!N130 -> 11 | O132: =Skyggetabeller!O130 -> 14 | P132: =Skyggetabeller!P130 -> 10 | Q132: =Skyggetabeller!Q130 -> 13 | R132: =Skyggetabeller!R130 -> 8
B133: =Skyggetabeller!B131 -> Gennemsnitlig varighed | D133: =Skyggetabeller!D131 -> 0 | E133: =Skyggetabeller!E131 -> 0 | F133: =Skyggetabeller!F131 -> 0 | G133: =Skyggetabeller!G131 -> 128.8571429 | H133: =Skyggetabeller!H131 -> 119.5 | I133: =Skyggetabeller!I131 -> 300.5 | J133: =Skyggetabeller!J131 -> 239.4666667 | K133: =Skyggetabeller!K131 -> 166.5 | L133: =Skyggetabeller!L131 -> 116 | M133: =Skyggetabeller!M131 -> 210.8181818 | N133: =Skyggetabeller!N131 -> 220.3636364 | O133: =Skyggetabeller!O131 -> 259.8571429 | P133: =Skyggetabeller!P131 -> 310.9 | Q133: =Skyggetabeller!Q131 -> 195.8461538 | R133: =Skyggetabeller!R131 -> 258.125
B134: =Skyggetabeller!B132 -> Hele landet
B135: =Skyggetabeller!B133 -> Samlet antal dage | D135: =Skyggetabeller!D133 -> 24418 | E135: =Skyggetabeller!E133 -> 26592 | F135: =Skyggetabeller!F133 -> 18299 | G135: =Skyggetabeller!G133 -> 18279 | H135: =Skyggetabeller!H133 -> 20518 | I135: =Skyggetabeller!I133 -> 23313 | J135: =Skyggetabeller!J133 -> 20262 | K135: =Skyggetabeller!K133 -> 20696 | L135: =Skyggetabeller!L133 -> 18628 | M135: =Skyggetabeller!M133 -> 21549 | N135: =Skyggetabeller!N133 -> 18321 | O135: =Skyggetabeller!O133 -> 18630 | P135: =Skyggetabeller!P133 -> 16479 | Q135: =Skyggetabeller!Q133 -> 16033 | R135: =Skyggetabeller!R133 -> 20710
B136: =Skyggetabeller!B134 -> Antal anbragte | D136: =Skyggetabeller!D134 -> 81 | E136: =Skyggetabeller!E134 -> 80 | F136: =Skyggetabeller!F134 -> 64 | G136: =Skyggetabeller!G134 -> 85 | H136: =Skyggetabeller!H134 -> 76 | I136: =Skyggetabeller!I134 -> 71 | J136: =Skyggetabeller!J134 -> 77 | K136: =Skyggetabeller!K134 -> 82 | L136: =Skyggetabeller!L134 -> 95 | M136: =Skyggetabeller!M134 -> 97 | N136: =Skyggetabeller!N134 -> 84 | O136: =Skyggetabeller!O134 -> 87 | P136: =Skyggetabeller!P134 -> 86 | Q136: =Skyggetabeller!Q134 -> 91 | R136: =Skyggetabeller!R134 -> 95
B137: =Skyggetabeller!B135 -> Gennemsnitlig varighed | D137: =Skyggetabeller!D135 -> 301.4567901 | E137: =Skyggetabeller!E135 -> 332.4 | F137: =Skyggetabeller!F135 -> 285.921875 | G137: =Skyggetabeller!G135 -> 215.0470588 | H137: =Skyggetabeller!H135 -> 269.9736842 | I137: =Skyggetabeller!I135 -> 328.3521127 | J137: =Skyggetabeller!J135 -> 263.1428571 | K137: =Skyggetabeller!K135 -> 252.3902439 | L137: =Skyggetabeller!L135 -> 196.0842105 | M137: =Skyggetabeller!M135 -> 222.1546392 | N137: =Skyggetabeller!N135 -> 218.1071429 | O137: =Skyggetabeller!O135 -> 214.137931 | P137: =Skyggetabeller!P135 -> 191.6162791 | Q137: =Skyggetabeller!Q135 -> 176.1868132 | R137: =Skyggetabeller!R135 -> 218
B138: Anm.: Hvis nøgletallet er angivet med * er der foretaget en diskretionering af data, da der er for få observationer.
B139: =IF('Dine valg'!$G$24="","Ingen sammenligningsgruppe valgt.","Anm.: Valgte kommuner i sammenligningsgruppen: "&'Dine valg'!$G$24&" "&'Dine valg'!$G$25&" "&'Dine valg'!$G$26&" "&'Dine valg'!$G$27&" "&'Dine valg'!$G$28&" "&'Dine valg'!$G$29&" "&'Dine valg'!$G$30) -> Anm.: Valgte kommuner i sammenligningsgruppen: Aarhus
B140: Kilde: Socialstyrelsens egne beregninger baseret på registerdata fra Danmarks Statistik.
B142: =Skyggetabeller!B138 -> Nøgletal 2.3: Gennemsnitlig varighed af igangværende anbringelser på socialpædagogisk opholdssted | D142: 2017-01-01 | E142: 2017-07-01 | F142: 2018-01-01 | G142: 2018-07-01 | H142: 2019-01-01 | I142: 2019-07-01 | J142: 2020-01-01 | K142: 2020-07-01 | L142: 2021-01-01 | M142: 2021-07-01 | N142: 2022-01-01 | O142: 2022-07-01 | P142: 2023-01-01 | Q142: 2023-07-01 | R142: 2024-01-01
B143: =Skyggetabeller!B139 -> København
B144: =Skyggetabeller!B140 -> Samlet antal dage | D144: =Skyggetabeller!D140 -> 46842 | E144: =Skyggetabeller!E140 -> 41902 | F144: =Skyggetabeller!F140 -> 41980 | G144: =Skyggetabeller!G140 -> 42337 | H144: =Skyggetabeller!H140 -> 41703 | I144: =Skyggetabeller!I140 -> * | J144: =Skyggetabeller!J140 -> * | K144: =Skyggetabeller!K140 -> 34639 | L144: =Skyggetabeller!L140 -> 32207 | M144: =Skyggetabeller!M140 -> 35674 | N144: =Skyggetabeller!N140 -> 33527 | O144: =Skyggetabeller!O140 -> 37339 | P144: =Skyggetabeller!P140 -> 31127 | Q144: =Skyggetabeller!Q140 -> 32213 | R144: =Skyggetabeller!R140 -> 34645
B145: =Skyggetabeller!B141 -> Antal anbragte | D145: =Skyggetabeller!D141 -> 46 | E145: =Skyggetabeller!E141 -> 38 | F145: =Skyggetabeller!F141 -> 33 | G145: =Skyggetabeller!G141 -> 32 | H145: =Skyggetabeller!H141 -> 33 | I145: =Skyggetabeller!I141 -> 36 | J145: =Skyggetabeller!J141 -> * | K145: =Skyggetabeller!K141 -> 26 | L145: =Skyggetabeller!L141 -> 27 | M145: =Skyggetabeller!M141 -> 34 | N145: =Skyggetabeller!N141 -> 31 | O145: =Skyggetabeller!O141 -> 36 | P145: =Skyggetabeller!P141 -> 41 | Q145: =Skyggetabeller!Q141 -> 42 | R145: =Skyggetabeller!R141 -> 53
B146: =Skyggetabeller!B142 -> Gennemsnitlig varighed | D146: =Skyggetabeller!D142 -> 1018.304348 | E146: =Skyggetabeller!E142 -> 1102.684211 | F146: =Skyggetabeller!F142 -> 1272.121212 | G146: =Skyggetabeller!G142 -> 1323.03125 | H146: =Skyggetabeller!H142 -> 1263.727273 | I146: =Skyggetabeller!I142 -> * | J146: =Skyggetabeller!J142 -> * | K146: =Skyggetabeller!K142 -> 1332.269231 | L146: =Skyggetabeller!L142 -> 1192.851852 | M146: =Skyggetabeller!M142 -> 1049.235294 | N146: =Skyggetabeller!N142 -> 1081.516129 | O146: =Skyggetabeller!O142 -> 1037.194444 | P146: =Skyggetabeller!P142 -> 759.195122 | Q146: =Skyggetabeller!Q142 -> 766.9761905 | R146: =Skyggetabeller!R142 -> 653.6792453
B147: =Skyggetabeller!B143 -> Sammenligningsgruppe, gns.
B148: =Skyggetabeller!B144 -> Samlet antal dage | D148: =Skyggetabeller!D144 -> 0 | E148: =Skyggetabeller!E144 -> 0 | F148: =Skyggetabeller!F144 -> 0 | G148: =Skyggetabeller!G144 -> 36187 | H148: =Skyggetabeller!H144 -> 33061 | I148: =Skyggetabeller!I144 -> 33513 | J148: =Skyggetabeller!J144 -> 28592 | K148: =Skyggetabeller!K144 -> 23654 | L148: =Skyggetabeller!L144 -> 26145 | M148: =Skyggetabeller!M144 -> 21632 | N148: =Skyggetabeller!N144 -> 20258 | O148: =Skyggetabeller!O144 -> 24985 | P148: =Skyggetabeller!P144 -> 23403 | Q148: =Skyggetabeller!Q144 -> 21018 | R148: =Skyggetabeller!R144 -> 20221
B149: =Skyggetabeller!B145 -> Antal anbragte | D149: =Skyggetabeller!D145 -> 56 | E149: =Skyggetabeller!E145 -> 52 | F149: =Skyggetabeller!F145 -> 58 | G149: =Skyggetabeller!G145 -> 46 | H149: =Skyggetabeller!H145 -> 47 | I149: =Skyggetabeller!I145 -> 43 | J149: =Skyggetabeller!J145 -> 35 | K149: =Skyggetabeller!K145 -> 37 | L149: =Skyggetabeller!L145 -> 40 | M149: =Skyggetabeller!M145 -> 45 | N149: =Skyggetabeller!N145 -> 41 | O149: =Skyggetabeller!O145 -> 49 | P149: =Skyggetabeller!P145 -> 49 | Q149: =Skyggetabeller!Q145 -> 38 | R149: =Skyggetabeller!R145 -> 43
B150: =Skyggetabeller!B146 -> Gennemsnitlig varighed | D150: =Skyggetabeller!D146 -> 0 | E150: =Skyggetabeller!E146 -> 0 | F150: =Skyggetabeller!F146 -> 0 | G150: =Skyggetabeller!G146 -> 786.673913 | H150: =Skyggetabeller!H146 -> 703.4255319 | I150: =Skyggetabeller!I146 -> 779.372093 | J150: =Skyggetabeller!J146 -> 816.9142857 | K150: =Skyggetabeller!K146 -> 639.2972973 | L150: =Skyggetabeller!L146 -> 653.625 | M150: =Skyggetabeller!M146 -> 480.7111111 | N150: =Skyggetabeller!N146 -> 494.097561 | O150: =Skyggetabeller!O146 -> 509.8979592 | P150: =Skyggetabeller!P146 -> 477.6122449 | Q150: =Skyggetabeller!Q146 -> 553.1052632 | R150: =Skyggetabeller!R146 -> 470.255814
B151: =Skyggetabeller!B147 -> Hele landet
B152: =Skyggetabeller!B148 -> Samlet antal dage | D152: =Skyggetabeller!D148 -> 1152440 | E152: =Skyggetabeller!E148 -> 1156397 | F152: =Skyggetabeller!F148 -> 1134473 | G152: =Skyggetabeller!G148 -> 1096838 | H152: =Skyggetabeller!H148 -> 1054734 | I152: =Skyggetabeller!I148 -> 1025155 | J152: =Skyggetabeller!J148 -> 1008761 | K152: =Skyggetabeller!K148 -> 1062008 | L152: =Skyggetabeller!L148 -> 1077441 | M152: =Skyggetabeller!M148 -> 1107771 | N152: =Skyggetabeller!N148 -> 1131988 | O152: =Skyggetabeller!O148 -> 1147767 | P152: =Skyggetabeller!P148 -> 1166569 | Q152: =Skyggetabeller!Q148 -> 1183360 | R152: =Skyggetabeller!R148 -> 1197776
B153: =Skyggetabeller!B149 -> Antal anbragte | D153: =Skyggetabeller!D149 -> 1484 | E153: =Skyggetabeller!E149 -> 1571 | F153: =Skyggetabeller!F149 -> 1544 | G153: =Skyggetabeller!G149 -> 1544 | H153: =Skyggetabeller!H149 -> 1529 | I153: =Skyggetabeller!I149 -> 1516 | J153: =Skyggetabeller!J149 -> 1517 | K153: =Skyggetabeller!K149 -> 1592 | L153: =Skyggetabeller!L149 -> 1615 | M153: =Skyggetabeller!M149 -> 1717 | N153: =Skyggetabeller!N149 -> 1713 | O153: =Skyggetabeller!O149 -> 1826 | P153: =Skyggetabeller!P149 -> 1854 | Q153: =Skyggetabeller!Q149 -> 1863 | R153: =Skyggetabeller!R149 -> 1895
B154: =Skyggetabeller!B150 -> Gennemsnitlig varighed | D154: =Skyggetabeller!D150 -> 776.5768194 | E154: =Skyggetabeller!E150 -> 736.0897518 | F154: =Skyggetabeller!F150 -> 734.7623057 | G154: =Skyggetabeller!G150 -> 710.3873057 | H154: =Skyggetabeller!H150 -> 689.8194899 | I154: =Skyggetabeller!I150 -> 676.2236148 | J154: =Skyggetabeller!J150 -> 664.9709954 | K154: =Skyggetabeller!K150 -> 667.0904523 | L154: =Skyggetabeller!L150 -> 667.14613 | M154: =Skyggetabeller!M150 -> 645.1782178 | N154: =Skyggetabeller!N150 -> 660.8219498 | O154: =Skyggetabeller!O150 -> 628.5690033 | P154: =Skyggetabeller!P150 -> 629.2173679 | Q154: =Skyggetabeller!Q150 -> 635.1905529 | R154: =Skyggetabeller!R150 -> 632.0717678
B155: Anm.: Hvis nøgletallet er angivet med * er der foretaget en diskretionering af data, da der er for få observationer.
B156: =IF('Dine valg'!$G$24="","Ingen sammenligningsgruppe valgt.","Anm.: Valgte kommuner i sammenligningsgruppen: "&'Dine valg'!$G$24&" "&'Dine valg'!$G$25&" "&'Dine valg'!$G$26&" "&'Dine valg'!$G$27&" "&'Dine valg'!$G$28&" "&'Dine valg'!$G$29&" "&'Dine valg'!$G$30) -> Anm.: Valgte kommuner i sammenligningsgruppen: Aarhus
B157: Kilde: Socialstyrelsens egne beregninger baseret på registerdata fra Danmarks Statistik.
B159: =Skyggetabeller!B153 -> Nøgletal 3: Anbragte i plejefamilie
B161: =Skyggetabeller!B156 -> Nøgletal 3: Anbragte i plejefamilie | D161: 2017-01-01 | E161: 2017-07-01 | F161: 2018-01-01 | G161: 2018-07-01 | H161: 2019-01-01 | I161: 2019-07-01 | J161: 2020-01-01 | K161: 2020-07-01 | L161: 2021-01-01 | M161: 2021-07-01 | N161: 2022-01-01 | O161: 2022-07-01 | P161: 2023-01-01 | Q161: 2023-07-01 | R161: 2024-01-01
B162: =Skyggetabeller!B157 -> København
B163: =Skyggetabeller!B158 -> Antal anbragte | D163: =Skyggetabeller!D158 -> 357 | E163: =Skyggetabeller!E158 -> 349 | F163: =Skyggetabeller!F158 -> 349 | G163: =Skyggetabeller!G158 -> 353 | H163: =Skyggetabeller!H158 -> 340 | I163: =Skyggetabeller!I158 -> 326 | J163: =Skyggetabeller!J158 -> 314 | K163: =Skyggetabeller!K158 -> 296 | L163: =Skyggetabeller!L158 -> 287 | M163: =Skyggetabeller!M158 -> 284 | N163: =Skyggetabeller!N158 -> 272 | O163: =Skyggetabeller!O158 -> 265 | P163: =Skyggetabeller!P158 -> 271 | Q163: =Skyggetabeller!Q158 -> 261 | R163: =Skyggetabeller!R158 -> 242
B164: =Skyggetabeller!B159 -> Antal 0-17-årige | D164: =Skyggetabeller!D159 -> 105885 | E164: =Skyggetabeller!E159 -> 106913 | F164: =Skyggetabeller!F159 -> 107770 | G164: =Skyggetabeller!G159 -> 108734 | H164: =Skyggetabeller!H159 -> 109335 | I164: =Skyggetabeller!I159 -> 110138 | J164: =Skyggetabeller!J159 -> 110822 | K164: =Skyggetabeller!K159 -> 111068 | L164: =Skyggetabeller!L159 -> 110927 | M164: =Skyggetabeller!M159 -> 110614 | N164: =Skyggetabeller!N159 -> 110513 | O164: =Skyggetabeller!O159 -> 110692 | P164: =Skyggetabeller!P159 -> 110835 | Q164: =Skyggetabeller!Q159 -> 111075 | R164: =Skyggetabeller!R159 -> 110571
B165: =Skyggetabeller!B160 -> Andel | D165: =Skyggetabeller!D160 -> 3.371582377 | E165: =Skyggetabeller!E160 -> 3.264336423 | F165: =Skyggetabeller!F160 -> 3.238378027 | G165: =Skyggetabeller!G160 -> 3.246454651 | H165: =Skyggetabeller!H160 -> 3.109708693 | I165: =Skyggetabeller!I160 -> 2.959923006 | J165: =Skyggetabeller!J160 -> 2.833372435 | K165: =Skyggetabeller!K160 -> 2.665034033 | L165: =Skyggetabeller!L160 -> 2.587287135 | M165: =Skyggetabeller!M160 -> 2.567486937 | N165: =Skyggetabeller!N160 -> 2.461248903 | O165: =Skyggetabeller!O160 -> 2.394030282 | P165: =Skyggetabeller!P160 -> 2.445076014 | Q165: =Skyggetabeller!Q160 -> 2.349763673 | R165: =Skyggetabeller!R160 -> 2.188638974
B166: =Skyggetabeller!B161 -> Sammenligningsgruppe, gns.
B167: =Skyggetabeller!B162 -> Antal anbragte | D167: =Skyggetabeller!D162 -> 228 | E167: =Skyggetabeller!E162 -> 243 | F167: =Skyggetabeller!F162 -> 244 | G167: =Skyggetabeller!G162 -> 255 | H167: =Skyggetabeller!H162 -> 253 | I167: =Skyggetabeller!I162 -> 252 | J167: =Skyggetabeller!J162 -> 248 | K167: =Skyggetabeller!K162 -> 248 | L167: =Skyggetabeller!L162 -> 242 | M167: =Skyggetabeller!M162 -> 232 | N167: =Skyggetabeller!N162 -> 231 | O167: =Skyggetabeller!O162 -> 230 | P167: =Skyggetabeller!P162 -> 221 | Q167: =Skyggetabeller!Q162 -> 225 | R167: =Skyggetabeller!R162 -> 221
B168: =Skyggetabeller!B163 -> Antal 0-17-årige | D168: =Skyggetabeller!D163 -> 62903 | E168: =Skyggetabeller!E163 -> 63077 | F168: =Skyggetabeller!F163 -> 63245 | G168: =Skyggetabeller!G163 -> 63510 | H168: =Skyggetabeller!H163 -> 63607 | I168: =Skyggetabeller!I163 -> 63704 | J168: =Skyggetabeller!J163 -> 63890 | K168: =Skyggetabeller!K163 -> 64128 | L168: =Skyggetabeller!L163 -> 64334 | M168: =Skyggetabeller!M163 -> 64307 | N168: =Skyggetabeller!N163 -> 64049 | O168: =Skyggetabeller!O163 -> 64356 | P168: =Skyggetabeller!P163 -> 64420 | Q168: =Skyggetabeller!Q163 -> 64601 | R168: =Skyggetabeller!R163 -> 64665
B169: =Skyggetabeller!B164 -> Andel | D169: =Skyggetabeller!D164 -> 3.624628396 | E169: =Skyggetabeller!E164 -> 3.852434326 | F169: =Skyggetabeller!F164 -> 3.858012491 | G169: =Skyggetabeller!G164 -> 4.01511573 | H169: =Skyggetabeller!H164 -> 3.977549641 | I169: =Skyggetabeller!I164 -> 3.955795554 | J169: =Skyggetabeller!J164 -> 3.881671623 | K169: =Skyggetabeller!K164 -> 3.867265469 | L169: =Skyggetabeller!L164 -> 3.761619051 | M169: =Skyggetabeller!M164 -> 3.607694341 | N169: =Skyggetabeller!N164 -> 3.606613686 | O169: =Skyggetabeller!O164 -> 3.573870346 | P169: =Skyggetabeller!P164 -> 3.430611611 | Q169: =Skyggetabeller!Q164 -> 3.482918221 | R169: =Skyggetabeller!R164 -> 3.417613856
B170: =Skyggetabeller!B165 -> Hele landet
B171: =Skyggetabeller!B166 -> Antal anbragte | D171: =Skyggetabeller!D166 -> 6754 | E171: =Skyggetabeller!E166 -> 6801 | F171: =Skyggetabeller!F166 -> 6761 | G171: =Skyggetabeller!G166 -> 6807 | H171: =Skyggetabeller!H166 -> 6779 | I171: =Skyggetabeller!I166 -> 6771 | J171: =Skyggetabeller!J166 -> 6665 | K171: =Skyggetabeller!K166 -> 6603 | L171: =Skyggetabeller!L166 -> 6547 | M171: =Skyggetabeller!M166 -> 6540 | N171: =Skyggetabeller!N166 -> 6449 | O171: =Skyggetabeller!O166 -> 6384 | P171: =Skyggetabeller!P166 -> 6297 | Q171: =Skyggetabeller!Q166 -> 6295 | R171: =Skyggetabeller!R166 -> 6187
B172: =Skyggetabeller!B167 -> Antal 0-17-årige | D172: =Skyggetabeller!D167 -> 1168201 | E172: =Skyggetabeller!E167 -> 1165363 | F172: =Skyggetabeller!F167 -> 1165475 | G172: =Skyggetabeller!G167 -> 1162195 | H172: =Skyggetabeller!H167 -> 1160360 | I172: =Skyggetabeller!I167 -> 1156537 | J172: =Skyggetabeller!J167 -> 1156116 | K172: =Skyggetabeller!K167 -> 1153027 | L172: =Skyggetabeller!L167 -> 1152972 | M172: =Skyggetabeller!M167 -> 1151374 | N172: =Skyggetabeller!N167 -> 1151704 | O172: =Skyggetabeller!O167 -> 1157254 | P172: =Skyggetabeller!P167 -> 1155814 | Q172: =Skyggetabeller!Q167 -> 1151415 | R172: =Skyggetabeller!R167 -> 1148490
B173: =Skyggetabeller!B168 -> Andel | D173: =Skyggetabeller!D168 -> 5.781539307 | E173: =Skyggetabeller!E168 -> 5.835949829 | F173: =Skyggetabeller!F168 -> 5.801068234 | G173: =Skyggetabeller!G168 -> 5.857020552 | H173: =Skyggetabeller!H168 -> 5.842152435 | I173: =Skyggetabeller!I168 -> 5.854546807 | J173: =Skyggetabeller!J168 -> 5.76499244 | K173: =Skyggetabeller!K168 -> 5.726665551 | L173: =Skyggetabeller!L168 -> 5.678368599 | M173: =Skyggetabeller!M168 -> 5.680169953 | N173: =Skyggetabeller!N168 -> 5.599529046 | O173: =Skyggetabeller!O168 -> 5.51650718 | P173: =Skyggetabeller!P168 -> 5.448108433 | Q173: =Skyggetabeller!Q168 -> 5.467186028 | R173: =Skyggetabeller!R168 -> 5.387073462
B174: Anm.: Hvis nøgletallet er angivet med * er der foretaget en diskretionering af data, da der er for få observationer.
B175: =IF('Dine valg'!$G$24="","Ingen sammenligningsgruppe valgt.","Anm.: Valgte kommuner i sammenligningsgruppen: "&'Dine valg'!$G$24&" "&'Dine valg'!$G$25&" "&'Dine valg'!$G$26&" "&'Dine valg'!$G$27&" "&'Dine valg'!$G$28&" "&'Dine valg'!$G$29&" "&'Dine valg'!$G$30) -> Anm.: Valgte kommuner i sammenligningsgruppen: Aarhus
B176: Kilde: Socialstyrelsens egne beregninger baseret på registerdata fra Danmarks Statistik.
B178: =Skyggetabeller!B171 -> Nøgletal 4: Anbragte i netværksplejefamilie
B180: =Skyggetabeller!B174 -> Nøgletal 4: Anbragte i netværksplejefamilie | D180: 2017-01-01 | E180: 2017-07-01 | F180: 2018-01-01 | G180: 2018-07-01 | H180: 2019-01-01 | I180: 2019-07-01 | J180: 2020-01-01 | K180: 2020-07-01 | L180: 2021-01-01 | M180: 2021-07-01 | N180: 2022-01-01 | O180: 2022-07-01 | P180: 2023-01-01 | Q180: 2023-07-01 | R180: 2024-01-01
B181: =Skyggetabeller!B175 -> København
B182: =Skyggetabeller!B176 -> Antal anbragte | D182: =Skyggetabeller!D176 -> 106 | E182: =Skyggetabeller!E176 -> 113 | F182: =Skyggetabeller!F176 -> 111 | G182: =Skyggetabeller!G176 -> 108 | H182: =Skyggetabeller!H176 -> 113 | I182: =Skyggetabeller!I176 -> 108 | J182: =Skyggetabeller!J176 -> 109 | K182: =Skyggetabeller!K176 -> 109 | L182: =Skyggetabeller!L176 -> 116 | M182: =Skyggetabeller!M176 -> 114 | N182: =Skyggetabeller!N176 -> 113 | O182: =Skyggetabeller!O176 -> 112 | P182: =Skyggetabeller!P176 -> 113 | Q182: =Skyggetabeller!Q176 -> 107 | R182: =Skyggetabeller!R176 -> 118
B183: =Skyggetabeller!B177 -> Antal 0-17-årige | D183: =Skyggetabeller!D177 -> 105885 | E183: =Skyggetabeller!E177 -> 106913 | F183: =Skyggetabeller!F177 -> 107770 | G183: =Skyggetabeller!G177 -> 108734 | H183: =Skyggetabeller!H177 -> 109335 | I183: =Skyggetabeller!I177 -> 110138 | J183: =Skyggetabeller!J177 -> 110822 | K183: =Skyggetabeller!K177 -> 111068 | L183: =Skyggetabeller!L177 -> 110927 | M183: =Skyggetabeller!M177 -> 110614 | N183: =Skyggetabeller!N177 -> 110513 | O183: =Skyggetabeller!O177 -> 110692 | P183: =Skyggetabeller!P177 -> 110835 | Q183: =Skyggetabeller!Q177 -> 111075 | R183: =Skyggetabeller!R177 -> 110571
B184: =Skyggetabeller!B178 -> Andel | D184: =Skyggetabeller!D178 -> 1.001086084 | E184: =Skyggetabeller!E178 -> 1.056934143 | F184: =Skyggetabeller!F178 -> 1.029971235 | G184: =Skyggetabeller!G178 -> 0.9932495815 | H184: =Skyggetabeller!H178 -> 1.03352083 | I184: =Skyggetabeller!I178 -> 0.9805879896 | J184: =Skyggetabeller!J178 -> 0.9835592211 | K184: =Skyggetabeller!K178 -> 0.9813807757 | L184: =Skyggetabeller!L178 -> 1.045732779 | M184: =Skyggetabeller!M178 -> 1.030610953 | N184: =Skyggetabeller!N178 -> 1.02250414 | O184: =Skyggetabeller!O178 -> 1.011816572 | P184: =Skyggetabeller!P178 -> 1.019533541 | Q184: =Skyggetabeller!Q178 -> 0.9633130767 | R184: =Skyggetabeller!R178 -> 1.067187599
B185: =Skyggetabeller!B179 -> Sammenligningsgruppe, gns.
B186: =Skyggetabeller!B180 -> Antal anbragte | D186: =Skyggetabeller!D180 -> 41 | E186: =Skyggetabeller!E180 -> 35 | F186: =Skyggetabeller!F180 -> 31 | G186: =Skyggetabeller!G180 -> 25 | H186: =Skyggetabeller!H180 -> 23 | I186: =Skyggetabeller!I180 -> 23 | J186: =Skyggetabeller!J180 -> 22 | K186: =Skyggetabeller!K180 -> 24 | L186: =Skyggetabeller!L180 -> 26 | M186: =Skyggetabeller!M180 -> 25 | N186: =Skyggetabeller!N180 -> 22 | O186: =Skyggetabeller!O180 -> 22 | P186: =Skyggetabeller!P180 -> 25 | Q186: =Skyggetabeller!Q180 -> 26 | R186: =Skyggetabeller!R180 -> 27
B187: =Skyggetabeller!B181 -> Antal 0-17-årige | D187: =Skyggetabeller!D181 -> 62903 | E187: =Skyggetabeller!E181 -> 63077 | F187: =Skyggetabeller!F181 -> 63245 | G187: =Skyggetabeller!G181 -> 63510 | H187: =Skyggetabeller!H181 -> 63607 | I187: =Skyggetabeller!I181 -> 63704 | J187: =Skyggetabeller!J181 -> 63890 | K187: =Skyggetabeller!K181 -> 64128 | L187: =Skyggetabeller!L181 -> 64334 | M187: =Skyggetabeller!M181 -> 64307 | N187: =Skyggetabeller!N181 -> 64049 | O187: =Skyggetabeller!O181 -> 64356 | P187: =Skyggetabeller!P181 -> 64420 | Q187: =Skyggetabeller!Q181 -> 64601 | R187: =Skyggetabeller!R181 -> 64665
B188: =Skyggetabeller!B182 -> Andel | D188: =Skyggetabeller!D182 -> 0.6517972116 | E188: =Skyggetabeller!E182 -> 0.5548773721 | F188: =Skyggetabeller!F182 -> 0.4901573247 | G188: =Skyggetabeller!G182 -> 0.393638797 | H188: =Skyggetabeller!H182 -> 0.3615954219 | I188: =Skyggetabeller!I182 -> 0.3610448323 | J188: =Skyggetabeller!J182 -> 0.3443418375 | K188: =Skyggetabeller!K182 -> 0.374251497 | L188: =Skyggetabeller!L182 -> 0.4041408897 | M188: =Skyggetabeller!M182 -> 0.3887601661 | N188: =Skyggetabeller!N182 -> 0.3434870178 | O188: =Skyggetabeller!O182 -> 0.3418484679 | P188: =Skyggetabeller!P182 -> 0.3880782366 | Q188: =Skyggetabeller!Q182 -> 0.40247055 | R188: =Skyggetabeller!R182 -> 0.4175365344
B189: =Skyggetabeller!B183 -> Hele landet
B190: =Skyggetabeller!B184 -> Antal anbragte | D190: =Skyggetabeller!D184 -> 955 | E190: =Skyggetabeller!E184 -> 1000 | F190: =Skyggetabeller!F184 -> 965 | G190: =Skyggetabeller!G184 -> 944 | H190: =Skyggetabeller!H184 -> 944 | I190: =Skyggetabeller!I184 -> 917 | J190: =Skyggetabeller!J184 -> 899 | K190: =Skyggetabeller!K184 -> 922 | L190: =Skyggetabeller!L184 -> 947 | M190: =Skyggetabeller!M184 -> 952 | N190: =Skyggetabeller!N184 -> 935 | O190: =Skyggetabeller!O184 -> 963 | P190: =Skyggetabeller!P184 -> 1006 | Q190: =Skyggetabeller!Q184 -> 1009 | R190: =Skyggetabeller!R184 -> 1030
B191: =Skyggetabeller!B185 -> Antal 0-17-årige | D191: =Skyggetabeller!D185 -> 1168201 | E191: =Skyggetabeller!E185 -> 1165363 | F191: =Skyggetabeller!F185 -> 1165475 | G191: =Skyggetabeller!G185 -> 1162195 | H191: =Skyggetabeller!H185 -> 1160360 | I191: =Skyggetabeller!I185 -> 1156537 | J191: =Skyggetabeller!J185 -> 1156116 | K191: =Skyggetabeller!K185 -> 1153027 | L191: =Skyggetabeller!L185 -> 1152972 | M191: =Skyggetabeller!M185 -> 1151374 | N191: =Skyggetabeller!N185 -> 1151704 | O191: =Skyggetabeller!O185 -> 1157254 | P191: =Skyggetabeller!P185 -> 1155814 | Q191: =Skyggetabeller!Q185 -> 1151415 | R191: =Skyggetabeller!R185 -> 1148490
B192: =Skyggetabeller!B186 -> Andel | D192: =Skyggetabeller!D186 -> 0.8174963041 | E192: =Skyggetabeller!E186 -> 0.8581017245 | F192: =Skyggetabeller!F186 -> 0.8279885883 | G192: =Skyggetabeller!G186 -> 0.8122561188 | H192: =Skyggetabeller!H186 -> 0.8135406253 | I192: =Skyggetabeller!I186 -> 0.7928842743 | J192: =Skyggetabeller!J186 -> 0.7776036315 | K192: =Skyggetabeller!K186 -> 0.7996343537 | L192: =Skyggetabeller!L186 -> 0.8213555923 | M192: =Skyggetabeller!M186 -> 0.8268381951 | N192: =Skyggetabeller!N186 -> 0.8118405424 | O192: =Skyggetabeller!O186 -> 0.8321422955 | P192: =Skyggetabeller!P186 -> 0.8703822587 | Q192: =Skyggetabeller!Q186 -> 0.8763130583 | R192: =Skyggetabeller!R186 -> 0.8968297504
B193: Anm.: Hvis nøgletallet er angivet med * er der foretaget en diskretionering af data, da der er for få observationer.
B194: =IF('Dine valg'!$G$24="","Ingen sammenligningsgruppe valgt.","Anm.: Valgte kommuner i sammenligningsgruppen: "&'Dine valg'!$G$24&" "&'Dine valg'!$G$25&" "&'Dine valg'!$G$26&" "&'Dine valg'!$G$27&" "&'Dine valg'!$G$28&" "&'Dine valg'!$G$29&" "&'Dine valg'!$G$30) -> Anm.: Valgte kommuner i sammenligningsgruppen: Aarhus
B195: Kilde: Socialstyrelsens egne beregninger baseret på registerdata fra Danmarks Statistik.
B197: =Skyggetabeller!B189 -> Nøgletal 5: Hjemmebaserede foranstaltninger
B199: =Skyggetabeller!B192 -> Nøgletal 5: Modtagere af hjemmebaserede foranstaltninger | D199: 2017-01-01 | E199: 2017-07-01 | F199: 2018-01-01 | G199: 2018-07-01 | H199: 2019-01-01 | I199: 2019-07-01 | J199: 2020-01-01 | K199: 2020-07-01 | L199: 2021-01-01 | M199: 2021-07-01 | N199: 2022-01-01 | O199: 2022-07-01 | P199: 2023-01-01 | Q199: 2023-07-01 | R199: 2024-01-01
B200: =Skyggetabeller!B193 -> København
B201: =Skyggetabeller!B194 -> Antal modtagere | D201: =Skyggetabeller!D194 -> 1925 | E201: =Skyggetabeller!E194 -> 1657 | F201: =Skyggetabeller!F194 -> 1461 | G201: =Skyggetabeller!G194 -> 1940 | H201: =Skyggetabeller!H194 -> 2166 | I201: =Skyggetabeller!I194 -> 2143 | J201: =Skyggetabeller!J194 -> 2113 | K201: =Skyggetabeller!K194 -> 2108 | L201: =Skyggetabeller!L194 -> 2035 | M201: =Skyggetabeller!M194 -> 2297 | N201: =Skyggetabeller!N194 -> 2306 | O201: =Skyggetabeller!O194 -> 2428 | P201: =Skyggetabeller!P194 -> 2458 | Q201: =Skyggetabeller!Q194 -> 2428 | R201: =Skyggetabeller!R194 -> 2405
B202: =Skyggetabeller!B195 -> Antal 0-17-årige | D202: =Skyggetabeller!D195 -> 105885 | E202: =Skyggetabeller!E195 -> 106913 | F202: =Skyggetabeller!F195 -> 107770 | G202: =Skyggetabeller!G195 -> 108734 | H202: =Skyggetabeller!H195 -> 109335 | I202: =Skyggetabeller!I195 -> 110138 | J202: =Skyggetabeller!J195 -> 110822 | K202: =Skyggetabeller!K195 -> 111068 | L202: =Skyggetabeller!L195 -> 110927 | M202: =Skyggetabeller!M195 -> 110614 | N202: =Skyggetabeller!N195 -> 110513 | O202: =Skyggetabeller!O195 -> 110692 | P202: =Skyggetabeller!P195 -> 110835 | Q202: =Skyggetabeller!Q195 -> 111075 | R202: =Skyggetabeller!R195 -> 110571
B203: =Skyggetabeller!B196 -> Andel | D203: =Skyggetabeller!D196 -> 18.18010105 | E203: =Skyggetabeller!E196 -> 15.49858296 | F203: =Skyggetabeller!F196 -> 13.55664842 | G203: =Skyggetabeller!G196 -> 17.84170545 | H203: =Skyggetabeller!H196 -> 19.81067362 | I203: =Skyggetabeller!I196 -> 19.45740798 | J203: =Skyggetabeller!J196 -> 19.06661132 | K203: =Skyggetabeller!K196 -> 18.97936399 | L203: =Skyggetabeller!L196 -> 18.34539833 | M203: =Skyggetabeller!M196 -> 20.76590667 | N203: =Skyggetabeller!N196 -> 20.86632342 | O203: =Skyggetabeller!O196 -> 21.93473783 | P203: =Skyggetabeller!P196 -> 22.17711012 | Q203: =Skyggetabeller!Q196 -> 21.85910421 | R203: =Skyggetabeller!R196 -> 21.7507303
B204: =Skyggetabeller!B197 -> Sammenligningsgruppe, gns.
B205: =Skyggetabeller!B198 -> Antal modtagere | D205: =Skyggetabeller!D198 -> 1124 | E205: =Skyggetabeller!E198 -> 1070 | F205: =Skyggetabeller!F198 -> 1155 | G205: =Skyggetabeller!G198 -> 1193 | H205: =Skyggetabeller!H198 -> 1295 | I205: =Skyggetabeller!I198 -> 1286 | J205: =Skyggetabeller!J198 -> 1289 | K205: =Skyggetabeller!K198 -> 1262 | L205: =Skyggetabeller!L198 -> 1246 | M205: =Skyggetabeller!M198 -> 1220 | N205: =Skyggetabeller!N198 -> 1147 | O205: =Skyggetabeller!O198 -> 1115 | P205: =Skyggetabeller!P198 -> 1094 | Q205: =Skyggetabeller!Q198 -> 1062 | R205: =Skyggetabeller!R198 -> 1012
B206: =Skyggetabeller!B199 -> Antal 0-17-årige | D206: =Skyggetabeller!D199 -> 62903 | E206: =Skyggetabeller!E199 -> 63077 | F206: =Skyggetabeller!F199 -> 63245 | G206: =Skyggetabeller!G199 -> 63510 | H206: =Skyggetabeller!H199 -> 63607 | I206: =Skyggetabeller!I199 -> 63704 | J206: =Skyggetabeller!J199 -> 63890 | K206: =Skyggetabeller!K199 -> 64128 | L206: =Skyggetabeller!L199 -> 64334 | M206: =Skyggetabeller!M199 -> 64307 | N206: =Skyggetabeller!N199 -> 64049 | O206: =Skyggetabeller!O199 -> 64356 | P206: =Skyggetabeller!P199 -> 64420 | Q206: =Skyggetabeller!Q199 -> 64601 | R206: =Skyggetabeller!R199 -> 64665
B207: =Skyggetabeller!B200 -> Andel | D207: =Skyggetabeller!D200 -> 17.86878209 | E207: =Skyggetabeller!E200 -> 16.96339395 | F207: =Skyggetabeller!F200 -> 18.26231323 | G207: =Skyggetabeller!G200 -> 18.78444339 | H207: =Skyggetabeller!H200 -> 20.35939441 | I207: =Skyggetabeller!I200 -> 20.18711541 | J207: =Skyggetabeller!J200 -> 20.1753013 | K207: =Skyggetabeller!K200 -> 19.67939122 | L207: =Skyggetabeller!L200 -> 19.36767495 | M207: =Skyggetabeller!M200 -> 18.9714961 | N207: =Skyggetabeller!N200 -> 17.90816406 | O207: =Skyggetabeller!O200 -> 17.3255019 | P207: =Skyggetabeller!P200 -> 16.98230363 | Q207: =Skyggetabeller!Q200 -> 16.439374 | R207: =Skyggetabeller!R200 -> 15.64988788
B208: =Skyggetabeller!B201 -> Hele landet
B209: =Skyggetabeller!B202 -> Antal modtagere | D209: =Skyggetabeller!D202 -> 23714 | E209: =Skyggetabeller!E202 -> 23377 | F209: =Skyggetabeller!F202 -> 23399 | G209: =Skyggetabeller!G202 -> 23289 | H209: =Skyggetabeller!H202 -> 24047 | I209: =Skyggetabeller!I202 -> 23855 | J209: =Skyggetabeller!J202 -> 24683 | K209: =Skyggetabeller!K202 -> 24731 | L209: =Skyggetabeller!L202 -> 25218 | M209: =Skyggetabeller!M202 -> 26148 | N209: =Skyggetabeller!N202 -> 26528 | O209: =Skyggetabeller!O202 -> 26834 | P209: =Skyggetabeller!P202 -> 27394 | Q209: =Skyggetabeller!Q202 -> 27599 | R209: =Skyggetabeller!R202 -> 27256
B210: =Skyggetabeller!B203 -> Antal 0-17-årige | D210: =Skyggetabeller!D203 -> 1168201 | E210: =Skyggetabeller!E203 -> 1165363 | F210: =Skyggetabeller!F203 -> 1165475 | G210: =Skyggetabeller!G203 -> 1162195 | H210: =Skyggetabeller!H203 -> 1160360 | I210: =Skyggetabeller!I203 -> 1156537 | J210: =Skyggetabeller!J203 -> 1156116 | K210: =Skyggetabeller!K203 -> 1153027 | L210: =Skyggetabeller!L203 -> 1152972 | M210: =Skyggetabeller!M203 -> 1151374 | N210: =Skyggetabeller!N203 -> 1151704 | O210: =Skyggetabeller!O203 -> 1157254 | P210: =Skyggetabeller!P203 -> 1155814 | Q210: =Skyggetabeller!Q203 -> 1151415 | R210: =Skyggetabeller!R203 -> 1148490
B211: =Skyggetabeller!B204 -> Andel | D211: =Skyggetabeller!D204 -> 20.29958886 | E211: =Skyggetabeller!E204 -> 20.05984401 | F211: =Skyggetabeller!F204 -> 20.07679272 | G211: =Skyggetabeller!G204 -> 20.03880588 | H211: =Skyggetabeller!H204 -> 20.72374091 | I211: =Skyggetabeller!I204 -> 20.62623159 | J211: =Skyggetabeller!J204 -> 21.34993374 | K211: =Skyggetabeller!K204 -> 21.44876052 | L211: =Skyggetabeller!L204 -> 21.87217036 | M211: =Skyggetabeller!M204 -> 22.71025748 | N211: =Skyggetabeller!N204 -> 23.03369616 | O211: =Skyggetabeller!O204 -> 23.18764938 | P211: =Skyggetabeller!P204 -> 23.70104532 | Q211: =Skyggetabeller!Q204 -> 23.96963736 | R211: =Skyggetabeller!R204 -> 23.73203075
B212: Anm.: Hvis nøgletallet er angivet med * er der foretaget en diskretionering af data, da der er for få observationer.
B213: =IF('Dine valg'!$G$24="","Ingen sammenligningsgruppe valgt.","Anm.: Valgte kommuner i sammenligningsgruppen: "&'Dine valg'!$G$24&" "&'Dine valg'!$G$25&" "&'Dine valg'!$G$26&" "&'Dine valg'!$G$27&" "&'Dine valg'!$G$28&" "&'Dine valg'!$G$29&" "&'Dine valg'!$G$30) -> Anm.: Valgte kommuner i sammenligningsgruppen: Aarhus
B214: Kilde: Socialstyrelsens egne beregninger baseret på registerdata fra Danmarks Statistik.
B216: Undernøgletal - Hjemmebaserede foranstaltninger
B218: =Skyggetabeller!B207 -> Nøgletal 5.1 Modtagere af døgnophold for både forældremyndigheds-indehaveren, barnet eller den unge og andre medlemmer af familien | D218: 2017-01-01 | E218: 2017-07-01 | F218: 2018-01-01 | G218: 2018-07-01 | H218: 2019-01-01 | I218: 2019-07-01 | J218: 2020-01-01 | K218: 2020-07-01 | L218: 2021-01-01 | M218: 2021-07-01 | N218: 2022-01-01 | O218: 2022-07-01 | P218: 2023-01-01 | Q218: 2023-07-01 | R218: 2024-01-01
B219: =Skyggetabeller!B208 -> København
B220: =Skyggetabeller!B209 -> Antal modtagere | D220: =Skyggetabeller!D209 -> 8 | E220: =Skyggetabeller!E209 -> 6 | F220: =Skyggetabeller!F209 -> 4 | G220: =Skyggetabeller!G209 -> 12 | H220: =Skyggetabeller!H209 -> 14 | I220: =Skyggetabeller!I209 -> 9 | J220: =Skyggetabeller!J209 -> 15 | K220: =Skyggetabeller!K209 -> 8 | L220: =Skyggetabeller!L209 -> 6 | M220: =Skyggetabeller!M209 -> * | N220: =Skyggetabeller!N209 -> 12 | O220: =Skyggetabeller!O209 -> 10 | P220: =Skyggetabeller!P209 -> 11 | Q220: =Skyggetabeller!Q209 -> 9 | R220: =Skyggetabeller!R209 -> 14
B221: =Skyggetabeller!B210 -> Antal 0-17-årige | D221: =Skyggetabeller!D210 -> 105885 | E221: =Skyggetabeller!E210 -> 106913 | F221: =Skyggetabeller!F210 -> 107770 | G221: =Skyggetabeller!G210 -> 108734 | H221: =Skyggetabeller!H210 -> 109335 | I221: =Skyggetabeller!I210 -> 110138 | J221: =Skyggetabeller!J210 -> 110822 | K221: =Skyggetabeller!K210 -> 111068 | L221: =Skyggetabeller!L210 -> 110927 | M221: =Skyggetabeller!M210 -> 110614 | N221: =Skyggetabeller!N210 -> 110513 | O221: =Skyggetabeller!O210 -> 110692 | P221: =Skyggetabeller!P210 -> 110835 | Q221: =Skyggetabeller!Q210 -> 111075 | R221: =Skyggetabeller!R210 -> 110571
B222: =Skyggetabeller!B211 -> Andel | D222: =Skyggetabeller!D211 -> 0.07555366671 | E222: =Skyggetabeller!E211 -> 0.05612039696 | F222: =Skyggetabeller!F211 -> 0.03711608054 | G222: =Skyggetabeller!G211 -> 0.1103610646 | H222: =Skyggetabeller!H211 -> 0.1280468286 | I222: =Skyggetabeller!I211 -> 0.0817156658 | J222: =Skyggetabeller!J211 -> 0.1353521864 | K222: =Skyggetabeller!K211 -> 0.07202794684 | L222: =Skyggetabeller!L211 -> 0.05408962651 | M222: =Skyggetabeller!M211 -> * | N222: =Skyggetabeller!N211 -> 0.1085845104 | O222: =Skyggetabeller!O211 -> 0.09034076537 | P222: =Skyggetabeller!P211 -> 0.09924662787 | Q222: =Skyggetabeller!Q211 -> 0.08102633356 | R222: =Skyggetabeller!R211 -> 0.1266154778
B223: =Skyggetabeller!B212 -> Sammenligningsgruppe, gns.
B224: =Skyggetabeller!B213 -> Antal modtagere | D224: =Skyggetabeller!D213 -> 0 | E224: =Skyggetabeller!E213 -> 0 | F224: =Skyggetabeller!F213 -> 0 | G224: =Skyggetabeller!G213 -> 0 | H224: =Skyggetabeller!H213 -> 3 | I224: =Skyggetabeller!I213 -> 0 | J224: =Skyggetabeller!J213 -> 0 | K224: =Skyggetabeller!K213 -> 0 | L224: =Skyggetabeller!L213 -> 0 | M224: =Skyggetabeller!M213 -> 0 | N224: =Skyggetabeller!N213 -> 0 | O224: =Skyggetabeller!O213 -> 0 | P224: =Skyggetabeller!P213 -> 0 | Q224: =Skyggetabeller!Q213 -> 0 | R224: =Skyggetabeller!R213 -> 0
B225: =Skyggetabeller!B214 -> Antal 0-17-årige | D225: =Skyggetabeller!D214 -> 62903 | E225: =Skyggetabeller!E214 -> 63077 | F225: =Skyggetabeller!F214 -> 63245 | G225: =Skyggetabeller!G214 -> 63510 | H225: =Skyggetabeller!H214 -> 63607 | I225: =Skyggetabeller!I214 -> 63704 | J225: =Skyggetabeller!J214 -> 63890 | K225: =Skyggetabeller!K214 -> 64128 | L225: =Skyggetabeller!L214 -> 64334 | M225: =Skyggetabeller!M214 -> 64307 | N225: =Skyggetabeller!N214 -> 64049 | O225: =Skyggetabeller!O214 -> 64356 | P225: =Skyggetabeller!P214 -> 64420 | Q225: =Skyggetabeller!Q214 -> 64601 | R225: =Skyggetabeller!R214 -> 64665
B226: =Skyggetabeller!B215 -> Andel | D226: =Skyggetabeller!D215 -> 0 | E226: =Skyggetabeller!E215 -> 0 | F226: =Skyggetabeller!F215 -> 0 | G226: =Skyggetabeller!G215 -> 0 | H226: =Skyggetabeller!H215 -> 0.04716462025 | I226: =Skyggetabeller!I215 -> 0 | J226: =Skyggetabeller!J215 -> 0 | K226: =Skyggetabeller!K215 -> 0 | L226: =Skyggetabeller!L215 -> 0 | M226: =Skyggetabeller!M215 -> 0 | N226: =Skyggetabeller!N215 -> 0 | O226: =Skyggetabeller!O215 -> 0 | P226: =Skyggetabeller!P215 -> 0 | Q226: =Skyggetabeller!Q215 -> 0 | R226: =Skyggetabeller!R215 -> 0
... 139 more rows

Sheet Indtastningsark
B3: ="Egne indtastninger for "&Kommune&"" -> Egne indtastninger for København
B7: Nogle af nøgletallene kan ikke baseres på nationale registerdata, men kan baseres på lokale data fra kommuner. Disse nøgletal skal du indtaste data i de blå celler neden for, hvis du gerne vil inkludere dem i din analyse. Bemærk at du for disse nøgletal ikke kan sammenligne med øvrige kommuner, regionen eller hele landet. Du kan se nøgletallene over tid ved at vælge "Nøgletalsanalyse".
B18: Vælg nøgletal
B24: =Skyggetabeller!B267 -> Nøgletal 6: Forebyggende indsatser (§ 11, stk. 3-tilbud)
B26: =Skyggetabeller!B270 -> Nøgletal 6: Modtagere af § 11, stk. 3-tilbud | D26: 2016-01-01 | E26: 2016-07-01 | F26: 2017-01-01 | G26: 2017-07-01 | H26: 2018-01-01 | I26: 2018-07-01 | J26: 2019-01-01 | K26: 2019-07-01 | L26: 2020-01-01 | M26: 2020-07-01 | N26: 2021-01-01 | O26: 2021-07-01 | P26: 2022-01-01 | Q26: 2022-07-01 | R26: 2023-01-01
B27: =Skyggetabeller!B271 -> Antal modtagere
B28: =Skyggetabeller!B272 -> Antal 0-17-årige | D28: =IFERROR(INDEX(Data_kom2,MATCH(1,(komnavn2=Kommune)*(komaar2=D$26),0),2),"Data ikke tilføjet") -> Data ikke tilføjet | E28: =IFERROR(INDEX(Data_kom2,MATCH(1,(komnavn2=Kommune)*(komaar2=E$26),0),2),"Data ikke tilføjet") -> Data ikke tilføjet | F28: =IFERROR(INDEX(Data_kom2,MATCH(1,(komnavn2=Kommune)*(komaar2=F$26),0),2),"Data ikke tilføjet") -> 105885 | G28: =IFERROR(INDEX(Data_kom2,MATCH(1,(komnavn2=Kommune)*(komaar2=G$26),0),2),"Data ikke tilføjet") -> 106913 | H28: =IFERROR(INDEX(Data_kom2,MATCH(1,(komnavn2=Kommune)*(komaar2=H$26),0),2),"Data ikke tilføjet") -> 107770 | I28: =IFERROR(INDEX(Data_kom2,MATCH(1,(komnavn2=Kommune)*(komaar2=I$26),0),2),"Data ikke tilføjet") -> 108734 | J28: =IFERROR(INDEX(Data_kom2,MATCH(1,(komnavn2=Kommune)*(komaar2=J$26),0),2),"Data ikke tilføjet") -> 109335 | K28: =IFERROR(INDEX(Data_kom2,MATCH(1,(komnavn2=Kommune)*(komaar2=K$26),0),2),"Data ikke tilføjet") -> 110138 | L28: =IFERROR(INDEX(Data_kom2,MATCH(1,(komnavn2=Kommune)*(komaar2=L$26),0),2),"Data ikke tilføjet") -> 110822 | M28: =IFERROR(INDEX(Data_kom2,MATCH(1,(komnavn2=Kommune)*(komaar2=M$26),0),2),"Data ikke tilføjet") -> 111068 | N28: =IFERROR(INDEX(Data_kom2,MATCH(1,(komnavn2=Kommune)*(komaar2=N$26),0),2),"Data ikke tilføjet") -> 110927 | O28: =IFERROR(INDEX(Data_kom2,MATCH(1,(komnavn2=Kommune)*(komaar2=O$26),0),2),"Data ikke tilføjet") -> 110614 | P28: =IFERROR(INDEX(Data_kom2,MATCH(1,(komnavn2=Kommune)*(komaar2=P$26),0),2),"Data ikke tilføjet") -> 110513 | Q28: =IFERROR(INDEX(Data_kom2,MATCH(1,(komnavn2=Kommune)*(komaar2=Q$26),0),2),"Data ikke tilføjet") -> 110692 | R28: =IFERROR(INDEX(Data_kom2,MATCH(1,(komnavn2=Kommune)*(komaar2=R$26),0),2),"Data ikke tilføjet") -> 110835
B29: =Skyggetabeller!B273 -> Andel | D29: =IFERROR(IF(D27="*","*",IF(D28=0,"Nævner er 0",(D27/D28*1000))),"Data ikke tilføjet") -> Data ikke tilføjet | E29: =IFERROR(IF(E27="*","*",IF(E28=0,"Nævner er 0",(E27/E28*1000))),"Data ikke tilføjet") -> Data ikke tilføjet | F29: 0 | G29: 0 | H29: 0 | I29: 0 | J29: 0 | K29: 0 | L29: 0 | M29: 0 | N29: =IFERROR(IF(N27="*","*",IF(N28=0,"Nævner er 0",(N27/N28*1000))),"Data ikke tilføjet") -> 0 | O29: 0 | P29: 0 | Q29: 0 | R29: 0
B31: =Skyggetabeller!B277 -> Nøgletal 6.1: Modtagere af myndighedsbevilgede § 11, stk. 3-tilbud | D31: 2016-01-01 | E31: 2016-07-01 | F31: 2017-01-01 | G31: 2017-07-01 | H31: 2018-01-01 | I31: 2018-07-01 | J31: 2019-01-01 | K31: 2019-07-01 | L31: 2020-01-01 | M31: 2020-07-01 | N31: 2021-01-01 | O31: 2021-07-01 | P31: 2022-01-01 | Q31: 2022-07-01 | R31: 2023-01-01
B32: =Skyggetabeller!B278 -> Antal modtagere
B33: =Skyggetabeller!B279 -> Antal 0-17-årige | D33: =IFERROR(INDEX(Data_kom2,MATCH(1,(komnavn2=Kommune)*(komaar2=D$31),0),2),"Data ikke tilføjet") -> Data ikke tilføjet | E33: =IFERROR(INDEX(Data_kom2,MATCH(1,(komnavn2=Kommune)*(komaar2=E$31),0),2),"Data ikke tilføjet") -> Data ikke tilføjet | F33: =IFERROR(INDEX(Data_kom2,MATCH(1,(komnavn2=Kommune)*(komaar2=F$31),0),2),"Data ikke tilføjet") -> 105885 | G33: =IFERROR(INDEX(Data_kom2,MATCH(1,(komnavn2=Kommune)*(komaar2=G$31),0),2),"Data ikke tilføjet") -> 106913 | H33: =IFERROR(INDEX(Data_kom2,MATCH(1,(komnavn2=Kommune)*(komaar2=H$31),0),2),"Data ikke tilføjet") -> 107770 | I33: =IFERROR(INDEX(Data_kom2,MATCH(1,(komnavn2=Kommune)*(komaar2=I$31),0),2),"Data ikke tilføjet") -> 108734 | J33: =IFERROR(INDEX(Data_kom2,MATCH(1,(komnavn2=Kommune)*(komaar2=J$31),0),2),"Data ikke tilføjet") -> 109335 | K33: =IFERROR(INDEX(Data_kom2,MATCH(1,(komnavn2=Kommune)*(komaar2=K$31),0),2),"Data ikke tilføjet") -> 110138 | L33: =IFERROR(INDEX(Data_kom2,MATCH(1,(komnavn2=Kommune)*(komaar2=L$31),0),2),"Data ikke tilføjet") -> 110822 | M33: =IFERROR(INDEX(Data_kom2,MATCH(1,(komnavn2=Kommune)*(komaar2=M$31),0),2),"Data ikke tilføjet") -> 111068 | N33: =IFERROR(INDEX(Data_kom2,MATCH(1,(komnavn2=Kommune)*(komaar2=N$31),0),2),"Data ikke tilføjet") -> 110927 | O33: =IFERROR(INDEX(Data_kom2,MATCH(1,(komnavn2=Kommune)*(komaar2=O$31),0),2),"Data ikke tilføjet") -> 110614 | P33: =IFERROR(INDEX(Data_kom2,MATCH(1,(komnavn2=Kommune)*(komaar2=P$31),0),2),"Data ikke tilføjet") -> 110513 | Q33: =IFERROR(INDEX(Data_kom2,MATCH(1,(komnavn2=Kommune)*(komaar2=Q$31),0),2),"Data ikke tilføjet") -> 110692 | R33: =IFERROR(INDEX(Data_kom2,MATCH(1,(komnavn2=Kommune)*(komaar2=R$31),0),2),"Data ikke tilføjet") -> 110835
B34: =Skyggetabeller!B280 -> Andel | D34: =IFERROR(IF(D32="*","*",IF(D33=0,"Nævner er 0",(D32/D33*1000))),"Data ikke tilføjet") -> Data ikke tilføjet | E34: =IFERROR(IF(E32="*","*",IF(E33=0,"Nævner er 0",(E32/E33*1000))),"Data ikke tilføjet") -> Data ikke tilføjet | F34: =IFERROR(IF(F32="*","*",IF(F33=0,"Nævner er 0",(F32/F33*1000))),"Data ikke tilføjet") -> 0 | G34: =IFERROR(IF(G32="*","*",IF(G33=0,"Nævner er 0",(G32/G33*1000))),"Data ikke tilføjet") -> 0 | H34: =IFERROR(IF(H32="*","*",IF(H33=0,"Nævner er 0",(H32/H33*1000))),"Data ikke tilføjet") -> 0 | I34: =IFERROR(IF(I32="*","*",IF(I33=0,"Nævner er 0",(I32/I33*1000))),"Data ikke tilføjet") -> 0 | J34: =IFERROR(IF(J32="*","*",IF(J33=0,"Nævner er 0",(J32/J33*1000))),"Data ikke tilføjet") -> 0 | K34: =IFERROR(IF(K32="*","*",IF(K33=0,"Nævner er 0",(K32/K33*1000))),"Data ikke tilføjet") -> 0 | L34: =IFERROR(IF(L32="*","*",IF(L33=0,"Nævner er 0",(L32/L33*1000))),"Data ikke tilføjet") -> 0 | M34: =IFERROR(IF(M32="*","*",IF(M33=0,"Nævner er 0",(M32/M33*1000))),"Data ikke tilføjet") -> 0 | N34: 0 | O34: 0 | P34: 0 | Q34: 0 | R34: 0
B36: =Skyggetabeller!B283 -> Nøgletal 6.2: Modtagere af øvrige § 11, stk. 3-tilbud | D36: 2016-01-01 | E36: 2016-07-01 | F36: 2017-01-01 | G36: 2017-07-01 | H36: 2018-01-01 | I36: 2018-07-01 | J36: 2019-01-01 | K36: 2019-07-01 | L36: 2020-01-01 | M36: 2020-07-01 | N36: 2021-01-01 | O36: 2021-07-01 | P36: 2022-01-01 | Q36: 2022-07-01 | R36: 2023-01-01
B37: =Skyggetabeller!B284 -> Antal modtagere
B38: =Skyggetabeller!B285 -> Antal 0-17-årige | D38: =IFERROR(INDEX(Data_kom2,MATCH(1,(komnavn2=Kommune)*(komaar2=D$36),0),2),"Data ikke tilføjet") -> Data ikke tilføjet | E38: =IFERROR(INDEX(Data_kom2,MATCH(1,(komnavn2=Kommune)*(komaar2=E$36),0),2),"Data ikke tilføjet") -> Data ikke tilføjet | F38: =IFERROR(INDEX(Data_kom2,MATCH(1,(komnavn2=Kommune)*(komaar2=F$36),0),2),"Data ikke tilføjet") -> 105885 | G38: =IFERROR(INDEX(Data_kom2,MATCH(1,(komnavn2=Kommune)*(komaar2=G$36),0),2),"Data ikke tilføjet") -> 106913 | H38: =IFERROR(INDEX(Data_kom2,MATCH(1,(komnavn2=Kommune)*(komaar2=H$36),0),2),"Data ikke tilføjet") -> 107770 | I38: =IFERROR(INDEX(Data_kom2,MATCH(1,(komnavn2=Kommune)*(komaar2=I$36),0),2),"Data ikke tilføjet") -> 108734 | J38: =IFERROR(INDEX(Data_kom2,MATCH(1,(komnavn2=Kommune)*(komaar2=J$36),0),2),"Data ikke tilføjet") -> 109335 | K38: =IFERROR(INDEX(Data_kom2,MATCH(1,(komnavn2=Kommune)*(komaar2=K$36),0),2),"Data ikke tilføjet") -> 110138 | L38: =IFERROR(INDEX(Data_kom2,MATCH(1,(komnavn2=Kommune)*(komaar2=L$36),0),2),"Data ikke tilføjet") -> 110822 | M38: =IFERROR(INDEX(Data_kom2,MATCH(1,(komnavn2=Kommune)*(komaar2=M$36),0),2),"Data ikke tilføjet") -> 111068 | N38: =IFERROR(INDEX(Data_kom2,MATCH(1,(komnavn2=Kommune)*(komaar2=N$36),0),2),"Data ikke tilføjet") -> 110927 | O38: =IFERROR(INDEX(Data_kom2,MATCH(1,(komnavn2=Kommune)*(komaar2=O$36),0),2),"Data ikke tilføjet") -> 110614 | P38: =IFERROR(INDEX(Data_kom2,MATCH(1,(komnavn2=Kommune)*(komaar2=P$36),0),2),"Data ikke tilføjet") -> 110513 | Q38: =IFERROR(INDEX(Data_kom2,MATCH(1,(komnavn2=Kommune)*(komaar2=Q$36),0),2),"Data ikke tilføjet") -> 110692 | R38: =IFERROR(INDEX(Data_kom2,MATCH(1,(komnavn2=Kommune)*(komaar2=R$36),0),2),"Data ikke tilføjet") -> 110835
B39: =Skyggetabeller!B286 -> Andel | D39: =IFERROR(IF(D37="*","*",IF(D38=0,"Nævner er 0",(D37/D38*1000))),"Data ikke tilføjet") -> Data ikke tilføjet | E39: =IFERROR(IF(E37="*","*",IF(E38=0,"Nævner er 0",(E37/E38*1000))),"Data ikke tilføjet") -> Data ikke tilføjet | F39: =IFERROR(IF(F37="*","*",IF(F38=0,"Nævner er 0",(F37/F38*1000))),"Data ikke tilføjet") -> 0 | G39: =IFERROR(IF(G37="*","*",IF(G38=0,"Nævner er 0",(G37/G38*1000))),"Data ikke tilføjet") -> 0 | H39: =IFERROR(IF(H37="*","*",IF(H38=0,"Nævner er 0",(H37/H38*1000))),"Data ikke tilføjet") -> 0 | I39: =IFERROR(IF(I37="*","*",IF(I38=0,"Nævner er 0",(I37/I38*1000))),"Data ikke tilføjet") -> 0 | J39: =IFERROR(IF(J37="*","*",IF(J38=0,"Nævner er 0",(J37/J38*1000))),"Data ikke tilføjet") -> 0 | K39: =IFERROR(IF(K37="*","*",IF(K38=0,"Nævner er 0",(K37/K38*1000))),"Data ikke tilføjet") -> 0 | L39: =IFERROR(IF(L37="*","*",IF(L38=0,"Nævner er 0",(L37/L38*1000))),"Data ikke tilføjet") -> 0 | M39: =IFERROR(IF(M37="*","*",IF(M38=0,"Nævner er 0",(M37/M38*1000))),"Data ikke tilføjet") -> 0 | N39: 0 | O39: 0 | P39: 0 | Q39: 0 | R39: 0
B41: =Skyggetabeller!B373 -> Nøgletal 10: Fra forebyggende indsatser og op ad trappen
B43: =Skyggetabeller!B376 -> Nøgletal 10: Tidligere modtagere af forebyggende indsatser, som nu er rykket ned ad trappen | D43: 2016-01-01 | E43: 2016-07-01 | F43: 2017-01-01 | G43: 2017-07-01 | H43: 2018-01-01 | I43: 2018-07-01 | J43: 2019-01-01 | K43: 2019-07-01 | L43: 2020-01-01 | M43: 2020-07-01 | N43: 2021-01-01 | O43: 2021-07-01 | P43: 2022-01-01 | Q43: 2022-07-01 | R43: 2023-01-01
B44: =Skyggetabeller!B377 -> Antal, der har bevæget sig
B45: =Skyggetabeller!B378 -> Antal tidligere modtagere
B46: =Skyggetabeller!B379 -> Andel | D46: =IFERROR(IF(D44="*","*",IF(D45=0,"Nævner er 0",(D44/D45))),"Data ikke tilføjet") -> Nævner er 0 | E46: =IFERROR(IF(E44="*","*",IF(E45=0,"Nævner er 0",(E44/E45))),"Data ikke tilføjet") -> Nævner er 0 | F46: =IFERROR(IF(F44="*","*",IF(F45=0,"Nævner er 0",(F44/F45))),"Data ikke tilføjet") -> Nævner er 0 | G46: =IFERROR(IF(G44="*","*",IF(G45=0,"Nævner er 0",(G44/G45))),"Data ikke tilføjet") -> Nævner er 0 | H46: =IFERROR(IF(H44="*","*",IF(H45=0,"Nævner er 0",(H44/H45))),"Data ikke tilføjet") -> Nævner er 0 | I46: =IFERROR(IF(I44="*","*",IF(I45=0,"Nævner er 0",(I44/I45))),"Data ikke tilføjet") -> Nævner er 0 | J46: =IFERROR(IF(J44="*","*",IF(J45=0,"Nævner er 0",(J44/J45))),"Data ikke tilføjet") -> Nævner er 0 | K46: =IFERROR(IF(K44="*","*",IF(K45=0,"Nævner er 0",(K44/K45))),"Data ikke tilføjet") -> Nævner er 0 | L46: =IFERROR(IF(L44="*","*",IF(L45=0,"Nævner er 0",(L44/L45))),"Data ikke tilføjet") -> Nævner er 0 | M46: =IFERROR(IF(M44="*","*",IF(M45=0,"Nævner er 0",(M44/M45))),"Data ikke tilføjet") -> Nævner er 0 | N46: =IFERROR(IF(N44="*","*",IF(N45=0,"Nævner er 0",(N44/N45))),"Data ikke tilføjet") -> Nævner er 0 | O46: =IFERROR(IF(O44="*","*",IF(O45=0,"Nævner er 0",(O44/O45))),"Data ikke tilføjet") -> Nævner er 0 | P46: =IFERROR(IF(P44="*","*",IF(P45=0,"Nævner er 0",(P44/P45))),"Data ikke tilføjet") -> Nævner er 0 | Q46: =IFERROR(IF(Q44="*","*",IF(Q45=0,"Nævner er 0",(Q44/Q45))),"Data ikke tilføjet") -> Nævner er 0 | R46: =IFERROR(IF(R44="*","*",IF(R45=0,"Nævner er 0",(R44/R45))),"Data ikke tilføjet") -> Nævner er 0
B48: =Skyggetabeller!B383 -> Nøgletal 10.1: Tidligere modtagere af myndighedsbevilget § 11, stk. 3-indsats, som nu er rykket ned ad trappen | D48: 2016-01-01 | E48: 2016-07-01 | F48: 2017-01-01 | G48: 2017-07-01 | H48: 2018-01-01 | I48: 2018-07-01 | J48: 2019-01-01 | K48: 2019-07-01 | L48: 2020-01-01 | M48: 2020-07-01 | N48: 2021-01-01 | O48: 2021-07-01 | P48: 2022-01-01 | Q48: 2022-07-01 | R48: 2023-01-01
B49: =Skyggetabeller!B384 -> Antal, der har bevæget sig
B50: =Skyggetabeller!B385 -> Antal tidligere modtagere
B51: =Skyggetabeller!B386 -> Andel | D51: =IFERROR(IF(D49="*","*",IF(D50=0,"Nævner er 0",(D49/D50))),"Data ikke tilføjet") -> Nævner er 0 | E51: =IFERROR(IF(E49="*","*",IF(E50=0,"Nævner er 0",(E49/E50))),"Data ikke tilføjet") -> Nævner er 0 | F51: =IFERROR(IF(F49="*","*",IF(F50=0,"Nævner er 0",(F49/F50))),"Data ikke tilføjet") -> Nævner er 0 | G51: =IFERROR(IF(G49="*","*",IF(G50=0,"Nævner er 0",(G49/G50))),"Data ikke tilføjet") -> Nævner er 0 | H51: =IFERROR(IF(H49="*","*",IF(H50=0,"Nævner er 0",(H49/H50))),"Data ikke tilføjet") -> Nævner er 0 | I51: =IFERROR(IF(I49="*","*",IF(I50=0,"Nævner er 0",(I49/I50))),"Data ikke tilføjet") -> Nævner er 0 | J51: =IFERROR(IF(J49="*","*",IF(J50=0,"Nævner er 0",(J49/J50))),"Data ikke tilføjet") -> Nævner er 0 | K51: =IFERROR(IF(K49="*","*",IF(K50=0,"Nævner er 0",(K49/K50))),"Data ikke tilføjet") -> Nævner er 0 | L51: =IFERROR(IF(L49="*","*",IF(L50=0,"Nævner er 0",(L49/L50))),"Data ikke tilføjet") -> Nævner er 0 | M51: =IFERROR(IF(M49="*","*",IF(M50=0,"Nævner er 0",(M49/M50))),"Data ikke tilføjet") -> Nævner er 0 | N51: =IFERROR(IF(N49="*","*",IF(N50=0,"Nævner er 0",(N49/N50))),"Data ikke tilføjet") -> Nævner er 0 | O51: =IFERROR(IF(O49="*","*",IF(O50=0,"Nævner er 0",(O49/O50))),"Data ikke tilføjet") -> Nævner er 0 | P51: =IFERROR(IF(P49="*","*",IF(P50=0,"Nævner er 0",(P49/P50))),"Data ikke tilføjet") -> Nævner er 0 | Q51: =IFERROR(IF(Q49="*","*",IF(Q50=0,"Nævner er 0",(Q49/Q50))),"Data ikke tilføjet") -> Nævner er 0 | R51: =IFERROR(IF(R49="*","*",IF(R50=0,"Nævner er 0",(R49/R50))),"Data ikke tilføjet") -> Nævner er 0
B53: =Skyggetabeller!B390 -> Nøgletal 10.2: Tidligere modtagere af ikke-myndighedsbevilget § 11, stk. 3-indsats, som nu er rykket ned ad trappen | D53: 2016-01-01 | E53: 2016-07-01 | F53: 2017-01-01 | G53: 2017-07-01 | H53: 2018-01-01 | I53: 2018-07-01 | J53: 2019-01-01 | K53: 2019-07-01 | L53: 2020-01-01 | M53: 2020-07-01 | N53: 2021-01-01 | O53: 2021-07-01 | P53: 2022-01-01 | Q53: 2022-07-01 | R53: 2023-01-01
B54: =Skyggetabeller!B391 -> Antal, der har bevæget sig
B55: =Skyggetabeller!B392 -> Antal tidligere modtagere
B56: =Skyggetabeller!B393 -> Andel | D56: =IFERROR(IF(D54="*","*",IF(D55=0,"Nævner er 0",(D54/D55))),"Data ikke tilføjet") -> Nævner er 0 | E56: =IFERROR(IF(E54="*","*",IF(E55=0,"Nævner er 0",(E54/E55))),"Data ikke tilføjet") -> Nævner er 0 | F56: =IFERROR(IF(F54="*","*",IF(F55=0,"Nævner er 0",(F54/F55))),"Data ikke tilføjet") -> Nævner er 0 | G56: =IFERROR(IF(G54="*","*",IF(G55=0,"Nævner er 0",(G54/G55))),"Data ikke tilføjet") -> Nævner er 0 | H56: =IFERROR(IF(H54="*","*",IF(H55=0,"Nævner er 0",(H54/H55))),"Data ikke tilføjet") -> Nævner er 0 | I56: =IFERROR(IF(I54="*","*",IF(I55=0,"Nævner er 0",(I54/I55))),"Data ikke tilføjet") -> Nævner er 0 | J56: =IFERROR(IF(J54="*","*",IF(J55=0,"Nævner er 0",(J54/J55))),"Data ikke tilføjet") -> Nævner er 0 | K56: =IFERROR(IF(K54="*","*",IF(K55=0,"Nævner er 0",(K54/K55))),"Data ikke tilføjet") -> Nævner er 0 | L56: =IFERROR(IF(L54="*","*",IF(L55=0,"Nævner er 0",(L54/L55))),"Data ikke tilføjet") -> Nævner er 0 | M56: =IFERROR(IF(M54="*","*",IF(M55=0,"Nævner er 0",(M54/M55))),"Data ikke tilføjet") -> Nævner er 0 | N56: =IFERROR(IF(N54="*","*",IF(N55=0,"Nævner er 0",(N54/N55))),"Data ikke tilføjet") -> Nævner er 0 | O56: =IFERROR(IF(O54="*","*",IF(O55=0,"Nævner er 0",(O54/O55))),"Data ikke tilføjet") -> Nævner er 0 | P56: =IFERROR(IF(P54="*","*",IF(P55=0,"Nævner er 0",(P54/P55))),"Data ikke tilføjet") -> Nævner er 0 | Q56: =IFERROR(IF(Q54="*","*",IF(Q55=0,"Nævner er 0",(Q54/Q55))),"Data ikke tilføjet") -> Nævner er 0 | R56: =IFERROR(IF(R54="*","*",IF(R55=0,"Nævner er 0",(R54/R55))),"Data ikke tilføjet") -> Nævner er 0
B58: =Skyggetabeller!B396 -> Nøgletal 11: Frekvens af opfølgninger
B60: =Skyggetabeller!B399 -> Nøgletal 11.1: Frekvens i opfølgninger for institutionsanbringelser | D60: 2016-01-01 | E60: 2016-07-01 | F60: 2017-01-01 | G60: 2017-07-01 | H60: 2018-01-01 | I60: 2018-07-01 | J60: 2019-01-01 | K60: 2019-07-01 | L60: 2020-01-01 | M60: 2020-07-01 | N60: 2021-01-01 | O60: 2021-07-01 | P60: 2022-01-01 | Q60: 2022-07-01 | R60: 2023-01-01
B61: =Skyggetabeller!B400 -> Antal dage
B62: =Skyggetabeller!B401 -> Antal opfølgninger
B63: =Skyggetabeller!B402 -> Varighed | D63: =IFERROR(IF(D61="*","*",IF(D62=0,"Nævner er 0",(D61/D62))),"Data ikke tilføjet") -> Nævner er 0 | E63: =IFERROR(IF(E61="*","*",IF(E62=0,"Nævner er 0",(E61/E62))),"Data ikke tilføjet") -> Nævner er 0 | F63: =IFERROR(IF(F61="*","*",IF(F62=0,"Nævner er 0",(F61/F62))),"Data ikke tilføjet") -> Nævner er 0 | G63: =IFERROR(IF(G61="*","*",IF(G62=0,"Nævner er 0",(G61/G62))),"Data ikke tilføjet") -> Nævner er 0 | H63: =IFERROR(IF(H61="*","*",IF(H62=0,"Nævner er 0",(H61/H62))),"Data ikke tilføjet") -> Nævner er 0 | I63: =IFERROR(IF(I61="*","*",IF(I62=0,"Nævner er 0",(I61/I62))),"Data ikke tilføjet") -> Nævner er 0 | J63: =IFERROR(IF(J61="*","*",IF(J62=0,"Nævner er 0",(J61/J62))),"Data ikke tilføjet") -> Nævner er 0 | K63: =IFERROR(IF(K61="*","*",IF(K62=0,"Nævner er 0",(K61/K62))),"Data ikke tilføjet") -> Nævner er 0 | L63: =IFERROR(IF(L61="*","*",IF(L62=0,"Nævner er 0",(L61/L62))),"Data ikke tilføjet") -> Nævner er 0 | M63: =IFERROR(IF(M61="*","*",IF(M62=0,"Nævner er 0",(M61/M62))),"Data ikke tilføjet") -> Nævner er 0 | N63: =IFERROR(IF(N61="*","*",IF(N62=0,"Nævner er 0",(N61/N62))),"Data ikke tilføjet") -> Nævner er 0 | O63: =IFERROR(IF(O61="*","*",IF(O62=0,"Nævner er 0",(O61/O62))),"Data ikke tilføjet") -> Nævner er 0 | P63: =IFERROR(IF(P61="*","*",IF(P62=0,"Nævner er 0",(P61/P62))),"Data ikke tilføjet") -> Nævner er 0 | Q63: =IFERROR(IF(Q61="*","*",IF(Q62=0,"Nævner er 0",(Q61/Q62))),"Data ikke tilføjet") -> Nævner er 0 | R63: =IFERROR(IF(R61="*","*",IF(R62=0,"Nævner er 0",(R61/R62))),"Data ikke tilføjet") -> Nævner er 0
B65: =Skyggetabeller!B404 -> Nøgletal 11.2: Frekvens i opfølgninger for plejefamilier | D65: 2016-01-01 | E65: 2016-07-01 | F65: 2017-01-01 | G65: 2017-07-01 | H65: 2018-01-01 | I65: 2018-07-01 | J65: 2019-01-01 | K65: 2019-07-01 | L65: 2020-01-01 | M65: 2020-07-01 | N65: 2021-01-01 | O65: 2021-07-01 | P65: 2022-01-01 | Q65: 2022-07-01 | R65: 2023-01-01
B66: =Skyggetabeller!B405 -> Antal dage
B67: =Skyggetabeller!B406 -> Antal opfølgninger
B68: =Skyggetabeller!B407 -> Varighed | D68: =IFERROR(IF(D66="*","*",IF(D67=0,"Nævner er 0",(D66/D67))),"Data ikke tilføjet") -> Nævner er 0 | E68: =IFERROR(IF(E66="*","*",IF(E67=0,"Nævner er 0",(E66/E67))),"Data ikke tilføjet") -> Nævner er 0 | F68: =IFERROR(IF(F66="*","*",IF(F67=0,"Nævner er 0",(F66/F67))),"Data ikke tilføjet") -> Nævner er 0 | G68: =IFERROR(IF(G66="*","*",IF(G67=0,"Nævner er 0",(G66/G67))),"Data ikke tilføjet") -> Nævner er 0 | H68: =IFERROR(IF(H66="*","*",IF(H67=0,"Nævner er 0",(H66/H67))),"Data ikke tilføjet") -> Nævner er 0 | I68: =IFERROR(IF(I66="*","*",IF(I67=0,"Nævner er 0",(I66/I67))),"Data ikke tilføjet") -> Nævner er 0 | J68: =IFERROR(IF(J66="*","*",IF(J67=0,"Nævner er 0",(J66/J67))),"Data ikke tilføjet") -> Nævner er 0 | K68: =IFERROR(IF(K66="*","*",IF(K67=0,"Nævner er 0",(K66/K67))),"Data ikke tilføjet") -> Nævner er 0 | L68: =IFERROR(IF(L66="*","*",IF(L67=0,"Nævner er 0",(L66/L67))),"Data ikke tilføjet") -> Nævner er 0 | M68: =IFERROR(IF(M66="*","*",IF(M67=0,"Nævner er 0",(M66/M67))),"Data ikke tilføjet") -> Nævner er 0 | N68: =IFERROR(IF(N66="*","*",IF(N67=0,"Nævner er 0",(N66/N67))),"Data ikke tilføjet") -> Nævner er 0 | O68: =IFERROR(IF(O66="*","*",IF(O67=0,"Nævner er 0",(O66/O67))),"Data ikke tilføjet") -> Nævner er 0 | P68: =IFERROR(IF(P66="*","*",IF(P67=0,"Nævner er 0",(P66/P67))),"Data ikke tilføjet") -> Nævner er 0 | Q68: =IFERROR(IF(Q66="*","*",IF(Q67=0,"Nævner er 0",(Q66/Q67))),"Data ikke tilføjet") -> Nævner er 0 | R68: =IFERROR(IF(R66="*","*",IF(R67=0,"Nævner er 0",(R66/R67))),"Data ikke tilføjet") -> Nævner er 0
B70: =Skyggetabeller!B409 -> Nøgletal 11.3: Frekvens i opfølgninger for hjemmebaserede foranstaltninger | D70: 2016-01-01 | E70: 2016-07-01 | F70: 2017-01-01 | G70: 2017-07-01 | H70: 2018-01-01 | I70: 2018-07-01 | J70: 2019-01-01 | K70: 2019-07-01 | L70: 2020-01-01 | M70: 2020-07-01 | N70: 2021-01-01 | O70: 2021-07-01 | P70: 2022-01-01 | Q70: 2022-07-01 | R70: 2023-01-01
B71: =Skyggetabeller!B410 -> Antal dage
B72: =Skyggetabeller!B411 -> Antal opfølgninger
B73: =Skyggetabeller!B412 -> Varighed | D73: =IFERROR(IF(D71="*","*",IF(D72=0,"Nævner er 0",(D71/D72))),"Data ikke tilføjet") -> Nævner er 0 | E73: =IFERROR(IF(E71="*","*",IF(E72=0,"Nævner er 0",(E71/E72))),"Data ikke tilføjet") -> Nævner er 0 | F73: =IFERROR(IF(F71="*","*",IF(F72=0,"Nævner er 0",(F71/F72))),"Data ikke tilføjet") -> Nævner er 0 | G73: =IFERROR(IF(G71="*","*",IF(G72=0,"Nævner er 0",(G71/G72))),"Data ikke tilføjet") -> Nævner er 0 | H73: =IFERROR(IF(H71="*","*",IF(H72=0,"Nævner er 0",(H71/H72))),"Data ikke tilføjet") -> Nævner er 0 | I73: =IFERROR(IF(I71="*","*",IF(I72=0,"Nævner er 0",(I71/I72))),"Data ikke tilføjet") -> Nævner er 0 | J73: =IFERROR(IF(J71="*","*",IF(J72=0,"Nævner er 0",(J71/J72))),"Data ikke tilføjet") -> Nævner er 0 | K73: =IFERROR(IF(K71="*","*",IF(K72=0,"Nævner er 0",(K71/K72))),"Data ikke tilføjet") -> Nævner er 0 | L73: =IFERROR(IF(L71="*","*",IF(L72=0,"Nævner er 0",(L71/L72))),"Data ikke tilføjet") -> Nævner er 0 | M73: =IFERROR(IF(M71="*","*",IF(M72=0,"Nævner er 0",(M71/M72))),"Data ikke tilføjet") -> Nævner er 0 | N73: =IFERROR(IF(N71="*","*",IF(N72=0,"Nævner er 0",(N71/N72))),"Data ikke tilføjet") -> Nævner er 0 | O73: =IFERROR(IF(O71="*","*",IF(O72=0,"Nævner er 0",(O71/O72))),"Data ikke tilføjet") -> Nævner er 0 | P73: =IFERROR(IF(P71="*","*",IF(P72=0,"Nævner er 0",(P71/P72))),"Data ikke tilføjet") -> Nævner er 0 | Q73: =IFERROR(IF(Q71="*","*",IF(Q72=0,"Nævner er 0",(Q71/Q72))),"Data ikke tilføjet") -> Nævner er 0 | R73: =IFERROR(IF(R71="*","*",IF(R72=0,"Nævner er 0",(R71/R72))),"Data ikke tilføjet") -> Nævner er 0

Sheet Nøgletalsanalyse
B4: Nøgletalsanalyse | U4: 20181
B8: På denne side kan du se nøgletallene for din valgte kommune over tid og sammenligne med din valgte gruppe af sammenligningskommuner og hele landet. Du kan vælge det nøgletal, du ønsker at se i rullemenuen nedenfor. Du kan også vælge at se alle nøgletal på én gang. Som udgangspunkt er nøgletallene illustreret som figurer, men du kan folde den tilhørende tabel ud under figuren, hvis du ønsker at se de data, der afbilledes i figuren. Du folder tabellerne ud ved at benytte de røde pile til venstre for tabeloverskriften. Nøgletal 6, 10 og 11 er baseret på kommunes egne indtastninger. Så her er graferne tomme, medminde du har indtastet data under "Egne indtastninger". Ved alle nøgletallenes grafik er der infoknapper indeholdende nøgletallets definition, datakilde og opdateringsfrekvens. Til højre for nøgletallenes første figur er en tekstboks med forudfyldt tekst. Ønsker du at lave en rapport med nøgletallene, kan du bruge tekstboksen til at skrive tekst til figuren. Den forudfyldte tekst kan anvendes eller slettes efter behov. Teksten i tekstboksen printes sammen med figuren i rapporten, hvis du vælger nøgletallet under "Print rapport" i den røde bjælke.
B12: Vælg nøgletal
B13: =VLOOKUP(NT_valg,Data!F1674:F1685,2,FALSE) -> 
B17: =Skyggetabeller!B6 -> Nøgletal 1: Institutionsanbringelser
B19: Figur 1: Institutionsanbringelser | M19: Benyt, slet eller erstat gerne følgende tekst til beskrivelse af udviklingen over tid for det pågældende nøgletal. Beskrivelsen vil blive indsat i rapporten (skriv maks 20 linjer):
Z24: =Q2110 -> 0
B43: =Registerdata!$B$30 -> Anm.: Hvis nøgletallet er angivet med * er der foretaget en diskretionering af data, da der er for få observationer.
B44: =IF('Dine valg'!$G$24="","Ingen sammenligningsgruppe valgt.","Anm.: Valgte kommuner i sammenligningsgruppen: "&'Dine valg'!$G$24&" "&'Dine valg'!$G$25&" "&'Dine valg'!$G$26&" "&'Dine valg'!$G$27&" "&'Dine valg'!$G$28&" "&'Dine valg'!$G$29&" "&'Dine valg'!$G$30) -> Anm.: Valgte kommuner i sammenligningsgruppen: Aarhus
B45: =Registerdata!$B$32 -> Kilde: Socialstyrelsens egne beregninger baseret på registerdata fra Danmarks Statistik.
B47: =Årstal -> Tabel 1: Institutionsanbringelser
B49: =Skyggetabeller!B9 -> Nøgletal 1: Institutionsanbringelser | D49: 2017-01-01 | E49: 2017-07-01 | F49: 2018-01-01 | G49: 2018-07-01 | H49: 2019-01-01 | I49: 2019-07-01 | J49: 2020-01-01 | K49: 2020-07-01 | L49: 2021-01-01 | M49: 2021-07-01 | N49: 2022-01-01 | O49: 2022-07-01 | P49: 2023-01-01 | Q49: 2023-07-01 | R49: 2024-01-01
B50: =Skyggetabeller!B10 -> København
B51: =Skyggetabeller!B13 -> Andel | D51: =Skyggetabeller!D13 -> 2.124946876 | E51: =Skyggetabeller!E13 -> 2.123221685 | F51: =Skyggetabeller!F13 -> 1.994989329 | G51: =Skyggetabeller!G13 -> 2.014089429 | H51: =Skyggetabeller!H13 -> 1.88411762 | I51: =Skyggetabeller!I13 -> 1.770506092 | J51: =Skyggetabeller!J13 -> 1.461803613 | K51: =Skyggetabeller!K13 -> 1.647639284 | L51: =Skyggetabeller!L13 -> 1.830032364 | M51: =Skyggetabeller!M13 -> 1.997938778 | N51: =Skyggetabeller!N13 -> 1.990716024 | O51: =Skyggetabeller!O13 -> 2.222382828 | P51: =Skyggetabeller!P13 -> 2.27365002 | Q51: =Skyggetabeller!Q13 -> 2.466801711 | R51: =Skyggetabeller!R13 -> 2.297166526
B52: =Skyggetabeller!B12 -> Antal 0-17-årige | D52: =Skyggetabeller!D12 -> 105885 | E52: =Skyggetabeller!E12 -> 106913 | F52: =Skyggetabeller!F12 -> 107770 | G52: =Skyggetabeller!G12 -> 108734 | H52: =Skyggetabeller!H12 -> 109335 | I52: =Skyggetabeller!I12 -> 110138 | J52: =Skyggetabeller!J12 -> 110822 | K52: =Skyggetabeller!K12 -> 111068 | L52: =Skyggetabeller!L12 -> 110927 | M52: =Skyggetabeller!M12 -> 110614 | N52: =Skyggetabeller!N12 -> 110513 | O52: =Skyggetabeller!O12 -> 110692 | P52: =Skyggetabeller!P12 -> 110835 | Q52: =Skyggetabeller!Q12 -> 111075 | R52: =Skyggetabeller!R12 -> 110571
B53: =Skyggetabeller!B14 -> Sammenligningsgruppe, gns.
B54: =Skyggetabeller!B17 -> Andel | D54: =Skyggetabeller!D17 -> 2.988728677 | E54: =Skyggetabeller!E17 -> 2.948776892 | F54: =Skyggetabeller!F17 -> 2.814451735 | G54: =Skyggetabeller!G17 -> 2.613761612 | H54: =Skyggetabeller!H17 -> 2.719826434 | I54: =Skyggetabeller!I17 -> 2.715685043 | J54: =Skyggetabeller!J17 -> 2.598215683 | K54: =Skyggetabeller!K17 -> 2.619760479 | L54: =Skyggetabeller!L17 -> 2.626915783 | M54: =Skyggetabeller!M17 -> 2.612468316 | N54: =Skyggetabeller!N17 -> 2.404409124 | O54: =Skyggetabeller!O17 -> 2.610479209 | P54: =Skyggetabeller!P17 -> 2.514746973 | Q54: =Skyggetabeller!Q17 -> 2.492221483 | R54: =Skyggetabeller!R17 -> 2.350576046
B55: =Skyggetabeller!B16 -> Antal 0-17-årige | D55: =Skyggetabeller!D16 -> 62903 | E55: =Skyggetabeller!E16 -> 63077 | F55: =Skyggetabeller!F16 -> 63245 | G55: =Skyggetabeller!G16 -> 63510 | H55: =Skyggetabeller!H16 -> 63607 | I55: =Skyggetabeller!I16 -> 63704 | J55: =Skyggetabeller!J16 -> 63890 | K55: =Skyggetabeller!K16 -> 64128 | L55: =Skyggetabeller!L16 -> 64334 | M55: =Skyggetabeller!M16 -> 64307 | N55: =Skyggetabeller!N16 -> 64049 | O55: =Skyggetabeller!O16 -> 64356 | P55: =Skyggetabeller!P16 -> 64420 | Q55: =Skyggetabeller!Q16 -> 64601 | R55: =Skyggetabeller!R16 -> 64665
B56: =Skyggetabeller!B18 -> Hele landet
B57: =Skyggetabeller!B21 -> Andel | D57: =Skyggetabeller!D21 -> 2.895905756 | E57: =Skyggetabeller!E21 -> 2.969031967 | F57: =Skyggetabeller!F21 -> 2.890666895 | G57: =Skyggetabeller!G21 -> 2.9332427 | H57: =Skyggetabeller!H21 -> 2.851701196 | I57: =Skyggetabeller!I21 -> 2.837782103 | J57: =Skyggetabeller!J21 -> 2.831895761 | K57: =Skyggetabeller!K21 -> 2.899324994 | L57: =Skyggetabeller!L21 -> 2.952370049 | M57: =Skyggetabeller!M21 -> 3.03463514 | N57: =Skyggetabeller!N21 -> 3.026819391 | O57: =Skyggetabeller!O21 -> 3.175620909 | P57: =Skyggetabeller!P21 -> 3.208128644 | Q57: =Skyggetabeller!Q21 -> 3.273363644 | R57: =Skyggetabeller!R21 -> 3.299985198
B58: =Skyggetabeller!B20 -> Antal 0-17-årige | D58: =Skyggetabeller!D20 -> 1168201 | E58: =Skyggetabeller!E20 -> 1165363 | F58: =Skyggetabeller!F20 -> 1165475 | G58: =Skyggetabeller!G20 -> 1162195 | H58: =Skyggetabeller!H20 -> 1160360 | I58: =Skyggetabeller!I20 -> 1156537 | J58: =Skyggetabeller!J20 -> 1156116 | K58: =Skyggetabeller!K20 -> 1153027 | L58: =Skyggetabeller!L20 -> 1152972 | M58: =Skyggetabeller!M20 -> 1151374 | N58: =Skyggetabeller!N20 -> 1151704 | O58: =Skyggetabeller!O20 -> 1157254 | P58: =Skyggetabeller!P20 -> 1155814 | Q58: =Skyggetabeller!Q20 -> 1151415 | R58: =Skyggetabeller!R20 -> 1148490
B59: =Registerdata!$B$30 -> Anm.: Hvis nøgletallet er angivet med * er der foretaget en diskretionering af data, da der er for få observationer.
B60: =IF('Dine valg'!$G$24="","Ingen sammenligningsgruppe valgt.","Anm.: Valgte kommuner i sammenligningsgruppen: "&'Dine valg'!$G$24&" "&'Dine valg'!$G$25&" "&'Dine valg'!$G$26&" "&'Dine valg'!$G$27&" "&'Dine valg'!$G$28&" "&'Dine valg'!$G$29&" "&'Dine valg'!$G$30) -> Anm.: Valgte kommuner i sammenligningsgruppen: Aarhus
B61: =Registerdata!$B$32 -> Kilde: Socialstyrelsens egne beregninger baseret på registerdata fra Danmarks Statistik.
B63: Figur 1.1: Anbragte på døgninstitutioner | G63: Figur 1.2 Anbringelser på sikrede døgninstitutioner | M63: Figur 1.3: Anbragte på socialpædagogiske opholdssteder
B82: Anm.: Hvis nøgletallet har værdien 0 i grafen kan det enten betyde 0 %, eller at der er foretaget en diskretionering af data, da der er for få observationer. Se tilhørende tabel for værdien.
B83: =IF('Dine valg'!$G$24="","Ingen sammenligningsgruppe valgt.","Anm.: Valgte kommuner i sammenligningsgruppen: "&'Dine valg'!$G$24&" "&'Dine valg'!$G$25&" "&'Dine valg'!$G$26&" "&'Dine valg'!$G$27&" "&'Dine valg'!$G$28&" "&'Dine valg'!$G$29&" "&'Dine valg'!$G$30) -> Anm.: Valgte kommuner i sammenligningsgruppen: Aarhus
B84: =Registerdata!$B$32 -> Kilde: Socialstyrelsens egne beregninger baseret på registerdata fra Danmarks Statistik.
B87: =Skyggetabeller!B23 -> Tabel 1.1: Anbragte på døgninstitutioner
B89: =Skyggetabeller!B24 -> Nøgletal 1.1 Anbragte på døgninstitutioner | D89: 2017-01-01 | E89: 2017-07-01 | F89: 2018-01-01 | G89: 2018-07-01 | H89: 2019-01-01 | I89: 2019-07-01 | J89: 2020-01-01 | K89: 2020-07-01 | L89: 2021-01-01 | M89: 2021-07-01 | N89: 2022-01-01 | O89: 2022-07-01 | P89: 2023-01-01 | Q89: 2023-07-01 | R89: 2024-01-01
B90: =Skyggetabeller!B25 -> København
B91: =Skyggetabeller!B28 -> Andel | D91: =Skyggetabeller!D28 -> 0.7644444444 | E91: =Skyggetabeller!E28 -> 0.8061674009 | F91: =Skyggetabeller!F28 -> 0.8186046512 | G91: =Skyggetabeller!G28 -> 0.803652968 | H91: =Skyggetabeller!H28 -> 0.7961165049 | I91: =Skyggetabeller!I28 -> 0.7948717949 | J91: =Skyggetabeller!J28 -> 0.8580246914 | K91: =Skyggetabeller!K28 -> 0.8087431694 | L91: =Skyggetabeller!L28 -> 0.7832512315 | M91: =Skyggetabeller!M28 -> 0.742081448 | N91: =Skyggetabeller!N28 -> 0.7772727273 | O91: =Skyggetabeller!O28 -> 0.7886178862 | P91: =Skyggetabeller!P28 -> 0.7936507937 | Q91: =Skyggetabeller!Q28 -> 0.802919708 | R91: =Skyggetabeller!R28 -> 0.7440944882
B92: =Skyggetabeller!B29 -> Sammenligningsgruppe, gns.
B93: =Skyggetabeller!B32 -> Andel | D93: =Skyggetabeller!D32 -> 0.6861702128 | E93: =Skyggetabeller!E32 -> 0.6989247312 | F93: =Skyggetabeller!F32 -> 0.6516853933 | G93: =Skyggetabeller!G32 -> 0.6807228916 | H93: =Skyggetabeller!H32 -> 0.6705202312 | I93: =Skyggetabeller!I32 -> 0.7052023121 | J93: =Skyggetabeller!J32 -> 0.6987951807 | K93: =Skyggetabeller!K32 -> 0.7202380952 | L93: =Skyggetabeller!L32 -> 0.6804733728 | M93: =Skyggetabeller!M32 -> 0.6666666667 | N93: =Skyggetabeller!N32 -> 0.6623376623 | O93: =Skyggetabeller!O32 -> 0.625 | P93: =Skyggetabeller!P32 -> 0.6358024691 | Q93: =Skyggetabeller!Q32 -> 0.6832298137 | R93: =Skyggetabeller!R32 -> 0.6644736842
B94: =Skyggetabeller!B33 -> Hele landet
B95: =Skyggetabeller!B36 -> Andel | D95: =Skyggetabeller!D36 -> 0.5373928466 | E95: =Skyggetabeller!E36 -> 0.5228323699 | F95: =Skyggetabeller!F36 -> 0.5227070347 | G95: =Skyggetabeller!G36 -> 0.5221472573 | H95: =Skyggetabeller!H36 -> 0.5149592022 | I95: =Skyggetabeller!I36 -> 0.5164533821 | J95: =Skyggetabeller!J36 -> 0.5131337813 | K95: =Skyggetabeller!K36 -> 0.4992521687 | L95: =Skyggetabeller!L36 -> 0.4976498237 | M95: =Skyggetabeller!M36 -> 0.4808242702 | N95: =Skyggetabeller!N36 -> 0.4845094664 | O95: =Skyggetabeller!O36 -> 0.4794557823 | P95: =Skyggetabeller!P36 -> 0.476806904 | Q95: =Skyggetabeller!Q36 -> 0.4815600955 | R95: =Skyggetabeller!R36 -> 0.4749340369
B96: =Registerdata!$B$30 -> Anm.: Hvis nøgletallet er angivet med * er der foretaget en diskretionering af data, da der er for få observationer.
B97: =IF('Dine valg'!$G$24="","Ingen sammenligningsgruppe valgt.","Anm.: Valgte kommuner i sammenligningsgruppen: "&'Dine valg'!$G$24&" "&'Dine valg'!$G$25&" "&'Dine valg'!$G$26&" "&'Dine valg'!$G$27&" "&'Dine valg'!$G$28&" "&'Dine valg'!$G$29&" "&'Dine valg'!$G$30) -> Anm.: Valgte kommuner i sammenligningsgruppen: Aarhus
B98: =Registerdata!$B$32 -> Kilde: Socialstyrelsens egne beregninger baseret på registerdata fra Danmarks Statistik.
B100: =Skyggetabeller!B38 -> Tabel 1.2: Anbragte på sikrede døgninstitutioner
B102: =Skyggetabeller!B39 -> Nøgletal 1.2 Anbragte på sikrede døgninstitutioner | D102: 2017-01-01 | E102: 2017-07-01 | F102: 2018-01-01 | G102: 2018-07-01 | H102: 2019-01-01 | I102: 2019-07-01 | J102: 2020-01-01 | K102: 2020-07-01 | L102: 2021-01-01 | M102: 2021-07-01 | N102: 2022-01-01 | O102: 2022-07-01 | P102: 2023-01-01 | Q102: 2023-07-01 | R102: 2024-01-01
B103: =Skyggetabeller!B40 -> København
B104: =Skyggetabeller!B43 -> Andel | D104: =Skyggetabeller!D43 -> 0.03111111111 | E104: =Skyggetabeller!E43 -> 0.02643171806 | F104: =Skyggetabeller!F43 -> 0.02790697674 | G104: =Skyggetabeller!G43 -> 0.0502283105 | H104: =Skyggetabeller!H43 -> 0.04368932039 | I104: =Skyggetabeller!I43 -> 0.02051282051 | J104: =Skyggetabeller!J43 -> * | K104: =Skyggetabeller!K43 -> 0.04918032787 | L104: =Skyggetabeller!L43 -> 0.08374384236 | M104: =Skyggetabeller!M43 -> 0.1040723982 | N104: =Skyggetabeller!N43 -> 0.08181818182 | O104: =Skyggetabeller!O43 -> 0.06504065041 | P104: =Skyggetabeller!P43 -> 0.04365079365 | Q104: =Skyggetabeller!Q43 -> 0.04379562044 | R104: =Skyggetabeller!R43 -> 0.04724409449
B105: =Skyggetabeller!B44 -> Sammenligningsgruppe, gns.
B106: =Skyggetabeller!B47 -> Andel | D106: =Skyggetabeller!D47 -> 0.01595744681 | E106: =Skyggetabeller!E47 -> 0.02150537634 | F106: =Skyggetabeller!F47 -> 0.02247191011 | G106: =Skyggetabeller!G47 -> 0.0421686747 | H106: =Skyggetabeller!H47 -> 0.05780346821 | I106: =Skyggetabeller!I47 -> 0.04624277457 | J106: =Skyggetabeller!J47 -> 0.09036144578 | K106: =Skyggetabeller!K47 -> 0.05952380952 | L106: =Skyggetabeller!L47 -> 0.08284023669 | M106: =Skyggetabeller!M47 -> 0.06547619048 | N106: =Skyggetabeller!N47 -> 0.07142857143 | O106: =Skyggetabeller!O47 -> 0.08333333333 | P106: =Skyggetabeller!P47 -> 0.06172839506 | Q106: =Skyggetabeller!Q47 -> 0.08074534161 | R106: =Skyggetabeller!R47 -> 0.05263157895
B107: =Skyggetabeller!B48 -> Hele landet
B108: =Skyggetabeller!B51 -> Andel | D108: =Skyggetabeller!D51 -> 0.02394324564 | E108: =Skyggetabeller!E51 -> 0.02312138728 | F108: =Skyggetabeller!F51 -> 0.01899673494 | G108: =Skyggetabeller!G51 -> 0.02493399824 | H108: =Skyggetabeller!H51 -> 0.02296766395 | I108: =Skyggetabeller!I51 -> 0.02163315052 | J108: =Skyggetabeller!J51 -> 0.02351863164 | K108: =Skyggetabeller!K51 -> 0.02452886629 | L108: =Skyggetabeller!L51 -> 0.02790834313 | M108: =Skyggetabeller!M51 -> 0.0277618775 | N108: =Skyggetabeller!N51 -> 0.02409638554 | O108: =Skyggetabeller!O51 -> 0.02367346939 | P108: =Skyggetabeller!P51 -> 0.02319309601 | Q108: =Skyggetabeller!Q51 -> 0.02414433537 | R108: =Skyggetabeller!R51 -> 0.02506596306
B109: =Registerdata!$B$30 -> Anm.: Hvis nøgletallet er angivet med * er der foretaget en diskretionering af data, da der er for få observationer.
B110: =IF('Dine valg'!$G$24="","Ingen sammenligningsgruppe valgt.","Anm.: Valgte kommuner i sammenligningsgruppen: "&'Dine valg'!$G$24&" "&'Dine valg'!$G$25&" "&'Dine valg'!$G$26&" "&'Dine valg'!$G$27&" "&'Dine valg'!$G$28&" "&'Dine valg'!$G$29&" "&'Dine valg'!$G$30) -> Anm.: Valgte kommuner i sammenligningsgruppen: Aarhus
B111: =Registerdata!$B$32 -> Kilde: Socialstyrelsens egne beregninger baseret på registerdata fra Danmarks Statistik.
B113: =Skyggetabeller!B54 -> Tabel 1.3: Anbragte på socialpædagogiske opholdssteder
B115: =Skyggetabeller!B55 -> Nøgletal 1.3 Anbragte på socialpædagogiske opholdssteder | D115: 2017-01-01 | E115: 2017-07-01 | F115: 2018-01-01 | G115: 2018-07-01 | H115: 2019-01-01 | I115: 2019-07-01 | J115: 2020-01-01 | K115: 2020-07-01 | L115: 2021-01-01 | M115: 2021-07-01 | N115: 2022-01-01 | O115: 2022-07-01 | P115: 2023-01-01 | Q115: 2023-07-01 | R115: 2024-01-01
B116: =Skyggetabeller!B56 -> København
B117: =Skyggetabeller!B59 -> Andel | D117: =Skyggetabeller!D59 -> 0.2044444444 | E117: =Skyggetabeller!E59 -> 0.1674008811 | F117: =Skyggetabeller!F59 -> 0.1534883721 | G117: =Skyggetabeller!G59 -> 0.1461187215 | H117: =Skyggetabeller!H59 -> 0.1601941748 | I117: =Skyggetabeller!I59 -> 0.1846153846 | J117: =Skyggetabeller!J59 -> * | K117: =Skyggetabeller!K59 -> 0.1420765027 | L117: =Skyggetabeller!L59 -> 0.1330049261 | M117: =Skyggetabeller!M59 -> 0.1538461538 | N117: =Skyggetabeller!N59 -> 0.1409090909 | O117: =Skyggetabeller!O59 -> 0.1463414634 | P117: =Skyggetabeller!P59 -> 0.1626984127 | Q117: =Skyggetabeller!Q59 -> 0.1532846715 | R117: =Skyggetabeller!R59 -> 0.2086614173
B118: =Skyggetabeller!B60 -> Sammenligningsgruppe, gns.
B119: =Skyggetabeller!B63 -> Andel | D119: =Skyggetabeller!D63 -> 0.2978723404 | E119: =Skyggetabeller!E63 -> 0.2795698925 | F119: =Skyggetabeller!F63 -> 0.3258426966 | G119: =Skyggetabeller!G63 -> 0.2771084337 | H119: =Skyggetabeller!H63 -> 0.2716763006 | I119: =Skyggetabeller!I63 -> 0.2485549133 | J119: =Skyggetabeller!J63 -> 0.2108433735 | K119: =Skyggetabeller!K63 -> 0.2202380952 | L119: =Skyggetabeller!L63 -> 0.2366863905 | M119: =Skyggetabeller!M63 -> 0.2678571429 | N119: =Skyggetabeller!N63 -> 0.2662337662 | O119: =Skyggetabeller!O63 -> 0.2916666667 | P119: =Skyggetabeller!P63 -> 0.3024691358 | Q119: =Skyggetabeller!Q63 -> 0.2360248447 | R119: =Skyggetabeller!R63 -> 0.2828947368
B120: =Skyggetabeller!B64 -> Hele landet
B121: =Skyggetabeller!B67 -> Andel | D121: =Skyggetabeller!D67 -> 0.4386639078 | E121: =Skyggetabeller!E67 -> 0.4540462428 | F121: =Skyggetabeller!F67 -> 0.4582962303 | G121: =Skyggetabeller!G67 -> 0.4529187445 | H121: =Skyggetabeller!H67 -> 0.4620731339 | I121: =Skyggetabeller!I67 -> 0.4619134674 | J121: =Skyggetabeller!J67 -> 0.463347587 | K121: =Skyggetabeller!K67 -> 0.476218965 | L121: =Skyggetabeller!L67 -> 0.4744418331 | M121: =Skyggetabeller!M67 -> 0.4914138523 | N121: =Skyggetabeller!N67 -> 0.491394148 | O121: =Skyggetabeller!O67 -> 0.4968707483 | P121: =Skyggetabeller!P67 -> 0.5 | Q121: =Skyggetabeller!Q67 -> 0.4942955691 | R121: =Skyggetabeller!R67 -> 0.5
B122: =Registerdata!$B$30 -> Anm.: Hvis nøgletallet er angivet med * er der foretaget en diskretionering af data, da der er for få observationer.
B123: =IF('Dine valg'!$G$24="","Ingen sammenligningsgruppe valgt.","Anm.: Valgte kommuner i sammenligningsgruppen: "&'Dine valg'!$G$24&" "&'Dine valg'!$G$25&" "&'Dine valg'!$G$26&" "&'Dine valg'!$G$27&" "&'Dine valg'!$G$28&" "&'Dine valg'!$G$29&" "&'Dine valg'!$G$30) -> Anm.: Valgte kommuner i sammenligningsgruppen: Aarhus
B124: =Registerdata!$B$32 -> Kilde: Socialstyrelsens egne beregninger baseret på registerdata fra Danmarks Statistik.
B127: ="Figur 1.4: Fordeling af institutionsanbragte for "&Kommune -> Figur 1.4: Fordeling af institutionsanbragte for København | G127: ="Figur 1.5 fordeling af institutionsanbragte for "&Skyggetabeller!B14 -> Figur 1.5 fordeling af institutionsanbragte for Sammenligningsgruppe, gns. | M127: ="Figur 1.6: Fordelingen af institutionsanbragte for "&Skyggetabeller!B18 -> Figur 1.6: Fordelingen af institutionsanbragte for Hele landet
B148: Anm.: Hvis de enkelte nedslagspunkter ikke summer til 100 %, skyldes det diskretionerede værdier. Disse udgør marginen til 100 %. | G148: Anm.: Hvis de enkelte nedslagspunkter ikke summer til 100 %, skyldes det diskretionerede værdier. Disse udgør marginen til 100 %. | M148: Anm.: Hvis de enkelte nedslagspunkter ikke summer til 100 %, skyldes det diskretionerede værdier. Disse udgør marginen til 100 %.
B149: =Registerdata!$B$30 -> Anm.: Hvis nøgletallet er angivet med * er der foretaget en diskretionering af data, da der er for få observationer. | G149: =Registerdata!$B$30 -> Anm.: Hvis nøgletallet er angivet med * er der foretaget en diskretionering af data, da der er for få observationer. | M149: =Registerdata!$B$30 -> Anm.: Hvis nøgletallet er angivet med * er der foretaget en diskretionering af data, da der er for få observationer.
B150: =IF('Dine valg'!$G$24="","Ingen sammenligningsgruppe valgt.","Anm.: Valgte kommuner i sammenligningsgruppen: "&'Dine valg'!$G$24&" "&'Dine valg'!$G$25&" "&'Dine valg'!$G$26&" "&'Dine valg'!$G$27&" "&'Dine valg'!$G$28&" "&'Dine valg'!$G$29&" "&'Dine valg'!$G$30) -> Anm.: Valgte kommuner i sammenligningsgruppen: Aarhus | G150: =IF('Dine valg'!$G$24="","Ingen sammenligningsgruppe valgt.","Anm.: Valgte kommuner i sammenligningsgruppen: "&'Dine valg'!$G$24&" "&'Dine valg'!$G$25&" "&'Dine valg'!$G$26&" "&'Dine valg'!$G$27&" "&'Dine valg'!$G$28&" "&'Dine valg'!$G$29&" "&'Dine valg'!$G$30) -> Anm.: Valgte kommuner i sammenligningsgruppen: Aarhus | M150: =IF('Dine valg'!$G$24="","Ingen sammenligningsgruppe valgt.","Anm.: Valgte kommuner i sammenligningsgruppen: "&'Dine valg'!$G$24&" "&'Dine valg'!$G$25&" "&'Dine valg'!$G$26&" "&'Dine valg'!$G$27&" "&'Dine valg'!$G$28&" "&'Dine valg'!$G$29&" "&'Dine valg'!$G$30) -> Anm.: Valgte kommuner i sammenligningsgruppen: Aarhus
B151: =Registerdata!$B$32 -> Kilde: Socialstyrelsens egne beregninger baseret på registerdata fra Danmarks Statistik. | G151: =Registerdata!$B$32 -> Kilde: Socialstyrelsens egne beregninger baseret på registerdata fra Danmarks Statistik. | M151: =Registerdata!$B$32 -> Kilde: Socialstyrelsens egne beregninger baseret på registerdata fra Danmarks Statistik.
B155: =Skyggetabeller!B71 -> Tabel 1.4: Fordeling af institutionsanbragte for København
B157: =Skyggetabeller!B72 -> Nøgletal 1.4 Fordeling af anbragte for København | D157: 2017-01-01 | E157: 2017-07-01 | F157: 2018-01-01 | G157: 2018-07-01 | H157: 2019-01-01 | I157: 2019-07-01 | J157: 2020-01-01 | K157: 2020-07-01 | L157: 2021-01-01 | M157: 2021-07-01 | N157: 2022-01-01 | O157: 2022-07-01 | P157: 2023-01-01 | Q157: 2023-07-01 | R157: 2024-01-01
B158: =Skyggetabeller!B73 -> Døgninstitutioner | D158: =Skyggetabeller!D73 -> 0.7644444444 | E158: =Skyggetabeller!E73 -> 0.8061674009 | F158: =Skyggetabeller!F73 -> 0.8186046512 | G158: =Skyggetabeller!G73 -> 0.803652968 | H158: =Skyggetabeller!H73 -> 0.7961165049 | I158: =Skyggetabeller!I73 -> 0.7948717949 | J158: =Skyggetabeller!J73 -> 0.8580246914 | K158: =Skyggetabeller!K73 -> 0.8087431694 | L158: =Skyggetabeller!L73 -> 0.7832512315 | M158: =Skyggetabeller!M73 -> 0.742081448 | N158: =Skyggetabeller!N73 -> 0.7772727273 | O158: =Skyggetabeller!O73 -> 0.7886178862 | P158: =Skyggetabeller!P73 -> 0.7936507937 | Q158: =Skyggetabeller!Q73 -> 0.802919708 | R158: =Skyggetabeller!R73 -> 0.7440944882
B159: =Skyggetabeller!B74 -> Sikrede døgninstitutioner | D159: =Skyggetabeller!D74 -> 0.03111111111 | E159: =Skyggetabeller!E74 -> 0.02643171806 | F159: =Skyggetabeller!F74 -> 0.02790697674 | G159: =Skyggetabeller!G74 -> 0.0502283105 | H159: =Skyggetabeller!H74 -> 0.04368932039 | I159: =Skyggetabeller!I74 -> 0.02051282051 | J159: =Skyggetabeller!J74 -> * | K159: =Skyggetabeller!K74 -> 0.04918032787 | L159: =Skyggetabeller!L74 -> 0.08374384236 | M159: =Skyggetabeller!M74 -> 0.1040723982 | N159: =Skyggetabeller!N74 -> 0.08181818182 | O159: =Skyggetabeller!O74 -> 0.06504065041 | P159: =Skyggetabeller!P74 -> 0.04365079365 | Q159: =Skyggetabeller!Q74 -> 0.04379562044 | R159: =Skyggetabeller!R74 -> 0.04724409449
B160: =Skyggetabeller!B75 -> Socialpædagogiske opholdssteder | D160: =Skyggetabeller!D75 -> 0.2044444444 | E160: =Skyggetabeller!E75 -> 0.1674008811 | F160: =Skyggetabeller!F75 -> 0.1534883721 | G160: =Skyggetabeller!G75 -> 0.1461187215 | H160: =Skyggetabeller!H75 -> 0.1601941748 | I160: =Skyggetabeller!I75 -> 0.1846153846 | J160: =Skyggetabeller!J75 -> * | K160: =Skyggetabeller!K75 -> 0.1420765027 | L160: =Skyggetabeller!L75 -> 0.1330049261 | M160: =Skyggetabeller!M75 -> 0.1538461538 | N160: =Skyggetabeller!N75 -> 0.1409090909 | O160: =Skyggetabeller!O75 -> 0.1463414634 | P160: =Skyggetabeller!P75 -> 0.1626984127 | Q160: =Skyggetabeller!Q75 -> 0.1532846715 | R160: =Skyggetabeller!R75 -> 0.2086614173
B161: Anm.: Hvis de enkelte nedslagspunkter ikke summer til 100 %, skyldes det diskretionerede værdier. Disse udgør marginen til 100 %.
B162: =Registerdata!$B$30 -> Anm.: Hvis nøgletallet er angivet med * er der foretaget en diskretionering af data, da der er for få observationer.
B163: =IF('Dine valg'!$G$24="","Ingen sammenligningsgruppe valgt.","Anm.: Valgte kommuner i sammenligningsgruppen: "&'Dine valg'!$G$24&" "&'Dine valg'!$G$25&" "&'Dine valg'!$G$26&" "&'Dine valg'!$G$27&" "&'Dine valg'!$G$28&" "&'Dine valg'!$G$29&" "&'Dine valg'!$G$30) -> Anm.: Valgte kommuner i sammenligningsgruppen: Aarhus
B164: =Registerdata!$B$32 -> Kilde: Socialstyrelsens egne beregninger baseret på registerdata fra Danmarks Statistik.
B166: =Skyggetabeller!B77 -> Tabel 1.5: Fordeling af institutionsanbragte for Sammenligningsgruppe, gns.
B168: =Skyggetabeller!B77 -> Tabel 1.5: Fordeling af institutionsanbragte for Sammenligningsgruppe, gns. | D168: 2017-01-01 | E168: 2017-07-01 | F168: 2018-01-01 | G168: 2018-07-01 | H168: 2019-01-01 | I168: 2019-07-01 | J168: 2020-01-01 | K168: 2020-07-01 | L168: 2021-01-01 | M168: 2021-07-01 | N168: 2022-01-01 | O168: 2022-07-01 | P168: 2023-01-01 | Q168: 2023-07-01 | R168: 2024-01-01
B169: =Skyggetabeller!B79 -> Døgninstitutioner | D169: =Skyggetabeller!D79 -> 0.6861702128 | E169: =Skyggetabeller!E79 -> 0.6989247312 | F169: =Skyggetabeller!F79 -> 0.6516853933 | G169: =Skyggetabeller!G79 -> 0.6807228916 | H169: =Skyggetabeller!H79 -> 0.6705202312 | I169: =Skyggetabeller!I79 -> 0.7052023121 | J169: =Skyggetabeller!J79 -> 0.6987951807 | K169: =Skyggetabeller!K79 -> 0.7202380952 | L169: =Skyggetabeller!L79 -> 0.6804733728 | M169: =Skyggetabeller!M79 -> 0.6666666667 | N169: =Skyggetabeller!N79 -> 0.6623376623 | O169: =Skyggetabeller!O79 -> 0.625 | P169: =Skyggetabeller!P79 -> 0.6358024691 | Q169: =Skyggetabeller!Q79 -> 0.6832298137 | R169: =Skyggetabeller!R79 -> 0.6644736842
B170: =Skyggetabeller!B80 -> Sikrede døgninstitutioner | D170: =Skyggetabeller!D80 -> 0.01595744681 | E170: =Skyggetabeller!E80 -> 0.02150537634 | F170: =Skyggetabeller!F80 -> 0.02247191011 | G170: =Skyggetabeller!G80 -> 0.0421686747 | H170: =Skyggetabeller!H80 -> 0.05780346821 | I170: =Skyggetabeller!I80 -> 0.04624277457 | J170: =Skyggetabeller!J80 -> 0.09036144578 | K170: =Skyggetabeller!K80 -> 0.05952380952 | L170: =Skyggetabeller!L80 -> 0.08284023669 | M170: =Skyggetabeller!M80 -> 0.06547619048 | N170: =Skyggetabeller!N80 -> 0.07142857143 | O170: =Skyggetabeller!O80 -> 0.08333333333 | P170: =Skyggetabeller!P80 -> 0.06172839506 | Q170: =Skyggetabeller!Q80 -> 0.08074534161 | R170: =Skyggetabeller!R80 -> 0.05263157895
B171: =Skyggetabeller!B81 -> Socialpædagogiske opholdssteder | D171: =Skyggetabeller!D81 -> 0.2978723404 | E171: =Skyggetabeller!E81 -> 0.2795698925 | F171: =Skyggetabeller!F81 -> 0.3258426966 | G171: =Skyggetabeller!G81 -> 0.2771084337 | H171: =Skyggetabeller!H81 -> 0.2716763006 | I171: =Skyggetabeller!I81 -> 0.2485549133 | J171: =Skyggetabeller!J81 -> 0.2108433735 | K171: =Skyggetabeller!K81 -> 0.2202380952 | L171: =Skyggetabeller!L81 -> 0.2366863905 | M171: =Skyggetabeller!M81 -> 0.2678571429 | N171: =Skyggetabeller!N81 -> 0.2662337662 | O171: =Skyggetabeller!O81 -> 0.2916666667 | P171: =Skyggetabeller!P81 -> 0.3024691358 | Q171: =Skyggetabeller!Q81 -> 0.2360248447 | R171: =Skyggetabeller!R81 -> 0.2828947368
B172: Anm.: Hvis de enkelte nedslagspunkter ikke summer til 100 %, skyldes det diskretionerede værdier. Disse udgør marginen til 100 %.
B173: =Registerdata!$B$30 -> Anm.: Hvis nøgletallet er angivet med * er der foretaget en diskretionering af data, da der er for få observationer.
B174: =IF('Dine valg'!$G$24="","Ingen sammenligningsgruppe valgt.","Anm.: Valgte kommuner i sammenligningsgruppen: "&'Dine valg'!$G$24&" "&'Dine valg'!$G$25&" "&'Dine valg'!$G$26&" "&'Dine valg'!$G$27&" "&'Dine valg'!$G$28&" "&'Dine valg'!$G$29&" "&'Dine valg'!$G$30) -> Anm.: Valgte kommuner i sammenligningsgruppen: Aarhus
B175: =Registerdata!$B$32 -> Kilde: Socialstyrelsens egne beregninger baseret på registerdata fra Danmarks Statistik.
B177: =Skyggetabeller!B83 -> Tabel 1.6: Fordeling af institutionsanbragte for Hele landet
B179: =Skyggetabeller!B83 -> Tabel 1.6: Fordeling af institutionsanbragte for Hele landet | D179: 2017-01-01 | E179: 2017-07-01 | F179: 2018-01-01 | G179: 2018-07-01 | H179: 2019-01-01 | I179: 2019-07-01 | J179: 2020-01-01 | K179: 2020-07-01 | L179: 2021-01-01 | M179: 2021-07-01 | N179: 2022-01-01 | O179: 2022-07-01 | P179: 2023-01-01 | Q179: 2023-07-01 | R179: 2024-01-01
B180: =Skyggetabeller!B85 -> Døgninstitutioner | D180: =Skyggetabeller!D85 -> 0.5373928466 | E180: =Skyggetabeller!E85 -> 0.5228323699 | F180: =Skyggetabeller!F85 -> 0.5227070347 | G180: =Skyggetabeller!G85 -> 0.5221472573 | H180: =Skyggetabeller!H85 -> 0.5149592022 | I180: =Skyggetabeller!I85 -> 0.5164533821 | J180: =Skyggetabeller!J85 -> 0.5131337813 | K180: =Skyggetabeller!K85 -> 0.4992521687 | L180: =Skyggetabeller!L85 -> 0.4976498237 | M180: =Skyggetabeller!M85 -> 0.4808242702 | N180: =Skyggetabeller!N85 -> 0.4845094664 | O180: =Skyggetabeller!O85 -> 0.4794557823 | P180: =Skyggetabeller!P85 -> 0.476806904 | Q180: =Skyggetabeller!Q85 -> 0.4815600955 | R180: =Skyggetabeller!R85 -> 0.4749340369
B181: =Skyggetabeller!B86 -> Sikrede døgninstitutioner | D181: =Skyggetabeller!D86 -> 0.02394324564 | E181: =Skyggetabeller!E86 -> 0.02312138728 | F181: =Skyggetabeller!F86 -> 0.01899673494 | G181: =Skyggetabeller!G86 -> 0.02493399824 | H181: =Skyggetabeller!H86 -> 0.02296766395 | I181: =Skyggetabeller!I86 -> 0.02163315052 | J181: =Skyggetabeller!J86 -> 0.02351863164 | K181: =Skyggetabeller!K86 -> 0.02452886629 | L181: =Skyggetabeller!L86 -> 0.02790834313 | M181: =Skyggetabeller!M86 -> 0.0277618775 | N181: =Skyggetabeller!N86 -> 0.02409638554 | O181: =Skyggetabeller!O86 -> 0.02367346939 | P181: =Skyggetabeller!P86 -> 0.02319309601 | Q181: =Skyggetabeller!Q86 -> 0.02414433537 | R181: =Skyggetabeller!R86 -> 0.02506596306
B182: =Skyggetabeller!B87 -> Socialpædagogiske opholdssteder | D182: =Skyggetabeller!D87 -> 0.4386639078 | E182: =Skyggetabeller!E87 -> 0.4540462428 | F182: =Skyggetabeller!F87 -> 0.4582962303 | G182: =Skyggetabeller!G87 -> 0.4529187445 | H182: =Skyggetabeller!H87 -> 0.4620731339 | I182: =Skyggetabeller!I87 -> 0.4619134674 | J182: =Skyggetabeller!J87 -> 0.463347587 | K182: =Skyggetabeller!K87 -> 0.476218965 | L182: =Skyggetabeller!L87 -> 0.4744418331 | M182: =Skyggetabeller!M87 -> 0.4914138523 | N182: =Skyggetabeller!N87 -> 0.491394148 | O182: =Skyggetabeller!O87 -> 0.4968707483 | P182: =Skyggetabeller!P87 -> 0.5 | Q182: =Skyggetabeller!Q87 -> 0.4942955691 | R182: =Skyggetabeller!R87 -> 0.5
B183: Anm.: Hvis de enkelte nedslagspunkter ikke summer til 100 %, skyldes det diskretionerede værdier. Disse udgør marginen til 100 %.
B184: =Registerdata!$B$30 -> Anm.: Hvis nøgletallet er angivet med * er der foretaget en diskretionering af data, da der er for få observationer.
B185: =IF('Dine valg'!$G$24="","Ingen sammenligningsgruppe valgt.","Anm.: Valgte kommuner i sammenligningsgruppen: "&'Dine valg'!$G$24&" "&'Dine valg'!$G$25&" "&'Dine valg'!$G$26&" "&'Dine valg'!$G$27&" "&'Dine valg'!$G$28&" "&'Dine valg'!$G$29&" "&'Dine valg'!$G$30) -> Anm.: Valgte kommuner i sammenligningsgruppen: Aarhus
B186: =Registerdata!$B$32 -> Kilde: Socialstyrelsens egne beregninger baseret på registerdata fra Danmarks Statistik.
B189: =Skyggetabeller!B90 -> Nøgletal 2: Varighed af institutionsanbringelser
B191: Figur 2: Varighed af institutionsanbringelser | M191: Benyt, slet eller erstat gerne følgende tekst til beskrivelse af udviklingen over tid for det pågældende nøgletal. Beskrivelsen vil blive indsat i rapporten (skriv maks 20 linjer):
B215: Anm.: Hvis nøgletallet har værdien 0 i grafen kan det enten betyde 0 %, eller at der er foretaget en diskretionering af data, da der er for få observationer. Se tilhørende tabel for værdien.
B216: =IF('Dine valg'!$G$24="","Ingen sammenligningsgruppe valgt.","Anm.: Valgte kommuner i sammenligningsgruppen: "&'Dine valg'!$G$24&" "&'Dine valg'!$G$25&" "&'Dine valg'!$G$26&" "&'Dine valg'!$G$27&" "&'Dine valg'!$G$28&" "&'Dine valg'!$G$29&" "&'Dine valg'!$G$30) -> Anm.: Valgte kommuner i sammenligningsgruppen: Aarhus
B217: =Registerdata!$B$32 -> Kilde: Socialstyrelsens egne beregninger baseret på registerdata fra Danmarks Statistik.
B220: =Skyggetabeller!B92 -> Tabel 2: Gennemsnitlig varighed af igangværende institutionsanbringelser
B222: =Skyggetabeller!B93 -> Nøgletal 2: Gennemsnitlig varighed af igangværende institutionsanbringelser | D222: 2017-01-01 | E222: 2017-07-01 | F222: 2018-01-01 | G222: 2018-07-01 | H222: 2019-01-01 | I222: 2019-07-01 | J222: 2020-01-01 | K222: 2020-07-01 | L222: 2021-01-01 | M222: 2021-07-01 | N222: 2022-01-01 | O222: 2022-07-01 | P222: 2023-01-01 | Q222: 2023-07-01 | R222: 2024-01-01
B223: =Skyggetabeller!B94 -> København
B224: =Skyggetabeller!B97 -> Gennemsnitlig varighed | D224: =Skyggetabeller!D97 -> 814.9111111 | E224: =Skyggetabeller!E97 -> 753.7004405 | F224: =Skyggetabeller!F97 -> 751.5116279 | G224: =Skyggetabeller!G97 -> 747.4063927 | H224: =Skyggetabeller!H97 -> 760.6941748 | I224: =Skyggetabeller!I97 -> 813.1897436 | J224: =Skyggetabeller!J97 -> 825.0679012 | K224: =Skyggetabeller!K97 -> 726.6338798 | L224: =Skyggetabeller!L97 -> 656.4334975 | M224: =Skyggetabeller!M97 -> 621.2217195 | N224: =Skyggetabeller!N97 -> 617.5227273 | O224: =Skyggetabeller!O97 -> 573.0243902 | P224: =Skyggetabeller!P97 -> 602.7420635 | Q224: =Skyggetabeller!Q97 -> 621.5036496 | R224: =Skyggetabeller!R97 -> 713.492126
B225: =Skyggetabeller!B95 -> Samlet antal dage | D225: =Skyggetabeller!D95 -> 183355 | E225: =Skyggetabeller!E95 -> 171090 | F225: =Skyggetabeller!F95 -> 161575 | G225: =Skyggetabeller!G95 -> 163682 | H225: =Skyggetabeller!H95 -> 156703 | I225: =Skyggetabeller!I95 -> 158572 | J225: =Skyggetabeller!J95 -> 133661 | K225: =Skyggetabeller!K95 -> 132974 | L225: =Skyggetabeller!L95 -> 133256 | M225: =Skyggetabeller!M95 -> 137290 | N225: =Skyggetabeller!N95 -> 135855 | O225: =Skyggetabeller!O95 -> 140964 | P225: =Skyggetabeller!P95 -> 151891 | Q225: =Skyggetabeller!Q95 -> 170292 | R225: =Skyggetabeller!R95 -> 181227
B226: =Skyggetabeller!B98 -> Sammenligningsgruppe, gns.
B227: =Skyggetabeller!B101 -> Gennemsnitlig varighed | D227: =Skyggetabeller!D101 -> 1048.202128 | E227: =Skyggetabeller!E101 -> 1037.55914 | F227: =Skyggetabeller!F101 -> 1014.061798 | G227: =Skyggetabeller!G101 -> 942.686747 | H227: =Skyggetabeller!H101 -> 837.3526012 | I227: =Skyggetabeller!I101 -> 915.2774566 | J227: =Skyggetabeller!J101 -> 941.1566265 | K227: =Skyggetabeller!K101 -> 838.7797619 | L227: =Skyggetabeller!L101 -> 871.556213 | M227: =Skyggetabeller!M101 -> 887.672619 | N227: =Skyggetabeller!N101 -> 943.525974 | O227: =Skyggetabeller!O101 -> 895.8214286 | P227: =Skyggetabeller!P101 -> 869.345679 | Q227: =Skyggetabeller!Q101 -> 837.931677 | R227: =Skyggetabeller!R101 -> 865.7960526
B228: =Skyggetabeller!B99 -> Samlet antal dage | D228: =Skyggetabeller!D99 -> 197062 | E228: =Skyggetabeller!E99 -> 192986 | F228: =Skyggetabeller!F99 -> 180503 | G228: =Skyggetabeller!G99 -> 156486 | H228: =Skyggetabeller!H99 -> 144862 | I228: =Skyggetabeller!I99 -> 158343 | J228: =Skyggetabeller!J99 -> 156232 | K228: =Skyggetabeller!K99 -> 140915 | L228: =Skyggetabeller!L99 -> 147293 | M228: =Skyggetabeller!M99 -> 149129 | N228: =Skyggetabeller!N99 -> 145303 | O228: =Skyggetabeller!O99 -> 150498 | P228: =Skyggetabeller!P99 -> 140834 | Q228: =Skyggetabeller!Q99 -> 134907 | R228: =Skyggetabeller!R99 -> 131601
B229: =Skyggetabeller!B102 -> Hele landet
B230: =Skyggetabeller!B105 -> Gennemsnitlig varighed | D230: =Skyggetabeller!D105 -> 862.9932013 | E230: =Skyggetabeller!E105 -> 827.9471098 | F230: =Skyggetabeller!F105 -> 825.195607 | G230: =Skyggetabeller!G105 -> 783.687885 | H230: =Skyggetabeller!H105 -> 770.6086431 | I230: =Skyggetabeller!I105 -> 768.0301645 | J230: =Skyggetabeller!J105 -> 757.3750764 | K230: =Skyggetabeller!K105 -> 753.2707149 | L230: =Skyggetabeller!L105 -> 740.1186839 | M230: =Skyggetabeller!M105 -> 725.0538065 | N230: =Skyggetabeller!N105 -> 732.7690763 | O230: =Skyggetabeller!O105 -> 704.1268027 | P230: =Skyggetabeller!P105 -> 708.3122977 | Q230: =Skyggetabeller!Q105 -> 713.4393738 | R230: =Skyggetabeller!R105 -> 728.73219
B231: =Skyggetabeller!B103 -> Samlet antal dage | D231: =Skyggetabeller!D103 -> 2919506 | E231: =Skyggetabeller!E103 -> 2864697 | F231: =Skyggetabeller!F103 -> 2780084 | G231: =Skyggetabeller!G103 -> 2671592 | H231: =Skyggetabeller!H103 -> 2549944 | I231: =Skyggetabeller!I103 -> 2520675 | J231: =Skyggetabeller!J103 -> 2479646 | K231: =Skyggetabeller!K103 -> 2518184 | L231: =Skyggetabeller!L103 -> 2519364 | M231: =Skyggetabeller!M103 -> 2533338 | N231: =Skyggetabeller!N103 -> 2554433 | O231: =Skyggetabeller!O103 -> 2587666 | P231: =Skyggetabeller!P103 -> 2626422 | Q231: =Skyggetabeller!Q103 -> 2688953 | R231: =Skyggetabeller!R103 -> 2761895
B232: Anm.: Hvis nøgletallet er angivet med * er der foretaget en diskretionering af data, da der er for få observationer.
B233: =IF('Dine valg'!$G$24="","Ingen sammenligningsgruppe valgt.","Anm.: Valgte kommuner i sammenligningsgruppen: "&'Dine valg'!$G$24&" "&'Dine valg'!$G$25&" "&'Dine valg'!$G$26&" "&'Dine valg'!$G$27&" "&'Dine valg'!$G$28&" "&'Dine valg'!$G$29&" "&'Dine valg'!$G$30) -> Anm.: Valgte kommuner i sammenligningsgruppen: Aarhus
B234: Kilde: Socialstyrelsens egne beregninger baseret på registerdata fra Danmarks Statistik.
B236: Figur 2.1: Varighed af anbringelser på døgninstitution | G236: Figur 2.2: Varighed af anbringelser på sikret døgninstitution | M236: Figur 2.3: Varighed af anbringelser på socialpædagogisk opholdssted
B254: Anm.: Hvis nøgletallet har værdien 0 i grafen kan det enten betyde 0 %, eller at der er foretaget en diskretionering af data, da der er for få observationer. Se tilhørende tabel for værdien.
B255: =IF('Dine valg'!$G$24="","Ingen sammenligningsgruppe valgt.","Anm.: Valgte kommuner i sammenligningsgruppen: "&'Dine valg'!$G$24&" "&'Dine valg'!$G$25&" "&'Dine valg'!$G$26&" "&'Dine valg'!$G$27&" "&'Dine valg'!$G$28&" "&'Dine valg'!$G$29&" "&'Dine valg'!$G$30) -> Anm.: Valgte kommuner i sammenligningsgruppen: Aarhus
B256: =Registerdata!$B$32 -> Kilde: Socialstyrelsens egne beregninger baseret på registerdata fra Danmarks Statistik.
B259: =Skyggetabeller!B107 -> Tabel 2.1: Gennemsnitlig varighed af igangværende anbringelser på døgninstitution
B261: =Skyggetabeller!B108 -> Nøgletal 2.1 Gennemsnitlig varighed af igangværende anbringelser på døgninstitution | D261: 2017-01-01 | E261: 2017-07-01 | F261: 2018-01-01 | G261: 2018-07-01 | H261: 2019-01-01 | I261: 2019-07-01 | J261: 2020-01-01 | K261: 2020-07-01 | L261: 2021-01-01 | M261: 2021-07-01 | N261: 2022-01-01 | O261: 2022-07-01 | P261: 2023-01-01 | Q261: 2023-07-01 | R261: 2024-01-01
B262: =Skyggetabeller!B109 -> København
B263: =Skyggetabeller!B112 -> Gennemsnitlig varighed | D263: =Skyggetabeller!D112 -> 781.6627907 | E263: =Skyggetabeller!E112 -> 692.5956284 | F263: =Skyggetabeller!F112 -> 667.5965909 | G263: =Skyggetabeller!G112 -> 672.2670455 | H263: =Skyggetabeller!H112 -> 683.1707317 | I263: =Skyggetabeller!I112 -> 714.3096774 | J263: =Skyggetabeller!J112 -> 735.6906475 | K263: =Skyggetabeller!K112 -> 659.0135135 | L263: =Skyggetabeller!L112 -> 624.8805031 | M263: =Skyggetabeller!M112 -> 603.8719512 | N263: =Skyggetabeller!N112 -> 582.3274854 | O263: =Skyggetabeller!O112 -> 523.5979381 | P263: =Skyggetabeller!P112 -> 590.82 | Q263: =Skyggetabeller!Q112 -> 616.3454545 | R263: =Skyggetabeller!R112 -> 756.1428571
B264: =Skyggetabeller!B110 -> Samlet antal dage | D264: =Skyggetabeller!D110 -> 134446 | E264: =Skyggetabeller!E110 -> 126745 | F264: =Skyggetabeller!F110 -> 117497 | G264: =Skyggetabeller!G110 -> 118319 | H264: =Skyggetabeller!H110 -> 112040 | I264: =Skyggetabeller!I110 -> 110718 | J264: =Skyggetabeller!J110 -> 102261 | K264: =Skyggetabeller!K110 -> 97534 | L264: =Skyggetabeller!L110 -> 99356 | M264: =Skyggetabeller!M110 -> 99035 | N264: =Skyggetabeller!N110 -> 99578 | O264: =Skyggetabeller!O110 -> 101578 | P264: =Skyggetabeller!P110 -> 118164 | Q264: =Skyggetabeller!Q110 -> 135596 | R264: =Skyggetabeller!R110 -> 142911
B265: =Skyggetabeller!B113 -> Sammenligningsgruppe, gns.
B266: =Skyggetabeller!B116 -> Gennemsnitlig varighed | D266: =Skyggetabeller!D116 -> 1165.147287 | E266: =Skyggetabeller!E116 -> 1155.261538 | F266: =Skyggetabeller!F116 -> 1162.741379 | G266: =Skyggetabeller!G116 -> 1056.610619 | H266: =Skyggetabeller!H116 -> 953.5 | I266: =Skyggetabeller!I116 -> 1003.491803 | J266: =Skyggetabeller!J116 -> 1069.37931 | K266: =Skyggetabeller!K116 -> 955.338843 | L266: =Skyggetabeller!L116 -> 1039.33913 | M266: =Skyggetabeller!M116 -> 1117.660714 | N266: =Skyggetabeller!N116 -> 1202.166667 | O266: =Skyggetabeller!O116 -> 1160.714286 | P266: =Skyggetabeller!P116 -> 1109.92233 | Q266: =Skyggetabeller!Q116 -> 1012.209091 | R266: =Skyggetabeller!R116 -> 1082.326733
B267: =Skyggetabeller!B114 -> Samlet antal dage | D267: =Skyggetabeller!D114 -> 150304 | E267: =Skyggetabeller!E114 -> 150184 | F267: =Skyggetabeller!F114 -> 134878 | G267: =Skyggetabeller!G114 -> 119397 | H267: =Skyggetabeller!H114 -> 110606 | I267: =Skyggetabeller!I114 -> 122426 | J267: =Skyggetabeller!J114 -> 124048 | K267: =Skyggetabeller!K114 -> 115596 | L267: =Skyggetabeller!L114 -> 119524 | M267: =Skyggetabeller!M114 -> 125178 | N267: =Skyggetabeller!N114 -> 122621 | O267: =Skyggetabeller!O114 -> 121875 | P267: =Skyggetabeller!P114 -> 114322 | Q267: =Skyggetabeller!Q114 -> 111343 | R267: =Skyggetabeller!R114 -> 109315
B268: =Skyggetabeller!B117 -> Hele landet
B269: =Skyggetabeller!B120 -> Gennemsnitlig varighed | D269: =Skyggetabeller!D120 -> 958.5522552 | E269: =Skyggetabeller!E120 -> 929.634052 | F269: =Skyggetabeller!F120 -> 924.0840432 | G269: =Skyggetabeller!G120 -> 874.4241573 | H269: =Skyggetabeller!H120 -> 865.4295775 | I269: =Skyggetabeller!I120 -> 868.5587021 | J269: =Skyggetabeller!J120 -> 863.4660714 | K269: =Skyggetabeller!K120 -> 860.0838826 | L269: =Skyggetabeller!L120 -> 840.1977568 | M269: =Skyggetabeller!M120 -> 835.725 | N269: =Skyggetabeller!N120 -> 831.3345175 | O269: =Skyggetabeller!O120 -> 806.622588 | P269: =Skyggetabeller!P120 -> 816.388009 | Q269: =Skyggetabeller!Q120 -> 820.6942149 | R269: =Skyggetabeller!R120 -> 857.4494444
B270: =Skyggetabeller!B118 -> Samlet antal dage | D270: =Skyggetabeller!D118 -> 1742648 | E270: =Skyggetabeller!E118 -> 1681708 | F270: =Skyggetabeller!F118 -> 1627312 | G270: =Skyggetabeller!G118 -> 1556475 | H270: =Skyggetabeller!H118 -> 1474692 | I270: =Skyggetabeller!I118 -> 1472207 | J270: =Skyggetabeller!J118 -> 1450623 | K270: =Skyggetabeller!K118 -> 1435480 | L270: =Skyggetabeller!L118 -> 1423295 | M270: =Skyggetabeller!M118 -> 1404018 | N270: =Skyggetabeller!N118 -> 1404124 | O270: =Skyggetabeller!O118 -> 1421269 | P270: =Skyggetabeller!P118 -> 1443374 | Q270: =Skyggetabeller!Q118 -> 1489560 | R270: =Skyggetabeller!R118 -> 1543409
B271: Anm.: Hvis nøgletallet er angivet med * er der foretaget en diskretionering af data, da der er for få observationer.
B272: =IF('Dine valg'!$G$24="","Ingen sammenligningsgruppe valgt.","Anm.: Valgte kommuner i sammenligningsgruppen: "&'Dine valg'!$G$24&" "&'Dine valg'!$G$25&" "&'Dine valg'!$G$26&" "&'Dine valg'!$G$27&" "&'Dine valg'!$G$28&" "&'Dine valg'!$G$29&" "&'Dine valg'!$G$30) -> Anm.: Valgte kommuner i sammenligningsgruppen: Aarhus
B273: Kilde: Socialstyrelsens egne beregninger baseret på registerdata fra Danmarks Statistik.
B275: =Skyggetabeller!B122 -> Tabel 2.2: Gennemsnitlig varighed af igangværende anbringelser på sikret døgninstitution
B277: =Skyggetabeller!B123 -> Nøgletal 2.2: Gennemsnitlig varighed af igangværende anbringelser på sikret døgninstitution | D277: 2017-01-01 | E277: 2017-07-01 | F277: 2018-01-01 | G277: 2018-07-01 | H277: 2019-01-01 | I277: 2019-07-01 | J277: 2020-01-01 | K277: 2020-07-01 | L277: 2021-01-01 | M277: 2021-07-01 | N277: 2022-01-01 | O277: 2022-07-01 | P277: 2023-01-01 | Q277: 2023-07-01 | R277: 2024-01-01
B278: =Skyggetabeller!B124 -> København
B279: =Skyggetabeller!B127 -> Gennemsnitlig varighed | D279: =Skyggetabeller!D127 -> 295.2857143 | E279: =Skyggetabeller!E127 -> 407.1666667 | F279: =Skyggetabeller!F127 -> 349.6666667 | G279: =Skyggetabeller!G127 -> 275.0909091 | H279: =Skyggetabeller!H127 -> 328.8888889 | I279: =Skyggetabeller!I127 -> * | J279: =Skyggetabeller!J127 -> * | K279: =Skyggetabeller!K127 -> 89 | L279: =Skyggetabeller!L127 -> 99.58823529 | M279: =Skyggetabeller!M127 -> 112.2173913 | N279: =Skyggetabeller!N127 -> 152.7777778 | O279: =Skyggetabeller!O127 -> 127.9375 | P279: =Skyggetabeller!P127 -> 236.3636364 | Q279: =Skyggetabeller!Q127 -> 206.9166667 | R279: =Skyggetabeller!R127 -> 305.9166667
B280: =Skyggetabeller!B125 -> Samlet antal dage | D280: =Skyggetabeller!D125 -> 2067 | E280: =Skyggetabeller!E125 -> 2443 | F280: =Skyggetabeller!F125 -> 2098 | G280: =Skyggetabeller!G125 -> 3026 | H280: =Skyggetabeller!H125 -> 2960 | I280: =Skyggetabeller!I125 -> * | J280: =Skyggetabeller!J125 -> * | K280: =Skyggetabeller!K125 -> 801 | L280: =Skyggetabeller!L125 -> 1693 | M280: =Skyggetabeller!M125 -> 2581 | N280: =Skyggetabeller!N125 -> 2750 | O280: =Skyggetabeller!O125 -> 2047 | P280: =Skyggetabeller!P125 -> 2600 | Q280: =Skyggetabeller!Q125 -> 2483 | R280: =Skyggetabeller!R125 -> 3671
B281: =Skyggetabeller!B128 -> Sammenligningsgruppe, gns.
B282: =Skyggetabeller!B131 -> Gennemsnitlig varighed | D282: =Skyggetabeller!D131 -> 0 | E282: =Skyggetabeller!E131 -> 0 | F282: =Skyggetabeller!F131 -> 0 | G282: =Skyggetabeller!G131 -> 128.8571429 | H282: =Skyggetabeller!H131 -> 119.5 | I282: =Skyggetabeller!I131 -> 300.5 | J282: =Skyggetabeller!J131 -> 239.4666667 | K282: =Skyggetabeller!K131 -> 166.5 | L282: =Skyggetabeller!L131 -> 116 | M282: =Skyggetabeller!M131 -> 210.8181818 | N282: =Skyggetabeller!N131 -> 220.3636364 | O282: =Skyggetabeller!O131 -> 259.8571429 | P282: =Skyggetabeller!P131 -> 310.9 | Q282: =Skyggetabeller!Q131 -> 195.8461538 | R282: =Skyggetabeller!R131 -> 258.125
B283: =Skyggetabeller!B129 -> Samlet antal dage | D283: =Skyggetabeller!D129 -> 0 | E283: =Skyggetabeller!E129 -> 0 | F283: =Skyggetabeller!F129 -> 0 | G283: =Skyggetabeller!G129 -> 902 | H283: =Skyggetabeller!H129 -> 1195 | I283: =Skyggetabeller!I129 -> 2404 | J283: =Skyggetabeller!J129 -> 3592 | K283: =Skyggetabeller!K129 -> 1665 | L283: =Skyggetabeller!L129 -> 1624 | M283: =Skyggetabeller!M129 -> 2319 | N283: =Skyggetabeller!N129 -> 2424 | O283: =Skyggetabeller!O129 -> 3638 | P283: =Skyggetabeller!P129 -> 3109 | Q283: =Skyggetabeller!Q129 -> 2546 | R283: =Skyggetabeller!R129 -> 2065
B284: =Skyggetabeller!B132 -> Hele landet
B285: =Skyggetabeller!B135 -> Gennemsnitlig varighed | D285: =Skyggetabeller!D135 -> 301.4567901 | E285: =Skyggetabeller!E135 -> 332.4 | F285: =Skyggetabeller!F135 -> 285.921875 | G285: =Skyggetabeller!G135 -> 215.0470588 | H285: =Skyggetabeller!H135 -> 269.9736842 | I285: =Skyggetabeller!I135 -> 328.3521127 | J285: =Skyggetabeller!J135 -> 263.1428571 | K285: =Skyggetabeller!K135 -> 252.3902439 | L285: =Skyggetabeller!L135 -> 196.0842105 | M285: =Skyggetabeller!M135 -> 222.1546392 | N285: =Skyggetabeller!N135 -> 218.1071429 | O285: =Skyggetabeller!O135 -> 214.137931 | P285: =Skyggetabeller!P135 -> 191.6162791 | Q285: =Skyggetabeller!Q135 -> 176.1868132 | R285: =Skyggetabeller!R135 -> 218
B286: =Skyggetabeller!B133 -> Samlet antal dage | D286: =Skyggetabeller!D133 -> 24418 | E286: =Skyggetabeller!E133 -> 26592 | F286: =Skyggetabeller!F133 -> 18299 | G286: =Skyggetabeller!G133 -> 18279 | H286: =Skyggetabeller!H133 -> 20518 | I286: =Skyggetabeller!I133 -> 23313 | J286: =Skyggetabeller!J133 -> 20262 | K286: =Skyggetabeller!K133 -> 20696 | L286: =Skyggetabeller!L133 -> 18628 | M286: =Skyggetabeller!M133 -> 21549 | N286: =Skyggetabeller!N133 -> 18321 | O286: =Skyggetabeller!O133 -> 18630 | P286: =Skyggetabeller!P133 -> 16479 | Q286: =Skyggetabeller!Q133 -> 16033 | R286: =Skyggetabeller!R133 -> 20710
B287: Anm.: Hvis nøgletallet er angivet med * er der foretaget en diskretionering af data, da der er for få observationer.
B288: =IF('Dine valg'!$G$24="","Ingen sammenligningsgruppe valgt.","Anm.: Valgte kommuner i sammenligningsgruppen: "&'Dine valg'!$G$24&" "&'Dine valg'!$G$25&" "&'Dine valg'!$G$26&" "&'Dine valg'!$G$27&" "&'Dine valg'!$G$28&" "&'Dine valg'!$G$29&" "&'Dine valg'!$G$30) -> Anm.: Valgte kommuner i sammenligningsgruppen: Aarhus
B289: Kilde: Socialstyrelsens egne beregninger baseret på registerdata fra Danmarks Statistik.
B291: =Skyggetabeller!B137 -> Tabel 2.3: Gennemsnitlig varighed af anbringelser på socialpædagogisk opholdssted
B293: =Skyggetabeller!B138 -> Nøgletal 2.3: Gennemsnitlig varighed af igangværende anbringelser på socialpædagogisk opholdssted | D293: 2017-01-01 | E293: 2017-07-01 | F293: 2018-01-01 | G293: 2018-07-01 | H293: 2019-01-01 | I293: 2019-07-01 | J293: 2020-01-01 | K293: 2020-07-01 | L293: 2021-01-01 | M293: 2021-07-01 | N293: 2022-01-01 | O293: 2022-07-01 | P293: 2023-01-01 | Q293: 2023-07-01 | R293: 2024-01-01
B294: =Skyggetabeller!B139 -> København
B295: =Skyggetabeller!B142 -> Gennemsnitlig varighed | D295: =Skyggetabeller!D142 -> 1018.304348 | E295: =Skyggetabeller!E142 -> 1102.684211 | F295: =Skyggetabeller!F142 -> 1272.121212 | G295: =Skyggetabeller!G142 -> 1323.03125 | H295: =Skyggetabeller!H142 -> 1263.727273 | I295: =Skyggetabeller!I142 -> * | J295: =Skyggetabeller!J142 -> * | K295: =Skyggetabeller!K142 -> 1332.269231 | L295: =Skyggetabeller!L142 -> 1192.851852 | M295: =Skyggetabeller!M142 -> 1049.235294 | N295: =Skyggetabeller!N142 -> 1081.516129 | O295: =Skyggetabeller!O142 -> 1037.194444 | P295: =Skyggetabeller!P142 -> 759.195122 | Q295: =Skyggetabeller!Q142 -> 766.9761905 | R295: =Skyggetabeller!R142 -> 653.6792453
B296: =Skyggetabeller!B140 -> Samlet antal dage | D296: =Skyggetabeller!D140 -> 46842 | E296: =Skyggetabeller!E140 -> 41902 | F296: =Skyggetabeller!F140 -> 41980 | G296: =Skyggetabeller!G140 -> 42337 | H296: =Skyggetabeller!H140 -> 41703 | I296: =Skyggetabeller!I140 -> * | J296: =Skyggetabeller!J140 -> * | K296: =Skyggetabeller!K140 -> 34639 | L296: =Skyggetabeller!L140 -> 32207 | M296: =Skyggetabeller!M140 -> 35674 | N296: =Skyggetabeller!N140 -> 33527 | O296: =Skyggetabeller!O140 -> 37339 | P296: =Skyggetabeller!P140 -> 31127 | Q296: =Skyggetabeller!Q140 -> 32213 | R296: =Skyggetabeller!R140 -> 34645
B297: =Skyggetabeller!B143 -> Sammenligningsgruppe, gns.
B298: =Skyggetabeller!B146 -> Gennemsnitlig varighed | D298: =Skyggetabeller!D146 -> 0 | E298: =Skyggetabeller!E146 -> 0 | F298: =Skyggetabeller!F146 -> 0 | G298: =Skyggetabeller!G146 -> 786.673913 | H298: =Skyggetabeller!H146 -> 703.4255319 | I298: =Skyggetabeller!I146 -> 779.372093 | J298: =Skyggetabeller!J146 -> 816.9142857 | K298: =Skyggetabeller!K146 -> 639.2972973 | L298: =Skyggetabeller!L146 -> 653.625 | M298: =Skyggetabeller!M146 -> 480.7111111 | N298: =Skyggetabeller!N146 -> 494.097561 | O298: =Skyggetabeller!O146 -> 509.8979592 | P298: =Skyggetabeller!P146 -> 477.6122449 | Q298: =Skyggetabeller!Q146 -> 553.1052632 | R298: =Skyggetabeller!R146 -> 470.255814
B299: =Skyggetabeller!B144 -> Samlet antal dage | D299: =Skyggetabeller!D144 -> 0 | E299: =Skyggetabeller!E144 -> 0 | F299: =Skyggetabeller!F144 -> 0 | G299: =Skyggetabeller!G144 -> 36187 | H299: =Skyggetabeller!H144 -> 33061 | I299: =Skyggetabeller!I144 -> 33513 | J299: =Skyggetabeller!J144 -> 28592 | K299: =Skyggetabeller!K144 -> 23654 | L299: =Skyggetabeller!L144 -> 26145 | M299: =Skyggetabeller!M144 -> 21632 | N299: =Skyggetabeller!N144 -> 20258 | O299: =Skyggetabeller!O144 -> 24985 | P299: =Skyggetabeller!P144 -> 23403 | Q299: =Skyggetabeller!Q144 -> 21018 | R299: =Skyggetabeller!R144 -> 20221
B300: =Skyggetabeller!B147 -> Hele landet
B301: =Skyggetabeller!B150 -> Gennemsnitlig varighed | D301: =Skyggetabeller!D150 -> 776.5768194 | E301: =Skyggetabeller!E150 -> 736.0897518 | F301: =Skyggetabeller!F150 -> 734.7623057 | G301: =Skyggetabeller!G150 -> 710.3873057 | H301: =Skyggetabeller!H150 -> 689.8194899 | I301: =Skyggetabeller!I150 -> 676.2236148 | J301: =Skyggetabeller!J150 -> 664.9709954 | K301: =Skyggetabeller!K150 -> 667.0904523 | L301: =Skyggetabeller!L150 -> 667.14613 | M301: =Skyggetabeller!M150 -> 645.1782178 | N301: =Skyggetabeller!N150 -> 660.8219498 | O301: =Skyggetabeller!O150 -> 628.5690033 | P301: =Skyggetabeller!P150 -> 629.2173679 | Q301: =Skyggetabeller!Q150 -> 635.1905529 | R301: =Skyggetabeller!R150 -> 632.0717678
B302: =Skyggetabeller!B148 -> Samlet antal dage | D302: =Skyggetabeller!D148 -> 1152440 | E302: =Skyggetabeller!E148 -> 1156397 | F302: =Skyggetabeller!F148 -> 1134473 | G302: =Skyggetabeller!G148 -> 1096838 | H302: =Skyggetabeller!H148 -> 1054734 | I302: =Skyggetabeller!I148 -> 1025155 | J302: =Skyggetabeller!J148 -> 1008761 | K302: =Skyggetabeller!K148 -> 1062008 | L302: =Skyggetabeller!L148 -> 1077441 | M302: =Skyggetabeller!M148 -> 1107771 | N302: =Skyggetabeller!N148 -> 1131988 | O302: =Skyggetabeller!O148 -> 1147767 | P302: =Skyggetabeller!P148 -> 1166569 | Q302: =Skyggetabeller!Q148 -> 1183360 | R302: =Skyggetabeller!R148 -> 1197776
B303: Anm.: Hvis nøgletallet er angivet med * er der foretaget en diskretionering af data, da der er for få observationer.
B304: =IF('Dine valg'!$G$24="","Ingen sammenligningsgruppe valgt.","Anm.: Valgte kommuner i sammenligningsgruppen: "&'Dine valg'!$G$24&" "&'Dine valg'!$G$25&" "&'Dine valg'!$G$26&" "&'Dine valg'!$G$27&" "&'Dine valg'!$G$28&" "&'Dine valg'!$G$29&" "&'Dine valg'!$G$30) -> Anm.: Valgte kommuner i sammenligningsgruppen: Aarhus
B305: Kilde: Socialstyrelsens egne beregninger baseret på registerdata fra Danmarks Statistik.
B308: =Skyggetabeller!B153 -> Nøgletal 3: Anbragte i plejefamilie
B310: Figur 3: Anbragte i plejefamilie | M310: Benyt, slet eller erstat gerne følgende tekst til beskrivelse af udviklingen over tid for det pågældende nøgletal. Beskrivelsen vil blive indsat i rapporten (skriv maks 20 linjer):
B333: Anm.: Hvis nøgletallet har værdien 0 i grafen kan det enten betyde 0 %, eller at der er foretaget en diskretionering af data, da der er for få observationer. Se tilhørende tabel for værdien.
B334: =IF('Dine valg'!$G$24="","Ingen sammenligningsgruppe valgt.","Anm.: Valgte kommuner i sammenligningsgruppen: "&'Dine valg'!$G$24&" "&'Dine valg'!$G$25&" "&'Dine valg'!$G$26&" "&'Dine valg'!$G$27&" "&'Dine valg'!$G$28&" "&'Dine valg'!$G$29&" "&'Dine valg'!$G$30) -> Anm.: Valgte kommuner i sammenligningsgruppen: Aarhus
B335: =Registerdata!$B$32 -> Kilde: Socialstyrelsens egne beregninger baseret på registerdata fra Danmarks Statistik.
B337: =Skyggetabeller!B155 -> Tabel 3: Anbragte i plejefamilie
B339: =Skyggetabeller!B156 -> Nøgletal 3: Anbragte i plejefamilie | D339: 2017-01-01 | E339: 2017-07-01 | F339: 2018-01-01 | G339: 2018-07-01 | H339: 2019-01-01 | I339: 2019-07-01 | J339: 2020-01-01 | K339: 2020-07-01 | L339: 2021-01-01 | M339: 2021-07-01 | N339: 2022-01-01 | O339: 2022-07-01 | P339: 2023-01-01 | Q339: 2023-07-01 | R339: 2024-01-01
B340: =Skyggetabeller!B157 -> København
B341: =Skyggetabeller!B160 -> Andel | D341: =Skyggetabeller!D160 -> 3.371582377 | E341: =Skyggetabeller!E160 -> 3.264336423 | F341: =Skyggetabeller!F160 -> 3.238378027 | G341: =Skyggetabeller!G160 -> 3.246454651 | H341: =Skyggetabeller!H160 -> 3.109708693 | I341: =Skyggetabeller!I160 -> 2.959923006 | J341: =Skyggetabeller!J160 -> 2.833372435 | K341: =Skyggetabeller!K160 -> 2.665034033 | L341: =Skyggetabeller!L160 -> 2.587287135 | M341: =Skyggetabeller!M160 -> 2.567486937 | N341: =Skyggetabeller!N160 -> 2.461248903 | O341: =Skyggetabeller!O160 -> 2.394030282 | P341: =Skyggetabeller!P160 -> 2.445076014 | Q341: =Skyggetabeller!Q160 -> 2.349763673 | R341: =Skyggetabeller!R160 -> 2.188638974
B342: =Skyggetabeller!B159 -> Antal 0-17-årige | D342: =Skyggetabeller!D159 -> 105885 | E342: =Skyggetabeller!E159 -> 106913 | F342: =Skyggetabeller!F159 -> 107770 | G342: =Skyggetabeller!G159 -> 108734 | H342: =Skyggetabeller!H159 -> 109335 | I342: =Skyggetabeller!I159 -> 110138 | J342: =Skyggetabeller!J159 -> 110822 | K342: =Skyggetabeller!K159 -> 111068 | L342: =Skyggetabeller!L159 -> 110927 | M342: =Skyggetabeller!M159 -> 110614 | N342: =Skyggetabeller!N159 -> 110513 | O342: =Skyggetabeller!O159 -> 110692 | P342: =Skyggetabeller!P159 -> 110835 | Q342: =Skyggetabeller!Q159 -> 111075 | R342: =Skyggetabeller!R159 -> 110571
B343: =Skyggetabeller!B161 -> Sammenligningsgruppe, gns.
B344: =Skyggetabeller!B164 -> Andel | D344: =Skyggetabeller!D164 -> 3.624628396 | E344: =Skyggetabeller!E164 -> 3.852434326 | F344: =Skyggetabeller!F164 -> 3.858012491 | G344: =Skyggetabeller!G164 -> 4.01511573 | H344: =Skyggetabeller!H164 -> 3.977549641 | I344: =Skyggetabeller!I164 -> 3.955795554 | J344: =Skyggetabeller!J164 -> 3.881671623 | K344: =Skyggetabeller!K164 -> 3.867265469 | L344: =Skyggetabeller!L164 -> 3.761619051 | M344: =Skyggetabeller!M164 -> 3.607694341 | N344: =Skyggetabeller!N164 -> 3.606613686 | O344: =Skyggetabeller!O164 -> 3.573870346 | P344: =Skyggetabeller!P164 -> 3.430611611 | Q344: =Skyggetabeller!Q164 -> 3.482918221 | R344: =Skyggetabeller!R164 -> 3.417613856
B345: =Skyggetabeller!B163 -> Antal 0-17-årige | D345: =Skyggetabeller!D163 -> 62903 | E345: =Skyggetabeller!E163 -> 63077 | F345: =Skyggetabeller!F163 -> 63245 | G345: =Skyggetabeller!G163 -> 63510 | H345: =Skyggetabeller!H163 -> 63607 | I345: =Skyggetabeller!I163 -> 63704 | J345: =Skyggetabeller!J163 -> 63890 | K345: =Skyggetabeller!K163 -> 64128 | L345: =Skyggetabeller!L163 -> 64334 | M345: =Skyggetabeller!M163 -> 64307 | N345: =Skyggetabeller!N163 -> 64049 | O345: =Skyggetabeller!O163 -> 64356 | P345: =Skyggetabeller!P163 -> 64420 | Q345: =Skyggetabeller!Q163 -> 64601 | R345: =Skyggetabeller!R163 -> 64665
B346: =Skyggetabeller!B165 -> Hele landet
B347: =Skyggetabeller!B168 -> Andel | D347: =Skyggetabeller!D168 -> 5.781539307 | E347: =Skyggetabeller!E168 -> 5.835949829 | F347: =Skyggetabeller!F168 -> 5.801068234 | G347: =Skyggetabeller!G168 -> 5.857020552 | H347: =Skyggetabeller!H168 -> 5.842152435 | I347: =Skyggetabeller!I168 -> 5.854546807 | J347: =Skyggetabeller!J168 -> 5.76499244 | K347: =Skyggetabeller!K168 -> 5.726665551 | L347: =Skyggetabeller!L168 -> 5.678368599 | M347: =Skyggetabeller!M168 -> 5.680169953 | N347: =Skyggetabeller!N168 -> 5.599529046 | O347: =Skyggetabeller!O168 -> 5.51650718 | P347: =Skyggetabeller!P168 -> 5.448108433 | Q347: =Skyggetabeller!Q168 -> 5.467186028 | R347: =Skyggetabeller!R168 -> 5.387073462
B348: =Skyggetabeller!B167 -> Antal 0-17-årige | D348: =Skyggetabeller!D167 -> 1168201 | E348: =Skyggetabeller!E167 -> 1165363 | F348: =Skyggetabeller!F167 -> 1165475 | G348: =Skyggetabeller!G167 -> 1162195 | H348: =Skyggetabeller!H167 -> 1160360 | I348: =Skyggetabeller!I167 -> 1156537 | J348: =Skyggetabeller!J167 -> 1156116 | K348: =Skyggetabeller!K167 -> 1153027 | L348: =Skyggetabeller!L167 -> 1152972 | M348: =Skyggetabeller!M167 -> 1151374 | N348: =Skyggetabeller!N167 -> 1151704 | O348: =Skyggetabeller!O167 -> 1157254 | P348: =Skyggetabeller!P167 -> 1155814 | Q348: =Skyggetabeller!Q167 -> 1151415 | R348: =Skyggetabeller!R167 -> 1148490
B349: =Registerdata!$B$30 -> Anm.: Hvis nøgletallet er angivet med * er der foretaget en diskretionering af data, da der er for få observationer.
B350: =IF('Dine valg'!$G$24="","Ingen sammenligningsgruppe valgt.","Anm.: Valgte kommuner i sammenligningsgruppen: "&'Dine valg'!$G$24&" "&'Dine valg'!$G$25&" "&'Dine valg'!$G$26&" "&'Dine valg'!$G$27&" "&'Dine valg'!$G$28&" "&'Dine valg'!$G$29&" "&'Dine valg'!$G$30) -> Anm.: Valgte kommuner i sammenligningsgruppen: Aarhus
B351: =Registerdata!$B$32 -> Kilde: Socialstyrelsens egne beregninger baseret på registerdata fra Danmarks Statistik.
B354: =Skyggetabeller!B171 -> Nøgletal 4: Anbragte i netværksplejefamilie
B356: Figur 4: Anbragte i netværksplejefamilie | M356: Benyt, slet eller erstat gerne følgende tekst til beskrivelse af udviklingen over tid for det pågældende nøgletal. Beskrivelsen vil blive indsat i rapporten (skriv maks 20 linjer):
B378: =Registerdata!$B$30 -> Anm.: Hvis nøgletallet er angivet med * er der foretaget en diskretionering af data, da der er for få observationer.
B379: =IF('Dine valg'!$G$24="","Ingen sammenligningsgruppe valgt.","Anm.: Valgte kommuner i sammenligningsgruppen: "&'Dine valg'!$G$24&" "&'Dine valg'!$G$25&" "&'Dine valg'!$G$26&" "&'Dine valg'!$G$27&" "&'Dine valg'!$G$28&" "&'Dine valg'!$G$29&" "&'Dine valg'!$G$30) -> Anm.: Valgte kommuner i sammenligningsgruppen: Aarhus
B380: =Registerdata!$B$32 -> Kilde: Socialstyrelsens egne beregninger baseret på registerdata fra Danmarks Statistik.
B382: =Skyggetabeller!B173 -> Tabel 4: Anbragte i netværksplejefamilie
B384: =Skyggetabeller!B174 -> Nøgletal 4: Anbragte i netværksplejefamilie | D384: 2017-01-01 | E384: 2017-07-01 | F384: 2018-01-01 | G384: 2018-07-01 | H384: 2019-01-01 | I384: 2019-07-01 | J384: 2020-01-01 | K384: 2020-07-01 | L384: 2021-01-01 | M384: 2021-07-01 | N384: 2022-01-01 | O384: 2022-07-01 | P384: 2023-01-01 | Q384: 2023-07-01 | R384: 2024-01-01
B385: =Skyggetabeller!B175 -> København
B386: =Skyggetabeller!B178 -> Andel | D386: =Skyggetabeller!D178 -> 1.001086084 | E386: =Skyggetabeller!E178 -> 1.056934143 | F386: =Skyggetabeller!F178 -> 1.029971235 | G386: =Skyggetabeller!G178 -> 0.9932495815 | H386: =Skyggetabeller!H178 -> 1.03352083 | I386: =Skyggetabeller!I178 -> 0.9805879896 | J386: =Skyggetabeller!J178 -> 0.9835592211 | K386: =Skyggetabeller!K178 -> 0.9813807757 | L386: =Skyggetabeller!L178 -> 1.045732779 | M386: =Skyggetabeller!M178 -> 1.030610953 | N386: =Skyggetabeller!N178 -> 1.02250414 | O386: =Skyggetabeller!O178 -> 1.011816572 | P386: =Skyggetabeller!P178 -> 1.019533541 | Q386: =Skyggetabeller!Q178 -> 0.9633130767 | R386: =Skyggetabeller!R178 -> 1.067187599
B387: =Skyggetabeller!B177 -> Antal 0-17-årige | D387: =Skyggetabeller!D177 -> 105885 | E387: =Skyggetabeller!E177 -> 106913 | F387: =Skyggetabeller!F177 -> 107770 | G387: =Skyggetabeller!G177 -> 108734 | H387: =Skyggetabeller!H177 -> 109335 | I387: =Skyggetabeller!I177 -> 110138 | J387: =Skyggetabeller!J177 -> 110822 | K387: =Skyggetabeller!K177 -> 111068 | L387: =Skyggetabeller!L177 -> 110927 | M387: =Skyggetabeller!M177 -> 110614 | N387: =Skyggetabeller!N177 -> 110513 | O387: =Skyggetabeller!O177 -> 110692 | P387: =Skyggetabeller!P177 -> 110835 | Q387: =Skyggetabeller!Q177 -> 111075 | R387: =Skyggetabeller!R177 -> 110571
B388: =Skyggetabeller!B179 -> Sammenligningsgruppe, gns.
B389: =Skyggetabeller!B182 -> Andel | D389: =Skyggetabeller!D182 -> 0.6517972116 | E389: =Skyggetabeller!E182 -> 0.5548773721 | F389: =Skyggetabeller!F182 -> 0.4901573247 | G389: =Skyggetabeller!G182 -> 0.393638797 | H389: =Skyggetabeller!H182 -> 0.3615954219 | I389: =Skyggetabeller!I182 -> 0.3610448323 | J389: =Skyggetabeller!J182 -> 0.3443418375 | K389: =Skyggetabeller!K182 -> 0.374251497 | L389: =Skyggetabeller!L182 -> 0.4041408897 | M389: =Skyggetabeller!M182 -> 0.3887601661 | N389: =Skyggetabeller!N182 -> 0.3434870178 | O389: =Skyggetabeller!O182 -> 0.3418484679 | P389: =Skyggetabeller!P182 -> 0.3880782366 | Q389: =Skyggetabeller!Q182 -> 0.40247055 | R389: =Skyggetabeller!R182 -> 0.4175365344
B390: =Skyggetabeller!B181 -> Antal 0-17-årige | D390: =Skyggetabeller!D181 -> 62903 | E390: =Skyggetabeller!E181 -> 63077 | F390: =Skyggetabeller!F181 -> 63245 | G390: =Skyggetabeller!G181 -> 63510 | H390: =Skyggetabeller!H181 -> 63607 | I390: =Skyggetabeller!I181 -> 63704 | J390: =Skyggetabeller!J181 -> 63890 | K390: =Skyggetabeller!K181 -> 64128 | L390: =Skyggetabeller!L181 -> 64334 | M390: =Skyggetabeller!M181 -> 64307 | N390: =Skyggetabeller!N181 -> 64049 | O390: =Skyggetabeller!O181 -> 64356 | P390: =Skyggetabeller!P181 -> 64420 | Q390: =Skyggetabeller!Q181 -> 64601 | R390: =Skyggetabeller!R181 -> 64665
B391: =Skyggetabeller!B183 -> Hele landet
B392: =Skyggetabeller!B186 -> Andel | D392: =Skyggetabeller!D186 -> 0.8174963041 | E392: =Skyggetabeller!E186 -> 0.8581017245 | F392: =Skyggetabeller!F186 -> 0.8279885883 | G392: =Skyggetabeller!G186 -> 0.8122561188 | H392: =Skyggetabeller!H186 -> 0.8135406253 | I392: =Skyggetabeller!I186 -> 0.7928842743 | J392: =Skyggetabeller!J186 -> 0.7776036315 | K392: =Skyggetabeller!K186 -> 0.7996343537 | L392: =Skyggetabeller!L186 -> 0.8213555923 | M392: =Skyggetabeller!M186 -> 0.8268381951 | N392: =Skyggetabeller!N186 -> 0.8118405424 | O392: =Skyggetabeller!O186 -> 0.8321422955 | P392: =Skyggetabeller!P186 -> 0.8703822587 | Q392: =Skyggetabeller!Q186 -> 0.8763130583 | R392: =Skyggetabeller!R186 -> 0.8968297504
B393: =Skyggetabeller!B185 -> Antal 0-17-årige | D393: =Skyggetabeller!D185 -> 1168201 | E393: =Skyggetabeller!E185 -> 1165363 | F393: =Skyggetabeller!F185 -> 1165475 | G393: =Skyggetabeller!G185 -> 1162195 | H393: =Skyggetabeller!H185 -> 1160360 | I393: =Skyggetabeller!I185 -> 1156537 | J393: =Skyggetabeller!J185 -> 1156116 | K393: =Skyggetabeller!K185 -> 1153027 | L393: =Skyggetabeller!L185 -> 1152972 | M393: =Skyggetabeller!M185 -> 1151374 | N393: =Skyggetabeller!N185 -> 1151704 | O393: =Skyggetabeller!O185 -> 1157254 | P393: =Skyggetabeller!P185 -> 1155814 | Q393: =Skyggetabeller!Q185 -> 1151415 | R393: =Skyggetabeller!R185 -> 1148490
B394: =Registerdata!$B$30 -> Anm.: Hvis nøgletallet er angivet med * er der foretaget en diskretionering af data, da der er for få observationer.
B395: =IF('Dine valg'!$G$24="","Ingen sammenligningsgruppe valgt.","Anm.: Valgte kommuner i sammenligningsgruppen: "&'Dine valg'!$G$24&" "&'Dine valg'!$G$25&" "&'Dine valg'!$G$26&" "&'Dine valg'!$G$27&" "&'Dine valg'!$G$28&" "&'Dine valg'!$G$29&" "&'Dine valg'!$G$30) -> Anm.: Valgte kommuner i sammenligningsgruppen: Aarhus
B396: =Registerdata!$B$32 -> Kilde: Socialstyrelsens egne beregninger baseret på registerdata fra Danmarks Statistik.
B399: =Skyggetabeller!B189 -> Nøgletal 5: Hjemmebaserede foranstaltninger
B401: Figur 5: Modtagere af hjemmebaserede foranstaltninger | M401: Benyt, slet eller erstat gerne følgende tekst til beskrivelse af udviklingen over tid for det pågældende nøgletal. Beskrivelsen vil blive indsat i rapporten (skriv maks 20 linjer):
B423: =Registerdata!$B$30 -> Anm.: Hvis nøgletallet er angivet med * er der foretaget en diskretionering af data, da der er for få observationer.
B424: =IF('Dine valg'!$G$24="","Ingen sammenligningsgruppe valgt.","Anm.: Valgte kommuner i sammenligningsgruppen: "&'Dine valg'!$G$24&" "&'Dine valg'!$G$25&" "&'Dine valg'!$G$26&" "&'Dine valg'!$G$27&" "&'Dine valg'!$G$28&" "&'Dine valg'!$G$29&" "&'Dine valg'!$G$30) -> Anm.: Valgte kommuner i sammenligningsgruppen: Aarhus
... 246 more rows

Sheet Skyggetabeller
B3: Skyggetabeller
B6: Nøgletal 1: Institutionsanbringelser
B8: Tabel 1: Institutionsanbringelser
B9: Nøgletal 1: Institutionsanbringelser | D9: 2017-01-01 | E9: 2017-07-01 | F9: 2018-01-01 | G9: 2018-07-01 | H9: 2019-01-01 | I9: 2019-07-01 | J9: 2020-01-01 | K9: 2020-07-01 | L9: 2021-01-01 | M9: 2021-07-01 | N9: 2022-01-01 | O9: 2022-07-01 | P9: 2023-01-01 | Q9: 2023-07-01 | R9: 2024-01-01
B10: =IF(Kommune="","Kommune",Kommune) -> København
B11: Antal anbragte | D11: =IFERROR(INDEX(Data_kom2,MATCH(1,(komnavn2=Kommune)*(komaar2=D9),0),4),"Data ikke tilføjet") -> 225 | E11: =IFERROR(INDEX(Data_kom2,MATCH(1,(komnavn2=Kommune)*(komaar2=E9),0),4),"Data ikke tilføjet") -> 227 | F11: =IFERROR(INDEX(Data_kom2,MATCH(1,(komnavn2=Kommune)*(komaar2=F9),0),4),"Data ikke tilføjet") -> 215 | G11: =IFERROR(INDEX(Data_kom2,MATCH(1,(komnavn2=Kommune)*(komaar2=G9),0),4),"Data ikke tilføjet") -> 219 | H11: =IFERROR(INDEX(Data_kom2,MATCH(1,(komnavn2=Kommune)*(komaar2=H9),0),4),"Data ikke tilføjet") -> 206 | I11: =IFERROR(INDEX(Data_kom2,MATCH(1,(komnavn2=Kommune)*(komaar2=I9),0),4),"Data ikke tilføjet") -> 195 | J11: =IFERROR(INDEX(Data_kom2,MATCH(1,(komnavn2=Kommune)*(komaar2=J9),0),4),"Data ikke tilføjet") -> 162 | K11: =IFERROR(INDEX(Data_kom2,MATCH(1,(komnavn2=Kommune)*(komaar2=K9),0),4),"Data ikke tilføjet") -> 183 | L11: =IFERROR(INDEX(Data_kom2,MATCH(1,(komnavn2=Kommune)*(komaar2=L9),0),4),"Data ikke tilføjet") -> 203 | M11: =IFERROR(INDEX(Data_kom2,MATCH(1,(komnavn2=Kommune)*(komaar2=M9),0),4),"Data ikke tilføjet") -> 221 | N11: =IFERROR(INDEX(Data_kom2,MATCH(1,(komnavn2=Kommune)*(komaar2=N9),0),4),"Data ikke tilføjet") -> 220 | O11: =IFERROR(INDEX(Data_kom2,MATCH(1,(komnavn2=Kommune)*(komaar2=O9),0),4),"Data ikke tilføjet") -> 246 | P11: =IFERROR(INDEX(Data_kom2,MATCH(1,(komnavn2=Kommune)*(komaar2=P9),0),4),"Data ikke tilføjet") -> 252 | Q11: =IFERROR(INDEX(Data_kom2,MATCH(1,(komnavn2=Kommune)*(komaar2=Q9),0),4),"Data ikke tilføjet") -> 274 | R11: =IFERROR(INDEX(Data_kom2,MATCH(1,(komnavn2=Kommune)*(komaar2=R9),0),4),"Data ikke tilføjet") -> 254
B12: Antal 0-17-årige | D12: =IFERROR(INDEX(Data_kom2,MATCH(1,(komnavn2=Kommune)*(komaar2=D9),0),2),"Data ikke tilføjet") -> 105885 | E12: =IFERROR(INDEX(Data_kom2,MATCH(1,(komnavn2=Kommune)*(komaar2=E9),0),2),"Data ikke tilføjet") -> 106913 | F12: =IFERROR(INDEX(Data_kom2,MATCH(1,(komnavn2=Kommune)*(komaar2=F9),0),2),"Data ikke tilføjet") -> 107770 | G12: =IFERROR(INDEX(Data_kom2,MATCH(1,(komnavn2=Kommune)*(komaar2=G9),0),2),"Data ikke tilføjet") -> 108734 | H12: =IFERROR(INDEX(Data_kom2,MATCH(1,(komnavn2=Kommune)*(komaar2=H9),0),2),"Data ikke tilføjet") -> 109335 | I12: =IFERROR(INDEX(Data_kom2,MATCH(1,(komnavn2=Kommune)*(komaar2=I9),0),2),"Data ikke tilføjet") -> 110138 | J12: =IFERROR(INDEX(Data_kom2,MATCH(1,(komnavn2=Kommune)*(komaar2=J9),0),2),"Data ikke tilføjet") -> 110822 | K12: =IFERROR(INDEX(Data_kom2,MATCH(1,(komnavn2=Kommune)*(komaar2=K9),0),2),"Data ikke tilføjet") -> 111068 | L12: =IFERROR(INDEX(Data_kom2,MATCH(1,(komnavn2=Kommune)*(komaar2=L9),0),2),"Data ikke tilføjet") -> 110927 | M12: =IFERROR(INDEX(Data_kom2,MATCH(1,(komnavn2=Kommune)*(komaar2=M9),0),2),"Data ikke tilføjet") -> 110614 | N12: =IFERROR(INDEX(Data_kom2,MATCH(1,(komnavn2=Kommune)*(komaar2=N9),0),2),"Data ikke tilføjet") -> 110513 | O12: =IFERROR(INDEX(Data_kom2,MATCH(1,(komnavn2=Kommune)*(komaar2=O9),0),2),"Data ikke tilføjet") -> 110692 | P12: =IFERROR(INDEX(Data_kom2,MATCH(1,(komnavn2=Kommune)*(komaar2=P9),0),2),"Data ikke tilføjet") -> 110835 | Q12: =IFERROR(INDEX(Data_kom2,MATCH(1,(komnavn2=Kommune)*(komaar2=Q9),0),2),"Data ikke tilføjet") -> 111075 | R12: =IFERROR(INDEX(Data_kom2,MATCH(1,(komnavn2=Kommune)*(komaar2=R9),0),2),"Data ikke tilføjet") -> 110571
B13: Andel | D13: =IFERROR(IF(D11="*","*",IF(D12=0,"#I/T",(D11/D12*1000))),"Data ikke tilføjet") -> 2.124946876 | E13: 2.123221685 | F13: 1.994989329 | G13: 2.014089429 | H13: 1.88411762 | I13: 1.770506092 | J13: 1.461803613 | K13: 1.647639284 | L13: 1.830032364 | M13: =IFERROR(IF(M11="*","*",IF(M12=0,"#I/T",(M11/M12*1000))),"Data ikke tilføjet") -> 1.997938778 | N13: 1.990716024 | O13: 2.222382828 | P13: 2.27365002 | Q13: 2.466801711 | R13: 2.297166526
B14: Sammenligningsgruppe, gns.
B15: Antal anbragte | D15: =IF('Dine valg'!$G$24="","-",SUMIF(Hjælpefane!$D$7:$D$111,"="&D$9,Hjælpefane!$E$7:$E$111)) -> 188 | E15: =IF('Dine valg'!$G$24="","-",SUMIF(Hjælpefane!$D$7:$D$111,"="&E$9,Hjælpefane!$E$7:$E$111)) -> 186 | F15: =IF('Dine valg'!$G$24="","-",SUMIF(Hjælpefane!$D$7:$D$111,"="&F$9,Hjælpefane!$E$7:$E$111)) -> 178 | G15: =IF('Dine valg'!$G$24="","-",SUMIF(Hjælpefane!$D$7:$D$111,"="&G$9,Hjælpefane!$E$7:$E$111)) -> 166 | H15: =IF('Dine valg'!$G$24="","-",SUMIF(Hjælpefane!$D$7:$D$111,"="&H$9,Hjælpefane!$E$7:$E$111)) -> 173 | I15: =IF('Dine valg'!$G$24="","-",SUMIF(Hjælpefane!$D$7:$D$111,"="&I$9,Hjælpefane!$E$7:$E$111)) -> 173 | J15: =IF('Dine valg'!$G$24="","-",SUMIF(Hjælpefane!$D$7:$D$111,"="&J$9,Hjælpefane!$E$7:$E$111)) -> 166 | K15: =IF('Dine valg'!$G$24="","-",SUMIF(Hjælpefane!$D$7:$D$111,"="&K$9,Hjælpefane!$E$7:$E$111)) -> 168 | L15: =IF('Dine valg'!$G$24="","-",SUMIF(Hjælpefane!$D$7:$D$111,"="&L$9,Hjælpefane!$E$7:$E$111)) -> 169 | M15: =IF('Dine valg'!$G$24="","-",SUMIF(Hjælpefane!$D$7:$D$111,"="&M$9,Hjælpefane!$E$7:$E$111)) -> 168 | N15: =IF('Dine valg'!$G$24="","-",SUMIF(Hjælpefane!$D$7:$D$111,"="&N$9,Hjælpefane!$E$7:$E$111)) -> 154 | O15: =IF('Dine valg'!$G$24="","-",SUMIF(Hjælpefane!$D$7:$D$111,"="&O$9,Hjælpefane!$E$7:$E$111)) -> 168 | P15: =IF('Dine valg'!$G$24="","-",SUMIF(Hjælpefane!$D$7:$D$111,"="&P$9,Hjælpefane!$E$7:$E$111)) -> 162 | Q15: =IF('Dine valg'!$G$24="","-",SUMIF(Hjælpefane!$D$7:$D$111,"="&Q$9,Hjælpefane!$E$7:$E$111)) -> 161 | R15: =IF('Dine valg'!$G$24="","-",SUMIF(Hjælpefane!$D$7:$D$111,"="&R$9,Hjælpefane!$E$7:$E$111)) -> 152
B16: Antal 0-17-årige | D16: =IF('Dine valg'!$G$24="","-",SUMIF(Hjælpefane!$D$7:$D$111,"="&D$9,Hjælpefane!$C$7:$C$111)) -> 62903 | E16: =IF('Dine valg'!$G$24="","-",SUMIF(Hjælpefane!$D$7:$D$111,"="&E$9,Hjælpefane!$C$7:$C$111)) -> 63077 | F16: =IF('Dine valg'!$G$24="","-",SUMIF(Hjælpefane!$D$7:$D$111,"="&F$9,Hjælpefane!$C$7:$C$111)) -> 63245 | G16: =IF('Dine valg'!$G$24="","-",SUMIF(Hjælpefane!$D$7:$D$111,"="&G$9,Hjælpefane!$C$7:$C$111)) -> 63510 | H16: =IF('Dine valg'!$G$24="","-",SUMIF(Hjælpefane!$D$7:$D$111,"="&H$9,Hjælpefane!$C$7:$C$111)) -> 63607 | I16: =IF('Dine valg'!$G$24="","-",SUMIF(Hjælpefane!$D$7:$D$111,"="&I$9,Hjælpefane!$C$7:$C$111)) -> 63704 | J16: =IF('Dine valg'!$G$24="","-",SUMIF(Hjælpefane!$D$7:$D$111,"="&J$9,Hjælpefane!$C$7:$C$111)) -> 63890 | K16: =IF('Dine valg'!$G$24="","-",SUMIF(Hjælpefane!$D$7:$D$111,"="&K$9,Hjælpefane!$C$7:$C$111)) -> 64128 | L16: =IF('Dine valg'!$G$24="","-",SUMIF(Hjælpefane!$D$7:$D$111,"="&L$9,Hjælpefane!$C$7:$C$111)) -> 64334 | M16: =IF('Dine valg'!$G$24="","-",SUMIF(Hjælpefane!$D$7:$D$111,"="&M$9,Hjælpefane!$C$7:$C$111)) -> 64307 | N16: =IF('Dine valg'!$G$24="","-",SUMIF(Hjælpefane!$D$7:$D$111,"="&N$9,Hjælpefane!$C$7:$C$111)) -> 64049 | O16: =IF('Dine valg'!$G$24="","-",SUMIF(Hjælpefane!$D$7:$D$111,"="&O$9,Hjælpefane!$C$7:$C$111)) -> 64356 | P16: =IF('Dine valg'!$G$24="","-",SUMIF(Hjælpefane!$D$7:$D$111,"="&P$9,Hjælpefane!$C$7:$C$111)) -> 64420 | Q16: =IF('Dine valg'!$G$24="","-",SUMIF(Hjælpefane!$D$7:$D$111,"="&Q$9,Hjælpefane!$C$7:$C$111)) -> 64601 | R16: =IF('Dine valg'!$G$24="","-",SUMIF(Hjælpefane!$D$7:$D$111,"="&R$9,Hjælpefane!$C$7:$C$111)) -> 64665
B17: Andel | D17: =IFERROR(IF(D15="*","*",IF(D16="","Indtast data",(D15/D16*1000))),"-") -> 2.988728677 | E17: =IFERROR(IF(E15="*","*",IF(E16="","Indtast data",(E15/E16*1000))),"-") -> 2.948776892 | F17: 2.814451735 | G17: 2.613761612 | H17: 2.719826434 | I17: 2.715685043 | J17: 2.598215683 | K17: 2.619760479 | L17: 2.626915783 | M17: =IFERROR(IF(M15="*","*",IF(M16="","Indtast data",(M15/M16*1000))),"-") -> 2.612468316 | N17: 2.404409124 | O17: 2.610479209 | P17: 2.514746973 | Q17: 2.492221483 | R17: 2.350576046
B18: Hele landet
B19: Antal anbragte | D19: =INDEX(Data_land,MATCH(Skyggetabeller!D9,Data!landaar,0),4) -> 3383 | E19: =INDEX(Data_land,MATCH(Skyggetabeller!E9,Data!landaar,0),4) -> 3460 | F19: =INDEX(Data_land,MATCH(Skyggetabeller!F9,Data!landaar,0),4) -> 3369 | G19: =INDEX(Data_land,MATCH(Skyggetabeller!G9,Data!landaar,0),4) -> 3409 | H19: =INDEX(Data_land,MATCH(Skyggetabeller!H9,Data!landaar,0),4) -> 3309 | I19: =INDEX(Data_land,MATCH(Skyggetabeller!I9,Data!landaar,0),4) -> 3282 | J19: =INDEX(Data_land,MATCH(Skyggetabeller!J9,Data!landaar,0),4) -> 3274 | K19: =INDEX(Data_land,MATCH(Skyggetabeller!K9,Data!landaar,0),4) -> 3343 | L19: =INDEX(Data_land,MATCH(Skyggetabeller!L9,Data!landaar,0),4) -> 3404 | M19: =INDEX(Data_land,MATCH(Skyggetabeller!M9,Data!landaar,0),4) -> 3494 | N19: =INDEX(Data_land,MATCH(Skyggetabeller!N9,Data!landaar,0),4) -> 3486 | O19: =INDEX(Data_land,MATCH(Skyggetabeller!O9,Data!landaar,0),4) -> 3675 | P19: =INDEX(Data_land,MATCH(Skyggetabeller!P9,Data!landaar,0),4) -> 3708 | Q19: =INDEX(Data_land,MATCH(Skyggetabeller!Q9,Data!landaar,0),4) -> 3769 | R19: =INDEX(Data_land,MATCH(Skyggetabeller!R9,Data!landaar,0),4) -> 3790
B20: Antal 0-17-årige | D20: =INDEX(Data_land,MATCH(Skyggetabeller!D9,Data!landaar,0),2) -> 1168201 | E20: =INDEX(Data_land,MATCH(Skyggetabeller!E9,Data!landaar,0),2) -> 1165363 | F20: =INDEX(Data_land,MATCH(Skyggetabeller!F9,Data!landaar,0),2) -> 1165475 | G20: =INDEX(Data_land,MATCH(Skyggetabeller!G9,Data!landaar,0),2) -> 1162195 | H20: =INDEX(Data_land,MATCH(Skyggetabeller!H9,Data!landaar,0),2) -> 1160360 | I20: =INDEX(Data_land,MATCH(Skyggetabeller!I9,Data!landaar,0),2) -> 1156537 | J20: =INDEX(Data_land,MATCH(Skyggetabeller!J9,Data!landaar,0),2) -> 1156116 | K20: =INDEX(Data_land,MATCH(Skyggetabeller!K9,Data!landaar,0),2) -> 1153027 | L20: =INDEX(Data_land,MATCH(Skyggetabeller!L9,Data!landaar,0),2) -> 1152972 | M20: =INDEX(Data_land,MATCH(Skyggetabeller!M9,Data!landaar,0),2) -> 1151374 | N20: =INDEX(Data_land,MATCH(Skyggetabeller!N9,Data!landaar,0),2) -> 1151704 | O20: =INDEX(Data_land,MATCH(Skyggetabeller!O9,Data!landaar,0),2) -> 1157254 | P20: =INDEX(Data_land,MATCH(Skyggetabeller!P9,Data!landaar,0),2) -> 1155814 | Q20: =INDEX(Data_land,MATCH(Skyggetabeller!Q9,Data!landaar,0),2) -> 1151415 | R20: =INDEX(Data_land,MATCH(Skyggetabeller!R9,Data!landaar,0),2) -> 1148490
B21: Andel | D21: =IFERROR(IF(D19="*","*",IF(D20=0,"#I/T",(D19/D20*1000))),"Data ikke tilføjet") -> 2.895905756 | E21: 2.969031967 | F21: 2.890666895 | G21: 2.9332427 | H21: 2.851701196 | I21: 2.837782103 | J21: 2.831895761 | K21: 2.899324994 | L21: 2.952370049 | M21: =IFERROR(IF(M19="*","*",IF(M20=0,"#I/T",(M19/M20*1000))),"Data ikke tilføjet") -> 3.03463514 | N21: 3.026819391 | O21: 3.175620909 | P21: 3.208128644 | Q21: 3.273363644 | R21: 3.299985198
B23: Tabel 1.1: Anbragte på døgninstitutioner
B24: Nøgletal 1.1 Anbragte på døgninstitutioner | D24: 2017-01-01 | E24: 2017-07-01 | F24: 2018-01-01 | G24: 2018-07-01 | H24: 2019-01-01 | I24: 2019-07-01 | J24: 2020-01-01 | K24: 2020-07-01 | L24: 2021-01-01 | M24: 2021-07-01 | N24: 2022-01-01 | O24: 2022-07-01 | P24: 2023-01-01 | Q24: 2023-07-01 | R24: 2024-01-01
B25: =IF(Kommune="","Kommune",Kommune) -> København
B26: Antal anbragte | D26: =IFERROR(IF(INDEX(Data_kom2,MATCH(1,(komnavn2=Kommune)*(komaar2=D24),0),5)="*","*",INDEX(Data_kom2,MATCH(1,(komnavn2=Kommune)*(komaar2=D24),0),5)),"Data ikke tilføjet") -> 172 | E26: =IFERROR(IF(INDEX(Data_kom2,MATCH(1,(komnavn2=Kommune)*(komaar2=E24),0),5)="*","*",INDEX(Data_kom2,MATCH(1,(komnavn2=Kommune)*(komaar2=E24),0),5)),"Data ikke tilføjet") -> 183 | F26: =IFERROR(IF(INDEX(Data_kom2,MATCH(1,(komnavn2=Kommune)*(komaar2=F24),0),5)="*","*",INDEX(Data_kom2,MATCH(1,(komnavn2=Kommune)*(komaar2=F24),0),5)),"Data ikke tilføjet") -> 176 | G26: =IFERROR(IF(INDEX(Data_kom2,MATCH(1,(komnavn2=Kommune)*(komaar2=G24),0),5)="*","*",INDEX(Data_kom2,MATCH(1,(komnavn2=Kommune)*(komaar2=G24),0),5)),"Data ikke tilføjet") -> 176 | H26: =IFERROR(IF(INDEX(Data_kom2,MATCH(1,(komnavn2=Kommune)*(komaar2=H24),0),5)="*","*",INDEX(Data_kom2,MATCH(1,(komnavn2=Kommune)*(komaar2=H24),0),5)),"Data ikke tilføjet") -> 164 | I26: =IFERROR(IF(INDEX(Data_kom2,MATCH(1,(komnavn2=Kommune)*(komaar2=I24),0),5)="*","*",INDEX(Data_kom2,MATCH(1,(komnavn2=Kommune)*(komaar2=I24),0),5)),"Data ikke tilføjet") -> 155 | J26: =IFERROR(IF(INDEX(Data_kom2,MATCH(1,(komnavn2=Kommune)*(komaar2=J24),0),5)="*","*",INDEX(Data_kom2,MATCH(1,(komnavn2=Kommune)*(komaar2=J24),0),5)),"Data ikke tilføjet") -> 139 | K26: =IFERROR(IF(INDEX(Data_kom2,MATCH(1,(komnavn2=Kommune)*(komaar2=K24),0),5)="*","*",INDEX(Data_kom2,MATCH(1,(komnavn2=Kommune)*(komaar2=K24),0),5)),"Data ikke tilføjet") -> 148 | L26: =IFERROR(IF(INDEX(Data_kom2,MATCH(1,(komnavn2=Kommune)*(komaar2=L24),0),5)="*","*",INDEX(Data_kom2,MATCH(1,(komnavn2=Kommune)*(komaar2=L24),0),5)),"Data ikke tilføjet") -> 159 | M26: =IFERROR(IF(INDEX(Data_kom2,MATCH(1,(komnavn2=Kommune)*(komaar2=M24),0),5)="*","*",INDEX(Data_kom2,MATCH(1,(komnavn2=Kommune)*(komaar2=M24),0),5)),"Data ikke tilføjet") -> 164 | N26: =IFERROR(IF(INDEX(Data_kom2,MATCH(1,(komnavn2=Kommune)*(komaar2=N24),0),5)="*","*",INDEX(Data_kom2,MATCH(1,(komnavn2=Kommune)*(komaar2=N24),0),5)),"Data ikke tilføjet") -> 171 | O26: =IFERROR(IF(INDEX(Data_kom2,MATCH(1,(komnavn2=Kommune)*(komaar2=O24),0),5)="*","*",INDEX(Data_kom2,MATCH(1,(komnavn2=Kommune)*(komaar2=O24),0),5)),"Data ikke tilføjet") -> 194 | P26: =IFERROR(IF(INDEX(Data_kom2,MATCH(1,(komnavn2=Kommune)*(komaar2=P24),0),5)="*","*",INDEX(Data_kom2,MATCH(1,(komnavn2=Kommune)*(komaar2=P24),0),5)),"Data ikke tilføjet") -> 200 | Q26: =IFERROR(IF(INDEX(Data_kom2,MATCH(1,(komnavn2=Kommune)*(komaar2=Q24),0),5)="*","*",INDEX(Data_kom2,MATCH(1,(komnavn2=Kommune)*(komaar2=Q24),0),5)),"Data ikke tilføjet") -> 220 | R26: =IFERROR(IF(INDEX(Data_kom2,MATCH(1,(komnavn2=Kommune)*(komaar2=R24),0),5)="*","*",INDEX(Data_kom2,MATCH(1,(komnavn2=Kommune)*(komaar2=R24),0),5)),"Data ikke tilføjet") -> 189
B27: Antal 0-17-årige | D27: =D$11 -> 225 | E27: =E$11 -> 227 | F27: 215 | G27: 219 | H27: 206 | I27: 195 | J27: 162 | K27: 183 | L27: 203 | M27: 221 | N27: 220 | O27: 246 | P27: 252 | Q27: 274 | R27: 254
B28: Andel | D28: =IFERROR(IF(D26="*","*",IF(D27=0,"#I/T",(D26/D27))),"Data ikke tilføjet") -> 0.7644444444 | E28: =IFERROR(IF(E26="*","*",IF(E27=0,"#I/T",(E26/E27))),"Data ikke tilføjet") -> 0.8061674009 | F28: =IFERROR(IF(F26="*","*",IF(F27=0,"#I/T",(F26/F27))),"Data ikke tilføjet") -> 0.8186046512 | G28: =IFERROR(IF(G26="*","*",IF(G27=0,"#I/T",(G26/G27))),"Data ikke tilføjet") -> 0.803652968 | H28: =IFERROR(IF(H26="*","*",IF(H27=0,"#I/T",(H26/H27))),"Data ikke tilføjet") -> 0.7961165049 | I28: =IFERROR(IF(I26="*","*",IF(I27=0,"#I/T",(I26/I27))),"Data ikke tilføjet") -> 0.7948717949 | J28: =IFERROR(IF(J26="*","*",IF(J27=0,"#I/T",(J26/J27))),"Data ikke tilføjet") -> 0.8580246914 | K28: =IFERROR(IF(K26="*","*",IF(K27=0,"#I/T",(K26/K27))),"Data ikke tilføjet") -> 0.8087431694 | L28: =IFERROR(IF(L26="*","*",IF(L27=0,"#I/T",(L26/L27))),"Data ikke tilføjet") -> 0.7832512315 | M28: =IFERROR(IF(M26="*","*",IF(M27=0,"#I/T",(M26/M27))),"Data ikke tilføjet") -> 0.742081448 | N28: =IFERROR(IF(N26="*","*",IF(N27=0,"#I/T",(N26/N27))),"Data ikke tilføjet") -> 0.7772727273 | O28: =IFERROR(IF(O26="*","*",IF(O27=0,"#I/T",(O26/O27))),"Data ikke tilføjet") -> 0.7886178862 | P28: =IFERROR(IF(P26="*","*",IF(P27=0,"#I/T",(P26/P27))),"Data ikke tilføjet") -> 0.7936507937 | Q28: =IFERROR(IF(Q26="*","*",IF(Q27=0,"#I/T",(Q26/Q27))),"Data ikke tilføjet") -> 0.802919708 | R28: =IFERROR(IF(R26="*","*",IF(R27=0,"#I/T",(R26/R27))),"Data ikke tilføjet") -> 0.7440944882
B29: Sammenligningsgruppe, gns.
B30: Antal anbragte | D30: =IF('Dine valg'!$G$24="","-",SUMIF(Hjælpefane!$D$7:$D$111,"="&D$9,Hjælpefane!$F$7:$F$111)) -> 129 | E30: =IF('Dine valg'!$G$24="","-",SUMIF(Hjælpefane!$D$7:$D$111,"="&E$9,Hjælpefane!$F$7:$F$111)) -> 130 | F30: =IF('Dine valg'!$G$24="","-",SUMIF(Hjælpefane!$D$7:$D$111,"="&F$9,Hjælpefane!$F$7:$F$111)) -> 116 | G30: =IF('Dine valg'!$G$24="","-",SUMIF(Hjælpefane!$D$7:$D$111,"="&G$9,Hjælpefane!$F$7:$F$111)) -> 113 | H30: =IF('Dine valg'!$G$24="","-",SUMIF(Hjælpefane!$D$7:$D$111,"="&H$9,Hjælpefane!$F$7:$F$111)) -> 116 | I30: =IF('Dine valg'!$G$24="","-",SUMIF(Hjælpefane!$D$7:$D$111,"="&I$9,Hjælpefane!$F$7:$F$111)) -> 122 | J30: =IF('Dine valg'!$G$24="","-",SUMIF(Hjælpefane!$D$7:$D$111,"="&J$9,Hjælpefane!$F$7:$F$111)) -> 116 | K30: =IF('Dine valg'!$G$24="","-",SUMIF(Hjælpefane!$D$7:$D$111,"="&K$9,Hjælpefane!$F$7:$F$111)) -> 121 | L30: =IF('Dine valg'!$G$24="","-",SUMIF(Hjælpefane!$D$7:$D$111,"="&L$9,Hjælpefane!$F$7:$F$111)) -> 115 | M30: =IF('Dine valg'!$G$24="","-",SUMIF(Hjælpefane!$D$7:$D$111,"="&M$9,Hjælpefane!$F$7:$F$111)) -> 112 | N30: =IF('Dine valg'!$G$24="","-",SUMIF(Hjælpefane!$D$7:$D$111,"="&N$9,Hjælpefane!$F$7:$F$111)) -> 102 | O30: =IF('Dine valg'!$G$24="","-",SUMIF(Hjælpefane!$D$7:$D$111,"="&O$9,Hjælpefane!$F$7:$F$111)) -> 105 | P30: =IF('Dine valg'!$G$24="","-",SUMIF(Hjælpefane!$D$7:$D$111,"="&P$9,Hjælpefane!$F$7:$F$111)) -> 103 | Q30: =IF('Dine valg'!$G$24="","-",SUMIF(Hjælpefane!$D$7:$D$111,"="&Q$9,Hjælpefane!$F$7:$F$111)) -> 110 | R30: =IF('Dine valg'!$G$24="","-",SUMIF(Hjælpefane!$D$7:$D$111,"="&R$9,Hjælpefane!$F$7:$F$111)) -> 101
B31: Antal 0-17-årige | D31: =D$15 -> 188 | E31: =E$15 -> 186 | F31: 178 | G31: 166 | H31: 173 | I31: 173 | J31: 166 | K31: 168 | L31: 169 | M31: 168 | N31: 154 | O31: 168 | P31: 162 | Q31: 161 | R31: 152
B32: Andel | D32: =IFERROR(IF(D30="*","*",IF(D31="","Indtast data",(D30/D31))),"-") -> 0.6861702128 | E32: =IFERROR(IF(E30="*","*",IF(E31="","Indtast data",(E30/E31))),"-") -> 0.6989247312 | F32: 0.6516853933 | G32: 0.6807228916 | H32: 0.6705202312 | I32: 0.7052023121 | J32: 0.6987951807 | K32: 0.7202380952 | L32: 0.6804733728 | M32: =IFERROR(IF(M30="*","*",IF(M31="","Indtast data",(M30/M31))),"-") -> 0.6666666667 | N32: 0.6623376623 | O32: 0.625 | P32: 0.6358024691 | Q32: 0.6832298137 | R32: 0.6644736842
B33: Hele landet
B34: Antal anbragte | D34: =INDEX(Data_land,MATCH(Skyggetabeller!D24,Data!landaar,0),5) -> 1818 | E34: =INDEX(Data_land,MATCH(Skyggetabeller!E24,Data!landaar,0),5) -> 1809 | F34: =INDEX(Data_land,MATCH(Skyggetabeller!F24,Data!landaar,0),5) -> 1761 | G34: =INDEX(Data_land,MATCH(Skyggetabeller!G24,Data!landaar,0),5) -> 1780 | H34: =INDEX(Data_land,MATCH(Skyggetabeller!H24,Data!landaar,0),5) -> 1704 | I34: =INDEX(Data_land,MATCH(Skyggetabeller!I24,Data!landaar,0),5) -> 1695 | J34: =INDEX(Data_land,MATCH(Skyggetabeller!J24,Data!landaar,0),5) -> 1680 | K34: =INDEX(Data_land,MATCH(Skyggetabeller!K24,Data!landaar,0),5) -> 1669 | L34: =INDEX(Data_land,MATCH(Skyggetabeller!L24,Data!landaar,0),5) -> 1694 | M34: =INDEX(Data_land,MATCH(Skyggetabeller!M24,Data!landaar,0),5) -> 1680 | N34: =INDEX(Data_land,MATCH(Skyggetabeller!N24,Data!landaar,0),5) -> 1689 | O34: =INDEX(Data_land,MATCH(Skyggetabeller!O24,Data!landaar,0),5) -> 1762 | P34: =INDEX(Data_land,MATCH(Skyggetabeller!P24,Data!landaar,0),5) -> 1768 | Q34: =INDEX(Data_land,MATCH(Skyggetabeller!Q24,Data!landaar,0),5) -> 1815 | R34: =INDEX(Data_land,MATCH(Skyggetabeller!R24,Data!landaar,0),5) -> 1800
B35: Antal 0-17-årige | D35: =INDEX(Data_land,MATCH(Skyggetabeller!D24,Data!landaar,0),4) -> 3383 | E35: =INDEX(Data_land,MATCH(Skyggetabeller!E24,Data!landaar,0),4) -> 3460 | F35: =INDEX(Data_land,MATCH(Skyggetabeller!F24,Data!landaar,0),4) -> 3369 | G35: =INDEX(Data_land,MATCH(Skyggetabeller!G24,Data!landaar,0),4) -> 3409 | H35: =INDEX(Data_land,MATCH(Skyggetabeller!H24,Data!landaar,0),4) -> 3309 | I35: =INDEX(Data_land,MATCH(Skyggetabeller!I24,Data!landaar,0),4) -> 3282 | J35: =INDEX(Data_land,MATCH(Skyggetabeller!J24,Data!landaar,0),4) -> 3274 | K35: =INDEX(Data_land,MATCH(Skyggetabeller!K24,Data!landaar,0),4) -> 3343 | L35: =INDEX(Data_land,MATCH(Skyggetabeller!L24,Data!landaar,0),4) -> 3404 | M35: =INDEX(Data_land,MATCH(Skyggetabeller!M24,Data!landaar,0),4) -> 3494 | N35: =INDEX(Data_land,MATCH(Skyggetabeller!N24,Data!landaar,0),4) -> 3486 | O35: =INDEX(Data_land,MATCH(Skyggetabeller!O24,Data!landaar,0),4) -> 3675 | P35: =INDEX(Data_land,MATCH(Skyggetabeller!P24,Data!landaar,0),4) -> 3708 | Q35: =INDEX(Data_land,MATCH(Skyggetabeller!Q24,Data!landaar,0),4) -> 3769 | R35: =INDEX(Data_land,MATCH(Skyggetabeller!R24,Data!landaar,0),4) -> 3790
B36: Andel | D36: =IFERROR(IF(D34="*","*",IF(D35=0,"#I/T",(D34/D35))),"Data ikke tilføjet") -> 0.5373928466 | E36: =IFERROR(IF(E34="*","*",IF(E35=0,"#I/T",(E34/E35))),"Data ikke tilføjet") -> 0.5228323699 | F36: =IFERROR(IF(F34="*","*",IF(F35=0,"#I/T",(F34/F35))),"Data ikke tilføjet") -> 0.5227070347 | G36: =IFERROR(IF(G34="*","*",IF(G35=0,"#I/T",(G34/G35))),"Data ikke tilføjet") -> 0.5221472573 | H36: =IFERROR(IF(H34="*","*",IF(H35=0,"#I/T",(H34/H35))),"Data ikke tilføjet") -> 0.5149592022 | I36: =IFERROR(IF(I34="*","*",IF(I35=0,"#I/T",(I34/I35))),"Data ikke tilføjet") -> 0.5164533821 | J36: =IFERROR(IF(J34="*","*",IF(J35=0,"#I/T",(J34/J35))),"Data ikke tilføjet") -> 0.5131337813 | K36: =IFERROR(IF(K34="*","*",IF(K35=0,"#I/T",(K34/K35))),"Data ikke tilføjet") -> 0.4992521687 | L36: =IFERROR(IF(L34="*","*",IF(L35=0,"#I/T",(L34/L35))),"Data ikke tilføjet") -> 0.4976498237 | M36: =IFERROR(IF(M34="*","*",IF(M35=0,"#I/T",(M34/M35))),"Data ikke tilføjet") -> 0.4808242702 | N36: =IFERROR(IF(N34="*","*",IF(N35=0,"#I/T",(N34/N35))),"Data ikke tilføjet") -> 0.4845094664 | O36: =IFERROR(IF(O34="*","*",IF(O35=0,"#I/T",(O34/O35))),"Data ikke tilføjet") -> 0.4794557823 | P36: =IFERROR(IF(P34="*","*",IF(P35=0,"#I/T",(P34/P35))),"Data ikke tilføjet") -> 0.476806904 | Q36: =IFERROR(IF(Q34="*","*",IF(Q35=0,"#I/T",(Q34/Q35))),"Data ikke tilføjet") -> 0.4815600955 | R36: =IFERROR(IF(R34="*","*",IF(R35=0,"#I/T",(R34/R35))),"Data ikke tilføjet") -> 0.4749340369
B38: Tabel 1.2: Anbragte på sikrede døgninstitutioner
B39: Nøgletal 1.2 Anbragte på sikrede døgninstitutioner | D39: 2017-01-01 | E39: 2017-07-01 | F39: 2018-01-01 | G39: 2018-07-01 | H39: 2019-01-01 | I39: 2019-07-01 | J39: 2020-01-01 | K39: 2020-07-01 | L39: 2021-01-01 | M39: 2021-07-01 | N39: 2022-01-01 | O39: 2022-07-01 | P39: 2023-01-01 | Q39: 2023-07-01 | R39: 2024-01-01
B40: =IF(Kommune="","Kommune",Kommune) -> København
B41: Antal anbragte | D41: =IFERROR(IF(INDEX(Data_kom2,MATCH(1,(komnavn2=Kommune)*(komaar2=D39),0),6)="*","*",INDEX(Data_kom2,MATCH(1,(komnavn2=Kommune)*(komaar2=D39),0),6)),"Data ikke tilføjet") -> 7 | E41: =IFERROR(IF(INDEX(Data_kom2,MATCH(1,(komnavn2=Kommune)*(komaar2=E39),0),6)="*","*",INDEX(Data_kom2,MATCH(1,(komnavn2=Kommune)*(komaar2=E39),0),6)),"Data ikke tilføjet") -> 6 | F41: =IFERROR(IF(INDEX(Data_kom2,MATCH(1,(komnavn2=Kommune)*(komaar2=F39),0),6)="*","*",INDEX(Data_kom2,MATCH(1,(komnavn2=Kommune)*(komaar2=F39),0),6)),"Data ikke tilføjet") -> 6 | G41: =IFERROR(IF(INDEX(Data_kom2,MATCH(1,(komnavn2=Kommune)*(komaar2=G39),0),6)="*","*",INDEX(Data_kom2,MATCH(1,(komnavn2=Kommune)*(komaar2=G39),0),6)),"Data ikke tilføjet") -> 11 | H41: =IFERROR(IF(INDEX(Data_kom2,MATCH(1,(komnavn2=Kommune)*(komaar2=H39),0),6)="*","*",INDEX(Data_kom2,MATCH(1,(komnavn2=Kommune)*(komaar2=H39),0),6)),"Data ikke tilføjet") -> 9 | I41: =IFERROR(IF(INDEX(Data_kom2,MATCH(1,(komnavn2=Kommune)*(komaar2=I39),0),6)="*","*",INDEX(Data_kom2,MATCH(1,(komnavn2=Kommune)*(komaar2=I39),0),6)),"Data ikke tilføjet") -> 4 | J41: =IFERROR(IF(INDEX(Data_kom2,MATCH(1,(komnavn2=Kommune)*(komaar2=J39),0),6)="*","*",INDEX(Data_kom2,MATCH(1,(komnavn2=Kommune)*(komaar2=J39),0),6)),"Data ikke tilføjet") -> * | K41: =IFERROR(IF(INDEX(Data_kom2,MATCH(1,(komnavn2=Kommune)*(komaar2=K39),0),6)="*","*",INDEX(Data_kom2,MATCH(1,(komnavn2=Kommune)*(komaar2=K39),0),6)),"Data ikke tilføjet") -> 9 | L41: =IFERROR(IF(INDEX(Data_kom2,MATCH(1,(komnavn2=Kommune)*(komaar2=L39),0),6)="*","*",INDEX(Data_kom2,MATCH(1,(komnavn2=Kommune)*(komaar2=L39),0),6)),"Data ikke tilføjet") -> 17 | M41: =IFERROR(IF(INDEX(Data_kom2,MATCH(1,(komnavn2=Kommune)*(komaar2=M39),0),6)="*","*",INDEX(Data_kom2,MATCH(1,(komnavn2=Kommune)*(komaar2=M39),0),6)),"Data ikke tilføjet") -> 23 | N41: =IFERROR(IF(INDEX(Data_kom2,MATCH(1,(komnavn2=Kommune)*(komaar2=N39),0),6)="*","*",INDEX(Data_kom2,MATCH(1,(komnavn2=Kommune)*(komaar2=N39),0),6)),"Data ikke tilføjet") -> 18 | O41: =IFERROR(IF(INDEX(Data_kom2,MATCH(1,(komnavn2=Kommune)*(komaar2=O39),0),6)="*","*",INDEX(Data_kom2,MATCH(1,(komnavn2=Kommune)*(komaar2=O39),0),6)),"Data ikke tilføjet") -> 16 | P41: =IFERROR(IF(INDEX(Data_kom2,MATCH(1,(komnavn2=Kommune)*(komaar2=P39),0),6)="*","*",INDEX(Data_kom2,MATCH(1,(komnavn2=Kommune)*(komaar2=P39),0),6)),"Data ikke tilføjet") -> 11 | Q41: =IFERROR(IF(INDEX(Data_kom2,MATCH(1,(komnavn2=Kommune)*(komaar2=Q39),0),6)="*","*",INDEX(Data_kom2,MATCH(1,(komnavn2=Kommune)*(komaar2=Q39),0),6)),"Data ikke tilføjet") -> 12 | R41: =IFERROR(IF(INDEX(Data_kom2,MATCH(1,(komnavn2=Kommune)*(komaar2=R39),0),6)="*","*",INDEX(Data_kom2,MATCH(1,(komnavn2=Kommune)*(komaar2=R39),0),6)),"Data ikke tilføjet") -> 12
B42: Antal 0-17-årige | D42: =D$11 -> 225 | E42: =E$11 -> 227 | F42: 215 | G42: 219 | H42: 206 | I42: 195 | J42: 162 | K42: 183 | L42: 203 | M42: 221 | N42: 220 | O42: 246 | P42: 252 | Q42: 274 | R42: 254
B43: Andel | D43: =IFERROR(IF(D41="*","*",IF(D42=0,"#I/T",(D41/D42))),"Data ikke tilføjet") -> 0.03111111111 | E43: =IFERROR(IF(E41="*","*",IF(E42=0,"#I/T",(E41/E42))),"Data ikke tilføjet") -> 0.02643171806 | F43: =IFERROR(IF(F41="*","*",IF(F42=0,"#I/T",(F41/F42))),"Data ikke tilføjet") -> 0.02790697674 | G43: =IFERROR(IF(G41="*","*",IF(G42=0,"#I/T",(G41/G42))),"Data ikke tilføjet") -> 0.0502283105 | H43: =IFERROR(IF(H41="*","*",IF(H42=0,"#I/T",(H41/H42))),"Data ikke tilføjet") -> 0.04368932039 | I43: =IFERROR(IF(I41="*","*",IF(I42=0,"#I/T",(I41/I42))),"Data ikke tilføjet") -> 0.02051282051 | J43: =IFERROR(IF(J41="*","*",IF(J42=0,"#I/T",(J41/J42))),"Data ikke tilføjet") -> * | K43: =IFERROR(IF(K41="*","*",IF(K42=0,"#I/T",(K41/K42))),"Data ikke tilføjet") -> 0.04918032787 | L43: =IFERROR(IF(L41="*","*",IF(L42=0,"#I/T",(L41/L42))),"Data ikke tilføjet") -> 0.08374384236 | M43: =IFERROR(IF(M41="*","*",IF(M42=0,"#I/T",(M41/M42))),"Data ikke tilføjet") -> 0.1040723982 | N43: =IFERROR(IF(N41="*","*",IF(N42=0,"#I/T",(N41/N42))),"Data ikke tilføjet") -> 0.08181818182 | O43: =IFERROR(IF(O41="*","*",IF(O42=0,"#I/T",(O41/O42))),"Data ikke tilføjet") -> 0.06504065041 | P43: =IFERROR(IF(P41="*","*",IF(P42=0,"#I/T",(P41/P42))),"Data ikke tilføjet") -> 0.04365079365 | Q43: =IFERROR(IF(Q41="*","*",IF(Q42=0,"#I/T",(Q41/Q42))),"Data ikke tilføjet") -> 0.04379562044 | R43: =IFERROR(IF(R41="*","*",IF(R42=0,"#I/T",(R41/R42))),"Data ikke tilføjet") -> 0.04724409449
B44: Sammenligningsgruppe, gns.
B45: Antal anbragte | D45: =IF('Dine valg'!$G$24="","-",SUMIF(Hjælpefane!$D$7:$D$111,"="&D$9,Hjælpefane!$G$7:$G$111)) -> 3 | E45: =IF('Dine valg'!$G$24="","-",SUMIF(Hjælpefane!$D$7:$D$111,"="&E$9,Hjælpefane!$G$7:$G$111)) -> 4 | F45: =IF('Dine valg'!$G$24="","-",SUMIF(Hjælpefane!$D$7:$D$111,"="&F$9,Hjælpefane!$G$7:$G$111)) -> 4 | G45: =IF('Dine valg'!$G$24="","-",SUMIF(Hjælpefane!$D$7:$D$111,"="&G$9,Hjælpefane!$G$7:$G$111)) -> 7 | H45: =IF('Dine valg'!$G$24="","-",SUMIF(Hjælpefane!$D$7:$D$111,"="&H$9,Hjælpefane!$G$7:$G$111)) -> 10 | I45: =IF('Dine valg'!$G$24="","-",SUMIF(Hjælpefane!$D$7:$D$111,"="&I$9,Hjælpefane!$G$7:$G$111)) -> 8 | J45: =IF('Dine valg'!$G$24="","-",SUMIF(Hjælpefane!$D$7:$D$111,"="&J$9,Hjælpefane!$G$7:$G$111)) -> 15 | K45: =IF('Dine valg'!$G$24="","-",SUMIF(Hjælpefane!$D$7:$D$111,"="&K$9,Hjælpefane!$G$7:$G$111)) -> 10 | L45: =IF('Dine valg'!$G$24="","-",SUMIF(Hjælpefane!$D$7:$D$111,"="&L$9,Hjælpefane!$G$7:$G$111)) -> 14 | M45: =IF('Dine valg'!$G$24="","-",SUMIF(Hjælpefane!$D$7:$D$111,"="&M$9,Hjælpefane!$G$7:$G$111)) -> 11 | N45: =IF('Dine valg'!$G$24="","-",SUMIF(Hjælpefane!$D$7:$D$111,"="&N$9,Hjælpefane!$G$7:$G$111)) -> 11 | O45: =IF('Dine valg'!$G$24="","-",SUMIF(Hjælpefane!$D$7:$D$111,"="&O$9,Hjælpefane!$G$7:$G$111)) -> 14 | P45: =IF('Dine valg'!$G$24="","-",SUMIF(Hjælpefane!$D$7:$D$111,"="&P$9,Hjælpefane!$G$7:$G$111)) -> 10 | Q45: =IF('Dine valg'!$G$24="","-",SUMIF(Hjælpefane!$D$7:$D$111,"="&Q$9,Hjælpefane!$G$7:$G$111)) -> 13 | R45: =IF('Dine valg'!$G$24="","-",SUMIF(Hjælpefane!$D$7:$D$111,"="&R$9,Hjælpefane!$G$7:$G$111)) -> 8
B46: Antal 0-17-årige | D46: =D$15 -> 188 | E46: =E$15 -> 186 | F46: 178 | G46: 166 | H46: 173 | I46: 173 | J46: 166 | K46: 168 | L46: 169 | M46: 168 | N46: 154 | O46: 168 | P46: 162 | Q46: 161 | R46: 152
B47: Andel | D47: =IFERROR(IF(D45="*","*",IF(D46="","Indtast data",(D45/D46))),"-") -> 0.01595744681 | E47: =IFERROR(IF(E45="*","*",IF(E46="","Indtast data",(E45/E46))),"-") -> 0.02150537634 | F47: 0.02247191011 | G47: 0.0421686747 | H47: 0.05780346821 | I47: 0.04624277457 | J47: 0.09036144578 | K47: 0.05952380952 | L47: 0.08284023669 | M47: =IFERROR(IF(M45="*","*",IF(M46="","Indtast data",(M45/M46))),"-") -> 0.06547619048 | N47: 0.07142857143 | O47: 0.08333333333 | P47: 0.06172839506 | Q47: 0.08074534161 | R47: 0.05263157895
B48: Hele landet
B49: Antal anbragte | D49: =INDEX(Data_land,MATCH(Skyggetabeller!D39,Data!landaar,0),6) -> 81 | E49: =INDEX(Data_land,MATCH(Skyggetabeller!E39,Data!landaar,0),6) -> 80 | F49: =INDEX(Data_land,MATCH(Skyggetabeller!F39,Data!landaar,0),6) -> 64 | G49: =INDEX(Data_land,MATCH(Skyggetabeller!G39,Data!landaar,0),6) -> 85 | H49: =INDEX(Data_land,MATCH(Skyggetabeller!H39,Data!landaar,0),6) -> 76 | I49: =INDEX(Data_land,MATCH(Skyggetabeller!I39,Data!landaar,0),6) -> 71 | J49: =INDEX(Data_land,MATCH(Skyggetabeller!J39,Data!landaar,0),6) -> 77 | K49: =INDEX(Data_land,MATCH(Skyggetabeller!K39,Data!landaar,0),6) -> 82 | L49: =INDEX(Data_land,MATCH(Skyggetabeller!L39,Data!landaar,0),6) -> 95 | M49: =INDEX(Data_land,MATCH(Skyggetabeller!M39,Data!landaar,0),6) -> 97 | N49: =INDEX(Data_land,MATCH(Skyggetabeller!N39,Data!landaar,0),6) -> 84 | O49: =INDEX(Data_land,MATCH(Skyggetabeller!O39,Data!landaar,0),6) -> 87 | P49: =INDEX(Data_land,MATCH(Skyggetabeller!P39,Data!landaar,0),6) -> 86 | Q49: =INDEX(Data_land,MATCH(Skyggetabeller!Q39,Data!landaar,0),6) -> 91 | R49: =INDEX(Data_land,MATCH(Skyggetabeller!R39,Data!landaar,0),6) -> 95
B50: Antal 0-17-årige | D50: =INDEX(Data_land,MATCH(Skyggetabeller!D39,Data!landaar,0),4) -> 3383 | E50: =INDEX(Data_land,MATCH(Skyggetabeller!E39,Data!landaar,0),4) -> 3460 | F50: =INDEX(Data_land,MATCH(Skyggetabeller!F39,Data!landaar,0),4) -> 3369 | G50: =INDEX(Data_land,MATCH(Skyggetabeller!G39,Data!landaar,0),4) -> 3409 | H50: =INDEX(Data_land,MATCH(Skyggetabeller!H39,Data!landaar,0),4) -> 3309 | I50: =INDEX(Data_land,MATCH(Skyggetabeller!I39,Data!landaar,0),4) -> 3282 | J50: =INDEX(Data_land,MATCH(Skyggetabeller!J39,Data!landaar,0),4) -> 3274 | K50: =INDEX(Data_land,MATCH(Skyggetabeller!K39,Data!landaar,0),4) -> 3343 | L50: =INDEX(Data_land,MATCH(Skyggetabeller!L39,Data!landaar,0),4) -> 3404 | M50: =INDEX(Data_land,MATCH(Skyggetabeller!M39,Data!landaar,0),4) -> 3494 | N50: =INDEX(Data_land,MATCH(Skyggetabeller!N39,Data!landaar,0),4) -> 3486 | O50: =INDEX(Data_land,MATCH(Skyggetabeller!O39,Data!landaar,0),4) -> 3675 | P50: =INDEX(Data_land,MATCH(Skyggetabeller!P39,Data!landaar,0),4) -> 3708 | Q50: =INDEX(Data_land,MATCH(Skyggetabeller!Q39,Data!landaar,0),4) -> 3769 | R50: =INDEX(Data_land,MATCH(Skyggetabeller!R39,Data!landaar,0),4) -> 3790
B51: Andel | D51: =IFERROR(IF(D49="*","*",IF(D50=0,"#I/T",(D49/D50))),"Data ikke tilføjet") -> 0.02394324564 | E51: =IFERROR(IF(E49="*","*",IF(E50=0,"#I/T",(E49/E50))),"Data ikke tilføjet") -> 0.02312138728 | F51: =IFERROR(IF(F49="*","*",IF(F50=0,"#I/T",(F49/F50))),"Data ikke tilføjet") -> 0.01899673494 | G51: =IFERROR(IF(G49="*","*",IF(G50=0,"#I/T",(G49/G50))),"Data ikke tilføjet") -> 0.02493399824 | H51: =IFERROR(IF(H49="*","*",IF(H50=0,"#I/T",(H49/H50))),"Data ikke tilføjet") -> 0.02296766395 | I51: =IFERROR(IF(I49="*","*",IF(I50=0,"#I/T",(I49/I50))),"Data ikke tilføjet") -> 0.02163315052 | J51: =IFERROR(IF(J49="*","*",IF(J50=0,"#I/T",(J49/J50))),"Data ikke tilføjet") -> 0.02351863164 | K51: =IFERROR(IF(K49="*","*",IF(K50=0,"#I/T",(K49/K50))),"Data ikke tilføjet") -> 0.02452886629 | L51: =IFERROR(IF(L49="*","*",IF(L50=0,"#I/T",(L49/L50))),"Data ikke tilføjet") -> 0.02790834313 | M51: =IFERROR(IF(M49="*","*",IF(M50=0,"#I/T",(M49/M50))),"Data ikke tilføjet") -> 0.0277618775 | N51: =IFERROR(IF(N49="*","*",IF(N50=0,"#I/T",(N49/N50))),"Data ikke tilføjet") -> 0.02409638554 | O51: =IFERROR(IF(O49="*","*",IF(O50=0,"#I/T",(O49/O50))),"Data ikke tilføjet") -> 0.02367346939 | P51: =IFERROR(IF(P49="*","*",IF(P50=0,"#I/T",(P49/P50))),"Data ikke tilføjet") -> 0.02319309601 | Q51: =IFERROR(IF(Q49="*","*",IF(Q50=0,"#I/T",(Q49/Q50))),"Data ikke tilføjet") -> 0.02414433537 | R51: =IFERROR(IF(R49="*","*",IF(R50=0,"#I/T",(R49/R50))),"Data ikke tilføjet") -> 0.02506596306
B54: Tabel 1.3: Anbragte på socialpædagogiske opholdssteder
B55: Nøgletal 1.3 Anbragte på socialpædagogiske opholdssteder | D55: 2017-01-01 | E55: 2017-07-01 | F55: 2018-01-01 | G55: 2018-07-01 | H55: 2019-01-01 | I55: 2019-07-01 | J55: 2020-01-01 | K55: 2020-07-01 | L55: 2021-01-01 | M55: 2021-07-01 | N55: 2022-01-01 | O55: 2022-07-01 | P55: 2023-01-01 | Q55: 2023-07-01 | R55: 2024-01-01
B56: =IF(Kommune="","Kommune",Kommune) -> København
B57: Antal anbragte | D57: =IFERROR(IF(INDEX(Data_kom2,MATCH(1,(komnavn2=Kommune)*(komaar2=D55),0),7)="*","*",INDEX(Data_kom2,MATCH(1,(komnavn2=Kommune)*(komaar2=D55),0),7)),"Data ikke tilføjet") -> 46 | E57: =IFERROR(IF(INDEX(Data_kom2,MATCH(1,(komnavn2=Kommune)*(komaar2=E55),0),7)="*","*",INDEX(Data_kom2,MATCH(1,(komnavn2=Kommune)*(komaar2=E55),0),7)),"Data ikke tilføjet") -> 38 | F57: =IFERROR(IF(INDEX(Data_kom2,MATCH(1,(komnavn2=Kommune)*(komaar2=F55),0),7)="*","*",INDEX(Data_kom2,MATCH(1,(komnavn2=Kommune)*(komaar2=F55),0),7)),"Data ikke tilføjet") -> 33 | G57: =IFERROR(IF(INDEX(Data_kom2,MATCH(1,(komnavn2=Kommune)*(komaar2=G55),0),7)="*","*",INDEX(Data_kom2,MATCH(1,(komnavn2=Kommune)*(komaar2=G55),0),7)),"Data ikke tilføjet") -> 32 | H57: =IFERROR(IF(INDEX(Data_kom2,MATCH(1,(komnavn2=Kommune)*(komaar2=H55),0),7)="*","*",INDEX(Data_kom2,MATCH(1,(komnavn2=Kommune)*(komaar2=H55),0),7)),"Data ikke tilføjet") -> 33 | I57: =IFERROR(IF(INDEX(Data_kom2,MATCH(1,(komnavn2=Kommune)*(komaar2=I55),0),7)="*","*",INDEX(Data_kom2,MATCH(1,(komnavn2=Kommune)*(komaar2=I55),0),7)),"Data ikke tilføjet") -> 36 | J57: =IFERROR(IF(INDEX(Data_kom2,MATCH(1,(komnavn2=Kommune)*(komaar2=J55),0),7)="*","*",INDEX(Data_kom2,MATCH(1,(komnavn2=Kommune)*(komaar2=J55),0),7)),"Data ikke tilføjet") -> * | K57: =IFERROR(IF(INDEX(Data_kom2,MATCH(1,(komnavn2=Kommune)*(komaar2=K55),0),7)="*","*",INDEX(Data_kom2,MATCH(1,(komnavn2=Kommune)*(komaar2=K55),0),7)),"Data ikke tilføjet") -> 26 | L57: =IFERROR(IF(INDEX(Data_kom2,MATCH(1,(komnavn2=Kommune)*(komaar2=L55),0),7)="*","*",INDEX(Data_kom2,MATCH(1,(komnavn2=Kommune)*(komaar2=L55),0),7)),"Data ikke tilføjet") -> 27 | M57: =IFERROR(IF(INDEX(Data_kom2,MATCH(1,(komnavn2=Kommune)*(komaar2=M55),0),7)="*","*",INDEX(Data_kom2,MATCH(1,(komnavn2=Kommune)*(komaar2=M55),0),7)),"Data ikke tilføjet") -> 34 | N57: =IFERROR(IF(INDEX(Data_kom2,MATCH(1,(komnavn2=Kommune)*(komaar2=N55),0),7)="*","*",INDEX(Data_kom2,MATCH(1,(komnavn2=Kommune)*(komaar2=N55),0),7)),"Data ikke tilføjet") -> 31 | O57: =IFERROR(IF(INDEX(Data_kom2,MATCH(1,(komnavn2=Kommune)*(komaar2=O55),0),7)="*","*",INDEX(Data_kom2,MATCH(1,(komnavn2=Kommune)*(komaar2=O55),0),7)),"Data ikke tilføjet") -> 36 | P57: =IFERROR(IF(INDEX(Data_kom2,MATCH(1,(komnavn2=Kommune)*(komaar2=P55),0),7)="*","*",INDEX(Data_kom2,MATCH(1,(komnavn2=Kommune)*(komaar2=P55),0),7)),"Data ikke tilføjet") -> 41 | Q57: =IFERROR(IF(INDEX(Data_kom2,MATCH(1,(komnavn2=Kommune)*(komaar2=Q55),0),7)="*","*",INDEX(Data_kom2,MATCH(1,(komnavn2=Kommune)*(komaar2=Q55),0),7)),"Data ikke tilføjet") -> 42 | R57: =IFERROR(IF(INDEX(Data_kom2,MATCH(1,(komnavn2=Kommune)*(komaar2=R55),0),7)="*","*",INDEX(Data_kom2,MATCH(1,(komnavn2=Kommune)*(komaar2=R55),0),7)),"Data ikke tilføjet") -> 53
B58: Antal 0-17-årige | D58: =D$11 -> 225 | E58: =E$11 -> 227 | F58: 215 | G58: 219 | H58: 206 | I58: 195 | J58: 162 | K58: 183 | L58: 203 | M58: 221 | N58: 220 | O58: 246 | P58: 252 | Q58: 274 | R58: 254
B59: Andel | D59: =IFERROR(IF(D57="*","*",IF(D58=0,"#I/T",(D57/D58))),"Data ikke tilføjet") -> 0.2044444444 | E59: =IFERROR(IF(E57="*","*",IF(E58=0,"#I/T",(E57/E58))),"Data ikke tilføjet") -> 0.1674008811 | F59: =IFERROR(IF(F57="*","*",IF(F58=0,"#I/T",(F57/F58))),"Data ikke tilføjet") -> 0.1534883721 | G59: =IFERROR(IF(G57="*","*",IF(G58=0,"#I/T",(G57/G58))),"Data ikke tilføjet") -> 0.1461187215 | H59: =IFERROR(IF(H57="*","*",IF(H58=0,"#I/T",(H57/H58))),"Data ikke tilføjet") -> 0.1601941748 | I59: =IFERROR(IF(I57="*","*",IF(I58=0,"#I/T",(I57/I58))),"Data ikke tilføjet") -> 0.1846153846 | J59: =IFERROR(IF(J57="*","*",IF(J58=0,"#I/T",(J57/J58))),"Data ikke tilføjet") -> * | K59: =IFERROR(IF(K57="*","*",IF(K58=0,"#I/T",(K57/K58))),"Data ikke tilføjet") -> 0.1420765027 | L59: =IFERROR(IF(L57="*","*",IF(L58=0,"#I/T",(L57/L58))),"Data ikke tilføjet") -> 0.1330049261 | M59: =IFERROR(IF(M57="*","*",IF(M58=0,"#I/T",(M57/M58))),"Data ikke tilføjet") -> 0.1538461538 | N59: =IFERROR(IF(N57="*","*",IF(N58=0,"#I/T",(N57/N58))),"Data ikke tilføjet") -> 0.1409090909 | O59: =IFERROR(IF(O57="*","*",IF(O58=0,"#I/T",(O57/O58))),"Data ikke tilføjet") -> 0.1463414634 | P59: =IFERROR(IF(P57="*","*",IF(P58=0,"#I/T",(P57/P58))),"Data ikke tilføjet") -> 0.1626984127 | Q59: =IFERROR(IF(Q57="*","*",IF(Q58=0,"#I/T",(Q57/Q58))),"Data ikke tilføjet") -> 0.1532846715 | R59: =IFERROR(IF(R57="*","*",IF(R58=0,"#I/T",(R57/R58))),"Data ikke tilføjet") -> 0.2086614173
B60: Sammenligningsgruppe, gns.
B61: Antal anbragte | D61: =IF('Dine valg'!$G$24="","-",SUMIF(Hjælpefane!$D$7:$D$111,"="&D$9,Hjælpefane!$H$7:$H$111)) -> 56 | E61: =IF('Dine valg'!$G$24="","-",SUMIF(Hjælpefane!$D$7:$D$111,"="&E$9,Hjælpefane!$H$7:$H$111)) -> 52 | F61: =IF('Dine valg'!$G$24="","-",SUMIF(Hjælpefane!$D$7:$D$111,"="&F$9,Hjælpefane!$H$7:$H$111)) -> 58 | G61: =IF('Dine valg'!$G$24="","-",SUMIF(Hjælpefane!$D$7:$D$111,"="&G$9,Hjælpefane!$H$7:$H$111)) -> 46 | H61: =IF('Dine valg'!$G$24="","-",SUMIF(Hjælpefane!$D$7:$D$111,"="&H$9,Hjælpefane!$H$7:$H$111)) -> 47 | I61: =IF('Dine valg'!$G$24="","-",SUMIF(Hjælpefane!$D$7:$D$111,"="&I$9,Hjælpefane!$H$7:$H$111)) -> 43 | J61: =IF('Dine valg'!$G$24="","-",SUMIF(Hjælpefane!$D$7:$D$111,"="&J$9,Hjælpefane!$H$7:$H$111)) -> 35 | K61: =IF('Dine valg'!$G$24="","-",SUMIF(Hjælpefane!$D$7:$D$111,"="&K$9,Hjælpefane!$H$7:$H$111)) -> 37 | L61: =IF('Dine valg'!$G$24="","-",SUMIF(Hjælpefane!$D$7:$D$111,"="&L$9,Hjælpefane!$H$7:$H$111)) -> 40 | M61: =IF('Dine valg'!$G$24="","-",SUMIF(Hjælpefane!$D$7:$D$111,"="&M$9,Hjælpefane!$H$7:$H$111)) -> 45 | N61: =IF('Dine valg'!$G$24="","-",SUMIF(Hjælpefane!$D$7:$D$111,"="&N$9,Hjælpefane!$H$7:$H$111)) -> 41 | O61: =IF('Dine valg'!$G$24="","-",SUMIF(Hjælpefane!$D$7:$D$111,"="&O$9,Hjælpefane!$H$7:$H$111)) -> 49 | P61: =IF('Dine valg'!$G$24="","-",SUMIF(Hjælpefane!$D$7:$D$111,"="&P$9,Hjælpefane!$H$7:$H$111)) -> 49 | Q61: =IF('Dine valg'!$G$24="","-",SUMIF(Hjælpefane!$D$7:$D$111,"="&Q$9,Hjælpefane!$H$7:$H$111)) -> 38 | R61: =IF('Dine valg'!$G$24="","-",SUMIF(Hjælpefane!$D$7:$D$111,"="&R$9,Hjælpefane!$H$7:$H$111)) -> 43
B62: Antal 0-17-årige | D62: =D$15 -> 188 | E62: =E$15 -> 186 | F62: 178 | G62: 166 | H62: 173 | I62: 173 | J62: 166 | K62: 168 | L62: 169 | M62: 168 | N62: 154 | O62: 168 | P62: 162 | Q62: 161 | R62: 152
B63: Andel | D63: =IFERROR(IF(D61="*","*",IF(D62="","Indtast data",(D61/D62))),"-") -> 0.2978723404 | E63: =IFERROR(IF(E61="*","*",IF(E62="","Indtast data",(E61/E62))),"-") -> 0.2795698925 | F63: =IFERROR(IF(F61="*","*",IF(F62="","Indtast data",(F61/F62))),"-") -> 0.3258426966 | G63: =IFERROR(IF(G61="*","*",IF(G62="","Indtast data",(G61/G62))),"-") -> 0.2771084337 | H63: =IFERROR(IF(H61="*","*",IF(H62="","Indtast data",(H61/H62))),"-") -> 0.2716763006 | I63: =IFERROR(IF(I61="*","*",IF(I62="","Indtast data",(I61/I62))),"-") -> 0.2485549133 | J63: =IFERROR(IF(J61="*","*",IF(J62="","Indtast data",(J61/J62))),"-") -> 0.2108433735 | K63: =IFERROR(IF(K61="*","*",IF(K62="","Indtast data",(K61/K62))),"-") -> 0.2202380952 | L63: =IFERROR(IF(L61="*","*",IF(L62="","Indtast data",(L61/L62))),"-") -> 0.2366863905 | M63: 0.2678571429 | N63: 0.2662337662 | O63: 0.2916666667 | P63: 0.3024691358 | Q63: 0.2360248447 | R63: 0.2828947368
B64: Hele landet
B65: Antal anbragte | D65: =INDEX(Data_land,MATCH(Skyggetabeller!D55,Data!landaar,0),7) -> 1484 | E65: =INDEX(Data_land,MATCH(Skyggetabeller!E55,Data!landaar,0),7) -> 1571 | F65: =INDEX(Data_land,MATCH(Skyggetabeller!F55,Data!landaar,0),7) -> 1544 | G65: =INDEX(Data_land,MATCH(Skyggetabeller!G55,Data!landaar,0),7) -> 1544 | H65: =INDEX(Data_land,MATCH(Skyggetabeller!H55,Data!landaar,0),7) -> 1529 | I65: =INDEX(Data_land,MATCH(Skyggetabeller!I55,Data!landaar,0),7) -> 1516 | J65: =INDEX(Data_land,MATCH(Skyggetabeller!J55,Data!landaar,0),7) -> 1517 | K65: =INDEX(Data_land,MATCH(Skyggetabeller!K55,Data!landaar,0),7) -> 1592 | L65: =INDEX(Data_land,MATCH(Skyggetabeller!L55,Data!landaar,0),7) -> 1615 | M65: =INDEX(Data_land,MATCH(Skyggetabeller!M55,Data!landaar,0),7) -> 1717 | N65: =INDEX(Data_land,MATCH(Skyggetabeller!N55,Data!landaar,0),7) -> 1713 | O65: =INDEX(Data_land,MATCH(Skyggetabeller!O55,Data!landaar,0),7) -> 1826 | P65: =INDEX(Data_land,MATCH(Skyggetabeller!P55,Data!landaar,0),7) -> 1854 | Q65: =INDEX(Data_land,MATCH(Skyggetabeller!Q55,Data!landaar,0),7) -> 1863 | R65: =INDEX(Data_land,MATCH(Skyggetabeller!R55,Data!landaar,0),7) -> 1895
B66: Antal 0-17-årige | D66: =INDEX(Data_land,MATCH(Skyggetabeller!D55,Data!landaar,0),4) -> 3383 | E66: =INDEX(Data_land,MATCH(Skyggetabeller!E55,Data!landaar,0),4) -> 3460 | F66: =INDEX(Data_land,MATCH(Skyggetabeller!F55,Data!landaar,0),4) -> 3369 | G66: =INDEX(Data_land,MATCH(Skyggetabeller!G55,Data!landaar,0),4) -> 3409 | H66: =INDEX(Data_land,MATCH(Skyggetabeller!H55,Data!landaar,0),4) -> 3309 | I66: =INDEX(Data_land,MATCH(Skyggetabeller!I55,Data!landaar,0),4) -> 3282 | J66: =INDEX(Data_land,MATCH(Skyggetabeller!J55,Data!landaar,0),4) -> 3274 | K66: =INDEX(Data_land,MATCH(Skyggetabeller!K55,Data!landaar,0),4) -> 3343 | L66: =INDEX(Data_land,MATCH(Skyggetabeller!L55,Data!landaar,0),4) -> 3404 | M66: =INDEX(Data_land,MATCH(Skyggetabeller!M55,Data!landaar,0),4) -> 3494 | N66: =INDEX(Data_land,MATCH(Skyggetabeller!N55,Data!landaar,0),4) -> 3486 | O66: =INDEX(Data_land,MATCH(Skyggetabeller!O55,Data!landaar,0),4) -> 3675 | P66: =INDEX(Data_land,MATCH(Skyggetabeller!P55,Data!landaar,0),4) -> 3708 | Q66: =INDEX(Data_land,MATCH(Skyggetabeller!Q55,Data!landaar,0),4) -> 3769 | R66: =INDEX(Data_land,MATCH(Skyggetabeller!R55,Data!landaar,0),4) -> 3790
B67: Andel | D67: =IFERROR(IF(D65="*","*",IF(D66=0,"#I/T",(D65/D66))),"Data ikke tilføjet") -> 0.4386639078 | E67: =IFERROR(IF(E65="*","*",IF(E66=0,"#I/T",(E65/E66))),"Data ikke tilføjet") -> 0.4540462428 | F67: =IFERROR(IF(F65="*","*",IF(F66=0,"#I/T",(F65/F66))),"Data ikke tilføjet") -> 0.4582962303 | G67: =IFERROR(IF(G65="*","*",IF(G66=0,"#I/T",(G65/G66))),"Data ikke tilføjet") -> 0.4529187445 | H67: =IFERROR(IF(H65="*","*",IF(H66=0,"#I/T",(H65/H66))),"Data ikke tilføjet") -> 0.4620731339 | I67: =IFERROR(IF(I65="*","*",IF(I66=0,"#I/T",(I65/I66))),"Data ikke tilføjet") -> 0.4619134674 | J67: =IFERROR(IF(J65="*","*",IF(J66=0,"#I/T",(J65/J66))),"Data ikke tilføjet") -> 0.463347587 | K67: =IFERROR(IF(K65="*","*",IF(K66=0,"#I/T",(K65/K66))),"Data ikke tilføjet") -> 0.476218965 | L67: =IFERROR(IF(L65="*","*",IF(L66=0,"#I/T",(L65/L66))),"Data ikke tilføjet") -> 0.4744418331 | M67: =IFERROR(IF(M65="*","*",IF(M66=0,"#I/T",(M65/M66))),"Data ikke tilføjet") -> 0.4914138523 | N67: =IFERROR(IF(N65="*","*",IF(N66=0,"#I/T",(N65/N66))),"Data ikke tilføjet") -> 0.491394148 | O67: =IFERROR(IF(O65="*","*",IF(O66=0,"#I/T",(O65/O66))),"Data ikke tilføjet") -> 0.4968707483 | P67: =IFERROR(IF(P65="*","*",IF(P66=0,"#I/T",(P65/P66))),"Data ikke tilføjet") -> 0.5 | Q67: =IFERROR(IF(Q65="*","*",IF(Q66=0,"#I/T",(Q65/Q66))),"Data ikke tilføjet") -> 0.4942955691 | R67: =IFERROR(IF(R65="*","*",IF(R66=0,"#I/T",(R65/R66))),"Data ikke tilføjet") -> 0.5
B69: Tabel 1.4 - 1.6: Fordeling af institutionsanbragte for hver aktør
B71: ="Tabel 1.4: Fordeling af institutionsanbragte for "&Kommune -> Tabel 1.4: Fordeling af institutionsanbragte for København
B72: ="Nøgletal 1.4 Fordeling af anbragte for "&Kommune -> Nøgletal 1.4 Fordeling af anbragte for København | D72: 2017-01-01 | E72: 2017-07-01 | F72: 2018-01-01 | G72: 2018-07-01 | H72: 2019-01-01 | I72: 2019-07-01 | J72: 2020-01-01 | K72: 2020-07-01 | L72: 2021-01-01 | M72: 2021-07-01 | N72: 2022-01-01 | O72: 2022-07-01 | P72: 2023-01-01 | Q72: 2023-07-01 | R72: 2024-01-01
B73: Døgninstitutioner | D73: =D28 -> 0.7644444444 | E73: 0.8061674009 | F73: 0.8186046512 | G73: 0.803652968 | H73: 0.7961165049 | I73: 0.7948717949 | J73: 0.8580246914 | K73: 0.8087431694 | L73: 0.7832512315 | M73: 0.742081448 | N73: =N28 -> 0.7772727273 | O73: 0.7886178862 | P73: 0.7936507937 | Q73: =Q28 -> 0.802919708 | R73: 0.7440944882
B74: Sikrede døgninstitutioner | D74: =D43 -> 0.03111111111 | E74: 0.02643171806 | F74: 0.02790697674 | G74: 0.0502283105 | H74: 0.04368932039 | I74: 0.02051282051 | J74: * | K74: 0.04918032787 | L74: 0.08374384236 | M74: 0.1040723982 | N74: =N43 -> 0.08181818182 | O74: 0.06504065041 | P74: 0.04365079365 | Q74: =Q43 -> 0.04379562044 | R74: 0.04724409449
B75: Socialpædagogiske opholdssteder | D75: =D59 -> 0.2044444444 | E75: 0.1674008811 | F75: 0.1534883721 | G75: 0.1461187215 | H75: 0.1601941748 | I75: 0.1846153846 | J75: * | K75: 0.1420765027 | L75: 0.1330049261 | M75: 0.1538461538 | N75: =N59 -> 0.1409090909 | O75: 0.1463414634 | P75: 0.1626984127 | Q75: =Q59 -> 0.1532846715 | R75: 0.2086614173
B77: ="Tabel 1.5: Fordeling af institutionsanbragte for "&B60 -> Tabel 1.5: Fordeling af institutionsanbragte for Sammenligningsgruppe, gns.
B78: ="Nøgletal 1.5 Fordeling af anbragte for "&B60 -> Nøgletal 1.5 Fordeling af anbragte for Sammenligningsgruppe, gns. | D78: 2017-01-01 | E78: 2017-07-01 | F78: 2018-01-01 | G78: 2018-07-01 | H78: 2019-01-01 | I78: 2019-07-01 | J78: 2020-01-01 | K78: 2020-07-01 | L78: 2021-01-01 | M78: 2021-07-01 | N78: 2022-01-01 | O78: 2022-07-01 | P78: 2023-01-01 | Q78: 2023-07-01 | R78: 2024-01-01
B79: Døgninstitutioner | D79: =D32 -> 0.6861702128 | E79: =E32 -> 0.6989247312 | F79: 0.6516853933 | G79: 0.6807228916 | H79: 0.6705202312 | I79: 0.7052023121 | J79: 0.6987951807 | K79: 0.7202380952 | L79: 0.6804733728 | M79: 0.6666666667 | N79: =N32 -> 0.6623376623 | O79: 0.625 | P79: 0.6358024691 | Q79: =Q32 -> 0.6832298137 | R79: 0.6644736842
B80: Sikrede døgninstitutioner | D80: =D47 -> 0.01595744681 | E80: 0.02150537634 | F80: 0.02247191011 | G80: 0.0421686747 | H80: 0.05780346821 | I80: 0.04624277457 | J80: 0.09036144578 | K80: 0.05952380952 | L80: 0.08284023669 | M80: 0.06547619048 | N80: =N47 -> 0.07142857143 | O80: 0.08333333333 | P80: 0.06172839506 | Q80: =Q47 -> 0.08074534161 | R80: 0.05263157895
B81: Socialpædagogiske opholdssteder | D81: =D63 -> 0.2978723404 | E81: 0.2795698925 | F81: 0.3258426966 | G81: 0.2771084337 | H81: 0.2716763006 | I81: 0.2485549133 | J81: 0.2108433735 | K81: 0.2202380952 | L81: 0.2366863905 | M81: 0.2678571429 | N81: =N63 -> 0.2662337662 | O81: 0.2916666667 | P81: 0.3024691358 | Q81: =Q63 -> 0.2360248447 | R81: 0.2828947368
B83: ="Tabel 1.6: Fordeling af institutionsanbragte for "&B64 -> Tabel 1.6: Fordeling af institutionsanbragte for Hele landet
B84: ="Nøgletal 1.6 Fordeling af anbragte for "&B64&"en" -> Nøgletal 1.6 Fordeling af anbragte for Hele landeten | D84: 2017-01-01 | E84: 2017-07-01 | F84: 2018-01-01 | G84: 2018-07-01 | H84: 2019-01-01 | I84: 2019-07-01 | J84: 2020-01-01 | K84: 2020-07-01 | L84: 2021-01-01 | M84: 2021-07-01 | N84: 2022-01-01 | O84: 2022-07-01 | P84: 2023-01-01 | Q84: 2023-07-01 | R84: 2024-01-01
B85: Døgninstitutioner | D85: =D36 -> 0.5373928466 | E85: 0.5228323699 | F85: 0.5227070347 | G85: 0.5221472573 | H85: 0.5149592022 | I85: 0.5164533821 | J85: 0.5131337813 | K85: 0.4992521687 | L85: 0.4976498237 | M85: 0.4808242702 | N85: =N36 -> 0.4845094664 | O85: 0.4794557823 | P85: 0.476806904 | Q85: 0.4815600955 | R85: 0.4749340369
B86: Sikrede døgninstitutioner | D86: =D51 -> 0.02394324564 | E86: 0.02312138728 | F86: 0.01899673494 | G86: 0.02493399824 | H86: 0.02296766395 | I86: 0.02163315052 | J86: 0.02351863164 | K86: 0.02452886629 | L86: 0.02790834313 | M86: 0.0277618775 | N86: =N51 -> 0.02409638554 | O86: 0.02367346939 | P86: 0.02319309601 | Q86: 0.02414433537 | R86: 0.02506596306
B87: Socialpædagogiske opholdssteder | D87: =D67 -> 0.4386639078 | E87: 0.4540462428 | F87: 0.4582962303 | G87: 0.4529187445 | H87: 0.4620731339 | I87: 0.4619134674 | J87: 0.463347587 | K87: 0.476218965 | L87: 0.4744418331 | M87: 0.4914138523 | N87: =N67 -> 0.491394148 | O87: 0.4968707483 | P87: 0.5 | Q87: 0.4942955691 | R87: 0.5
B90: Nøgletal 2: Varighed af institutionsanbringelser
B92: Tabel 2: Gennemsnitlig varighed af igangværende institutionsanbringelser
B93: Nøgletal 2: Gennemsnitlig varighed af igangværende institutionsanbringelser | D93: 2017-01-01 | E93: 2017-07-01 | F93: 2018-01-01 | G93: 2018-07-01 | H93: 2019-01-01 | I93: 2019-07-01 | J93: 2020-01-01 | K93: 2020-07-01 | L93: 2021-01-01 | M93: 2021-07-01 | N93: 2022-01-01 | O93: 2022-07-01 | P93: 2023-01-01 | Q93: 2023-07-01 | R93: 2024-01-01
B94: =IF(Kommune="","Kommune",Kommune) -> København
B95: Samlet antal dage | D95: =IFERROR(IF(INDEX(Data_kom2,MATCH(1,(komnavn2=Kommune)*(komaar2=D93),0),8)="*","*",INDEX(Data_kom2,MATCH(1,(komnavn2=Kommune)*(komaar2=D93),0),8)),"Data ikke tilføjet") -> 183355 | E95: =IFERROR(IF(INDEX(Data_kom2,MATCH(1,(komnavn2=Kommune)*(komaar2=E93),0),8)="*","*",INDEX(Data_kom2,MATCH(1,(komnavn2=Kommune)*(komaar2=E93),0),8)),"Data ikke tilføjet") -> 171090 | F95: =IFERROR(IF(INDEX(Data_kom2,MATCH(1,(komnavn2=Kommune)*(komaar2=F93),0),8)="*","*",INDEX(Data_kom2,MATCH(1,(komnavn2=Kommune)*(komaar2=F93),0),8)),"Data ikke tilføjet") -> 161575 | G95: =IFERROR(IF(INDEX(Data_kom2,MATCH(1,(komnavn2=Kommune)*(komaar2=G93),0),8)="*","*",INDEX(Data_kom2,MATCH(1,(komnavn2=Kommune)*(komaar2=G93),0),8)),"Data ikke tilføjet") -> 163682 | H95: =IFERROR(IF(INDEX(Data_kom2,MATCH(1,(komnavn2=Kommune)*(komaar2=H93),0),8)="*","*",INDEX(Data_kom2,MATCH(1,(komnavn2=Kommune)*(komaar2=H93),0),8)),"Data ikke tilføjet") -> 156703 | I95: =IFERROR(IF(INDEX(Data_kom2,MATCH(1,(komnavn2=Kommune)*(komaar2=I93),0),8)="*","*",INDEX(Data_kom2,MATCH(1,(komnavn2=Kommune)*(komaar2=I93),0),8)),"Data ikke tilføjet") -> 158572 | J95: =IFERROR(IF(INDEX(Data_kom2,MATCH(1,(komnavn2=Kommune)*(komaar2=J93),0),8)="*","*",INDEX(Data_kom2,MATCH(1,(komnavn2=Kommune)*(komaar2=J93),0),8)),"Data ikke tilføjet") -> 133661 | K95: =IFERROR(IF(INDEX(Data_kom2,MATCH(1,(komnavn2=Kommune)*(komaar2=K93),0),8)="*","*",INDEX(Data_kom2,MATCH(1,(komnavn2=Kommune)*(komaar2=K93),0),8)),"Data ikke tilføjet") -> 132974 | L95: =IFERROR(IF(INDEX(Data_kom2,MATCH(1,(komnavn2=Kommune)*(komaar2=L93),0),8)="*","*",INDEX(Data_kom2,MATCH(1,(komnavn2=Kommune)*(komaar2=L93),0),8)),"Data ikke tilføjet") -> 133256 | M95: =IFERROR(IF(INDEX(Data_kom2,MATCH(1,(komnavn2=Kommune)*(komaar2=M93),0),8)="*","*",INDEX(Data_kom2,MATCH(1,(komnavn2=Kommune)*(komaar2=M93),0),8)),"Data ikke tilføjet") -> 137290 | N95: =IFERROR(IF(INDEX(Data_kom2,MATCH(1,(komnavn2=Kommune)*(komaar2=N93),0),8)="*","*",INDEX(Data_kom2,MATCH(1,(komnavn2=Kommune)*(komaar2=N93),0),8)),"Data ikke tilføjet") -> 135855 | O95: =IFERROR(IF(INDEX(Data_kom2,MATCH(1,(komnavn2=Kommune)*(komaar2=O93),0),8)="*","*",INDEX(Data_kom2,MATCH(1,(komnavn2=Kommune)*(komaar2=O93),0),8)),"Data ikke tilføjet") -> 140964 | P95: =IFERROR(IF(INDEX(Data_kom2,MATCH(1,(komnavn2=Kommune)*(komaar2=P93),0),8)="*","*",INDEX(Data_kom2,MATCH(1,(komnavn2=Kommune)*(komaar2=P93),0),8)),"Data ikke tilføjet") -> 151891 | Q95: =IFERROR(IF(INDEX(Data_kom2,MATCH(1,(komnavn2=Kommune)*(komaar2=Q93),0),8)="*","*",INDEX(Data_kom2,MATCH(1,(komnavn2=Kommune)*(komaar2=Q93),0),8)),"Data ikke tilføjet") -> 170292 | R95: =IFERROR(IF(INDEX(Data_kom2,MATCH(1,(komnavn2=Kommune)*(komaar2=R93),0),8)="*","*",INDEX(Data_kom2,MATCH(1,(komnavn2=Kommune)*(komaar2=R93),0),8)),"Data ikke tilføjet") -> 181227
B96: Antal anbragte | D96: =IFERROR(INDEX(Data_kom2,MATCH(1,(komnavn2=Kommune)*(komaar2=D$93),0),4),"Data ikke tilføjet") -> 225 | E96: =IFERROR(INDEX(Data_kom2,MATCH(1,(komnavn2=Kommune)*(komaar2=E$93),0),4),"Data ikke tilføjet") -> 227 | F96: =IFERROR(INDEX(Data_kom2,MATCH(1,(komnavn2=Kommune)*(komaar2=F$93),0),4),"Data ikke tilføjet") -> 215 | G96: =IFERROR(INDEX(Data_kom2,MATCH(1,(komnavn2=Kommune)*(komaar2=G$93),0),4),"Data ikke tilføjet") -> 219 | H96: =IFERROR(INDEX(Data_kom2,MATCH(1,(komnavn2=Kommune)*(komaar2=H$93),0),4),"Data ikke tilføjet") -> 206 | I96: =IFERROR(INDEX(Data_kom2,MATCH(1,(komnavn2=Kommune)*(komaar2=I$93),0),4),"Data ikke tilføjet") -> 195 | J96: =IFERROR(INDEX(Data_kom2,MATCH(1,(komnavn2=Kommune)*(komaar2=J$93),0),4),"Data ikke tilføjet") -> 162 | K96: =IFERROR(INDEX(Data_kom2,MATCH(1,(komnavn2=Kommune)*(komaar2=K$93),0),4),"Data ikke tilføjet") -> 183 | L96: =IFERROR(INDEX(Data_kom2,MATCH(1,(komnavn2=Kommune)*(komaar2=L$93),0),4),"Data ikke tilføjet") -> 203 | M96: =IFERROR(INDEX(Data_kom2,MATCH(1,(komnavn2=Kommune)*(komaar2=M$93),0),4),"Data ikke tilføjet") -> 221 | N96: =IFERROR(INDEX(Data_kom2,MATCH(1,(komnavn2=Kommune)*(komaar2=N$93),0),4),"Data ikke tilføjet") -> 220 | O96: =IFERROR(INDEX(Data_kom2,MATCH(1,(komnavn2=Kommune)*(komaar2=O$93),0),4),"Data ikke tilføjet") -> 246 | P96: =IFERROR(INDEX(Data_kom2,MATCH(1,(komnavn2=Kommune)*(komaar2=P$93),0),4),"Data ikke tilføjet") -> 252 | Q96: =IFERROR(INDEX(Data_kom2,MATCH(1,(komnavn2=Kommune)*(komaar2=Q$93),0),4),"Data ikke tilføjet") -> 274 | R96: =IFERROR(INDEX(Data_kom2,MATCH(1,(komnavn2=Kommune)*(komaar2=R$93),0),4),"Data ikke tilføjet") -> 254
B97: Gennemsnitlig varighed | D97: =IFERROR(IF(D95="*","*",IF(D96=0,"#I/T",(D95/D96))),"Data ikke tilføjet") -> 814.9111111 | E97: =IFERROR(IF(E95="*","*",IF(E96=0,"#I/T",(E95/E96))),"Data ikke tilføjet") -> 753.7004405 | F97: =IFERROR(IF(F95="*","*",IF(F96=0,"#I/T",(F95/F96))),"Data ikke tilføjet") -> 751.5116279 | G97: =IFERROR(IF(G95="*","*",IF(G96=0,"#I/T",(G95/G96))),"Data ikke tilføjet") -> 747.4063927 | H97: =IFERROR(IF(H95="*","*",IF(H96=0,"#I/T",(H95/H96))),"Data ikke tilføjet") -> 760.6941748 | I97: =IFERROR(IF(I95="*","*",IF(I96=0,"#I/T",(I95/I96))),"Data ikke tilføjet") -> 813.1897436 | J97: =IFERROR(IF(J95="*","*",IF(J96=0,"#I/T",(J95/J96))),"Data ikke tilføjet") -> 825.0679012 | K97: =IFERROR(IF(K95="*","*",IF(K96=0,"#I/T",(K95/K96))),"Data ikke tilføjet") -> 726.6338798 | L97: =IFERROR(IF(L95="*","*",IF(L96=0,"#I/T",(L95/L96))),"Data ikke tilføjet") -> 656.4334975 | M97: =IFERROR(IF(M95="*","*",IF(M96=0,"#I/T",(M95/M96))),"Data ikke tilføjet") -> 621.2217195 | N97: =IFERROR(IF(N95="*","*",IF(N96=0,"#I/T",(N95/N96))),"Data ikke tilføjet") -> 617.5227273 | O97: =IFERROR(IF(O95="*","*",IF(O96=0,"#I/T",(O95/O96))),"Data ikke tilføjet") -> 573.0243902 | P97: =IFERROR(IF(P95="*","*",IF(P96=0,"#I/T",(P95/P96))),"Data ikke tilføjet") -> 602.7420635 | Q97: =IFERROR(IF(Q95="*","*",IF(Q96=0,"#I/T",(Q95/Q96))),"Data ikke tilføjet") -> 621.5036496 | R97: =IFERROR(IF(R95="*","*",IF(R96=0,"#I/T",(R95/R96))),"Data ikke tilføjet") -> 713.492126
B98: Sammenligningsgruppe, gns.
B99: Samlet antal dage | D99: =IF('Dine valg'!$G$24="","-",SUMIF(Hjælpefane!$D$7:$D$111,"="&D$9,Hjælpefane!$I$7:$I$111)) -> 197062 | E99: =IF('Dine valg'!$G$24="","-",SUMIF(Hjælpefane!$D$7:$D$111,"="&E$9,Hjælpefane!$I$7:$I$111)) -> 192986 | F99: =IF('Dine valg'!$G$24="","-",SUMIF(Hjælpefane!$D$7:$D$111,"="&F$9,Hjælpefane!$I$7:$I$111)) -> 180503 | G99: =IF('Dine valg'!$G$24="","-",SUMIF(Hjælpefane!$D$7:$D$111,"="&G$9,Hjælpefane!$I$7:$I$111)) -> 156486 | H99: =IF('Dine valg'!$G$24="","-",SUMIF(Hjælpefane!$D$7:$D$111,"="&H$9,Hjælpefane!$I$7:$I$111)) -> 144862 | I99: =IF('Dine valg'!$G$24="","-",SUMIF(Hjælpefane!$D$7:$D$111,"="&I$9,Hjælpefane!$I$7:$I$111)) -> 158343 | J99: =IF('Dine valg'!$G$24="","-",SUMIF(Hjælpefane!$D$7:$D$111,"="&J$9,Hjælpefane!$I$7:$I$111)) -> 156232 | K99: =IF('Dine valg'!$G$24="","-",SUMIF(Hjælpefane!$D$7:$D$111,"="&K$9,Hjælpefane!$I$7:$I$111)) -> 140915 | L99: =IF('Dine valg'!$G$24="","-",SUMIF(Hjælpefane!$D$7:$D$111,"="&L$9,Hjælpefane!$I$7:$I$111)) -> 147293 | M99: =IF('Dine valg'!$G$24="","-",SUMIF(Hjælpefane!$D$7:$D$111,"="&M$9,Hjælpefane!$I$7:$I$111)) -> 149129 | N99: =IF('Dine valg'!$G$24="","-",SUMIF(Hjælpefane!$D$7:$D$111,"="&N$9,Hjælpefane!$I$7:$I$111)) -> 145303 | O99: =IF('Dine valg'!$G$24="","-",SUMIF(Hjælpefane!$D$7:$D$111,"="&O$9,Hjælpefane!$I$7:$I$111)) -> 150498 | P99: =IF('Dine valg'!$G$24="","-",SUMIF(Hjælpefane!$D$7:$D$111,"="&P$9,Hjælpefane!$I$7:$I$111)) -> 140834 | Q99: =IF('Dine valg'!$G$24="","-",SUMIF(Hjælpefane!$D$7:$D$111,"="&Q$9,Hjælpefane!$I$7:$I$111)) -> 134907 | R99: =IF('Dine valg'!$G$24="","-",SUMIF(Hjælpefane!$D$7:$D$111,"="&R$9,Hjælpefane!$I$7:$I$111)) -> 131601
B100: Antal anbragte | D100: =IF('Dine valg'!$G$24="","-",SUMIF(Hjælpefane!$D$7:$D$111,"="&D$9,Hjælpefane!$E$7:$E$111)) -> 188 | E100: =IF('Dine valg'!$G$24="","-",SUMIF(Hjælpefane!$D$7:$D$111,"="&E$9,Hjælpefane!$E$7:$E$111)) -> 186 | F100: =IF('Dine valg'!$G$24="","-",SUMIF(Hjælpefane!$D$7:$D$111,"="&F$9,Hjælpefane!$E$7:$E$111)) -> 178 | G100: =IF('Dine valg'!$G$24="","-",SUMIF(Hjælpefane!$D$7:$D$111,"="&G$9,Hjælpefane!$E$7:$E$111)) -> 166 | H100: =IF('Dine valg'!$G$24="","-",SUMIF(Hjælpefane!$D$7:$D$111,"="&H$9,Hjælpefane!$E$7:$E$111)) -> 173 | I100: =IF('Dine valg'!$G$24="","-",SUMIF(Hjælpefane!$D$7:$D$111,"="&I$9,Hjælpefane!$E$7:$E$111)) -> 173 | J100: =IF('Dine valg'!$G$24="","-",SUMIF(Hjælpefane!$D$7:$D$111,"="&J$9,Hjælpefane!$E$7:$E$111)) -> 166 | K100: =IF('Dine valg'!$G$24="","-",SUMIF(Hjælpefane!$D$7:$D$111,"="&K$9,Hjælpefane!$E$7:$E$111)) -> 168 | L100: =IF('Dine valg'!$G$24="","-",SUMIF(Hjælpefane!$D$7:$D$111,"="&L$9,Hjælpefane!$E$7:$E$111)) -> 169 | M100: =IF('Dine valg'!$G$24="","-",SUMIF(Hjælpefane!$D$7:$D$111,"="&M$9,Hjælpefane!$E$7:$E$111)) -> 168 | N100: =IF('Dine valg'!$G$24="","-",SUMIF(Hjælpefane!$D$7:$D$111,"="&N$9,Hjælpefane!$E$7:$E$111)) -> 154 | O100: =IF('Dine valg'!$G$24="","-",SUMIF(Hjælpefane!$D$7:$D$111,"="&O$9,Hjælpefane!$E$7:$E$111)) -> 168 | P100: =IF('Dine valg'!$G$24="","-",SUMIF(Hjælpefane!$D$7:$D$111,"="&P$9,Hjælpefane!$E$7:$E$111)) -> 162 | Q100: =IF('Dine valg'!$G$24="","-",SUMIF(Hjælpefane!$D$7:$D$111,"="&Q$9,Hjælpefane!$E$7:$E$111)) -> 161 | R100: =IF('Dine valg'!$G$24="","-",SUMIF(Hjælpefane!$D$7:$D$111,"="&R$9,Hjælpefane!$E$7:$E$111)) -> 152
B101: Gennemsnitlig varighed | D101: =IFERROR(IF(D99="*","*",IF(D100="","Indtast data",(D99/D100))),"-") -> 1048.202128 | E101: =IFERROR(IF(E99="*","*",IF(E100="","Indtast data",(E99/E100))),"-") -> 1037.55914 | F101: =IFERROR(IF(F99="*","*",IF(F100="","Indtast data",(F99/F100))),"-") -> 1014.061798 | G101: =IFERROR(IF(G99="*","*",IF(G100="","Indtast data",(G99/G100))),"-") -> 942.686747 | H101: =IFERROR(IF(H99="*","*",IF(H100="","Indtast data",(H99/H100))),"-") -> 837.3526012 | I101: =IFERROR(IF(I99="*","*",IF(I100="","Indtast data",(I99/I100))),"-") -> 915.2774566 | J101: =IFERROR(IF(J99="*","*",IF(J100="","Indtast data",(J99/J100))),"-") -> 941.1566265 | K101: =IFERROR(IF(K99="*","*",IF(K100="","Indtast data",(K99/K100))),"-") -> 838.7797619 | L101: =IFERROR(IF(L99="*","*",IF(L100="","Indtast data",(L99/L100))),"-") -> 871.556213 | M101: 887.672619 | N101: 943.525974 | O101: 895.8214286 | P101: 869.345679 | Q101: 837.931677 | R101: 865.7960526
B102: Hele landet
B103: Samlet antal dage | D103: =INDEX(Data_land,MATCH(Skyggetabeller!D93,Data!landaar,0),8) -> 2919506 | E103: =INDEX(Data_land,MATCH(Skyggetabeller!E93,Data!landaar,0),8) -> 2864697 | F103: =INDEX(Data_land,MATCH(Skyggetabeller!F93,Data!landaar,0),8) -> 2780084 | G103: =INDEX(Data_land,MATCH(Skyggetabeller!G93,Data!landaar,0),8) -> 2671592 | H103: =INDEX(Data_land,MATCH(Skyggetabeller!H93,Data!landaar,0),8) -> 2549944 | I103: =INDEX(Data_land,MATCH(Skyggetabeller!I93,Data!landaar,0),8) -> 2520675 | J103: =INDEX(Data_land,MATCH(Skyggetabeller!J93,Data!landaar,0),8) -> 2479646 | K103: =INDEX(Data_land,MATCH(Skyggetabeller!K93,Data!landaar,0),8) -> 2518184 | L103: =INDEX(Data_land,MATCH(Skyggetabeller!L93,Data!landaar,0),8) -> 2519364 | M103: =INDEX(Data_land,MATCH(Skyggetabeller!M93,Data!landaar,0),8) -> 2533338 | N103: =INDEX(Data_land,MATCH(Skyggetabeller!N93,Data!landaar,0),8) -> 2554433 | O103: =INDEX(Data_land,MATCH(Skyggetabeller!O93,Data!landaar,0),8) -> 2587666 | P103: =INDEX(Data_land,MATCH(Skyggetabeller!P93,Data!landaar,0),8) -> 2626422 | Q103: =INDEX(Data_land,MATCH(Skyggetabeller!Q93,Data!landaar,0),8) -> 2688953 | R103: =INDEX(Data_land,MATCH(Skyggetabeller!R93,Data!landaar,0),8) -> 2761895
B104: Antal anbragte | D104: =INDEX(Data_land,MATCH(Skyggetabeller!D93,Data!landaar,0),4) -> 3383 | E104: =INDEX(Data_land,MATCH(Skyggetabeller!E93,Data!landaar,0),4) -> 3460 | F104: =INDEX(Data_land,MATCH(Skyggetabeller!F93,Data!landaar,0),4) -> 3369 | G104: =INDEX(Data_land,MATCH(Skyggetabeller!G93,Data!landaar,0),4) -> 3409 | H104: =INDEX(Data_land,MATCH(Skyggetabeller!H93,Data!landaar,0),4) -> 3309 | I104: =INDEX(Data_land,MATCH(Skyggetabeller!I93,Data!landaar,0),4) -> 3282 | J104: =INDEX(Data_land,MATCH(Skyggetabeller!J93,Data!landaar,0),4) -> 3274 | K104: =INDEX(Data_land,MATCH(Skyggetabeller!K93,Data!landaar,0),4) -> 3343 | L104: =INDEX(Data_land,MATCH(Skyggetabeller!L93,Data!landaar,0),4) -> 3404 | M104: =INDEX(Data_land,MATCH(Skyggetabeller!M93,Data!landaar,0),4) -> 3494 | N104: =INDEX(Data_land,MATCH(Skyggetabeller!N93,Data!landaar,0),4) -> 3486 | O104: =INDEX(Data_land,MATCH(Skyggetabeller!O93,Data!landaar,0),4) -> 3675 | P104: =INDEX(Data_land,MATCH(Skyggetabeller!P93,Data!landaar,0),4) -> 3708 | Q104: =INDEX(Data_land,MATCH(Skyggetabeller!Q93,Data!landaar,0),4) -> 3769 | R104: =INDEX(Data_land,MATCH(Skyggetabeller!R93,Data!landaar,0),4) -> 3790
B105: Gennemsnitlig varighed | D105: =IFERROR(IF(D103="*","*",IF(D104=0,"#I/T",(D103/D104))),"Data ikke tilføjet") -> 862.9932013 | E105: =IFERROR(IF(E103="*","*",IF(E104=0,"#I/T",(E103/E104))),"Data ikke tilføjet") -> 827.9471098 | F105: =IFERROR(IF(F103="*","*",IF(F104=0,"#I/T",(F103/F104))),"Data ikke tilføjet") -> 825.195607 | G105: =IFERROR(IF(G103="*","*",IF(G104=0,"#I/T",(G103/G104))),"Data ikke tilføjet") -> 783.687885 | H105: =IFERROR(IF(H103="*","*",IF(H104=0,"#I/T",(H103/H104))),"Data ikke tilføjet") -> 770.6086431 | I105: =IFERROR(IF(I103="*","*",IF(I104=0,"#I/T",(I103/I104))),"Data ikke tilføjet") -> 768.0301645 | J105: =IFERROR(IF(J103="*","*",IF(J104=0,"#I/T",(J103/J104))),"Data ikke tilføjet") -> 757.3750764 | K105: =IFERROR(IF(K103="*","*",IF(K104=0,"#I/T",(K103/K104))),"Data ikke tilføjet") -> 753.2707149 | L105: =IFERROR(IF(L103="*","*",IF(L104=0,"#I/T",(L103/L104))),"Data ikke tilføjet") -> 740.1186839 | M105: =IFERROR(IF(M103="*","*",IF(M104=0,"#I/T",(M103/M104))),"Data ikke tilføjet") -> 725.0538065 | N105: =IFERROR(IF(N103="*","*",IF(N104=0,"#I/T",(N103/N104))),"Data ikke tilføjet") -> 732.7690763 | O105: =IFERROR(IF(O103="*","*",IF(O104=0,"#I/T",(O103/O104))),"Data ikke tilføjet") -> 704.1268027 | P105: =IFERROR(IF(P103="*","*",IF(P104=0,"#I/T",(P103/P104))),"Data ikke tilføjet") -> 708.3122977 | Q105: =IFERROR(IF(Q103="*","*",IF(Q104=0,"#I/T",(Q103/Q104))),"Data ikke tilføjet") -> 713.4393738 | R105: =IFERROR(IF(R103="*","*",IF(R104=0,"#I/T",(R103/R104))),"Data ikke tilføjet") -> 728.73219
B107: Tabel 2.1: Gennemsnitlig varighed af igangværende anbringelser på døgninstitution
B108: Nøgletal 2.1 Gennemsnitlig varighed af igangværende anbringelser på døgninstitution | D108: 2017-01-01 | E108: 2017-07-01 | F108: 2018-01-01 | G108: 2018-07-01 | H108: 2019-01-01 | I108: 2019-07-01 | J108: 2020-01-01 | K108: 2020-07-01 | L108: 2021-01-01 | M108: 2021-07-01 | N108: 2022-01-01 | O108: 2022-07-01 | P108: 2023-01-01 | Q108: 2023-07-01 | R108: 2024-01-01
B109: =IF(Kommune="","Kommune",Kommune) -> København
B110: Samlet antal dage | D110: =IFERROR(IF(INDEX(Data_kom2,MATCH(1,(komnavn2=Kommune)*(komaar2=D108),0),9)="*","*",INDEX(Data_kom2,MATCH(1,(komnavn2=Kommune)*(komaar2=D108),0),9)),"Data ikke tilføjet") -> 134446 | E110: =IFERROR(IF(INDEX(Data_kom2,MATCH(1,(komnavn2=Kommune)*(komaar2=E108),0),9)="*","*",INDEX(Data_kom2,MATCH(1,(komnavn2=Kommune)*(komaar2=E108),0),9)),"Data ikke tilføjet") -> 126745 | F110: =IFERROR(IF(INDEX(Data_kom2,MATCH(1,(komnavn2=Kommune)*(komaar2=F108),0),9)="*","*",INDEX(Data_kom2,MATCH(1,(komnavn2=Kommune)*(komaar2=F108),0),9)),"Data ikke tilføjet") -> 117497 | G110: =IFERROR(IF(INDEX(Data_kom2,MATCH(1,(komnavn2=Kommune)*(komaar2=G108),0),9)="*","*",INDEX(Data_kom2,MATCH(1,(komnavn2=Kommune)*(komaar2=G108),0),9)),"Data ikke tilføjet") -> 118319 | H110: =IFERROR(IF(INDEX(Data_kom2,MATCH(1,(komnavn2=Kommune)*(komaar2=H108),0),9)="*","*",INDEX(Data_kom2,MATCH(1,(komnavn2=Kommune)*(komaar2=H108),0),9)),"Data ikke tilføjet") -> 112040 | I110: =IFERROR(IF(INDEX(Data_kom2,MATCH(1,(komnavn2=Kommune)*(komaar2=I108),0),9)="*","*",INDEX(Data_kom2,MATCH(1,(komnavn2=Kommune)*(komaar2=I108),0),9)),"Data ikke tilføjet") -> 110718 | J110: =IFERROR(IF(INDEX(Data_kom2,MATCH(1,(komnavn2=Kommune)*(komaar2=J108),0),9)="*","*",INDEX(Data_kom2,MATCH(1,(komnavn2=Kommune)*(komaar2=J108),0),9)),"Data ikke tilføjet") -> 102261 | K110: =IFERROR(IF(INDEX(Data_kom2,MATCH(1,(komnavn2=Kommune)*(komaar2=K108),0),9)="*","*",INDEX(Data_kom2,MATCH(1,(komnavn2=Kommune)*(komaar2=K108),0),9)),"Data ikke tilføjet") -> 97534 | L110: =IFERROR(IF(INDEX(Data_kom2,MATCH(1,(komnavn2=Kommune)*(komaar2=L108),0),9)="*","*",INDEX(Data_kom2,MATCH(1,(komnavn2=Kommune)*(komaar2=L108),0),9)),"Data ikke tilføjet") -> 99356 | M110: =IFERROR(IF(INDEX(Data_kom2,MATCH(1,(komnavn2=Kommune)*(komaar2=M108),0),9)="*","*",INDEX(Data_kom2,MATCH(1,(komnavn2=Kommune)*(komaar2=M108),0),9)),"Data ikke tilføjet") -> 99035 | N110: =IFERROR(IF(INDEX(Data_kom2,MATCH(1,(komnavn2=Kommune)*(komaar2=N108),0),9)="*","*",INDEX(Data_kom2,MATCH(1,(komnavn2=Kommune)*(komaar2=N108),0),9)),"Data ikke tilføjet") -> 99578 | O110: =IFERROR(IF(INDEX(Data_kom2,MATCH(1,(komnavn2=Kommune)*(komaar2=O108),0),9)="*","*",INDEX(Data_kom2,MATCH(1,(komnavn2=Kommune)*(komaar2=O108),0),9)),"Data ikke tilføjet") -> 101578 | P110: =IFERROR(IF(INDEX(Data_kom2,MATCH(1,(komnavn2=Kommune)*(komaar2=P108),0),9)="*","*",INDEX(Data_kom2,MATCH(1,(komnavn2=Kommune)*(komaar2=P108),0),9)),"Data ikke tilføjet") -> 118164 | Q110: =IFERROR(IF(INDEX(Data_kom2,MATCH(1,(komnavn2=Kommune)*(komaar2=Q108),0),9)="*","*",INDEX(Data_kom2,MATCH(1,(komnavn2=Kommune)*(komaar2=Q108),0),9)),"Data ikke tilføjet") -> 135596 | R110: =IFERROR(IF(INDEX(Data_kom2,MATCH(1,(komnavn2=Kommune)*(komaar2=R108),0),9)="*","*",INDEX(Data_kom2,MATCH(1,(komnavn2=Kommune)*(komaar2=R108),0),9)),"Data ikke tilføjet") -> 142911
B111: Antal anbragte | D111: =D26 -> 172 | E111: 183 | F111: 176 | G111: 176 | H111: 164 | I111: 155 | J111: 139 | K111: 148 | L111: 159 | M111: =M26 -> 164 | N111: 171 | O111: 194 | P111: 200 | Q111: 220 | R111: 189
B112: Gennemsnitlig varighed | D112: =IFERROR(IF(D110="*","*",IF(D111=0,"#I/T",(D110/D111))),"Data ikke tilføjet") -> 781.6627907 | E112: =IFERROR(IF(E110="*","*",IF(E111=0,"#I/T",(E110/E111))),"Data ikke tilføjet") -> 692.5956284 | F112: =IFERROR(IF(F110="*","*",IF(F111=0,"#I/T",(F110/F111))),"Data ikke tilføjet") -> 667.5965909 | G112: =IFERROR(IF(G110="*","*",IF(G111=0,"#I/T",(G110/G111))),"Data ikke tilføjet") -> 672.2670455 | H112: =IFERROR(IF(H110="*","*",IF(H111=0,"#I/T",(H110/H111))),"Data ikke tilføjet") -> 683.1707317 | I112: =IFERROR(IF(I110="*","*",IF(I111=0,"#I/T",(I110/I111))),"Data ikke tilføjet") -> 714.3096774 | J112: =IFERROR(IF(J110="*","*",IF(J111=0,"#I/T",(J110/J111))),"Data ikke tilføjet") -> 735.6906475 | K112: =IFERROR(IF(K110="*","*",IF(K111=0,"#I/T",(K110/K111))),"Data ikke tilføjet") -> 659.0135135 | L112: =IFERROR(IF(L110="*","*",IF(L111=0,"#I/T",(L110/L111))),"Data ikke tilføjet") -> 624.8805031 | M112: =IFERROR(IF(M110="*","*",IF(M111=0,"#I/T",(M110/M111))),"Data ikke tilføjet") -> 603.8719512 | N112: =IFERROR(IF(N110="*","*",IF(N111=0,"#I/T",(N110/N111))),"Data ikke tilføjet") -> 582.3274854 | O112: =IFERROR(IF(O110="*","*",IF(O111=0,"#I/T",(O110/O111))),"Data ikke tilføjet") -> 523.5979381 | P112: =IFERROR(IF(P110="*","*",IF(P111=0,"#I/T",(P110/P111))),"Data ikke tilføjet") -> 590.82 | Q112: =IFERROR(IF(Q110="*","*",IF(Q111=0,"#I/T",(Q110/Q111))),"Data ikke tilføjet") -> 616.3454545 | R112: =IFERROR(IF(R110="*","*",IF(R111=0,"#I/T",(R110/R111))),"Data ikke tilføjet") -> 756.1428571
B113: Sammenligningsgruppe, gns.
B114: Samlet antal dage | D114: =IF('Dine valg'!$G$24="","-",SUMIF(Hjælpefane!$D$7:$D$111,"="&D$9,Hjælpefane!$J$7:$J$111)) -> 150304 | E114: =IF('Dine valg'!$G$24="","-",SUMIF(Hjælpefane!$D$7:$D$111,"="&E$9,Hjælpefane!$J$7:$J$111)) -> 150184 | F114: =IF('Dine valg'!$G$24="","-",SUMIF(Hjælpefane!$D$7:$D$111,"="&F$9,Hjælpefane!$J$7:$J$111)) -> 134878 | G114: =IF('Dine valg'!$G$24="","-",SUMIF(Hjælpefane!$D$7:$D$111,"="&G$9,Hjælpefane!$J$7:$J$111)) -> 119397 | H114: =IF('Dine valg'!$G$24="","-",SUMIF(Hjælpefane!$D$7:$D$111,"="&H$9,Hjælpefane!$J$7:$J$111)) -> 110606 | I114: =IF('Dine valg'!$G$24="","-",SUMIF(Hjælpefane!$D$7:$D$111,"="&I$9,Hjælpefane!$J$7:$J$111)) -> 122426 | J114: =IF('Dine valg'!$G$24="","-",SUMIF(Hjælpefane!$D$7:$D$111,"="&J$9,Hjælpefane!$J$7:$J$111)) -> 124048 | K114: =IF('Dine valg'!$G$24="","-",SUMIF(Hjælpefane!$D$7:$D$111,"="&K$9,Hjælpefane!$J$7:$J$111)) -> 115596 | L114: =IF('Dine valg'!$G$24="","-",SUMIF(Hjælpefane!$D$7:$D$111,"="&L$9,Hjælpefane!$J$7:$J$111)) -> 119524 | M114: =IF('Dine valg'!$G$24="","-",SUMIF(Hjælpefane!$D$7:$D$111,"="&M$9,Hjælpefane!$J$7:$J$111)) -> 125178 | N114: =IF('Dine valg'!$G$24="","-",SUMIF(Hjælpefane!$D$7:$D$111,"="&N$9,Hjælpefane!$J$7:$J$111)) -> 122621 | O114: =IF('Dine valg'!$G$24="","-",SUMIF(Hjælpefane!$D$7:$D$111,"="&O$9,Hjælpefane!$J$7:$J$111)) -> 121875 | P114: =IF('Dine valg'!$G$24="","-",SUMIF(Hjælpefane!$D$7:$D$111,"="&P$9,Hjælpefane!$J$7:$J$111)) -> 114322 | Q114: =IF('Dine valg'!$G$24="","-",SUMIF(Hjælpefane!$D$7:$D$111,"="&Q$9,Hjælpefane!$J$7:$J$111)) -> 111343 | R114: =IF('Dine valg'!$G$24="","-",SUMIF(Hjælpefane!$D$7:$D$111,"="&R$9,Hjælpefane!$J$7:$J$111)) -> 109315
B115: Antal anbragte | D115: =IF('Dine valg'!$G$24="","-",SUMIF(Hjælpefane!$D$7:$D$111,"="&D$9,Hjælpefane!$F$7:$F$111)) -> 129 | E115: =IF('Dine valg'!$G$24="","-",SUMIF(Hjælpefane!$D$7:$D$111,"="&E$9,Hjælpefane!$F$7:$F$111)) -> 130 | F115: =IF('Dine valg'!$G$24="","-",SUMIF(Hjælpefane!$D$7:$D$111,"="&F$9,Hjælpefane!$F$7:$F$111)) -> 116 | G115: =IF('Dine valg'!$G$24="","-",SUMIF(Hjælpefane!$D$7:$D$111,"="&G$9,Hjælpefane!$F$7:$F$111)) -> 113 | H115: =IF('Dine valg'!$G$24="","-",SUMIF(Hjælpefane!$D$7:$D$111,"="&H$9,Hjælpefane!$F$7:$F$111)) -> 116 | I115: =IF('Dine valg'!$G$24="","-",SUMIF(Hjælpefane!$D$7:$D$111,"="&I$9,Hjælpefane!$F$7:$F$111)) -> 122 | J115: =IF('Dine valg'!$G$24="","-",SUMIF(Hjælpefane!$D$7:$D$111,"="&J$9,Hjælpefane!$F$7:$F$111)) -> 116 | K115: =IF('Dine valg'!$G$24="","-",SUMIF(Hjælpefane!$D$7:$D$111,"="&K$9,Hjælpefane!$F$7:$F$111)) -> 121 | L115: =IF('Dine valg'!$G$24="","-",SUMIF(Hjælpefane!$D$7:$D$111,"="&L$9,Hjælpefane!$F$7:$F$111)) -> 115 | M115: =IF('Dine valg'!$G$24="","-",SUMIF(Hjælpefane!$D$7:$D$111,"="&M$9,Hjælpefane!$F$7:$F$111)) -> 112 | N115: =IF('Dine valg'!$G$24="","-",SUMIF(Hjælpefane!$D$7:$D$111,"="&N$9,Hjælpefane!$F$7:$F$111)) -> 102 | O115: =IF('Dine valg'!$G$24="","-",SUMIF(Hjælpefane!$D$7:$D$111,"="&O$9,Hjælpefane!$F$7:$F$111)) -> 105 | P115: =IF('Dine valg'!$G$24="","-",SUMIF(Hjælpefane!$D$7:$D$111,"="&P$9,Hjælpefane!$F$7:$F$111)) -> 103 | Q115: =IF('Dine valg'!$G$24="","-",SUMIF(Hjælpefane!$D$7:$D$111,"="&Q$9,Hjælpefane!$F$7:$F$111)) -> 110 | R115: =IF('Dine valg'!$G$24="","-",SUMIF(Hjælpefane!$D$7:$D$111,"="&R$9,Hjælpefane!$F$7:$F$111)) -> 101
B116: Gennemsnitlig varighed | D116: =IFERROR(IF(D114="*","*",IF(D115="","Indtast data",(D114/D115))),"-") -> 1165.147287 | E116: =IFERROR(IF(E114="*","*",IF(E115="","Indtast data",(E114/E115))),"-") -> 1155.261538 | F116: =IFERROR(IF(F114="*","*",IF(F115="","Indtast data",(F114/F115))),"-") -> 1162.741379 | G116: =IFERROR(IF(G114="*","*",IF(G115="","Indtast data",(G114/G115))),"-") -> 1056.610619 | H116: =IFERROR(IF(H114="*","*",IF(H115="","Indtast data",(H114/H115))),"-") -> 953.5 | I116: =IFERROR(IF(I114="*","*",IF(I115="","Indtast data",(I114/I115))),"-") -> 1003.491803 | J116: =IFERROR(IF(J114="*","*",IF(J115="","Indtast data",(J114/J115))),"-") -> 1069.37931 | K116: =IFERROR(IF(K114="*","*",IF(K115="","Indtast data",(K114/K115))),"-") -> 955.338843 | L116: =IFERROR(IF(L114="*","*",IF(L115="","Indtast data",(L114/L115))),"-") -> 1039.33913 | M116: 1117.660714 | N116: 1202.166667 | O116: 1160.714286 | P116: 1109.92233 | Q116: 1012.209091 | R116: 1082.326733
B117: Hele landet
B118: Samlet antal dage | D118: =INDEX(Data_land,MATCH(Skyggetabeller!D108,Data!landaar,0),9) -> 1742648 | E118: =INDEX(Data_land,MATCH(Skyggetabeller!E108,Data!landaar,0),9) -> 1681708 | F118: =INDEX(Data_land,MATCH(Skyggetabeller!F108,Data!landaar,0),9) -> 1627312 | G118: =INDEX(Data_land,MATCH(Skyggetabeller!G108,Data!landaar,0),9) -> 1556475 | H118: =INDEX(Data_land,MATCH(Skyggetabeller!H108,Data!landaar,0),9) -> 1474692 | I118: =INDEX(Data_land,MATCH(Skyggetabeller!I108,Data!landaar,0),9) -> 1472207 | J118: =INDEX(Data_land,MATCH(Skyggetabeller!J108,Data!landaar,0),9) -> 1450623 | K118: =INDEX(Data_land,MATCH(Skyggetabeller!K108,Data!landaar,0),9) -> 1435480 | L118: =INDEX(Data_land,MATCH(Skyggetabeller!L108,Data!landaar,0),9) -> 1423295 | M118: =INDEX(Data_land,MATCH(Skyggetabeller!M108,Data!landaar,0),9) -> 1404018 | N118: =INDEX(Data_land,MATCH(Skyggetabeller!N108,Data!landaar,0),9) -> 1404124 | O118: =INDEX(Data_land,MATCH(Skyggetabeller!O108,Data!landaar,0),9) -> 1421269 | P118: =INDEX(Data_land,MATCH(Skyggetabeller!P108,Data!landaar,0),9) -> 1443374 | Q118: =INDEX(Data_land,MATCH(Skyggetabeller!Q108,Data!landaar,0),9) -> 1489560 | R118: =INDEX(Data_land,MATCH(Skyggetabeller!R108,Data!landaar,0),9) -> 1543409
B119: Antal anbragte | D119: =INDEX(Data_land,MATCH(Skyggetabeller!D108,Data!landaar,0),5) -> 1818 | E119: =INDEX(Data_land,MATCH(Skyggetabeller!E108,Data!landaar,0),5) -> 1809 | F119: =INDEX(Data_land,MATCH(Skyggetabeller!F108,Data!landaar,0),5) -> 1761 | G119: =INDEX(Data_land,MATCH(Skyggetabeller!G108,Data!landaar,0),5) -> 1780 | H119: =INDEX(Data_land,MATCH(Skyggetabeller!H108,Data!landaar,0),5) -> 1704 | I119: =INDEX(Data_land,MATCH(Skyggetabeller!I108,Data!landaar,0),5) -> 1695 | J119: =INDEX(Data_land,MATCH(Skyggetabeller!J108,Data!landaar,0),5) -> 1680 | K119: =INDEX(Data_land,MATCH(Skyggetabeller!K108,Data!landaar,0),5) -> 1669 | L119: =INDEX(Data_land,MATCH(Skyggetabeller!L108,Data!landaar,0),5) -> 1694 | M119: =INDEX(Data_land,MATCH(Skyggetabeller!M108,Data!landaar,0),5) -> 1680 | N119: =INDEX(Data_land,MATCH(Skyggetabeller!N108,Data!landaar,0),5) -> 1689 | O119: =INDEX(Data_land,MATCH(Skyggetabeller!O108,Data!landaar,0),5) -> 1762 | P119: =INDEX(Data_land,MATCH(Skyggetabeller!P108,Data!landaar,0),5) -> 1768 | Q119: =INDEX(Data_land,MATCH(Skyggetabeller!Q108,Data!landaar,0),5) -> 1815 | R119: =INDEX(Data_land,MATCH(Skyggetabeller!R108,Data!landaar,0),5) -> 1800
B120: Gennemsnitlig varighed | D120: =IFERROR(IF(D118="*","*",IF(D119=0,"#I/T",(D118/D119))),"Data ikke tilføjet") -> 958.5522552 | E120: =IFERROR(IF(E118="*","*",IF(E119=0,"#I/T",(E118/E119))),"Data ikke tilføjet") -> 929.634052 | F120: =IFERROR(IF(F118="*","*",IF(F119=0,"#I/T",(F118/F119))),"Data ikke tilføjet") -> 924.0840432 | G120: =IFERROR(IF(G118="*","*",IF(G119=0,"#I/T",(G118/G119))),"Data ikke tilføjet") -> 874.4241573 | H120: =IFERROR(IF(H118="*","*",IF(H119=0,"#I/T",(H118/H119))),"Data ikke tilføjet") -> 865.4295775 | I120: =IFERROR(IF(I118="*","*",IF(I119=0,"#I/T",(I118/I119))),"Data ikke tilføjet") -> 868.5587021 | J120: =IFERROR(IF(J118="*","*",IF(J119=0,"#I/T",(J118/J119))),"Data ikke tilføjet") -> 863.4660714 | K120: =IFERROR(IF(K118="*","*",IF(K119=0,"#I/T",(K118/K119))),"Data ikke tilføjet") -> 860.0838826 | L120: =IFERROR(IF(L118="*","*",IF(L119=0,"#I/T",(L118/L119))),"Data ikke tilføjet") -> 840.1977568 | M120: =IFERROR(IF(M118="*","*",IF(M119=0,"#I/T",(M118/M119))),"Data ikke tilføjet") -> 835.725 | N120: =IFERROR(IF(N118="*","*",IF(N119=0,"#I/T",(N118/N119))),"Data ikke tilføjet") -> 831.3345175 | O120: =IFERROR(IF(O118="*","*",IF(O119=0,"#I/T",(O118/O119))),"Data ikke tilføjet") -> 806.622588 | P120: =IFERROR(IF(P118="*","*",IF(P119=0,"#I/T",(P118/P119))),"Data ikke tilføjet") -> 816.388009 | Q120: =IFERROR(IF(Q118="*","*",IF(Q119=0,"#I/T",(Q118/Q119))),"Data ikke tilføjet") -> 820.6942149 | R120: =IFERROR(IF(R118="*","*",IF(R119=0,"#I/T",(R118/R119))),"Data ikke tilføjet") -> 857.4494444
B122: Tabel 2.2: Gennemsnitlig varighed af igangværende anbringelser på sikret døgninstitution
B123: Nøgletal 2.2: Gennemsnitlig varighed af igangværende anbringelser på sikret døgninstitution | D123: 2017-01-01 | E123: 2017-07-01 | F123: 2018-01-01 | G123: 2018-07-01 | H123: 2019-01-01 | I123: 2019-07-01 | J123: 2020-01-01 | K123: 2020-07-01 | L123: 2021-01-01 | M123: 2021-07-01 | N123: 2022-01-01 | O123: 2022-07-01 | P123: 2023-01-01 | Q123: 2023-07-01 | R123: 2024-01-01
B124: =IF(Kommune="","Kommune",Kommune) -> København
B125: Samlet antal dage | D125: =IFERROR(IF(INDEX(Data_kom2,MATCH(1,(komnavn2=Kommune)*(komaar2=D123),0),10)="*","*",INDEX(Data_kom2,MATCH(1,(komnavn2=Kommune)*(komaar2=D123),0),10)),"Data ikke tilføjet") -> 2067 | E125: =IFERROR(IF(INDEX(Data_kom2,MATCH(1,(komnavn2=Kommune)*(komaar2=E123),0),10)="*","*",INDEX(Data_kom2,MATCH(1,(komnavn2=Kommune)*(komaar2=E123),0),10)),"Data ikke tilføjet") -> 2443 | F125: =IFERROR(IF(INDEX(Data_kom2,MATCH(1,(komnavn2=Kommune)*(komaar2=F123),0),10)="*","*",INDEX(Data_kom2,MATCH(1,(komnavn2=Kommune)*(komaar2=F123),0),10)),"Data ikke tilføjet") -> 2098 | G125: =IFERROR(IF(INDEX(Data_kom2,MATCH(1,(komnavn2=Kommune)*(komaar2=G123),0),10)="*","*",INDEX(Data_kom2,MATCH(1,(komnavn2=Kommune)*(komaar2=G123),0),10)),"Data ikke tilføjet") -> 3026 | H125: =IFERROR(IF(INDEX(Data_kom2,MATCH(1,(komnavn2=Kommune)*(komaar2=H123),0),10)="*","*",INDEX(Data_kom2,MATCH(1,(komnavn2=Kommune)*(komaar2=H123),0),10)),"Data ikke tilføjet") -> 2960 | I125: =IFERROR(IF(INDEX(Data_kom2,MATCH(1,(komnavn2=Kommune)*(komaar2=I123),0),10)="*","*",INDEX(Data_kom2,MATCH(1,(komnavn2=Kommune)*(komaar2=I123),0),10)),"Data ikke tilføjet") -> * | J125: =IFERROR(IF(INDEX(Data_kom2,MATCH(1,(komnavn2=Kommune)*(komaar2=J123),0),10)="*","*",INDEX(Data_kom2,MATCH(1,(komnavn2=Kommune)*(komaar2=J123),0),10)),"Data ikke tilføjet") -> * | K125: =IFERROR(IF(INDEX(Data_kom2,MATCH(1,(komnavn2=Kommune)*(komaar2=K123),0),10)="*","*",INDEX(Data_kom2,MATCH(1,(komnavn2=Kommune)*(komaar2=K123),0),10)),"Data ikke tilføjet") -> 801 | L125: =IFERROR(IF(INDEX(Data_kom2,MATCH(1,(komnavn2=Kommune)*(komaar2=L123),0),10)="*","*",INDEX(Data_kom2,MATCH(1,(komnavn2=Kommune)*(komaar2=L123),0),10)),"Data ikke tilføjet") -> 1693 | M125: =IFERROR(IF(INDEX(Data_kom2,MATCH(1,(komnavn2=Kommune)*(komaar2=M123),0),10)="*","*",INDEX(Data_kom2,MATCH(1,(komnavn2=Kommune)*(komaar2=M123),0),10)),"Data ikke tilføjet") -> 2581 | N125: =IFERROR(IF(INDEX(Data_kom2,MATCH(1,(komnavn2=Kommune)*(komaar2=N123),0),10)="*","*",INDEX(Data_kom2,MATCH(1,(komnavn2=Kommune)*(komaar2=N123),0),10)),"Data ikke tilføjet") -> 2750 | O125: =IFERROR(IF(INDEX(Data_kom2,MATCH(1,(komnavn2=Kommune)*(komaar2=O123),0),10)="*","*",INDEX(Data_kom2,MATCH(1,(komnavn2=Kommune)*(komaar2=O123),0),10)),"Data ikke tilføjet") -> 2047 | P125: =IFERROR(IF(INDEX(Data_kom2,MATCH(1,(komnavn2=Kommune)*(komaar2=P123),0),10)="*","*",INDEX(Data_kom2,MATCH(1,(komnavn2=Kommune)*(komaar2=P123),0),10)),"Data ikke tilføjet") -> 2600 | Q125: =IFERROR(IF(INDEX(Data_kom2,MATCH(1,(komnavn2=Kommune)*(komaar2=Q123),0),10)="*","*",INDEX(Data_kom2,MATCH(1,(komnavn2=Kommune)*(komaar2=Q123),0),10)),"Data ikke tilføjet") -> 2483 | R125: =IFERROR(IF(INDEX(Data_kom2,MATCH(1,(komnavn2=Kommune)*(komaar2=R123),0),10)="*","*",INDEX(Data_kom2,MATCH(1,(komnavn2=Kommune)*(komaar2=R123),0),10)),"Data ikke tilføjet") -> 3671
B126: Antal anbragte | D126: =D41 -> 7 | E126: 6 | F126: 6 | G126: 11 | H126: 9 | I126: 4 | J126: * | K126: 9 | L126: 17 | M126: =M41 -> 23 | N126: 18 | O126: 16 | P126: 11 | Q126: 12 | R126: 12
B127: Gennemsnitlig varighed | D127: =IFERROR(IF(D125="*","*",IF(D126=0,"#I/T",(D125/D126))),"Data ikke tilføjet") -> 295.2857143 | E127: =IFERROR(IF(E125="*","*",IF(E126=0,"#I/T",(E125/E126))),"Data ikke tilføjet") -> 407.1666667 | F127: =IFERROR(IF(F125="*","*",IF(F126=0,"#I/T",(F125/F126))),"Data ikke tilføjet") -> 349.6666667 | G127: =IFERROR(IF(G125="*","*",IF(G126=0,"#I/T",(G125/G126))),"Data ikke tilføjet") -> 275.0909091 | H127: =IFERROR(IF(H125="*","*",IF(H126=0,"#I/T",(H125/H126))),"Data ikke tilføjet") -> 328.8888889 | I127: =IFERROR(IF(I125="*","*",IF(I126=0,"#I/T",(I125/I126))),"Data ikke tilføjet") -> * | J127: =IFERROR(IF(J125="*","*",IF(J126=0,"#I/T",(J125/J126))),"Data ikke tilføjet") -> * | K127: =IFERROR(IF(K125="*","*",IF(K126=0,"#I/T",(K125/K126))),"Data ikke tilføjet") -> 89 | L127: =IFERROR(IF(L125="*","*",IF(L126=0,"#I/T",(L125/L126))),"Data ikke tilføjet") -> 99.58823529 | M127: =IFERROR(IF(M125="*","*",IF(M126=0,"#I/T",(M125/M126))),"Data ikke tilføjet") -> 112.2173913 | N127: =IFERROR(IF(N125="*","*",IF(N126=0,"#I/T",(N125/N126))),"Data ikke tilføjet") -> 152.7777778 | O127: =IFERROR(IF(O125="*","*",IF(O126=0,"#I/T",(O125/O126))),"Data ikke tilføjet") -> 127.9375 | P127: =IFERROR(IF(P125="*","*",IF(P126=0,"#I/T",(P125/P126))),"Data ikke tilføjet") -> 236.3636364 | Q127: =IFERROR(IF(Q125="*","*",IF(Q126=0,"#I/T",(Q125/Q126))),"Data ikke tilføjet") -> 206.9166667 | R127: =IFERROR(IF(R125="*","*",IF(R126=0,"#I/T",(R125/R126))),"Data ikke tilføjet") -> 305.9166667
B128: Sammenligningsgruppe, gns.
B129: Samlet antal dage | D129: =IF('Dine valg'!$G$24="","-",SUMIF(Hjælpefane!$D$7:$D$111,"="&D$9,Hjælpefane!$K$7:$K$111)) -> 0 | E129: =IF('Dine valg'!$G$24="","-",SUMIF(Hjælpefane!$D$7:$D$111,"="&E$9,Hjælpefane!$K$7:$K$111)) -> 0 | F129: =IF('Dine valg'!$G$24="","-",SUMIF(Hjælpefane!$D$7:$D$111,"="&F$9,Hjælpefane!$K$7:$K$111)) -> 0 | G129: =IF('Dine valg'!$G$24="","-",SUMIF(Hjælpefane!$D$7:$D$111,"="&G$9,Hjælpefane!$K$7:$K$111)) -> 902 | H129: =IF('Dine valg'!$G$24="","-",SUMIF(Hjælpefane!$D$7:$D$111,"="&H$9,Hjælpefane!$K$7:$K$111)) -> 1195 | I129: =IF('Dine valg'!$G$24="","-",SUMIF(Hjælpefane!$D$7:$D$111,"="&I$9,Hjælpefane!$K$7:$K$111)) -> 2404 | J129: =IF('Dine valg'!$G$24="","-",SUMIF(Hjælpefane!$D$7:$D$111,"="&J$9,Hjælpefane!$K$7:$K$111)) -> 3592 | K129: =IF('Dine valg'!$G$24="","-",SUMIF(Hjælpefane!$D$7:$D$111,"="&K$9,Hjælpefane!$K$7:$K$111)) -> 1665 | L129: =IF('Dine valg'!$G$24="","-",SUMIF(Hjælpefane!$D$7:$D$111,"="&L$9,Hjælpefane!$K$7:$K$111)) -> 1624 | M129: =IF('Dine valg'!$G$24="","-",SUMIF(Hjælpefane!$D$7:$D$111,"="&M$9,Hjælpefane!$K$7:$K$111)) -> 2319 | N129: =IF('Dine valg'!$G$24="","-",SUMIF(Hjælpefane!$D$7:$D$111,"="&N$9,Hjælpefane!$K$7:$K$111)) -> 2424 | O129: =IF('Dine valg'!$G$24="","-",SUMIF(Hjælpefane!$D$7:$D$111,"="&O$9,Hjælpefane!$K$7:$K$111)) -> 3638 | P129: =IF('Dine valg'!$G$24="","-",SUMIF(Hjælpefane!$D$7:$D$111,"="&P$9,Hjælpefane!$K$7:$K$111)) -> 3109 | Q129: =IF('Dine valg'!$G$24="","-",SUMIF(Hjælpefane!$D$7:$D$111,"="&Q$9,Hjælpefane!$K$7:$K$111)) -> 2546 | R129: =IF('Dine valg'!$G$24="","-",SUMIF(Hjælpefane!$D$7:$D$111,"="&R$9,Hjælpefane!$K$7:$K$111)) -> 2065
B130: Antal anbragte | D130: =IF('Dine valg'!$G$24="","-",SUMIF(Hjælpefane!$D$7:$D$111,"="&D$9,Hjælpefane!$G$7:$G$111)) -> 3 | E130: =IF('Dine valg'!$G$24="","-",SUMIF(Hjælpefane!$D$7:$D$111,"="&E$9,Hjælpefane!$G$7:$G$111)) -> 4 | F130: =IF('Dine valg'!$G$24="","-",SUMIF(Hjælpefane!$D$7:$D$111,"="&F$9,Hjælpefane!$G$7:$G$111)) -> 4 | G130: =IF('Dine valg'!$G$24="","-",SUMIF(Hjælpefane!$D$7:$D$111,"="&G$9,Hjælpefane!$G$7:$G$111)) -> 7 | H130: =IF('Dine valg'!$G$24="","-",SUMIF(Hjælpefane!$D$7:$D$111,"="&H$9,Hjælpefane!$G$7:$G$111)) -> 10 | I130: =IF('Dine valg'!$G$24="","-",SUMIF(Hjælpefane!$D$7:$D$111,"="&I$9,Hjælpefane!$G$7:$G$111)) -> 8 | J130: =IF('Dine valg'!$G$24="","-",SUMIF(Hjælpefane!$D$7:$D$111,"="&J$9,Hjælpefane!$G$7:$G$111)) -> 15 | K130: =IF('Dine valg'!$G$24="","-",SUMIF(Hjælpefane!$D$7:$D$111,"="&K$9,Hjælpefane!$G$7:$G$111)) -> 10 | L130: =IF('Dine valg'!$G$24="","-",SUMIF(Hjælpefane!$D$7:$D$111,"="&L$9,Hjælpefane!$G$7:$G$111)) -> 14 | M130: =IF('Dine valg'!$G$24="","-",SUMIF(Hjælpefane!$D$7:$D$111,"="&M$9,Hjælpefane!$G$7:$G$111)) -> 11 | N130: =IF('Dine valg'!$G$24="","-",SUMIF(Hjælpefane!$D$7:$D$111,"="&N$9,Hjælpefane!$G$7:$G$111)) -> 11 | O130: =IF('Dine valg'!$G$24="","-",SUMIF(Hjælpefane!$D$7:$D$111,"="&O$9,Hjælpefane!$G$7:$G$111)) -> 14 | P130: =IF('Dine valg'!$G$24="","-",SUMIF(Hjælpefane!$D$7:$D$111,"="&P$9,Hjælpefane!$G$7:$G$111)) -> 10 | Q130: =IF('Dine valg'!$G$24="","-",SUMIF(Hjælpefane!$D$7:$D$111,"="&Q$9,Hjælpefane!$G$7:$G$111)) -> 13 | R130: =IF('Dine valg'!$G$24="","-",SUMIF(Hjælpefane!$D$7:$D$111,"="&R$9,Hjælpefane!$G$7:$G$111)) -> 8
B131: Gennemsnitlig varighed | D131: =IFERROR(IF(D129="*","*",IF(D130="","Indtast data",(D129/D130))),"-") -> 0 | E131: =IFERROR(IF(E129="*","*",IF(E130="","Indtast data",(E129/E130))),"-") -> 0 | F131: =IFERROR(IF(F129="*","*",IF(F130="","Indtast data",(F129/F130))),"-") -> 0 | G131: =IFERROR(IF(G129="*","*",IF(G130="","Indtast data",(G129/G130))),"-") -> 128.8571429 | H131: =IFERROR(IF(H129="*","*",IF(H130="","Indtast data",(H129/H130))),"-") -> 119.5 | I131: =IFERROR(IF(I129="*","*",IF(I130="","Indtast data",(I129/I130))),"-") -> 300.5 | J131: =IFERROR(IF(J129="*","*",IF(J130="","Indtast data",(J129/J130))),"-") -> 239.4666667 | K131: =IFERROR(IF(K129="*","*",IF(K130="","Indtast data",(K129/K130))),"-") -> 166.5 | L131: =IFERROR(IF(L129="*","*",IF(L130="","Indtast data",(L129/L130))),"-") -> 116 | M131: 210.8181818 | N131: 220.3636364 | O131: 259.8571429 | P131: 310.9 | Q131: 195.8461538 | R131: 258.125
B132: Hele landet
B133: Samlet antal dage | D133: =INDEX(Data_land,MATCH(Skyggetabeller!D123,Data!landaar,0),10) -> 24418 | E133: =INDEX(Data_land,MATCH(Skyggetabeller!E123,Data!landaar,0),10) -> 26592 | F133: =INDEX(Data_land,MATCH(Skyggetabeller!F123,Data!landaar,0),10) -> 18299 | G133: =INDEX(Data_land,MATCH(Skyggetabeller!G123,Data!landaar,0),10) -> 18279 | H133: =INDEX(Data_land,MATCH(Skyggetabeller!H123,Data!landaar,0),10) -> 20518 | I133: =INDEX(Data_land,MATCH(Skyggetabeller!I123,Data!landaar,0),10) -> 23313 | J133: =INDEX(Data_land,MATCH(Skyggetabeller!J123,Data!landaar,0),10) -> 20262 | K133: =INDEX(Data_land,MATCH(Skyggetabeller!K123,Data!landaar,0),10) -> 20696 | L133: =INDEX(Data_land,MATCH(Skyggetabeller!L123,Data!landaar,0),10) -> 18628 | M133: =INDEX(Data_land,MATCH(Skyggetabeller!M123,Data!landaar,0),10) -> 21549 | N133: =INDEX(Data_land,MATCH(Skyggetabeller!N123,Data!landaar,0),10) -> 18321 | O133: =INDEX(Data_land,MATCH(Skyggetabeller!O123,Data!landaar,0),10) -> 18630 | P133: =INDEX(Data_land,MATCH(Skyggetabeller!P123,Data!landaar,0),10) -> 16479 | Q133: =INDEX(Data_land,MATCH(Skyggetabeller!Q123,Data!landaar,0),10) -> 16033 | R133: =INDEX(Data_land,MATCH(Skyggetabeller!R123,Data!landaar,0),10) -> 20710
B134: Antal anbragte | D134: =INDEX(Data_land,MATCH(Skyggetabeller!D123,Data!landaar,0),6) -> 81 | E134: =INDEX(Data_land,MATCH(Skyggetabeller!E123,Data!landaar,0),6) -> 80 | F134: =INDEX(Data_land,MATCH(Skyggetabeller!F123,Data!landaar,0),6) -> 64 | G134: =INDEX(Data_land,MATCH(Skyggetabeller!G123,Data!landaar,0),6) -> 85 | H134: =INDEX(Data_land,MATCH(Skyggetabeller!H123,Data!landaar,0),6) -> 76 | I134: =INDEX(Data_land,MATCH(Skyggetabeller!I123,Data!landaar,0),6) -> 71 | J134: =INDEX(Data_land,MATCH(Skyggetabeller!J123,Data!landaar,0),6) -> 77 | K134: =INDEX(Data_land,MATCH(Skyggetabeller!K123,Data!landaar,0),6) -> 82 | L134: =INDEX(Data_land,MATCH(Skyggetabeller!L123,Data!landaar,0),6) -> 95 | M134: =INDEX(Data_land,MATCH(Skyggetabeller!M123,Data!landaar,0),6) -> 97 | N134: =INDEX(Data_land,MATCH(Skyggetabeller!N123,Data!landaar,0),6) -> 84 | O134: =INDEX(Data_land,MATCH(Skyggetabeller!O123,Data!landaar,0),6) -> 87 | P134: =INDEX(Data_land,MATCH(Skyggetabeller!P123,Data!landaar,0),6) -> 86 | Q134: =INDEX(Data_land,MATCH(Skyggetabeller!Q123,Data!landaar,0),6) -> 91 | R134: =INDEX(Data_land,MATCH(Skyggetabeller!R123,Data!landaar,0),6) -> 95
B135: Gennemsnitlig varighed | D135: =IFERROR(IF(D133="*","*",IF(D134=0,"#I/T",(D133/D134))),"Data ikke tilføjet") -> 301.4567901 | E135: =IFERROR(IF(E133="*","*",IF(E134=0,"#I/T",(E133/E134))),"Data ikke tilføjet") -> 332.4 | F135: =IFERROR(IF(F133="*","*",IF(F134=0,"#I/T",(F133/F134))),"Data ikke tilføjet") -> 285.921875 | G135: =IFERROR(IF(G133="*","*",IF(G134=0,"#I/T",(G133/G134))),"Data ikke tilføjet") -> 215.0470588 | H135: =IFERROR(IF(H133="*","*",IF(H134=0,"#I/T",(H133/H134))),"Data ikke tilføjet") -> 269.9736842 | I135: =IFERROR(IF(I133="*","*",IF(I134=0,"#I/T",(I133/I134))),"Data ikke tilføjet") -> 328.3521127 | J135: =IFERROR(IF(J133="*","*",IF(J134=0,"#I/T",(J133/J134))),"Data ikke tilføjet") -> 263.1428571 | K135: =IFERROR(IF(K133="*","*",IF(K134=0,"#I/T",(K133/K134))),"Data ikke tilføjet") -> 252.3902439 | L135: =IFERROR(IF(L133="*","*",IF(L134=0,"#I/T",(L133/L134))),"Data ikke tilføjet") -> 196.0842105 | M135: =IFERROR(IF(M133="*","*",IF(M134=0,"#I/T",(M133/M134))),"Data ikke tilføjet") -> 222.1546392 | N135: =IFERROR(IF(N133="*","*",IF(N134=0,"#I/T",(N133/N134))),"Data ikke tilføjet") -> 218.1071429 | O135: =IFERROR(IF(O133="*","*",IF(O134=0,"#I/T",(O133/O134))),"Data ikke tilføjet") -> 214.137931 | P135: =IFERROR(IF(P133="*","*",IF(P134=0,"#I/T",(P133/P134))),"Data ikke tilføjet") -> 191.6162791 | Q135: =IFERROR(IF(Q133="*","*",IF(Q134=0,"#I/T",(Q133/Q134))),"Data ikke tilføjet") -> 176.1868132 | R135: =IFERROR(IF(R133="*","*",IF(R134=0,"#I/T",(R133/R134))),"Data ikke tilføjet") -> 218
B137: Tabel 2.3: Gennemsnitlig varighed af anbringelser på socialpædagogisk opholdssted
B138: Nøgletal 2.3: Gennemsnitlig varighed af igangværende anbringelser på socialpædagogisk opholdssted | D138: 2017-01-01 | E138: 2017-07-01 | F138: 2018-01-01 | G138: 2018-07-01 | H138: 2019-01-01 | I138: 2019-07-01 | J138: 2020-01-01 | K138: 2020-07-01 | L138: 2021-01-01 | M138: 2021-07-01 | N138: 2022-01-01 | O138: 2022-07-01 | P138: 2023-01-01 | Q138: 2023-07-01 | R138: 2024-01-01
B139: =IF(Kommune="","Kommune",Kommune) -> København
B140: Samlet antal dage | D140: =IFERROR(IF(INDEX(Data_kom2,MATCH(1,(komnavn2=Kommune)*(komaar2=D138),0),11)="*","*",INDEX(Data_kom2,MATCH(1,(komnavn2=Kommune)*(komaar2=D138),0),11)),"Data ikke tilføjet") -> 46842 | E140: =IFERROR(IF(INDEX(Data_kom2,MATCH(1,(komnavn2=Kommune)*(komaar2=E138),0),11)="*","*",INDEX(Data_kom2,MATCH(1,(komnavn2=Kommune)*(komaar2=E138),0),11)),"Data ikke tilføjet") -> 41902 | F140: =IFERROR(IF(INDEX(Data_kom2,MATCH(1,(komnavn2=Kommune)*(komaar2=F138),0),11)="*","*",INDEX(Data_kom2,MATCH(1,(komnavn2=Kommune)*(komaar2=F138),0),11)),"Data ikke tilføjet") -> 41980 | G140: =IFERROR(IF(INDEX(Data_kom2,MATCH(1,(komnavn2=Kommune)*(komaar2=G138),0),11)="*","*",INDEX(Data_kom2,MATCH(1,(komnavn2=Kommune)*(komaar2=G138),0),11)),"Data ikke tilføjet") -> 42337 | H140: =IFERROR(IF(INDEX(Data_kom2,MATCH(1,(komnavn2=Kommune)*(komaar2=H138),0),11)="*","*",INDEX(Data_kom2,MATCH(1,(komnavn2=Kommune)*(komaar2=H138),0),11)),"Data ikke tilføjet") -> 41703 | I140: =IFERROR(IF(INDEX(Data_kom2,MATCH(1,(komnavn2=Kommune)*(komaar2=I138),0),11)="*","*",INDEX(Data_kom2,MATCH(1,(komnavn2=Kommune)*(komaar2=I138),0),11)),"Data ikke tilføjet") -> * | J140: =IFERROR(IF(INDEX(Data_kom2,MATCH(1,(komnavn2=Kommune)*(komaar2=J138),0),11)="*","*",INDEX(Data_kom2,MATCH(1,(komnavn2=Kommune)*(komaar2=J138),0),11)),"Data ikke tilføjet") -> * | K140: =IFERROR(IF(INDEX(Data_kom2,MATCH(1,(komnavn2=Kommune)*(komaar2=K138),0),11)="*","*",INDEX(Data_kom2,MATCH(1,(komnavn2=Kommune)*(komaar2=K138),0),11)),"Data ikke tilføjet") -> 34639 | L140: =IFERROR(IF(INDEX(Data_kom2,MATCH(1,(komnavn2=Kommune)*(komaar2=L138),0),11)="*","*",INDEX(Data_kom2,MATCH(1,(komnavn2=Kommune)*(komaar2=L138),0),11)),"Data ikke tilføjet") -> 32207 | M140: =IFERROR(IF(INDEX(Data_kom2,MATCH(1,(komnavn2=Kommune)*(komaar2=M138),0),11)="*","*",INDEX(Data_kom2,MATCH(1,(komnavn2=Kommune)*(komaar2=M138),0),11)),"Data ikke tilføjet") -> 35674 | N140: =IFERROR(IF(INDEX(Data_kom2,MATCH(1,(komnavn2=Kommune)*(komaar2=N138),0),11)="*","*",INDEX(Data_kom2,MATCH(1,(komnavn2=Kommune)*(komaar2=N138),0),11)),"Data ikke tilføjet") -> 33527 | O140: =IFERROR(IF(INDEX(Data_kom2,MATCH(1,(komnavn2=Kommune)*(komaar2=O138),0),11)="*","*",INDEX(Data_kom2,MATCH(1,(komnavn2=Kommune)*(komaar2=O138),0),11)),"Data ikke tilføjet") -> 37339 | P140: =IFERROR(IF(INDEX(Data_kom2,MATCH(1,(komnavn2=Kommune)*(komaar2=P138),0),11)="*","*",INDEX(Data_kom2,MATCH(1,(komnavn2=Kommune)*(komaar2=P138),0),11)),"Data ikke tilføjet") -> 31127 | Q140: =IFERROR(IF(INDEX(Data_kom2,MATCH(1,(komnavn2=Kommune)*(komaar2=Q138),0),11)="*","*",INDEX(Data_kom2,MATCH(1,(komnavn2=Kommune)*(komaar2=Q138),0),11)),"Data ikke tilføjet") -> 32213 | R140: =IFERROR(IF(INDEX(Data_kom2,MATCH(1,(komnavn2=Kommune)*(komaar2=R138),0),11)="*","*",INDEX(Data_kom2,MATCH(1,(komnavn2=Kommune)*(komaar2=R138),0),11)),"Data ikke tilføjet") -> 34645
B141: Antal anbragte | D141: =D57 -> 46 | E141: 38 | F141: 33 | G141: 32 | H141: 33 | I141: 36 | J141: * | K141: 26 | L141: 27 | M141: =M57 -> 34 | N141: 31 | O141: 36 | P141: 41 | Q141: 42 | R141: 53
B142: Gennemsnitlig varighed | D142: =IFERROR(IF(D140="*","*",IF(D141=0,"#I/T",(D140/D141))),"Data ikke tilføjet") -> 1018.304348 | E142: =IFERROR(IF(E140="*","*",IF(E141=0,"#I/T",(E140/E141))),"Data ikke tilføjet") -> 1102.684211 | F142: =IFERROR(IF(F140="*","*",IF(F141=0,"#I/T",(F140/F141))),"Data ikke tilføjet") -> 1272.121212 | G142: =IFERROR(IF(G140="*","*",IF(G141=0,"#I/T",(G140/G141))),"Data ikke tilføjet") -> 1323.03125 | H142: =IFERROR(IF(H140="*","*",IF(H141=0,"#I/T",(H140/H141))),"Data ikke tilføjet") -> 1263.727273 | I142: =IFERROR(IF(I140="*","*",IF(I141=0,"#I/T",(I140/I141))),"Data ikke tilføjet") -> * | J142: =IFERROR(IF(J140="*","*",IF(J141=0,"#I/T",(J140/J141))),"Data ikke tilføjet") -> * | K142: =IFERROR(IF(K140="*","*",IF(K141=0,"#I/T",(K140/K141))),"Data ikke tilføjet") -> 1332.269231 | L142: =IFERROR(IF(L140="*","*",IF(L141=0,"#I/T",(L140/L141))),"Data ikke tilføjet") -> 1192.851852 | M142: =IFERROR(IF(M140="*","*",IF(M141=0,"#I/T",(M140/M141))),"Data ikke tilføjet") -> 1049.235294 | N142: =IFERROR(IF(N140="*","*",IF(N141=0,"#I/T",(N140/N141))),"Data ikke tilføjet") -> 1081.516129 | O142: =IFERROR(IF(O140="*","*",IF(O141=0,"#I/T",(O140/O141))),"Data ikke tilføjet") -> 1037.194444 | P142: =IFERROR(IF(P140="*","*",IF(P141=0,"#I/T",(P140/P141))),"Data ikke tilføjet") -> 759.195122 | Q142: =IFERROR(IF(Q140="*","*",IF(Q141=0,"#I/T",(Q140/Q141))),"Data ikke tilføjet") -> 766.9761905 | R142: =IFERROR(IF(R140="*","*",IF(R141=0,"#I/T",(R140/R141))),"Data ikke tilføjet") -> 653.6792453
B143: Sammenligningsgruppe, gns.
B144: Samlet antal dage | D144: =IF('Dine valg'!$G$24="","-",SUMIF(Hjælpefane!$D$7:$D$111,"="&D$9,Hjælpefane!$L$7:$L$111)) -> 0 | E144: =IF('Dine valg'!$G$24="","-",SUMIF(Hjælpefane!$D$7:$D$111,"="&E$9,Hjælpefane!$L$7:$L$111)) -> 0 | F144: =IF('Dine valg'!$G$24="","-",SUMIF(Hjælpefane!$D$7:$D$111,"="&F$9,Hjælpefane!$L$7:$L$111)) -> 0 | G144: =IF('Dine valg'!$G$24="","-",SUMIF(Hjælpefane!$D$7:$D$111,"="&G$9,Hjælpefane!$L$7:$L$111)) -> 36187 | H144: =IF('Dine valg'!$G$24="","-",SUMIF(Hjælpefane!$D$7:$D$111,"="&H$9,Hjælpefane!$L$7:$L$111)) -> 33061 | I144: =IF('Dine valg'!$G$24="","-",SUMIF(Hjælpefane!$D$7:$D$111,"="&I$9,Hjælpefane!$L$7:$L$111)) -> 33513 | J144: =IF('Dine valg'!$G$24="","-",SUMIF(Hjælpefane!$D$7:$D$111,"="&J$9,Hjælpefane!$L$7:$L$111)) -> 28592 | K144: =IF('Dine valg'!$G$24="","-",SUMIF(Hjælpefane!$D$7:$D$111,"="&K$9,Hjælpefane!$L$7:$L$111)) -> 23654 | L144: =IF('Dine valg'!$G$24="","-",SUMIF(Hjælpefane!$D$7:$D$111,"="&L$9,Hjælpefane!$L$7:$L$111)) -> 26145 | M144: =IF('Dine valg'!$G$24="","-",SUMIF(Hjælpefane!$D$7:$D$111,"="&M$9,Hjælpefane!$L$7:$L$111)) -> 21632 | N144: =IF('Dine valg'!$G$24="","-",SUMIF(Hjælpefane!$D$7:$D$111,"="&N$9,Hjælpefane!$L$7:$L$111)) -> 20258 | O144: =IF('Dine valg'!$G$24="","-",SUMIF(Hjælpefane!$D$7:$D$111,"="&O$9,Hjælpefane!$L$7:$L$111)) -> 24985 | P144: =IF('Dine valg'!$G$24="","-",SUMIF(Hjælpefane!$D$7:$D$111,"="&P$9,Hjælpefane!$L$7:$L$111)) -> 23403 | Q144: =IF('Dine valg'!$G$24="","-",SUMIF(Hjælpefane!$D$7:$D$111,"="&Q$9,Hjælpefane!$L$7:$L$111)) -> 21018 | R144: =IF('Dine valg'!$G$24="","-",SUMIF(Hjælpefane!$D$7:$D$111,"="&R$9,Hjælpefane!$L$7:$L$111)) -> 20221
B145: Antal anbragte | D145: =IF('Dine valg'!$G$24="","-",SUMIF(Hjælpefane!$D$7:$D$111,"="&D$9,Hjælpefane!$H$7:$H$111)) -> 56 | E145: =IF('Dine valg'!$G$24="","-",SUMIF(Hjælpefane!$D$7:$D$111,"="&E$9,Hjælpefane!$H$7:$H$111)) -> 52 | F145: =IF('Dine valg'!$G$24="","-",SUMIF(Hjælpefane!$D$7:$D$111,"="&F$9,Hjælpefane!$H$7:$H$111)) -> 58 | G145: =IF('Dine valg'!$G$24="","-",SUMIF(Hjælpefane!$D$7:$D$111,"="&G$9,Hjælpefane!$H$7:$H$111)) -> 46 | H145: =IF('Dine valg'!$G$24="","-",SUMIF(Hjælpefane!$D$7:$D$111,"="&H$9,Hjælpefane!$H$7:$H$111)) -> 47 | I145: =IF('Dine valg'!$G$24="","-",SUMIF(Hjælpefane!$D$7:$D$111,"="&I$9,Hjælpefane!$H$7:$H$111)) -> 43 | J145: =IF('Dine valg'!$G$24="","-",SUMIF(Hjælpefane!$D$7:$D$111,"="&J$9,Hjælpefane!$H$7:$H$111)) -> 35 | K145: =IF('Dine valg'!$G$24="","-",SUMIF(Hjælpefane!$D$7:$D$111,"="&K$9,Hjælpefane!$H$7:$H$111)) -> 37 | L145: =IF('Dine valg'!$G$24="","-",SUMIF(Hjælpefane!$D$7:$D$111,"="&L$9,Hjælpefane!$H$7:$H$111)) -> 40 | M145: =IF('Dine valg'!$G$24="","-",SUMIF(Hjælpefane!$D$7:$D$111,"="&M$9,Hjælpefane!$H$7:$H$111)) -> 45 | N145: =IF('Dine valg'!$G$24="","-",SUMIF(Hjælpefane!$D$7:$D$111,"="&N$9,Hjælpefane!$H$7:$H$111)) -> 41 | O145: =IF('Dine valg'!$G$24="","-",SUMIF(Hjælpefane!$D$7:$D$111,"="&O$9,Hjælpefane!$H$7:$H$111)) -> 49 | P145: =IF('Dine valg'!$G$24="","-",SUMIF(Hjælpefane!$D$7:$D$111,"="&P$9,Hjælpefane!$H$7:$H$111)) -> 49 | Q145: =IF('Dine valg'!$G$24="","-",SUMIF(Hjælpefane!$D$7:$D$111,"="&Q$9,Hjælpefane!$H$7:$H$111)) -> 38 | R145: =IF('Dine valg'!$G$24="","-",SUMIF(Hjælpefane!$D$7:$D$111,"="&R$9,Hjælpefane!$H$7:$H$111)) -> 43
B146: Gennemsnitlig varighed | D146: =IFERROR(IF(D144="*","*",IF(D145="","Indtast data",(D144/D145))),"-") -> 0 | E146: =IFERROR(IF(E144="*","*",IF(E145="","Indtast data",(E144/E145))),"-") -> 0 | F146: =IFERROR(IF(F144="*","*",IF(F145="","Indtast data",(F144/F145))),"-") -> 0 | G146: =IFERROR(IF(G144="*","*",IF(G145="","Indtast data",(G144/G145))),"-") -> 786.673913 | H146: =IFERROR(IF(H144="*","*",IF(H145="","Indtast data",(H144/H145))),"-") -> 703.4255319 | I146: =IFERROR(IF(I144="*","*",IF(I145="","Indtast data",(I144/I145))),"-") -> 779.372093 | J146: =IFERROR(IF(J144="*","*",IF(J145="","Indtast data",(J144/J145))),"-") -> 816.9142857 | K146: =IFERROR(IF(K144="*","*",IF(K145="","Indtast data",(K144/K145))),"-") -> 639.2972973 | L146: =IFERROR(IF(L144="*","*",IF(L145="","Indtast data",(L144/L145))),"-") -> 653.625 | M146: 480.7111111 | N146: 494.097561 | O146: 509.8979592 | P146: 477.6122449 | Q146: 553.1052632 | R146: 470.255814
B147: Hele landet
B148: Samlet antal dage | D148: =INDEX(Data_land,MATCH(Skyggetabeller!D138,Data!landaar,0),11) -> 1152440 | E148: =INDEX(Data_land,MATCH(Skyggetabeller!E138,Data!landaar,0),11) -> 1156397 | F148: =INDEX(Data_land,MATCH(Skyggetabeller!F138,Data!landaar,0),11) -> 1134473 | G148: =INDEX(Data_land,MATCH(Skyggetabeller!G138,Data!landaar,0),11) -> 1096838 | H148: =INDEX(Data_land,MATCH(Skyggetabeller!H138,Data!landaar,0),11) -> 1054734 | I148: =INDEX(Data_land,MATCH(Skyggetabeller!I138,Data!landaar,0),11) -> 1025155 | J148: =INDEX(Data_land,MATCH(Skyggetabeller!J138,Data!landaar,0),11) -> 1008761 | K148: =INDEX(Data_land,MATCH(Skyggetabeller!K138,Data!landaar,0),11) -> 1062008 | L148: =INDEX(Data_land,MATCH(Skyggetabeller!L138,Data!landaar,0),11) -> 1077441 | M148: =INDEX(Data_land,MATCH(Skyggetabeller!M138,Data!landaar,0),11) -> 1107771 | N148: =INDEX(Data_land,MATCH(Skyggetabeller!N138,Data!landaar,0),11) -> 1131988 | O148: =INDEX(Data_land,MATCH(Skyggetabeller!O138,Data!landaar,0),11) -> 1147767 | P148: =INDEX(Data_land,MATCH(Skyggetabeller!P138,Data!landaar,0),11) -> 1166569 | Q148: =INDEX(Data_land,MATCH(Skyggetabeller!Q138,Data!landaar,0),11) -> 1183360 | R148: =INDEX(Data_land,MATCH(Skyggetabeller!R138,Data!landaar,0),11) -> 1197776
B149: Antal anbragte | D149: =INDEX(Data_land,MATCH(Skyggetabeller!D138,Data!landaar,0),7) -> 1484 | E149: =INDEX(Data_land,MATCH(Skyggetabeller!E138,Data!landaar,0),7) -> 1571 | F149: =INDEX(Data_land,MATCH(Skyggetabeller!F138,Data!landaar,0),7) -> 1544 | G149: =INDEX(Data_land,MATCH(Skyggetabeller!G138,Data!landaar,0),7) -> 1544 | H149: =INDEX(Data_land,MATCH(Skyggetabeller!H138,Data!landaar,0),7) -> 1529 | I149: =INDEX(Data_land,MATCH(Skyggetabeller!I138,Data!landaar,0),7) -> 1516 | J149: =INDEX(Data_land,MATCH(Skyggetabeller!J138,Data!landaar,0),7) -> 1517 | K149: =INDEX(Data_land,MATCH(Skyggetabeller!K138,Data!landaar,0),7) -> 1592 | L149: =INDEX(Data_land,MATCH(Skyggetabeller!L138,Data!landaar,0),7) -> 1615 | M149: =INDEX(Data_land,MATCH(Skyggetabeller!M138,Data!landaar,0),7) -> 1717 | N149: =INDEX(Data_land,MATCH(Skyggetabeller!N138,Data!landaar,0),7) -> 1713 | O149: =INDEX(Data_land,MATCH(Skyggetabeller!O138,Data!landaar,0),7) -> 1826 | P149: =INDEX(Data_land,MATCH(Skyggetabeller!P138,Data!landaar,0),7) -> 1854 | Q149: =INDEX(Data_land,MATCH(Skyggetabeller!Q138,Data!landaar,0),7) -> 1863 | R149: =INDEX(Data_land,MATCH(Skyggetabeller!R138,Data!landaar,0),7) -> 1895
B150: Gennemsnitlig varighed | D150: =IFERROR(IF(D148="*","*",IF(D149=0,"#I/T",(D148/D149))),"Data ikke tilføjet") -> 776.5768194 | E150: =IFERROR(IF(E148="*","*",IF(E149=0,"#I/T",(E148/E149))),"Data ikke tilføjet") -> 736.0897518 | F150: =IFERROR(IF(F148="*","*",IF(F149=0,"#I/T",(F148/F149))),"Data ikke tilføjet") -> 734.7623057 | G150: =IFERROR(IF(G148="*","*",IF(G149=0,"#I/T",(G148/G149))),"Data ikke tilføjet") -> 710.3873057 | H150: =IFERROR(IF(H148="*","*",IF(H149=0,"#I/T",(H148/H149))),"Data ikke tilføjet") -> 689.8194899 | I150: =IFERROR(IF(I148="*","*",IF(I149=0,"#I/T",(I148/I149))),"Data ikke tilføjet") -> 676.2236148 | J150: =IFERROR(IF(J148="*","*",IF(J149=0,"#I/T",(J148/J149))),"Data ikke tilføjet") -> 664.9709954 | K150: =IFERROR(IF(K148="*","*",IF(K149=0,"#I/T",(K148/K149))),"Data ikke tilføjet") -> 667.0904523 | L150: =IFERROR(IF(L148="*","*",IF(L149=0,"#I/T",(L148/L149))),"Data ikke tilføjet") -> 667.14613 | M150: =IFERROR(IF(M148="*","*",IF(M149=0,"#I/T",(M148/M149))),"Data ikke tilføjet") -> 645.1782178 | N150: =IFERROR(IF(N148="*","*",IF(N149=0,"#I/T",(N148/N149))),"Data ikke tilføjet") -> 660.8219498 | O150: =IFERROR(IF(O148="*","*",IF(O149=0,"#I/T",(O148/O149))),"Data ikke tilføjet") -> 628.5690033 | P150: =IFERROR(IF(P148="*","*",IF(P149=0,"#I/T",(P148/P149))),"Data ikke tilføjet") -> 629.2173679 | Q150: =IFERROR(IF(Q148="*","*",IF(Q149=0,"#I/T",(Q148/Q149))),"Data ikke tilføjet") -> 635.1905529 | R150: =IFERROR(IF(R148="*","*",IF(R149=0,"#I/T",(R148/R149))),"Data ikke tilføjet") -> 632.0717678
B153: Nøgletal 3: Anbragte i plejefamilie
B155: Tabel 3: Anbragte i plejefamilie
B156: Nøgletal 3: Anbragte i plejefamilie | D156: 2017-01-01 | E156: 2017-07-01 | F156: 2018-01-01 | G156: 2018-07-01 | H156: 2019-01-01 | I156: 2019-07-01 | J156: 2020-01-01 | K156: 2020-07-01 | L156: 2021-01-01 | M156: 2021-07-01 | N156: 2022-01-01 | O156: 2022-07-01 | P156: 2023-01-01 | Q156: 2023-07-01 | R156: 2024-01-01
B157: =IF(Kommune="","Kommune",Kommune) -> København
B158: Antal anbragte | D158: =IFERROR(IF(INDEX(Data_kom2,MATCH(1,(komnavn2=Kommune)*(komaar2=D156),0),12)="*","*",INDEX(Data_kom2,MATCH(1,(komnavn2=Kommune)*(komaar2=D156),0),12)),"Data ikke tilføjet") -> 357 | E158: =IFERROR(IF(INDEX(Data_kom2,MATCH(1,(komnavn2=Kommune)*(komaar2=E156),0),12)="*","*",INDEX(Data_kom2,MATCH(1,(komnavn2=Kommune)*(komaar2=E156),0),12)),"Data ikke tilføjet") -> 349 | F158: =IFERROR(IF(INDEX(Data_kom2,MATCH(1,(komnavn2=Kommune)*(komaar2=F156),0),12)="*","*",INDEX(Data_kom2,MATCH(1,(komnavn2=Kommune)*(komaar2=F156),0),12)),"Data ikke tilføjet") -> 349 | G158: =IFERROR(IF(INDEX(Data_kom2,MATCH(1,(komnavn2=Kommune)*(komaar2=G156),0),12)="*","*",INDEX(Data_kom2,MATCH(1,(komnavn2=Kommune)*(komaar2=G156),0),12)),"Data ikke tilføjet") -> 353 | H158: =IFERROR(IF(INDEX(Data_kom2,MATCH(1,(komnavn2=Kommune)*(komaar2=H156),0),12)="*","*",INDEX(Data_kom2,MATCH(1,(komnavn2=Kommune)*(komaar2=H156),0),12)),"Data ikke tilføjet") -> 340 | I158: =IFERROR(IF(INDEX(Data_kom2,MATCH(1,(komnavn2=Kommune)*(komaar2=I156),0),12)="*","*",INDEX(Data_kom2,MATCH(1,(komnavn2=Kommune)*(komaar2=I156),0),12)),"Data ikke tilføjet") -> 326 | J158: =IFERROR(IF(INDEX(Data_kom2,MATCH(1,(komnavn2=Kommune)*(komaar2=J156),0),12)="*","*",INDEX(Data_kom2,MATCH(1,(komnavn2=Kommune)*(komaar2=J156),0),12)),"Data ikke tilføjet") -> 314 | K158: =IFERROR(IF(INDEX(Data_kom2,MATCH(1,(komnavn2=Kommune)*(komaar2=K156),0),12)="*","*",INDEX(Data_kom2,MATCH(1,(komnavn2=Kommune)*(komaar2=K156),0),12)),"Data ikke tilføjet") -> 296 | L158: =IFERROR(IF(INDEX(Data_kom2,MATCH(1,(komnavn2=Kommune)*(komaar2=L156),0),12)="*","*",INDEX(Data_kom2,MATCH(1,(komnavn2=Kommune)*(komaar2=L156),0),12)),"Data ikke tilføjet") -> 287 | M158: =IFERROR(IF(INDEX(Data_kom2,MATCH(1,(komnavn2=Kommune)*(komaar2=M156),0),12)="*","*",INDEX(Data_kom2,MATCH(1,(komnavn2=Kommune)*(komaar2=M156),0),12)),"Data ikke tilføjet") -> 284 | N158: =IFERROR(IF(INDEX(Data_kom2,MATCH(1,(komnavn2=Kommune)*(komaar2=N156),0),12)="*","*",INDEX(Data_kom2,MATCH(1,(komnavn2=Kommune)*(komaar2=N156),0),12)),"Data ikke tilføjet") -> 272 | O158: =IFERROR(IF(INDEX(Data_kom2,MATCH(1,(komnavn2=Kommune)*(komaar2=O156),0),12)="*","*",INDEX(Data_kom2,MATCH(1,(komnavn2=Kommune)*(komaar2=O156),0),12)),"Data ikke tilføjet") -> 265 | P158: =IFERROR(IF(INDEX(Data_kom2,MATCH(1,(komnavn2=Kommune)*(komaar2=P156),0),12)="*","*",INDEX(Data_kom2,MATCH(1,(komnavn2=Kommune)*(komaar2=P156),0),12)),"Data ikke tilføjet") -> 271 | Q158: =IFERROR(IF(INDEX(Data_kom2,MATCH(1,(komnavn2=Kommune)*(komaar2=Q156),0),12)="*","*",INDEX(Data_kom2,MATCH(1,(komnavn2=Kommune)*(komaar2=Q156),0),12)),"Data ikke tilføjet") -> 261 | R158: =IFERROR(IF(INDEX(Data_kom2,MATCH(1,(komnavn2=Kommune)*(komaar2=R156),0),12)="*","*",INDEX(Data_kom2,MATCH(1,(komnavn2=Kommune)*(komaar2=R156),0),12)),"Data ikke tilføjet") -> 242
B159: Antal 0-17-årige | D159: =IFERROR(INDEX(Data_kom2,MATCH(1,(komnavn2=Kommune)*(komaar2=D156),0),2),"Data ikke tilføjet") -> 105885 | E159: =IFERROR(INDEX(Data_kom2,MATCH(1,(komnavn2=Kommune)*(komaar2=E156),0),2),"Data ikke tilføjet") -> 106913 | F159: =IFERROR(INDEX(Data_kom2,MATCH(1,(komnavn2=Kommune)*(komaar2=F156),0),2),"Data ikke tilføjet") -> 107770 | G159: =IFERROR(INDEX(Data_kom2,MATCH(1,(komnavn2=Kommune)*(komaar2=G156),0),2),"Data ikke tilføjet") -> 108734 | H159: =IFERROR(INDEX(Data_kom2,MATCH(1,(komnavn2=Kommune)*(komaar2=H156),0),2),"Data ikke tilføjet") -> 109335 | I159: =IFERROR(INDEX(Data_kom2,MATCH(1,(komnavn2=Kommune)*(komaar2=I156),0),2),"Data ikke tilføjet") -> 110138 | J159: =IFERROR(INDEX(Data_kom2,MATCH(1,(komnavn2=Kommune)*(komaar2=J156),0),2),"Data ikke tilføjet") -> 110822 | K159: =IFERROR(INDEX(Data_kom2,MATCH(1,(komnavn2=Kommune)*(komaar2=K156),0),2),"Data ikke tilføjet") -> 111068 | L159: =IFERROR(INDEX(Data_kom2,MATCH(1,(komnavn2=Kommune)*(komaar2=L156),0),2),"Data ikke tilføjet") -> 110927 | M159: =IFERROR(INDEX(Data_kom2,MATCH(1,(komnavn2=Kommune)*(komaar2=M156),0),2),"Data ikke tilføjet") -> 110614 | N159: =IFERROR(INDEX(Data_kom2,MATCH(1,(komnavn2=Kommune)*(komaar2=N156),0),2),"Data ikke tilføjet") -> 110513 | O159: =IFERROR(INDEX(Data_kom2,MATCH(1,(komnavn2=Kommune)*(komaar2=O156),0),2),"Data ikke tilføjet") -> 110692 | P159: =IFERROR(INDEX(Data_kom2,MATCH(1,(komnavn2=Kommune)*(komaar2=P156),0),2),"Data ikke tilføjet") -> 110835 | Q159: =IFERROR(INDEX(Data_kom2,MATCH(1,(komnavn2=Kommune)*(komaar2=Q156),0),2),"Data ikke tilføjet") -> 111075 | R159: =IFERROR(INDEX(Data_kom2,MATCH(1,(komnavn2=Kommune)*(komaar2=R156),0),2),"Data ikke tilføjet") -> 110571
B160: Andel | D160: =IFERROR(IF(D158="*","*",IF(D159=0,"#I/T",(D158/D159*1000))),"Data ikke tilføjet") -> 3.371582377 | E160: 3.264336423 | F160: 3.238378027 | G160: 3.246454651 | H160: 3.109708693 | I160: 2.959923006 | J160: 2.833372435 | K160: 2.665034033 | L160: 2.587287135 | M160: =IFERROR(IF(M158="*","*",IF(M159=0,"#I/T",(M158/M159*1000))),"Data ikke tilføjet") -> 2.567486937 | N160: 2.461248903 | O160: 2.394030282 | P160: 2.445076014 | Q160: 2.349763673 | R160: 2.188638974
B161: Sammenligningsgruppe, gns.
B162: Antal anbragte | D162: =IF('Dine valg'!$G$24="","-",SUMIF(Hjælpefane!$D$7:$D$111,"="&D$9,Hjælpefane!$M$7:$M$111)) -> 228 | E162: =IF('Dine valg'!$G$24="","-",SUMIF(Hjælpefane!$D$7:$D$111,"="&E$9,Hjælpefane!$M$7:$M$111)) -> 243 | F162: =IF('Dine valg'!$G$24="","-",SUMIF(Hjælpefane!$D$7:$D$111,"="&F$9,Hjælpefane!$M$7:$M$111)) -> 244 | G162: =IF('Dine valg'!$G$24="","-",SUMIF(Hjælpefane!$D$7:$D$111,"="&G$9,Hjælpefane!$M$7:$M$111)) -> 255 | H162: =IF('Dine valg'!$G$24="","-",SUMIF(Hjælpefane!$D$7:$D$111,"="&H$9,Hjælpefane!$M$7:$M$111)) -> 253 | I162: =IF('Dine valg'!$G$24="","-",SUMIF(Hjælpefane!$D$7:$D$111,"="&I$9,Hjælpefane!$M$7:$M$111)) -> 252 | J162: =IF('Dine valg'!$G$24="","-",SUMIF(Hjælpefane!$D$7:$D$111,"="&J$9,Hjælpefane!$M$7:$M$111)) -> 248 | K162: =IF('Dine valg'!$G$24="","-",SUMIF(Hjælpefane!$D$7:$D$111,"="&K$9,Hjælpefane!$M$7:$M$111)) -> 248 | L162: =IF('Dine valg'!$G$24="","-",SUMIF(Hjælpefane!$D$7:$D$111,"="&L$9,Hjælpefane!$M$7:$M$111)) -> 242 | M162: =IF('Dine valg'!$G$24="","-",SUMIF(Hjælpefane!$D$7:$D$111,"="&M$9,Hjælpefane!$M$7:$M$111)) -> 232 | N162: =IF('Dine valg'!$G$24="","-",SUMIF(Hjælpefane!$D$7:$D$111,"="&N$9,Hjælpefane!$M$7:$M$111)) -> 231 | O162: =IF('Dine valg'!$G$24="","-",SUMIF(Hjælpefane!$D$7:$D$111,"="&O$9,Hjælpefane!$M$7:$M$111)) -> 230 | P162: =IF('Dine valg'!$G$24="","-",SUMIF(Hjælpefane!$D$7:$D$111,"="&P$9,Hjælpefane!$M$7:$M$111)) -> 221 | Q162: =IF('Dine valg'!$G$24="","-",SUMIF(Hjælpefane!$D$7:$D$111,"="&Q$9,Hjælpefane!$M$7:$M$111)) -> 225 | R162: =IF('Dine valg'!$G$24="","-",SUMIF(Hjælpefane!$D$7:$D$111,"="&R$9,Hjælpefane!$M$7:$M$111)) -> 221
B163: Antal 0-17-årige | D163: =IF('Dine valg'!$G$24="","-",SUMIF(Hjælpefane!$D$7:$D$111,"="&D$9,Hjælpefane!$C$7:$C$111)) -> 62903 | E163: =IF('Dine valg'!$G$24="","-",SUMIF(Hjælpefane!$D$7:$D$111,"="&E$9,Hjælpefane!$C$7:$C$111)) -> 63077 | F163: =IF('Dine valg'!$G$24="","-",SUMIF(Hjælpefane!$D$7:$D$111,"="&F$9,Hjælpefane!$C$7:$C$111)) -> 63245 | G163: =IF('Dine valg'!$G$24="","-",SUMIF(Hjælpefane!$D$7:$D$111,"="&G$9,Hjælpefane!$C$7:$C$111)) -> 63510 | H163: =IF('Dine valg'!$G$24="","-",SUMIF(Hjælpefane!$D$7:$D$111,"="&H$9,Hjælpefane!$C$7:$C$111)) -> 63607 | I163: =IF('Dine valg'!$G$24="","-",SUMIF(Hjælpefane!$D$7:$D$111,"="&I$9,Hjælpefane!$C$7:$C$111)) -> 63704 | J163: =IF('Dine valg'!$G$24="","-",SUMIF(Hjælpefane!$D$7:$D$111,"="&J$9,Hjælpefane!$C$7:$C$111)) -> 63890 | K163: =IF('Dine valg'!$G$24="","-",SUMIF(Hjælpefane!$D$7:$D$111,"="&K$9,Hjælpefane!$C$7:$C$111)) -> 64128 | L163: =IF('Dine valg'!$G$24="","-",SUMIF(Hjælpefane!$D$7:$D$111,"="&L$9,Hjælpefane!$C$7:$C$111)) -> 64334 | M163: =IF('Dine valg'!$G$24="","-",SUMIF(Hjælpefane!$D$7:$D$111,"="&M$9,Hjælpefane!$C$7:$C$111)) -> 64307 | N163: =IF('Dine valg'!$G$24="","-",SUMIF(Hjælpefane!$D$7:$D$111,"="&N$9,Hjælpefane!$C$7:$C$111)) -> 64049 | O163: =IF('Dine valg'!$G$24="","-",SUMIF(Hjælpefane!$D$7:$D$111,"="&O$9,Hjælpefane!$C$7:$C$111)) -> 64356 | P163: =IF('Dine valg'!$G$24="","-",SUMIF(Hjælpefane!$D$7:$D$111,"="&P$9,Hjælpefane!$C$7:$C$111)) -> 64420 | Q163: =IF('Dine valg'!$G$24="","-",SUMIF(Hjælpefane!$D$7:$D$111,"="&Q$9,Hjælpefane!$C$7:$C$111)) -> 64601 | R163: =IF('Dine valg'!$G$24="","-",SUMIF(Hjælpefane!$D$7:$D$111,"="&R$9,Hjælpefane!$C$7:$C$111)) -> 64665
B164: Andel | D164: =IFERROR(IF(D162="*","*",IF(D163="","Indtast data",(D162/D163*1000))),"-") -> 3.624628396 | E164: =IFERROR(IF(E162="*","*",IF(E163="","Indtast data",(E162/E163*1000))),"-") -> 3.852434326 | F164: 3.858012491 | G164: 4.01511573 | H164: 3.977549641 | I164: 3.955795554 | J164: 3.881671623 | K164: 3.867265469 | L164: 3.761619051 | M164: =IFERROR(IF(M162="*","*",IF(M163="","Indtast data",(M162/M163*1000))),"-") -> 3.607694341 | N164: 3.606613686 | O164: 3.573870346 | P164: 3.430611611 | Q164: 3.482918221 | R164: 3.417613856
B165: Hele landet
B166: Antal anbragte | D166: =INDEX(Data_land,MATCH(Skyggetabeller!D156,Data!landaar,0),12) -> 6754 | E166: =INDEX(Data_land,MATCH(Skyggetabeller!E156,Data!landaar,0),12) -> 6801 | F166: =INDEX(Data_land,MATCH(Skyggetabeller!F156,Data!landaar,0),12) -> 6761 | G166: =INDEX(Data_land,MATCH(Skyggetabeller!G156,Data!landaar,0),12) -> 6807 | H166: =INDEX(Data_land,MATCH(Skyggetabeller!H156,Data!landaar,0),12) -> 6779 | I166: =INDEX(Data_land,MATCH(Skyggetabeller!I156,Data!landaar,0),12) -> 6771 | J166: =INDEX(Data_land,MATCH(Skyggetabeller!J156,Data!landaar,0),12) -> 6665 | K166: =INDEX(Data_land,MATCH(Skyggetabeller!K156,Data!landaar,0),12) -> 6603 | L166: =INDEX(Data_land,MATCH(Skyggetabeller!L156,Data!landaar,0),12) -> 6547 | M166: =INDEX(Data_land,MATCH(Skyggetabeller!M156,Data!landaar,0),12) -> 6540 | N166: =INDEX(Data_land,MATCH(Skyggetabeller!N156,Data!landaar,0),12) -> 6449 | O166: =INDEX(Data_land,MATCH(Skyggetabeller!O156,Data!landaar,0),12) -> 6384 | P166: =INDEX(Data_land,MATCH(Skyggetabeller!P156,Data!landaar,0),12) -> 6297 | Q166: =INDEX(Data_land,MATCH(Skyggetabeller!Q156,Data!landaar,0),12) -> 6295 | R166: =INDEX(Data_land,MATCH(Skyggetabeller!R156,Data!landaar,0),12) -> 6187
B167: Antal 0-17-årige | D167: =INDEX(Data_land,MATCH(Skyggetabeller!D156,Data!landaar,0),2) -> 1168201 | E167: =INDEX(Data_land,MATCH(Skyggetabeller!E156,Data!landaar,0),2) -> 1165363 | F167: =INDEX(Data_land,MATCH(Skyggetabeller!F156,Data!landaar,0),2) -> 1165475 | G167: =INDEX(Data_land,MATCH(Skyggetabeller!G156,Data!landaar,0),2) -> 1162195 | H167: =INDEX(Data_land,MATCH(Skyggetabeller!H156,Data!landaar,0),2) -> 1160360 | I167: =INDEX(Data_land,MATCH(Skyggetabeller!I156,Data!landaar,0),2) -> 1156537 | J167: =INDEX(Data_land,MATCH(Skyggetabeller!J156,Data!landaar,0),2) -> 1156116 | K167: =INDEX(Data_land,MATCH(Skyggetabeller!K156,Data!landaar,0),2) -> 1153027 | L167: =INDEX(Data_land,MATCH(Skyggetabeller!L156,Data!landaar,0),2) -> 1152972 | M167: =INDEX(Data_land,MATCH(Skyggetabeller!M156,Data!landaar,0),2) -> 1151374 | N167: =INDEX(Data_land,MATCH(Skyggetabeller!N156,Data!landaar,0),2) -> 1151704 | O167: =INDEX(Data_land,MATCH(Skyggetabeller!O156,Data!landaar,0),2) -> 1157254 | P167: =INDEX(Data_land,MATCH(Skyggetabeller!P156,Data!landaar,0),2) -> 1155814 | Q167: =INDEX(Data_land,MATCH(Skyggetabeller!Q156,Data!landaar,0),2) -> 1151415 | R167: =INDEX(Data_land,MATCH(Skyggetabeller!R156,Data!landaar,0),2) -> 1148490
B168: Andel | D168: =IFERROR(IF(D166="*","*",IF(D167=0,"#I/T",(D166/D167*1000))),"Data ikke tilføjet") -> 5.781539307 | E168: 5.835949829 | F168: 5.801068234 | G168: 5.857020552 | H168: 5.842152435 | I168: 5.854546807 | J168: 5.76499244 | K168: 5.726665551 | L168: 5.678368599 | M168: =IFERROR(IF(M166="*","*",IF(M167=0,"#I/T",(M166/M167*1000))),"Data ikke tilføjet") -> 5.680169953 | N168: 5.599529046 | O168: 5.51650718 | P168: 5.448108433 | Q168: 5.467186028 | R168: 5.387073462
B171: Nøgletal 4: Anbragte i netværksplejefamilie
B173: Tabel 4: Anbragte i netværksplejefamilie
B174: Nøgletal 4: Anbragte i netværksplejefamilie | D174: 2017-01-01 | E174: 2017-07-01 | F174: 2018-01-01 | G174: 2018-07-01 | H174: 2019-01-01 | I174: 2019-07-01 | J174: 2020-01-01 | K174: 2020-07-01 | L174: 2021-01-01 | M174: 2021-07-01 | N174: 2022-01-01 | O174: 2022-07-01 | P174: 2023-01-01 | Q174: 2023-07-01 | R174: 2024-01-01
B175: =IF(Kommune="","Kommune",Kommune) -> København
B176: Antal anbragte | D176: =IFERROR(IF(INDEX(Data_kom2,MATCH(1,(komnavn2=Kommune)*(komaar2=D174),0),13)="*","*",INDEX(Data_kom2,MATCH(1,(komnavn2=Kommune)*(komaar2=D174),0),13)),"Data ikke tilføjet") -> 106 | E176: =IFERROR(IF(INDEX(Data_kom2,MATCH(1,(komnavn2=Kommune)*(komaar2=E174),0),13)="*","*",INDEX(Data_kom2,MATCH(1,(komnavn2=Kommune)*(komaar2=E174),0),13)),"Data ikke tilføjet") -> 113 | F176: =IFERROR(IF(INDEX(Data_kom2,MATCH(1,(komnavn2=Kommune)*(komaar2=F174),0),13)="*","*",INDEX(Data_kom2,MATCH(1,(komnavn2=Kommune)*(komaar2=F174),0),13)),"Data ikke tilføjet") -> 111 | G176: =IFERROR(IF(INDEX(Data_kom2,MATCH(1,(komnavn2=Kommune)*(komaar2=G174),0),13)="*","*",INDEX(Data_kom2,MATCH(1,(komnavn2=Kommune)*(komaar2=G174),0),13)),"Data ikke tilføjet") -> 108 | H176: =IFERROR(IF(INDEX(Data_kom2,MATCH(1,(komnavn2=Kommune)*(komaar2=H174),0),13)="*","*",INDEX(Data_kom2,MATCH(1,(komnavn2=Kommune)*(komaar2=H174),0),13)),"Data ikke tilføjet") -> 113 | I176: =IFERROR(IF(INDEX(Data_kom2,MATCH(1,(komnavn2=Kommune)*(komaar2=I174),0),13)="*","*",INDEX(Data_kom2,MATCH(1,(komnavn2=Kommune)*(komaar2=I174),0),13)),"Data ikke tilføjet") -> 108 | J176: =IFERROR(IF(INDEX(Data_kom2,MATCH(1,(komnavn2=Kommune)*(komaar2=J174),0),13)="*","*",INDEX(Data_kom2,MATCH(1,(komnavn2=Kommune)*(komaar2=J174),0),13)),"Data ikke tilføjet") -> 109 | K176: =IFERROR(IF(INDEX(Data_kom2,MATCH(1,(komnavn2=Kommune)*(komaar2=K174),0),13)="*","*",INDEX(Data_kom2,MATCH(1,(komnavn2=Kommune)*(komaar2=K174),0),13)),"Data ikke tilføjet") -> 109 | L176: =IFERROR(IF(INDEX(Data_kom2,MATCH(1,(komnavn2=Kommune)*(komaar2=L174),0),13)="*","*",INDEX(Data_kom2,MATCH(1,(komnavn2=Kommune)*(komaar2=L174),0),13)),"Data ikke tilføjet") -> 116 | M176: =IFERROR(IF(INDEX(Data_kom2,MATCH(1,(komnavn2=Kommune)*(komaar2=M174),0),13)="*","*",INDEX(Data_kom2,MATCH(1,(komnavn2=Kommune)*(komaar2=M174),0),13)),"Data ikke tilføjet") -> 114 | N176: =IFERROR(IF(INDEX(Data_kom2,MATCH(1,(komnavn2=Kommune)*(komaar2=N174),0),13)="*","*",INDEX(Data_kom2,MATCH(1,(komnavn2=Kommune)*(komaar2=N174),0),13)),"Data ikke tilføjet") -> 113 | O176: =IFERROR(IF(INDEX(Data_kom2,MATCH(1,(komnavn2=Kommune)*(komaar2=O174),0),13)="*","*",INDEX(Data_kom2,MATCH(1,(komnavn2=Kommune)*(komaar2=O174),0),13)),"Data ikke tilføjet") -> 112 | P176: =IFERROR(IF(INDEX(Data_kom2,MATCH(1,(komnavn2=Kommune)*(komaar2=P174),0),13)="*","*",INDEX(Data_kom2,MATCH(1,(komnavn2=Kommune)*(komaar2=P174),0),13)),"Data ikke tilføjet") -> 113 | Q176: =IFERROR(IF(INDEX(Data_kom2,MATCH(1,(komnavn2=Kommune)*(komaar2=Q174),0),13)="*","*",INDEX(Data_kom2,MATCH(1,(komnavn2=Kommune)*(komaar2=Q174),0),13)),"Data ikke tilføjet") -> 107 | R176: =IFERROR(IF(INDEX(Data_kom2,MATCH(1,(komnavn2=Kommune)*(komaar2=R174),0),13)="*","*",INDEX(Data_kom2,MATCH(1,(komnavn2=Kommune)*(komaar2=R174),0),13)),"Data ikke tilføjet") -> 118
B177: Antal 0-17-årige | D177: =IFERROR(INDEX(Data_kom2,MATCH(1,(komnavn2=Kommune)*(komaar2=D174),0),2),"Data ikke tilføjet") -> 105885 | E177: =IFERROR(INDEX(Data_kom2,MATCH(1,(komnavn2=Kommune)*(komaar2=E174),0),2),"Data ikke tilføjet") -> 106913 | F177: =IFERROR(INDEX(Data_kom2,MATCH(1,(komnavn2=Kommune)*(komaar2=F174),0),2),"Data ikke tilføjet") -> 107770 | G177: =IFERROR(INDEX(Data_kom2,MATCH(1,(komnavn2=Kommune)*(komaar2=G174),0),2),"Data ikke tilføjet") -> 108734 | H177: =IFERROR(INDEX(Data_kom2,MATCH(1,(komnavn2=Kommune)*(komaar2=H174),0),2),"Data ikke tilføjet") -> 109335 | I177: =IFERROR(INDEX(Data_kom2,MATCH(1,(komnavn2=Kommune)*(komaar2=I174),0),2),"Data ikke tilføjet") -> 110138 | J177: =IFERROR(INDEX(Data_kom2,MATCH(1,(komnavn2=Kommune)*(komaar2=J174),0),2),"Data ikke tilføjet") -> 110822 | K177: =IFERROR(INDEX(Data_kom2,MATCH(1,(komnavn2=Kommune)*(komaar2=K174),0),2),"Data ikke tilføjet") -> 111068 | L177: =IFERROR(INDEX(Data_kom2,MATCH(1,(komnavn2=Kommune)*(komaar2=L174),0),2),"Data ikke tilføjet") -> 110927 | M177: =IFERROR(INDEX(Data_kom2,MATCH(1,(komnavn2=Kommune)*(komaar2=M174),0),2),"Data ikke tilføjet") -> 110614 | N177: =IFERROR(INDEX(Data_kom2,MATCH(1,(komnavn2=Kommune)*(komaar2=N174),0),2),"Data ikke tilføjet") -> 110513 | O177: =IFERROR(INDEX(Data_kom2,MATCH(1,(komnavn2=Kommune)*(komaar2=O174),0),2),"Data ikke tilføjet") -> 110692 | P177: =IFERROR(INDEX(Data_kom2,MATCH(1,(komnavn2=Kommune)*(komaar2=P174),0),2),"Data ikke tilføjet") -> 110835 | Q177: =IFERROR(INDEX(Data_kom2,MATCH(1,(komnavn2=Kommune)*(komaar2=Q174),0),2),"Data ikke tilføjet") -> 111075 | R177: =IFERROR(INDEX(Data_kom2,MATCH(1,(komnavn2=Kommune)*(komaar2=R174),0),2),"Data ikke tilføjet") -> 110571
B178: Andel | D178: =IFERROR(IF(D176="*","*",IF(D177=0,"#I/T",(D176/D177*1000))),"Data ikke tilføjet") -> 1.001086084 | E178: 1.056934143 | F178: 1.029971235 | G178: 0.9932495815 | H178: 1.03352083 | I178: 0.9805879896 | J178: 0.9835592211 | K178: 0.9813807757 | L178: 1.045732779 | M178: =IFERROR(IF(M176="*","*",IF(M177=0,"#I/T",(M176/M177*1000))),"Data ikke tilføjet") -> 1.030610953 | N178: 1.02250414 | O178: 1.011816572 | P178: 1.019533541 | Q178: 0.9633130767 | R178: 1.067187599
B179: Sammenligningsgruppe, gns.
B180: Antal anbragte | D180: =IF('Dine valg'!$G$24="","-",SUMIF(Hjælpefane!$D$7:$D$111,"="&D$9,Hjælpefane!$N$7:$N$111)) -> 41 | E180: =IF('Dine valg'!$G$24="","-",SUMIF(Hjælpefane!$D$7:$D$111,"="&E$9,Hjælpefane!$N$7:$N$111)) -> 35 | F180: =IF('Dine valg'!$G$24="","-",SUMIF(Hjælpefane!$D$7:$D$111,"="&F$9,Hjælpefane!$N$7:$N$111)) -> 31 | G180: =IF('Dine valg'!$G$24="","-",SUMIF(Hjælpefane!$D$7:$D$111,"="&G$9,Hjælpefane!$N$7:$N$111)) -> 25 | H180: =IF('Dine valg'!$G$24="","-",SUMIF(Hjælpefane!$D$7:$D$111,"="&H$9,Hjælpefane!$N$7:$N$111)) -> 23 | I180: =IF('Dine valg'!$G$24="","-",SUMIF(Hjælpefane!$D$7:$D$111,"="&I$9,Hjælpefane!$N$7:$N$111)) -> 23 | J180: =IF('Dine valg'!$G$24="","-",SUMIF(Hjælpefane!$D$7:$D$111,"="&J$9,Hjælpefane!$N$7:$N$111)) -> 22 | K180: =IF('Dine valg'!$G$24="","-",SUMIF(Hjælpefane!$D$7:$D$111,"="&K$9,Hjælpefane!$N$7:$N$111)) -> 24 | L180: =IF('Dine valg'!$G$24="","-",SUMIF(Hjælpefane!$D$7:$D$111,"="&L$9,Hjælpefane!$N$7:$N$111)) -> 26 | M180: =IF('Dine valg'!$G$24="","-",SUMIF(Hjælpefane!$D$7:$D$111,"="&M$9,Hjælpefane!$N$7:$N$111)) -> 25 | N180: =IF('Dine valg'!$G$24="","-",SUMIF(Hjælpefane!$D$7:$D$111,"="&N$9,Hjælpefane!$N$7:$N$111)) -> 22 | O180: =IF('Dine valg'!$G$24="","-",SUMIF(Hjælpefane!$D$7:$D$111,"="&O$9,Hjælpefane!$N$7:$N$111)) -> 22 | P180: =IF('Dine valg'!$G$24="","-",SUMIF(Hjælpefane!$D$7:$D$111,"="&P$9,Hjælpefane!$N$7:$N$111)) -> 25 | Q180: =IF('Dine valg'!$G$24="","-",SUMIF(Hjælpefane!$D$7:$D$111,"="&Q$9,Hjælpefane!$N$7:$N$111)) -> 26 | R180: =IF('Dine valg'!$G$24="","-",SUMIF(Hjælpefane!$D$7:$D$111,"="&R$9,Hjælpefane!$N$7:$N$111)) -> 27
B181: Antal 0-17-årige | D181: =IF('Dine valg'!$G$24="","-",SUMIF(Hjælpefane!$D$7:$D$111,"="&D$9,Hjælpefane!$C$7:$C$111)) -> 62903 | E181: =IF('Dine valg'!$G$24="","-",SUMIF(Hjælpefane!$D$7:$D$111,"="&E$9,Hjælpefane!$C$7:$C$111)) -> 63077 | F181: =IF('Dine valg'!$G$24="","-",SUMIF(Hjælpefane!$D$7:$D$111,"="&F$9,Hjælpefane!$C$7:$C$111)) -> 63245 | G181: =IF('Dine valg'!$G$24="","-",SUMIF(Hjælpefane!$D$7:$D$111,"="&G$9,Hjælpefane!$C$7:$C$111)) -> 63510 | H181: =IF('Dine valg'!$G$24="","-",SUMIF(Hjælpefane!$D$7:$D$111,"="&H$9,Hjælpefane!$C$7:$C$111)) -> 63607 | I181: =IF('Dine valg'!$G$24="","-",SUMIF(Hjælpefane!$D$7:$D$111,"="&I$9,Hjælpefane!$C$7:$C$111)) -> 63704 | J181: =IF('Dine valg'!$G$24="","-",SUMIF(Hjælpefane!$D$7:$D$111,"="&J$9,Hjælpefane!$C$7:$C$111)) -> 63890 | K181: =IF('Dine valg'!$G$24="","-",SUMIF(Hjælpefane!$D$7:$D$111,"="&K$9,Hjælpefane!$C$7:$C$111)) -> 64128 | L181: =IF('Dine valg'!$G$24="","-",SUMIF(Hjælpefane!$D$7:$D$111,"="&L$9,Hjælpefane!$C$7:$C$111)) -> 64334 | M181: =IF('Dine valg'!$G$24="","-",SUMIF(Hjælpefane!$D$7:$D$111,"="&M$9,Hjælpefane!$C$7:$C$111)) -> 64307 | N181: =IF('Dine valg'!$G$24="","-",SUMIF(Hjælpefane!$D$7:$D$111,"="&N$9,Hjælpefane!$C$7:$C$111)) -> 64049 | O181: =IF('Dine valg'!$G$24="","-",SUMIF(Hjælpefane!$D$7:$D$111,"="&O$9,Hjælpefane!$C$7:$C$111)) -> 64356 | P181: =IF('Dine valg'!$G$24="","-",SUMIF(Hjælpefane!$D$7:$D$111,"="&P$9,Hjælpefane!$C$7:$C$111)) -> 64420 | Q181: =IF('Dine valg'!$G$24="","-",SUMIF(Hjælpefane!$D$7:$D$111,"="&Q$9,Hjælpefane!$C$7:$C$111)) -> 64601 | R181: =IF('Dine valg'!$G$24="","-",SUMIF(Hjælpefane!$D$7:$D$111,"="&R$9,Hjælpefane!$C$7:$C$111)) -> 64665
B182: Andel | D182: =IFERROR(IF(D180="*","*",IF(D181="","Indtast data",(D180/D181*1000))),"-") -> 0.6517972116 | E182: =IFERROR(IF(E180="*","*",IF(E181="","Indtast data",(E180/E181*1000))),"-") -> 0.5548773721 | F182: =IFERROR(IF(F180="*","*",IF(F181="","Indtast data",(F180/F181*1000))),"-") -> 0.4901573247 | G182: =IFERROR(IF(G180="*","*",IF(G181="","Indtast data",(G180/G181*1000))),"-") -> 0.393638797 | H182: =IFERROR(IF(H180="*","*",IF(H181="","Indtast data",(H180/H181*1000))),"-") -> 0.3615954219 | I182: =IFERROR(IF(I180="*","*",IF(I181="","Indtast data",(I180/I181*1000))),"-") -> 0.3610448323 | J182: =IFERROR(IF(J180="*","*",IF(J181="","Indtast data",(J180/J181*1000))),"-") -> 0.3443418375 | K182: =IFERROR(IF(K180="*","*",IF(K181="","Indtast data",(K180/K181*1000))),"-") -> 0.374251497 | L182: =IFERROR(IF(L180="*","*",IF(L181="","Indtast data",(L180/L181*1000))),"-") -> 0.4041408897 | M182: 0.3887601661 | N182: 0.3434870178 | O182: 0.3418484679 | P182: 0.3880782366 | Q182: 0.40247055 | R182: 0.4175365344
B183: Hele landet
B184: Antal anbragte | D184: =INDEX(Data_land,MATCH(Skyggetabeller!D174,Data!landaar,0),13) -> 955 | E184: =INDEX(Data_land,MATCH(Skyggetabeller!E174,Data!landaar,0),13) -> 1000 | F184: =INDEX(Data_land,MATCH(Skyggetabeller!F174,Data!landaar,0),13) -> 965 | G184: =INDEX(Data_land,MATCH(Skyggetabeller!G174,Data!landaar,0),13) -> 944 | H184: =INDEX(Data_land,MATCH(Skyggetabeller!H174,Data!landaar,0),13) -> 944 | I184: =INDEX(Data_land,MATCH(Skyggetabeller!I174,Data!landaar,0),13) -> 917 | J184: =INDEX(Data_land,MATCH(Skyggetabeller!J174,Data!landaar,0),13) -> 899 | K184: =INDEX(Data_land,MATCH(Skyggetabeller!K174,Data!landaar,0),13) -> 922 | L184: =INDEX(Data_land,MATCH(Skyggetabeller!L174,Data!landaar,0),13) -> 947 | M184: =INDEX(Data_land,MATCH(Skyggetabeller!M174,Data!landaar,0),13) -> 952 | N184: =INDEX(Data_land,MATCH(Skyggetabeller!N174,Data!landaar,0),13) -> 935 | O184: =INDEX(Data_land,MATCH(Skyggetabeller!O174,Data!landaar,0),13) -> 963 | P184: =INDEX(Data_land,MATCH(Skyggetabeller!P174,Data!landaar,0),13) -> 1006 | Q184: =INDEX(Data_land,MATCH(Skyggetabeller!Q174,Data!landaar,0),13) -> 1009 | R184: =INDEX(Data_land,MATCH(Skyggetabeller!R174,Data!landaar,0),13) -> 1030
B185: Antal 0-17-årige | D185: =INDEX(Data_land,MATCH(Skyggetabeller!D174,Data!landaar,0),2) -> 1168201 | E185: =INDEX(Data_land,MATCH(Skyggetabeller!E174,Data!landaar,0),2) -> 1165363 | F185: =INDEX(Data_land,MATCH(Skyggetabeller!F174,Data!landaar,0),2) -> 1165475 | G185: =INDEX(Data_land,MATCH(Skyggetabeller!G174,Data!landaar,0),2) -> 1162195 | H185: =INDEX(Data_land,MATCH(Skyggetabeller!H174,Data!landaar,0),2) -> 1160360 | I185: =INDEX(Data_land,MATCH(Skyggetabeller!I174,Data!landaar,0),2) -> 1156537 | J185: =INDEX(Data_land,MATCH(Skyggetabeller!J174,Data!landaar,0),2) -> 1156116 | K185: =INDEX(Data_land,MATCH(Skyggetabeller!K174,Data!landaar,0),2) -> 1153027 | L185: =INDEX(Data_land,MATCH(Skyggetabeller!L174,Data!landaar,0),2) -> 1152972 | M185: =INDEX(Data_land,MATCH(Skyggetabeller!M174,Data!landaar,0),2) -> 1151374 | N185: =INDEX(Data_land,MATCH(Skyggetabeller!N174,Data!landaar,0),2) -> 1151704 | O185: =INDEX(Data_land,MATCH(Skyggetabeller!O174,Data!landaar,0),2) -> 1157254 | P185: =INDEX(Data_land,MATCH(Skyggetabeller!P174,Data!landaar,0),2) -> 1155814 | Q185: =INDEX(Data_land,MATCH(Skyggetabeller!Q174,Data!landaar,0),2) -> 1151415 | R185: =INDEX(Data_land,MATCH(Skyggetabeller!R174,Data!landaar,0),2) -> 1148490
B186: Andel | D186: =IFERROR(IF(D184="*","*",IF(D185=0,"#I/T",(D184/D185*1000))),"Data ikke tilføjet") -> 0.8174963041 | E186: 0.8581017245 | F186: 0.8279885883 | G186: 0.8122561188 | H186: 0.8135406253 | I186: 0.7928842743 | J186: 0.7776036315 | K186: 0.7996343537 | L186: 0.8213555923 | M186: =IFERROR(IF(M184="*","*",IF(M185=0,"#I/T",(M184/M185*1000))),"Data ikke tilføjet") -> 0.8268381951 | N186: 0.8118405424 | O186: 0.8321422955 | P186: 0.8703822587 | Q186: 0.8763130583 | R186: 0.8968297504
B189: Nøgletal 5: Hjemmebaserede foranstaltninger
B191: Tabel 5: Modtagere af hjemmebaserede foranstaltninger
B192: Nøgletal 5: Modtagere af hjemmebaserede foranstaltninger | D192: 2017-01-01 | E192: 2017-07-01 | F192: 2018-01-01 | G192: 2018-07-01 | H192: 2019-01-01 | I192: 2019-07-01 | J192: 2020-01-01 | K192: 2020-07-01 | L192: 2021-01-01 | M192: 2021-07-01 | N192: 2022-01-01 | O192: 2022-07-01 | P192: 2023-01-01 | Q192: 2023-07-01 | R192: 2024-01-01
B193: =IF(Kommune="","Kommune",Kommune) -> København
